Workbook

Sheet Summary
A1: Cost benefit analysis summary
A2: Results of the cost benefit analysis
H3: Capital expenditure (CAPEX) | I3: With contingency
A4: Real (2024-25 $, Net Present Values) over 20 years | H4: costs are in FY$25 dollars | I4: $ million
C5: Option 1 | D5: Option 2 | E5: Option 3 | H5: Vegetation transition cutting (creating CTS corridors) | I5: 58.4
A6: Measure | B6: Unit | C6: Number | D6: Number | E6: Number | H6: Avoided CAPEX due to SAPS installations | I6: -2.2
A7: Benefit Cost Ratio | B7: Ratio | C7: ='Option 1'!C31 -> 2.903144901 | D7: ='Option 2'!C35 -> 2.946496824 | E7: ='Option 3'!C36 -> 3.042671475 | H7: Network outage costs | I7: 9.3
A8: Nett Benefit | B8: 2024-25 $ million | C8: ='Option 1'!C30 -> 217.4537193 | D8: ='Option 2'!C34 -> 229.8933266 | E8: ='Option 3'!C35 -> 240.3856908 | H8: Additional aerial and ground-based inspection assurance | I8: 1.6
A9: Benefit | B9: 2024-25 $ million | C9: ='Option 1'!C29 -> 331.7139205 | D9: ='Option 2'!C33 -> 347.999518 | E9: ='Option 3'!C34 -> 358.0677037 | H9: Additional digital data acquisition | I9: 6.4
A10: Cost | B10: 2024-25 $ million | C10: ='Option 1'!C28 -> 114.2602012 | D10: ='Option 2'!C32 -> 118.1061915 | E10: ='Option 3'!C33 -> 117.6820129 | H10: Internal labour | I10: 13.7
H11: Environmental assessments | I11: 2.3
H12: Other third party costs | I12: 0.5
H13: Total CAPEX | I13: 89.99116698
H15: Operating expenditure (Opex) | I15: With contingency
H16: *costs are in FY$25 dollars | I16: $ million
H17: Maintaining clear-to-sky corridors once established | I17: 9.4
H18: Avoided OPEX due to SAPS installations | I18: -0.7
H19: OPEX Total (incremental incurred at Yr9) | I19: 8.7
H21: Total OPEX + CAPEX | I21: 98.67

Sheet Variable explanations (hidden)
A1: Variable explanations
A3: Variable | B3: Explanation
A4: Bushfire | B4: Custom variable created by Essential Energy. Includes a combination of Reliability and Safety impacts from a Bushfire.
A5: Reliability | B5: Based on the National Electricity Objective.
A6: Safety | B6: Based on the National Electricity Objective. Includes safety from harm to person and property.
A7: Risk | B7: Chance of our network moving further away from elements of the National Electricity Objective in an ideal state of the world.
A8: Contract Area | B8: Contract area of the particular vegetation management area (VMA)
A9: VMA | B9: Name of vegetation management area
A10: Cycle | B10: Cycle time between cuts for that VMA
A11: Total Avg CRN Cost | B11: Average contract cost to cut the VMA over the past several cuts assuming the existing standard (not CTS)
A12: Total Outage Cost | B12: Cost of the additional outages to facilitate the clear to sky cuts and tree removals.

Sheet Options description (hidden)
A1: Options description
B3: Scenario description
A4: Basecase (Do nothing) | B4: Spend nothing. The Basecase assumes without additional funding there will be no action taken to reduce Vegetation overhanging powerlines.
A6: Options
A7: 1 | B7: Complete the transitional vegetation trimming and tree removals in the new P1 areas to meet the “clear-to-sky” (CTS) standards
A8: 2 | B8: Clear to Sky with some covered conductors
A9: 3 | B9: Clear to Sky with some SAPS

Sheet BCR and NPV sensitivity (hidden)
A1: Sensitivity Analysis for Benefit Cost Ratio and Net Present Values
A3: Option 1
A4: 20 years of costs, nominal
B5: Benefit Cost Ratio | P5: Net Benefit (Net Present Value, nominal)
C6: Benefit compared with central estimate | R6: Benefit compared with central estimate
C7: 0.2 | D7: 0.4 | E7: 0.6 | F7: 0.8 | G7: 1 | H7: 1.2 | I7: 1.4 | J7: 1.6 | K7: 1.8 | L7: 2 | R7: 0.2 | S7: 0.4 | T7: 0.6 | U7: 0.8 | V7: 1 | W7: 1.2 | X7: 1.4 | Y7: 1.6 | Z7: 1.8 | AA7: 2
A8: Cost compared with central estimate | B8: 3 | C8: =(Summary!#REF! * 'BCR and NPV sensitivity'!C$7) / (Summary!#REF! * 'BCR and NPV sensitivity'!$B8) ->  | D8: =(Summary!#REF! * 'BCR and NPV sensitivity'!D$7) / (Summary!#REF! * 'BCR and NPV sensitivity'!$B8) ->  | E8: =(Summary!#REF! * 'BCR and NPV sensitivity'!E$7) / (Summary!#REF! * 'BCR and NPV sensitivity'!$B8) ->  | F8: =(Summary!#REF! * 'BCR and NPV sensitivity'!F$7) / (Summary!#REF! * 'BCR and NPV sensitivity'!$B8) ->  | G8: =(Summary!#REF! * 'BCR and NPV sensitivity'!G$7) / (Summary!#REF! * 'BCR and NPV sensitivity'!$B8) ->  | H8: =(Summary!#REF! * 'BCR and NPV sensitivity'!H$7) / (Summary!#REF! * 'BCR and NPV sensitivity'!$B8) ->  | I8: =(Summary!#REF! * 'BCR and NPV sensitivity'!I$7) / (Summary!#REF! * 'BCR and NPV sensitivity'!$B8) ->  | J8: =(Summary!#REF! * 'BCR and NPV sensitivity'!J$7) / (Summary!#REF! * 'BCR and NPV sensitivity'!$B8) ->  | K8: =(Summary!#REF! * 'BCR and NPV sensitivity'!K$7) / (Summary!#REF! * 'BCR and NPV sensitivity'!$B8) ->  | L8: =(Summary!#REF! * 'BCR and NPV sensitivity'!L$7) / (Summary!#REF! * 'BCR and NPV sensitivity'!$B8) ->  | P8: Cost compared with central estimate | Q8: 3 | R8: =(Summary!#REF! * 'BCR and NPV sensitivity'!R$7) - (Summary!#REF! * 'BCR and NPV sensitivity'!$B8) ->  | S8: =(Summary!#REF! * 'BCR and NPV sensitivity'!S$7) - (Summary!#REF! * 'BCR and NPV sensitivity'!$B8) ->  | T8: =(Summary!#REF! * 'BCR and NPV sensitivity'!T$7) - (Summary!#REF! * 'BCR and NPV sensitivity'!$B8) ->  | U8: =(Summary!#REF! * 'BCR and NPV sensitivity'!U$7) - (Summary!#REF! * 'BCR and NPV sensitivity'!$B8) ->  | V8: =(Summary!#REF! * 'BCR and NPV sensitivity'!V$7) - (Summary!#REF! * 'BCR and NPV sensitivity'!$B8) ->  | W8: =(Summary!#REF! * 'BCR and NPV sensitivity'!W$7) - (Summary!#REF! * 'BCR and NPV sensitivity'!$B8) ->  | X8: =(Summary!#REF! * 'BCR and NPV sensitivity'!X$7) - (Summary!#REF! * 'BCR and NPV sensitivity'!$B8) ->  | Y8: =(Summary!#REF! * 'BCR and NPV sensitivity'!Y$7) - (Summary!#REF! * 'BCR and NPV sensitivity'!$B8) ->  | Z8: =(Summary!#REF! * 'BCR and NPV sensitivity'!Z$7) - (Summary!#REF! * 'BCR and NPV sensitivity'!$B8) ->  | AA8: =(Summary!#REF! * 'BCR and NPV sensitivity'!AA$7) - (Summary!#REF! * 'BCR and NPV sensitivity'!$B8) -> 
B9: 2.8 | C9: =(Summary!#REF! * 'BCR and NPV sensitivity'!C$7) / (Summary!#REF! * 'BCR and NPV sensitivity'!$B9) ->  | D9: =(Summary!#REF! * 'BCR and NPV sensitivity'!D$7) / (Summary!#REF! * 'BCR and NPV sensitivity'!$B9) ->  | E9: =(Summary!#REF! * 'BCR and NPV sensitivity'!E$7) / (Summary!#REF! * 'BCR and NPV sensitivity'!$B9) ->  | F9: =(Summary!#REF! * 'BCR and NPV sensitivity'!F$7) / (Summary!#REF! * 'BCR and NPV sensitivity'!$B9) ->  | G9: =(Summary!#REF! * 'BCR and NPV sensitivity'!G$7) / (Summary!#REF! * 'BCR and NPV sensitivity'!$B9) ->  | H9: =(Summary!#REF! * 'BCR and NPV sensitivity'!H$7) / (Summary!#REF! * 'BCR and NPV sensitivity'!$B9) ->  | I9: =(Summary!#REF! * 'BCR and NPV sensitivity'!I$7) / (Summary!#REF! * 'BCR and NPV sensitivity'!$B9) ->  | J9: =(Summary!#REF! * 'BCR and NPV sensitivity'!J$7) / (Summary!#REF! * 'BCR and NPV sensitivity'!$B9) ->  | K9: =(Summary!#REF! * 'BCR and NPV sensitivity'!K$7) / (Summary!#REF! * 'BCR and NPV sensitivity'!$B9) ->  | L9: =(Summary!#REF! * 'BCR and NPV sensitivity'!L$7) / (Summary!#REF! * 'BCR and NPV sensitivity'!$B9) ->  | Q9: 2.8 | R9: =(Summary!#REF! * 'BCR and NPV sensitivity'!R$7) - (Summary!#REF! * 'BCR and NPV sensitivity'!$B9) ->  | S9: =(Summary!#REF! * 'BCR and NPV sensitivity'!S$7) - (Summary!#REF! * 'BCR and NPV sensitivity'!$B9) ->  | T9: =(Summary!#REF! * 'BCR and NPV sensitivity'!T$7) - (Summary!#REF! * 'BCR and NPV sensitivity'!$B9) ->  | U9: =(Summary!#REF! * 'BCR and NPV sensitivity'!U$7) - (Summary!#REF! * 'BCR and NPV sensitivity'!$B9) ->  | V9: =(Summary!#REF! * 'BCR and NPV sensitivity'!V$7) - (Summary!#REF! * 'BCR and NPV sensitivity'!$B9) ->  | W9: =(Summary!#REF! * 'BCR and NPV sensitivity'!W$7) - (Summary!#REF! * 'BCR and NPV sensitivity'!$B9) ->  | X9: =(Summary!#REF! * 'BCR and NPV sensitivity'!X$7) - (Summary!#REF! * 'BCR and NPV sensitivity'!$B9) ->  | Y9: =(Summary!#REF! * 'BCR and NPV sensitivity'!Y$7) - (Summary!#REF! * 'BCR and NPV sensitivity'!$B9) ->  | Z9: =(Summary!#REF! * 'BCR and NPV sensitivity'!Z$7) - (Summary!#REF! * 'BCR and NPV sensitivity'!$B9) ->  | AA9: =(Summary!#REF! * 'BCR and NPV sensitivity'!AA$7) - (Summary!#REF! * 'BCR and NPV sensitivity'!$B9) -> 
B10: 2.6 | C10: =(Summary!#REF! * 'BCR and NPV sensitivity'!C$7) / (Summary!#REF! * 'BCR and NPV sensitivity'!$B10) ->  | D10: =(Summary!#REF! * 'BCR and NPV sensitivity'!D$7) / (Summary!#REF! * 'BCR and NPV sensitivity'!$B10) ->  | E10: =(Summary!#REF! * 'BCR and NPV sensitivity'!E$7) / (Summary!#REF! * 'BCR and NPV sensitivity'!$B10) ->  | F10: =(Summary!#REF! * 'BCR and NPV sensitivity'!F$7) / (Summary!#REF! * 'BCR and NPV sensitivity'!$B10) ->  | G10: =(Summary!#REF! * 'BCR and NPV sensitivity'!G$7) / (Summary!#REF! * 'BCR and NPV sensitivity'!$B10) ->  | H10: =(Summary!#REF! * 'BCR and NPV sensitivity'!H$7) / (Summary!#REF! * 'BCR and NPV sensitivity'!$B10) ->  | I10: =(Summary!#REF! * 'BCR and NPV sensitivity'!I$7) / (Summary!#REF! * 'BCR and NPV sensitivity'!$B10) ->  | J10: =(Summary!#REF! * 'BCR and NPV sensitivity'!J$7) / (Summary!#REF! * 'BCR and NPV sensitivity'!$B10) ->  | K10: =(Summary!#REF! * 'BCR and NPV sensitivity'!K$7) / (Summary!#REF! * 'BCR and NPV sensitivity'!$B10) ->  | L10: =(Summary!#REF! * 'BCR and NPV sensitivity'!L$7) / (Summary!#REF! * 'BCR and NPV sensitivity'!$B10) ->  | Q10: 2.6 | R10: =(Summary!#REF! * 'BCR and NPV sensitivity'!R$7) - (Summary!#REF! * 'BCR and NPV sensitivity'!$B10) ->  | S10: =(Summary!#REF! * 'BCR and NPV sensitivity'!S$7) - (Summary!#REF! * 'BCR and NPV sensitivity'!$B10) ->  | T10: =(Summary!#REF! * 'BCR and NPV sensitivity'!T$7) - (Summary!#REF! * 'BCR and NPV sensitivity'!$B10) ->  | U10: =(Summary!#REF! * 'BCR and NPV sensitivity'!U$7) - (Summary!#REF! * 'BCR and NPV sensitivity'!$B10) ->  | V10: =(Summary!#REF! * 'BCR and NPV sensitivity'!V$7) - (Summary!#REF! * 'BCR and NPV sensitivity'!$B10) ->  | W10: =(Summary!#REF! * 'BCR and NPV sensitivity'!W$7) - (Summary!#REF! * 'BCR and NPV sensitivity'!$B10) ->  | X10: =(Summary!#REF! * 'BCR and NPV sensitivity'!X$7) - (Summary!#REF! * 'BCR and NPV sensitivity'!$B10) ->  | Y10: =(Summary!#REF! * 'BCR and NPV sensitivity'!Y$7) - (Summary!#REF! * 'BCR and NPV sensitivity'!$B10) ->  | Z10: =(Summary!#REF! * 'BCR and NPV sensitivity'!Z$7) - (Summary!#REF! * 'BCR and NPV sensitivity'!$B10) ->  | AA10: =(Summary!#REF! * 'BCR and NPV sensitivity'!AA$7) - (Summary!#REF! * 'BCR and NPV sensitivity'!$B10) -> 
B11: 2.4 | C11: =(Summary!#REF! * 'BCR and NPV sensitivity'!C$7) / (Summary!#REF! * 'BCR and NPV sensitivity'!$B11) ->  | D11: =(Summary!#REF! * 'BCR and NPV sensitivity'!D$7) / (Summary!#REF! * 'BCR and NPV sensitivity'!$B11) ->  | E11: =(Summary!#REF! * 'BCR and NPV sensitivity'!E$7) / (Summary!#REF! * 'BCR and NPV sensitivity'!$B11) ->  | F11: =(Summary!#REF! * 'BCR and NPV sensitivity'!F$7) / (Summary!#REF! * 'BCR and NPV sensitivity'!$B11) ->  | G11: =(Summary!#REF! * 'BCR and NPV sensitivity'!G$7) / (Summary!#REF! * 'BCR and NPV sensitivity'!$B11) ->  | H11: =(Summary!#REF! * 'BCR and NPV sensitivity'!H$7) / (Summary!#REF! * 'BCR and NPV sensitivity'!$B11) ->  | I11: =(Summary!#REF! * 'BCR and NPV sensitivity'!I$7) / (Summary!#REF! * 'BCR and NPV sensitivity'!$B11) ->  | J11: =(Summary!#REF! * 'BCR and NPV sensitivity'!J$7) / (Summary!#REF! * 'BCR and NPV sensitivity'!$B11) ->  | K11: =(Summary!#REF! * 'BCR and NPV sensitivity'!K$7) / (Summary!#REF! * 'BCR and NPV sensitivity'!$B11) ->  | L11: =(Summary!#REF! * 'BCR and NPV sensitivity'!L$7) / (Summary!#REF! * 'BCR and NPV sensitivity'!$B11) ->  | Q11: 2.4 | R11: =(Summary!#REF! * 'BCR and NPV sensitivity'!R$7) - (Summary!#REF! * 'BCR and NPV sensitivity'!$B11) ->  | S11: =(Summary!#REF! * 'BCR and NPV sensitivity'!S$7) - (Summary!#REF! * 'BCR and NPV sensitivity'!$B11) ->  | T11: =(Summary!#REF! * 'BCR and NPV sensitivity'!T$7) - (Summary!#REF! * 'BCR and NPV sensitivity'!$B11) ->  | U11: =(Summary!#REF! * 'BCR and NPV sensitivity'!U$7) - (Summary!#REF! * 'BCR and NPV sensitivity'!$B11) ->  | V11: =(Summary!#REF! * 'BCR and NPV sensitivity'!V$7) - (Summary!#REF! * 'BCR and NPV sensitivity'!$B11) ->  | W11: =(Summary!#REF! * 'BCR and NPV sensitivity'!W$7) - (Summary!#REF! * 'BCR and NPV sensitivity'!$B11) ->  | X11: =(Summary!#REF! * 'BCR and NPV sensitivity'!X$7) - (Summary!#REF! * 'BCR and NPV sensitivity'!$B11) ->  | Y11: =(Summary!#REF! * 'BCR and NPV sensitivity'!Y$7) - (Summary!#REF! * 'BCR and NPV sensitivity'!$B11) ->  | Z11: =(Summary!#REF! * 'BCR and NPV sensitivity'!Z$7) - (Summary!#REF! * 'BCR and NPV sensitivity'!$B11) ->  | AA11: =(Summary!#REF! * 'BCR and NPV sensitivity'!AA$7) - (Summary!#REF! * 'BCR and NPV sensitivity'!$B11) -> 
B12: 2.2 | C12: =(Summary!#REF! * 'BCR and NPV sensitivity'!C$7) / (Summary!#REF! * 'BCR and NPV sensitivity'!$B12) ->  | D12: =(Summary!#REF! * 'BCR and NPV sensitivity'!D$7) / (Summary!#REF! * 'BCR and NPV sensitivity'!$B12) ->  | E12: =(Summary!#REF! * 'BCR and NPV sensitivity'!E$7) / (Summary!#REF! * 'BCR and NPV sensitivity'!$B12) ->  | F12: =(Summary!#REF! * 'BCR and NPV sensitivity'!F$7) / (Summary!#REF! * 'BCR and NPV sensitivity'!$B12) ->  | G12: =(Summary!#REF! * 'BCR and NPV sensitivity'!G$7) / (Summary!#REF! * 'BCR and NPV sensitivity'!$B12) ->  | H12: =(Summary!#REF! * 'BCR and NPV sensitivity'!H$7) / (Summary!#REF! * 'BCR and NPV sensitivity'!$B12) ->  | I12: =(Summary!#REF! * 'BCR and NPV sensitivity'!I$7) / (Summary!#REF! * 'BCR and NPV sensitivity'!$B12) ->  | J12: =(Summary!#REF! * 'BCR and NPV sensitivity'!J$7) / (Summary!#REF! * 'BCR and NPV sensitivity'!$B12) ->  | K12: =(Summary!#REF! * 'BCR and NPV sensitivity'!K$7) / (Summary!#REF! * 'BCR and NPV sensitivity'!$B12) ->  | L12: =(Summary!#REF! * 'BCR and NPV sensitivity'!L$7) / (Summary!#REF! * 'BCR and NPV sensitivity'!$B12) ->  | Q12: 2.2 | R12: =(Summary!#REF! * 'BCR and NPV sensitivity'!R$7) - (Summary!#REF! * 'BCR and NPV sensitivity'!$B12) ->  | S12: =(Summary!#REF! * 'BCR and NPV sensitivity'!S$7) - (Summary!#REF! * 'BCR and NPV sensitivity'!$B12) ->  | T12: =(Summary!#REF! * 'BCR and NPV sensitivity'!T$7) - (Summary!#REF! * 'BCR and NPV sensitivity'!$B12) ->  | U12: =(Summary!#REF! * 'BCR and NPV sensitivity'!U$7) - (Summary!#REF! * 'BCR and NPV sensitivity'!$B12) ->  | V12: =(Summary!#REF! * 'BCR and NPV sensitivity'!V$7) - (Summary!#REF! * 'BCR and NPV sensitivity'!$B12) ->  | W12: =(Summary!#REF! * 'BCR and NPV sensitivity'!W$7) - (Summary!#REF! * 'BCR and NPV sensitivity'!$B12) ->  | X12: =(Summary!#REF! * 'BCR and NPV sensitivity'!X$7) - (Summary!#REF! * 'BCR and NPV sensitivity'!$B12) ->  | Y12: =(Summary!#REF! * 'BCR and NPV sensitivity'!Y$7) - (Summary!#REF! * 'BCR and NPV sensitivity'!$B12) ->  | Z12: =(Summary!#REF! * 'BCR and NPV sensitivity'!Z$7) - (Summary!#REF! * 'BCR and NPV sensitivity'!$B12) ->  | AA12: =(Summary!#REF! * 'BCR and NPV sensitivity'!AA$7) - (Summary!#REF! * 'BCR and NPV sensitivity'!$B12) -> 
B13: 2 | C13: =(Summary!#REF! * 'BCR and NPV sensitivity'!C$7) / (Summary!#REF! * 'BCR and NPV sensitivity'!$B13) ->  | D13: =(Summary!#REF! * 'BCR and NPV sensitivity'!D$7) / (Summary!#REF! * 'BCR and NPV sensitivity'!$B13) ->  | E13: =(Summary!#REF! * 'BCR and NPV sensitivity'!E$7) / (Summary!#REF! * 'BCR and NPV sensitivity'!$B13) ->  | F13: =(Summary!#REF! * 'BCR and NPV sensitivity'!F$7) / (Summary!#REF! * 'BCR and NPV sensitivity'!$B13) ->  | G13: =(Summary!#REF! * 'BCR and NPV sensitivity'!G$7) / (Summary!#REF! * 'BCR and NPV sensitivity'!$B13) ->  | H13: =(Summary!#REF! * 'BCR and NPV sensitivity'!H$7) / (Summary!#REF! * 'BCR and NPV sensitivity'!$B13) ->  | I13: =(Summary!#REF! * 'BCR and NPV sensitivity'!I$7) / (Summary!#REF! * 'BCR and NPV sensitivity'!$B13) ->  | J13: =(Summary!#REF! * 'BCR and NPV sensitivity'!J$7) / (Summary!#REF! * 'BCR and NPV sensitivity'!$B13) ->  | K13: =(Summary!#REF! * 'BCR and NPV sensitivity'!K$7) / (Summary!#REF! * 'BCR and NPV sensitivity'!$B13) ->  | L13: =(Summary!#REF! * 'BCR and NPV sensitivity'!L$7) / (Summary!#REF! * 'BCR and NPV sensitivity'!$B13) ->  | Q13: 2 | R13: =(Summary!#REF! * 'BCR and NPV sensitivity'!R$7) - (Summary!#REF! * 'BCR and NPV sensitivity'!$B13) ->  | S13: =(Summary!#REF! * 'BCR and NPV sensitivity'!S$7) - (Summary!#REF! * 'BCR and NPV sensitivity'!$B13) ->  | T13: =(Summary!#REF! * 'BCR and NPV sensitivity'!T$7) - (Summary!#REF! * 'BCR and NPV sensitivity'!$B13) ->  | U13: =(Summary!#REF! * 'BCR and NPV sensitivity'!U$7) - (Summary!#REF! * 'BCR and NPV sensitivity'!$B13) ->  | V13: =(Summary!#REF! * 'BCR and NPV sensitivity'!V$7) - (Summary!#REF! * 'BCR and NPV sensitivity'!$B13) ->  | W13: =(Summary!#REF! * 'BCR and NPV sensitivity'!W$7) - (Summary!#REF! * 'BCR and NPV sensitivity'!$B13) ->  | X13: =(Summary!#REF! * 'BCR and NPV sensitivity'!X$7) - (Summary!#REF! * 'BCR and NPV sensitivity'!$B13) ->  | Y13: =(Summary!#REF! * 'BCR and NPV sensitivity'!Y$7) - (Summary!#REF! * 'BCR and NPV sensitivity'!$B13) ->  | Z13: =(Summary!#REF! * 'BCR and NPV sensitivity'!Z$7) - (Summary!#REF! * 'BCR and NPV sensitivity'!$B13) ->  | AA13: =(Summary!#REF! * 'BCR and NPV sensitivity'!AA$7) - (Summary!#REF! * 'BCR and NPV sensitivity'!$B13) -> 
B14: 1.8 | C14: =(Summary!#REF! * 'BCR and NPV sensitivity'!C$7) / (Summary!#REF! * 'BCR and NPV sensitivity'!$B14) ->  | D14: =(Summary!#REF! * 'BCR and NPV sensitivity'!D$7) / (Summary!#REF! * 'BCR and NPV sensitivity'!$B14) ->  | E14: =(Summary!#REF! * 'BCR and NPV sensitivity'!E$7) / (Summary!#REF! * 'BCR and NPV sensitivity'!$B14) ->  | F14: =(Summary!#REF! * 'BCR and NPV sensitivity'!F$7) / (Summary!#REF! * 'BCR and NPV sensitivity'!$B14) ->  | G14: =(Summary!#REF! * 'BCR and NPV sensitivity'!G$7) / (Summary!#REF! * 'BCR and NPV sensitivity'!$B14) ->  | H14: =(Summary!#REF! * 'BCR and NPV sensitivity'!H$7) / (Summary!#REF! * 'BCR and NPV sensitivity'!$B14) ->  | I14: =(Summary!#REF! * 'BCR and NPV sensitivity'!I$7) / (Summary!#REF! * 'BCR and NPV sensitivity'!$B14) ->  | J14: =(Summary!#REF! * 'BCR and NPV sensitivity'!J$7) / (Summary!#REF! * 'BCR and NPV sensitivity'!$B14) ->  | K14: =(Summary!#REF! * 'BCR and NPV sensitivity'!K$7) / (Summary!#REF! * 'BCR and NPV sensitivity'!$B14) ->  | L14: =(Summary!#REF! * 'BCR and NPV sensitivity'!L$7) / (Summary!#REF! * 'BCR and NPV sensitivity'!$B14) ->  | Q14: 1.8 | R14: =(Summary!#REF! * 'BCR and NPV sensitivity'!R$7) - (Summary!#REF! * 'BCR and NPV sensitivity'!$B14) ->  | S14: =(Summary!#REF! * 'BCR and NPV sensitivity'!S$7) - (Summary!#REF! * 'BCR and NPV sensitivity'!$B14) ->  | T14: =(Summary!#REF! * 'BCR and NPV sensitivity'!T$7) - (Summary!#REF! * 'BCR and NPV sensitivity'!$B14) ->  | U14: =(Summary!#REF! * 'BCR and NPV sensitivity'!U$7) - (Summary!#REF! * 'BCR and NPV sensitivity'!$B14) ->  | V14: =(Summary!#REF! * 'BCR and NPV sensitivity'!V$7) - (Summary!#REF! * 'BCR and NPV sensitivity'!$B14) ->  | W14: =(Summary!#REF! * 'BCR and NPV sensitivity'!W$7) - (Summary!#REF! * 'BCR and NPV sensitivity'!$B14) ->  | X14: =(Summary!#REF! * 'BCR and NPV sensitivity'!X$7) - (Summary!#REF! * 'BCR and NPV sensitivity'!$B14) ->  | Y14: =(Summary!#REF! * 'BCR and NPV sensitivity'!Y$7) - (Summary!#REF! * 'BCR and NPV sensitivity'!$B14) ->  | Z14: =(Summary!#REF! * 'BCR and NPV sensitivity'!Z$7) - (Summary!#REF! * 'BCR and NPV sensitivity'!$B14) ->  | AA14: =(Summary!#REF! * 'BCR and NPV sensitivity'!AA$7) - (Summary!#REF! * 'BCR and NPV sensitivity'!$B14) -> 
B15: 1.6 | C15: =(Summary!#REF! * 'BCR and NPV sensitivity'!C$7) / (Summary!#REF! * 'BCR and NPV sensitivity'!$B15) ->  | D15: =(Summary!#REF! * 'BCR and NPV sensitivity'!D$7) / (Summary!#REF! * 'BCR and NPV sensitivity'!$B15) ->  | E15: =(Summary!#REF! * 'BCR and NPV sensitivity'!E$7) / (Summary!#REF! * 'BCR and NPV sensitivity'!$B15) ->  | F15: =(Summary!#REF! * 'BCR and NPV sensitivity'!F$7) / (Summary!#REF! * 'BCR and NPV sensitivity'!$B15) ->  | G15: =(Summary!#REF! * 'BCR and NPV sensitivity'!G$7) / (Summary!#REF! * 'BCR and NPV sensitivity'!$B15) ->  | H15: =(Summary!#REF! * 'BCR and NPV sensitivity'!H$7) / (Summary!#REF! * 'BCR and NPV sensitivity'!$B15) ->  | I15: =(Summary!#REF! * 'BCR and NPV sensitivity'!I$7) / (Summary!#REF! * 'BCR and NPV sensitivity'!$B15) ->  | J15: =(Summary!#REF! * 'BCR and NPV sensitivity'!J$7) / (Summary!#REF! * 'BCR and NPV sensitivity'!$B15) ->  | K15: =(Summary!#REF! * 'BCR and NPV sensitivity'!K$7) / (Summary!#REF! * 'BCR and NPV sensitivity'!$B15) ->  | L15: =(Summary!#REF! * 'BCR and NPV sensitivity'!L$7) / (Summary!#REF! * 'BCR and NPV sensitivity'!$B15) ->  | Q15: 1.6 | R15: =(Summary!#REF! * 'BCR and NPV sensitivity'!R$7) - (Summary!#REF! * 'BCR and NPV sensitivity'!$B15) ->  | S15: =(Summary!#REF! * 'BCR and NPV sensitivity'!S$7) - (Summary!#REF! * 'BCR and NPV sensitivity'!$B15) ->  | T15: =(Summary!#REF! * 'BCR and NPV sensitivity'!T$7) - (Summary!#REF! * 'BCR and NPV sensitivity'!$B15) ->  | U15: =(Summary!#REF! * 'BCR and NPV sensitivity'!U$7) - (Summary!#REF! * 'BCR and NPV sensitivity'!$B15) ->  | V15: =(Summary!#REF! * 'BCR and NPV sensitivity'!V$7) - (Summary!#REF! * 'BCR and NPV sensitivity'!$B15) ->  | W15: =(Summary!#REF! * 'BCR and NPV sensitivity'!W$7) - (Summary!#REF! * 'BCR and NPV sensitivity'!$B15) ->  | X15: =(Summary!#REF! * 'BCR and NPV sensitivity'!X$7) - (Summary!#REF! * 'BCR and NPV sensitivity'!$B15) ->  | Y15: =(Summary!#REF! * 'BCR and NPV sensitivity'!Y$7) - (Summary!#REF! * 'BCR and NPV sensitivity'!$B15) ->  | Z15: =(Summary!#REF! * 'BCR and NPV sensitivity'!Z$7) - (Summary!#REF! * 'BCR and NPV sensitivity'!$B15) ->  | AA15: =(Summary!#REF! * 'BCR and NPV sensitivity'!AA$7) - (Summary!#REF! * 'BCR and NPV sensitivity'!$B15) -> 
B16: 1.4 | C16: =(Summary!#REF! * 'BCR and NPV sensitivity'!C$7) / (Summary!#REF! * 'BCR and NPV sensitivity'!$B16) ->  | D16: =(Summary!#REF! * 'BCR and NPV sensitivity'!D$7) / (Summary!#REF! * 'BCR and NPV sensitivity'!$B16) ->  | E16: =(Summary!#REF! * 'BCR and NPV sensitivity'!E$7) / (Summary!#REF! * 'BCR and NPV sensitivity'!$B16) ->  | F16: =(Summary!#REF! * 'BCR and NPV sensitivity'!F$7) / (Summary!#REF! * 'BCR and NPV sensitivity'!$B16) ->  | G16: =(Summary!#REF! * 'BCR and NPV sensitivity'!G$7) / (Summary!#REF! * 'BCR and NPV sensitivity'!$B16) ->  | H16: =(Summary!#REF! * 'BCR and NPV sensitivity'!H$7) / (Summary!#REF! * 'BCR and NPV sensitivity'!$B16) ->  | I16: =(Summary!#REF! * 'BCR and NPV sensitivity'!I$7) / (Summary!#REF! * 'BCR and NPV sensitivity'!$B16) ->  | J16: =(Summary!#REF! * 'BCR and NPV sensitivity'!J$7) / (Summary!#REF! * 'BCR and NPV sensitivity'!$B16) ->  | K16: =(Summary!#REF! * 'BCR and NPV sensitivity'!K$7) / (Summary!#REF! * 'BCR and NPV sensitivity'!$B16) ->  | L16: =(Summary!#REF! * 'BCR and NPV sensitivity'!L$7) / (Summary!#REF! * 'BCR and NPV sensitivity'!$B16) ->  | Q16: 1.4 | R16: =(Summary!#REF! * 'BCR and NPV sensitivity'!R$7) - (Summary!#REF! * 'BCR and NPV sensitivity'!$B16) ->  | S16: =(Summary!#REF! * 'BCR and NPV sensitivity'!S$7) - (Summary!#REF! * 'BCR and NPV sensitivity'!$B16) ->  | T16: =(Summary!#REF! * 'BCR and NPV sensitivity'!T$7) - (Summary!#REF! * 'BCR and NPV sensitivity'!$B16) ->  | U16: =(Summary!#REF! * 'BCR and NPV sensitivity'!U$7) - (Summary!#REF! * 'BCR and NPV sensitivity'!$B16) ->  | V16: =(Summary!#REF! * 'BCR and NPV sensitivity'!V$7) - (Summary!#REF! * 'BCR and NPV sensitivity'!$B16) ->  | W16: =(Summary!#REF! * 'BCR and NPV sensitivity'!W$7) - (Summary!#REF! * 'BCR and NPV sensitivity'!$B16) ->  | X16: =(Summary!#REF! * 'BCR and NPV sensitivity'!X$7) - (Summary!#REF! * 'BCR and NPV sensitivity'!$B16) ->  | Y16: =(Summary!#REF! * 'BCR and NPV sensitivity'!Y$7) - (Summary!#REF! * 'BCR and NPV sensitivity'!$B16) ->  | Z16: =(Summary!#REF! * 'BCR and NPV sensitivity'!Z$7) - (Summary!#REF! * 'BCR and NPV sensitivity'!$B16) ->  | AA16: =(Summary!#REF! * 'BCR and NPV sensitivity'!AA$7) - (Summary!#REF! * 'BCR and NPV sensitivity'!$B16) -> 
B17: 1.2 | C17: =(Summary!#REF! * 'BCR and NPV sensitivity'!C$7) / (Summary!#REF! * 'BCR and NPV sensitivity'!$B17) ->  | D17: =(Summary!#REF! * 'BCR and NPV sensitivity'!D$7) / (Summary!#REF! * 'BCR and NPV sensitivity'!$B17) ->  | E17: =(Summary!#REF! * 'BCR and NPV sensitivity'!E$7) / (Summary!#REF! * 'BCR and NPV sensitivity'!$B17) ->  | F17: =(Summary!#REF! * 'BCR and NPV sensitivity'!F$7) / (Summary!#REF! * 'BCR and NPV sensitivity'!$B17) ->  | G17: =(Summary!#REF! * 'BCR and NPV sensitivity'!G$7) / (Summary!#REF! * 'BCR and NPV sensitivity'!$B17) ->  | H17: =(Summary!#REF! * 'BCR and NPV sensitivity'!H$7) / (Summary!#REF! * 'BCR and NPV sensitivity'!$B17) ->  | I17: =(Summary!#REF! * 'BCR and NPV sensitivity'!I$7) / (Summary!#REF! * 'BCR and NPV sensitivity'!$B17) ->  | J17: =(Summary!#REF! * 'BCR and NPV sensitivity'!J$7) / (Summary!#REF! * 'BCR and NPV sensitivity'!$B17) ->  | K17: =(Summary!#REF! * 'BCR and NPV sensitivity'!K$7) / (Summary!#REF! * 'BCR and NPV sensitivity'!$B17) ->  | L17: =(Summary!#REF! * 'BCR and NPV sensitivity'!L$7) / (Summary!#REF! * 'BCR and NPV sensitivity'!$B17) ->  | Q17: 1.2 | R17: =(Summary!#REF! * 'BCR and NPV sensitivity'!R$7) - (Summary!#REF! * 'BCR and NPV sensitivity'!$B17) ->  | S17: =(Summary!#REF! * 'BCR and NPV sensitivity'!S$7) - (Summary!#REF! * 'BCR and NPV sensitivity'!$B17) ->  | T17: =(Summary!#REF! * 'BCR and NPV sensitivity'!T$7) - (Summary!#REF! * 'BCR and NPV sensitivity'!$B17) ->  | U17: =(Summary!#REF! * 'BCR and NPV sensitivity'!U$7) - (Summary!#REF! * 'BCR and NPV sensitivity'!$B17) ->  | V17: =(Summary!#REF! * 'BCR and NPV sensitivity'!V$7) - (Summary!#REF! * 'BCR and NPV sensitivity'!$B17) ->  | W17: =(Summary!#REF! * 'BCR and NPV sensitivity'!W$7) - (Summary!#REF! * 'BCR and NPV sensitivity'!$B17) ->  | X17: =(Summary!#REF! * 'BCR and NPV sensitivity'!X$7) - (Summary!#REF! * 'BCR and NPV sensitivity'!$B17) ->  | Y17: =(Summary!#REF! * 'BCR and NPV sensitivity'!Y$7) - (Summary!#REF! * 'BCR and NPV sensitivity'!$B17) ->  | Z17: =(Summary!#REF! * 'BCR and NPV sensitivity'!Z$7) - (Summary!#REF! * 'BCR and NPV sensitivity'!$B17) ->  | AA17: =(Summary!#REF! * 'BCR and NPV sensitivity'!AA$7) - (Summary!#REF! * 'BCR and NPV sensitivity'!$B17) -> 
B18: 1 | C18: =(Summary!#REF! * 'BCR and NPV sensitivity'!C$7) / (Summary!#REF! * 'BCR and NPV sensitivity'!$B18) ->  | D18: =(Summary!#REF! * 'BCR and NPV sensitivity'!D$7) / (Summary!#REF! * 'BCR and NPV sensitivity'!$B18) ->  | E18: =(Summary!#REF! * 'BCR and NPV sensitivity'!E$7) / (Summary!#REF! * 'BCR and NPV sensitivity'!$B18) ->  | F18: =(Summary!#REF! * 'BCR and NPV sensitivity'!F$7) / (Summary!#REF! * 'BCR and NPV sensitivity'!$B18) ->  | G18: =(Summary!#REF! * 'BCR and NPV sensitivity'!G$7) / (Summary!#REF! * 'BCR and NPV sensitivity'!$B18) ->  | H18: =(Summary!#REF! * 'BCR and NPV sensitivity'!H$7) / (Summary!#REF! * 'BCR and NPV sensitivity'!$B18) ->  | I18: =(Summary!#REF! * 'BCR and NPV sensitivity'!I$7) / (Summary!#REF! * 'BCR and NPV sensitivity'!$B18) ->  | J18: =(Summary!#REF! * 'BCR and NPV sensitivity'!J$7) / (Summary!#REF! * 'BCR and NPV sensitivity'!$B18) ->  | K18: =(Summary!#REF! * 'BCR and NPV sensitivity'!K$7) / (Summary!#REF! * 'BCR and NPV sensitivity'!$B18) ->  | L18: =(Summary!#REF! * 'BCR and NPV sensitivity'!L$7) / (Summary!#REF! * 'BCR and NPV sensitivity'!$B18) ->  | Q18: 1 | R18: =(Summary!#REF! * 'BCR and NPV sensitivity'!R$7) - (Summary!#REF! * 'BCR and NPV sensitivity'!$B18) ->  | S18: =(Summary!#REF! * 'BCR and NPV sensitivity'!S$7) - (Summary!#REF! * 'BCR and NPV sensitivity'!$B18) ->  | T18: =(Summary!#REF! * 'BCR and NPV sensitivity'!T$7) - (Summary!#REF! * 'BCR and NPV sensitivity'!$B18) ->  | U18: =(Summary!#REF! * 'BCR and NPV sensitivity'!U$7) - (Summary!#REF! * 'BCR and NPV sensitivity'!$B18) ->  | V18: =(Summary!#REF! * 'BCR and NPV sensitivity'!V$7) - (Summary!#REF! * 'BCR and NPV sensitivity'!$B18) ->  | W18: =(Summary!#REF! * 'BCR and NPV sensitivity'!W$7) - (Summary!#REF! * 'BCR and NPV sensitivity'!$B18) ->  | X18: =(Summary!#REF! * 'BCR and NPV sensitivity'!X$7) - (Summary!#REF! * 'BCR and NPV sensitivity'!$B18) ->  | Y18: =(Summary!#REF! * 'BCR and NPV sensitivity'!Y$7) - (Summary!#REF! * 'BCR and NPV sensitivity'!$B18) ->  | Z18: =(Summary!#REF! * 'BCR and NPV sensitivity'!Z$7) - (Summary!#REF! * 'BCR and NPV sensitivity'!$B18) ->  | AA18: =(Summary!#REF! * 'BCR and NPV sensitivity'!AA$7) - (Summary!#REF! * 'BCR and NPV sensitivity'!$B18) -> 
B19: 0.8 | C19: =(Summary!#REF! * 'BCR and NPV sensitivity'!C$7) / (Summary!#REF! * 'BCR and NPV sensitivity'!$B19) ->  | D19: =(Summary!#REF! * 'BCR and NPV sensitivity'!D$7) / (Summary!#REF! * 'BCR and NPV sensitivity'!$B19) ->  | E19: =(Summary!#REF! * 'BCR and NPV sensitivity'!E$7) / (Summary!#REF! * 'BCR and NPV sensitivity'!$B19) ->  | F19: =(Summary!#REF! * 'BCR and NPV sensitivity'!F$7) / (Summary!#REF! * 'BCR and NPV sensitivity'!$B19) ->  | G19: =(Summary!#REF! * 'BCR and NPV sensitivity'!G$7) / (Summary!#REF! * 'BCR and NPV sensitivity'!$B19) ->  | H19: =(Summary!#REF! * 'BCR and NPV sensitivity'!H$7) / (Summary!#REF! * 'BCR and NPV sensitivity'!$B19) ->  | I19: =(Summary!#REF! * 'BCR and NPV sensitivity'!I$7) / (Summary!#REF! * 'BCR and NPV sensitivity'!$B19) ->  | J19: =(Summary!#REF! * 'BCR and NPV sensitivity'!J$7) / (Summary!#REF! * 'BCR and NPV sensitivity'!$B19) ->  | K19: =(Summary!#REF! * 'BCR and NPV sensitivity'!K$7) / (Summary!#REF! * 'BCR and NPV sensitivity'!$B19) ->  | L19: =(Summary!#REF! * 'BCR and NPV sensitivity'!L$7) / (Summary!#REF! * 'BCR and NPV sensitivity'!$B19) ->  | Q19: 0.8 | R19: =(Summary!#REF! * 'BCR and NPV sensitivity'!R$7) - (Summary!#REF! * 'BCR and NPV sensitivity'!$B19) ->  | S19: =(Summary!#REF! * 'BCR and NPV sensitivity'!S$7) - (Summary!#REF! * 'BCR and NPV sensitivity'!$B19) ->  | T19: =(Summary!#REF! * 'BCR and NPV sensitivity'!T$7) - (Summary!#REF! * 'BCR and NPV sensitivity'!$B19) ->  | U19: =(Summary!#REF! * 'BCR and NPV sensitivity'!U$7) - (Summary!#REF! * 'BCR and NPV sensitivity'!$B19) ->  | V19: =(Summary!#REF! * 'BCR and NPV sensitivity'!V$7) - (Summary!#REF! * 'BCR and NPV sensitivity'!$B19) ->  | W19: =(Summary!#REF! * 'BCR and NPV sensitivity'!W$7) - (Summary!#REF! * 'BCR and NPV sensitivity'!$B19) ->  | X19: =(Summary!#REF! * 'BCR and NPV sensitivity'!X$7) - (Summary!#REF! * 'BCR and NPV sensitivity'!$B19) ->  | Y19: =(Summary!#REF! * 'BCR and NPV sensitivity'!Y$7) - (Summary!#REF! * 'BCR and NPV sensitivity'!$B19) ->  | Z19: =(Summary!#REF! * 'BCR and NPV sensitivity'!Z$7) - (Summary!#REF! * 'BCR and NPV sensitivity'!$B19) ->  | AA19: =(Summary!#REF! * 'BCR and NPV sensitivity'!AA$7) - (Summary!#REF! * 'BCR and NPV sensitivity'!$B19) -> 
B20: 0.6 | C20: =(Summary!#REF! * 'BCR and NPV sensitivity'!C$7) / (Summary!#REF! * 'BCR and NPV sensitivity'!$B20) ->  | D20: =(Summary!#REF! * 'BCR and NPV sensitivity'!D$7) / (Summary!#REF! * 'BCR and NPV sensitivity'!$B20) ->  | E20: =(Summary!#REF! * 'BCR and NPV sensitivity'!E$7) / (Summary!#REF! * 'BCR and NPV sensitivity'!$B20) ->  | F20: =(Summary!#REF! * 'BCR and NPV sensitivity'!F$7) / (Summary!#REF! * 'BCR and NPV sensitivity'!$B20) ->  | G20: =(Summary!#REF! * 'BCR and NPV sensitivity'!G$7) / (Summary!#REF! * 'BCR and NPV sensitivity'!$B20) ->  | H20: =(Summary!#REF! * 'BCR and NPV sensitivity'!H$7) / (Summary!#REF! * 'BCR and NPV sensitivity'!$B20) ->  | I20: =(Summary!#REF! * 'BCR and NPV sensitivity'!I$7) / (Summary!#REF! * 'BCR and NPV sensitivity'!$B20) ->  | J20: =(Summary!#REF! * 'BCR and NPV sensitivity'!J$7) / (Summary!#REF! * 'BCR and NPV sensitivity'!$B20) ->  | K20: =(Summary!#REF! * 'BCR and NPV sensitivity'!K$7) / (Summary!#REF! * 'BCR and NPV sensitivity'!$B20) ->  | L20: =(Summary!#REF! * 'BCR and NPV sensitivity'!L$7) / (Summary!#REF! * 'BCR and NPV sensitivity'!$B20) ->  | Q20: 0.6 | R20: =(Summary!#REF! * 'BCR and NPV sensitivity'!R$7) - (Summary!#REF! * 'BCR and NPV sensitivity'!$B20) ->  | S20: =(Summary!#REF! * 'BCR and NPV sensitivity'!S$7) - (Summary!#REF! * 'BCR and NPV sensitivity'!$B20) ->  | T20: =(Summary!#REF! * 'BCR and NPV sensitivity'!T$7) - (Summary!#REF! * 'BCR and NPV sensitivity'!$B20) ->  | U20: =(Summary!#REF! * 'BCR and NPV sensitivity'!U$7) - (Summary!#REF! * 'BCR and NPV sensitivity'!$B20) ->  | V20: =(Summary!#REF! * 'BCR and NPV sensitivity'!V$7) - (Summary!#REF! * 'BCR and NPV sensitivity'!$B20) ->  | W20: =(Summary!#REF! * 'BCR and NPV sensitivity'!W$7) - (Summary!#REF! * 'BCR and NPV sensitivity'!$B20) ->  | X20: =(Summary!#REF! * 'BCR and NPV sensitivity'!X$7) - (Summary!#REF! * 'BCR and NPV sensitivity'!$B20) ->  | Y20: =(Summary!#REF! * 'BCR and NPV sensitivity'!Y$7) - (Summary!#REF! * 'BCR and NPV sensitivity'!$B20) ->  | Z20: =(Summary!#REF! * 'BCR and NPV sensitivity'!Z$7) - (Summary!#REF! * 'BCR and NPV sensitivity'!$B20) ->  | AA20: =(Summary!#REF! * 'BCR and NPV sensitivity'!AA$7) - (Summary!#REF! * 'BCR and NPV sensitivity'!$B20) -> 
A22: OPTION 1
A23: 20 years of costs, Real - 2024-25 $
B24: Benefit Cost Ratio | P24: Net Benefit (Net Present Value, Real - 2024-25 $)
C25: Benefit compared with central estimate | R25: Benefit compared with central estimate
C26: 0.2 | D26: 0.4 | E26: 0.6 | F26: 0.8 | G26: 1 | H26: 1.2 | I26: 1.4 | J26: 1.6 | K26: 1.8 | L26: 2 | R26: 0.2 | S26: 0.4 | T26: 0.6 | U26: 0.8 | V26: 1 | W26: 1.2 | X26: 1.4 | Y26: 1.6 | Z26: 1.8 | AA26: 2
A27: Cost compared with central estimate | B27: 3 | C27: =(Summary!$C$9 * 'BCR and NPV sensitivity'!C$7) / (Summary!$C$10 * 'BCR and NPV sensitivity'!$B27) -> 0.1935429934 | D27: =(Summary!$C$9 * 'BCR and NPV sensitivity'!D$7) / (Summary!$C$10 * 'BCR and NPV sensitivity'!$B27) -> 0.3870859869 | E27: =(Summary!$C$9 * 'BCR and NPV sensitivity'!E$7) / (Summary!$C$10 * 'BCR and NPV sensitivity'!$B27) -> 0.5806289803 | F27: =(Summary!$C$9 * 'BCR and NPV sensitivity'!F$7) / (Summary!$C$10 * 'BCR and NPV sensitivity'!$B27) -> 0.7741719737 | G27: =(Summary!$C$9 * 'BCR and NPV sensitivity'!G$7) / (Summary!$C$10 * 'BCR and NPV sensitivity'!$B27) -> 0.9677149671 | H27: =(Summary!$C$9 * 'BCR and NPV sensitivity'!H$7) / (Summary!$C$10 * 'BCR and NPV sensitivity'!$B27) -> 1.161257961 | I27: =(Summary!$C$9 * 'BCR and NPV sensitivity'!I$7) / (Summary!$C$10 * 'BCR and NPV sensitivity'!$B27) -> 1.354800954 | J27: =(Summary!$C$9 * 'BCR and NPV sensitivity'!J$7) / (Summary!$C$10 * 'BCR and NPV sensitivity'!$B27) -> 1.548343947 | K27: =(Summary!$C$9 * 'BCR and NPV sensitivity'!K$7) / (Summary!$C$10 * 'BCR and NPV sensitivity'!$B27) -> 1.741886941 | L27: =(Summary!$C$9 * 'BCR and NPV sensitivity'!L$7) / (Summary!$C$10 * 'BCR and NPV sensitivity'!$B27) -> 1.935429934 | P27: Cost compared with central estimate | Q27: 3 | R27: =(Summary!$C$9 * 'BCR and NPV sensitivity'!R$7) - (Summary!$C$10 * 'BCR and NPV sensitivity'!$B27) -> -276.4378195 | S27: =(Summary!$C$9 * 'BCR and NPV sensitivity'!S$7) - (Summary!$C$10 * 'BCR and NPV sensitivity'!$B27) -> -210.0950354 | T27: =(Summary!$C$9 * 'BCR and NPV sensitivity'!T$7) - (Summary!$C$10 * 'BCR and NPV sensitivity'!$B27) -> -143.7522513 | U27: =(Summary!$C$9 * 'BCR and NPV sensitivity'!U$7) - (Summary!$C$10 * 'BCR and NPV sensitivity'!$B27) -> -77.40946716 | V27: =(Summary!$C$9 * 'BCR and NPV sensitivity'!V$7) - (Summary!$C$10 * 'BCR and NPV sensitivity'!$B27) -> -11.06668305 | W27: =(Summary!$C$9 * 'BCR and NPV sensitivity'!W$7) - (Summary!$C$10 * 'BCR and NPV sensitivity'!$B27) -> 55.27610106 | X27: =(Summary!$C$9 * 'BCR and NPV sensitivity'!X$7) - (Summary!$C$10 * 'BCR and NPV sensitivity'!$B27) -> 121.6188852 | Y27: =(Summary!$C$9 * 'BCR and NPV sensitivity'!Y$7) - (Summary!$C$10 * 'BCR and NPV sensitivity'!$B27) -> 187.9616693 | Z27: =(Summary!$C$9 * 'BCR and NPV sensitivity'!Z$7) - (Summary!$C$10 * 'BCR and NPV sensitivity'!$B27) -> 254.3044534 | AA27: =(Summary!$C$9 * 'BCR and NPV sensitivity'!AA$7) - (Summary!$C$10 * 'BCR and NPV sensitivity'!$B27) -> 320.6472375
B28: 2.8 | C28: =(Summary!$C$9 * 'BCR and NPV sensitivity'!C$7) / (Summary!$C$10 * 'BCR and NPV sensitivity'!$B28) -> 0.207367493 | D28: =(Summary!$C$9 * 'BCR and NPV sensitivity'!D$7) / (Summary!$C$10 * 'BCR and NPV sensitivity'!$B28) -> 0.4147349859 | E28: =(Summary!$C$9 * 'BCR and NPV sensitivity'!E$7) / (Summary!$C$10 * 'BCR and NPV sensitivity'!$B28) -> 0.6221024789 | F28: =(Summary!$C$9 * 'BCR and NPV sensitivity'!F$7) / (Summary!$C$10 * 'BCR and NPV sensitivity'!$B28) -> 0.8294699718 | G28: =(Summary!$C$9 * 'BCR and NPV sensitivity'!G$7) / (Summary!$C$10 * 'BCR and NPV sensitivity'!$B28) -> 1.036837465 | H28: =(Summary!$C$9 * 'BCR and NPV sensitivity'!H$7) / (Summary!$C$10 * 'BCR and NPV sensitivity'!$B28) -> 1.244204958 | I28: =(Summary!$C$9 * 'BCR and NPV sensitivity'!I$7) / (Summary!$C$10 * 'BCR and NPV sensitivity'!$B28) -> 1.451572451 | J28: =(Summary!$C$9 * 'BCR and NPV sensitivity'!J$7) / (Summary!$C$10 * 'BCR and NPV sensitivity'!$B28) -> 1.658939944 | K28: =(Summary!$C$9 * 'BCR and NPV sensitivity'!K$7) / (Summary!$C$10 * 'BCR and NPV sensitivity'!$B28) -> 1.866307437 | L28: =(Summary!$C$9 * 'BCR and NPV sensitivity'!L$7) / (Summary!$C$10 * 'BCR and NPV sensitivity'!$B28) -> 2.07367493 | Q28: 2.8 | R28: =(Summary!$C$9 * 'BCR and NPV sensitivity'!R$7) - (Summary!$C$10 * 'BCR and NPV sensitivity'!$B28) -> -253.5857792 | S28: =(Summary!$C$9 * 'BCR and NPV sensitivity'!S$7) - (Summary!$C$10 * 'BCR and NPV sensitivity'!$B28) -> -187.2429951 | T28: =(Summary!$C$9 * 'BCR and NPV sensitivity'!T$7) - (Summary!$C$10 * 'BCR and NPV sensitivity'!$B28) -> -120.900211 | U28: =(Summary!$C$9 * 'BCR and NPV sensitivity'!U$7) - (Summary!$C$10 * 'BCR and NPV sensitivity'!$B28) -> -54.55742692 | V28: =(Summary!$C$9 * 'BCR and NPV sensitivity'!V$7) - (Summary!$C$10 * 'BCR and NPV sensitivity'!$B28) -> 11.78535719 | W28: =(Summary!$C$9 * 'BCR and NPV sensitivity'!W$7) - (Summary!$C$10 * 'BCR and NPV sensitivity'!$B28) -> 78.1281413 | X28: =(Summary!$C$9 * 'BCR and NPV sensitivity'!X$7) - (Summary!$C$10 * 'BCR and NPV sensitivity'!$B28) -> 144.4709254 | Y28: =(Summary!$C$9 * 'BCR and NPV sensitivity'!Y$7) - (Summary!$C$10 * 'BCR and NPV sensitivity'!$B28) -> 210.8137095 | Z28: =(Summary!$C$9 * 'BCR and NPV sensitivity'!Z$7) - (Summary!$C$10 * 'BCR and NPV sensitivity'!$B28) -> 277.1564936 | AA28: =(Summary!$C$9 * 'BCR and NPV sensitivity'!AA$7) - (Summary!$C$10 * 'BCR and NPV sensitivity'!$B28) -> 343.4992777
B29: 2.6 | C29: =(Summary!$C$9 * 'BCR and NPV sensitivity'!C$7) / (Summary!$C$10 * 'BCR and NPV sensitivity'!$B29) -> 0.2233188386 | D29: =(Summary!$C$9 * 'BCR and NPV sensitivity'!D$7) / (Summary!$C$10 * 'BCR and NPV sensitivity'!$B29) -> 0.4466376771 | E29: =(Summary!$C$9 * 'BCR and NPV sensitivity'!E$7) / (Summary!$C$10 * 'BCR and NPV sensitivity'!$B29) -> 0.6699565157 | F29: =(Summary!$C$9 * 'BCR and NPV sensitivity'!F$7) / (Summary!$C$10 * 'BCR and NPV sensitivity'!$B29) -> 0.8932753543 | G29: =(Summary!$C$9 * 'BCR and NPV sensitivity'!G$7) / (Summary!$C$10 * 'BCR and NPV sensitivity'!$B29) -> 1.116594193 | H29: =(Summary!$C$9 * 'BCR and NPV sensitivity'!H$7) / (Summary!$C$10 * 'BCR and NPV sensitivity'!$B29) -> 1.339913031 | I29: =(Summary!$C$9 * 'BCR and NPV sensitivity'!I$7) / (Summary!$C$10 * 'BCR and NPV sensitivity'!$B29) -> 1.56323187 | J29: =(Summary!$C$9 * 'BCR and NPV sensitivity'!J$7) / (Summary!$C$10 * 'BCR and NPV sensitivity'!$B29) -> 1.786550709 | K29: =(Summary!$C$9 * 'BCR and NPV sensitivity'!K$7) / (Summary!$C$10 * 'BCR and NPV sensitivity'!$B29) -> 2.009869547 | L29: =(Summary!$C$9 * 'BCR and NPV sensitivity'!L$7) / (Summary!$C$10 * 'BCR and NPV sensitivity'!$B29) -> 2.233188386 | Q29: 2.6 | R29: =(Summary!$C$9 * 'BCR and NPV sensitivity'!R$7) - (Summary!$C$10 * 'BCR and NPV sensitivity'!$B29) -> -230.733739 | S29: =(Summary!$C$9 * 'BCR and NPV sensitivity'!S$7) - (Summary!$C$10 * 'BCR and NPV sensitivity'!$B29) -> -164.3909549 | T29: =(Summary!$C$9 * 'BCR and NPV sensitivity'!T$7) - (Summary!$C$10 * 'BCR and NPV sensitivity'!$B29) -> -98.04817079 | U29: =(Summary!$C$9 * 'BCR and NPV sensitivity'!U$7) - (Summary!$C$10 * 'BCR and NPV sensitivity'!$B29) -> -31.70538668 | V29: =(Summary!$C$9 * 'BCR and NPV sensitivity'!V$7) - (Summary!$C$10 * 'BCR and NPV sensitivity'!$B29) -> 34.63739743 | W29: =(Summary!$C$9 * 'BCR and NPV sensitivity'!W$7) - (Summary!$C$10 * 'BCR and NPV sensitivity'!$B29) -> 100.9801815 | X29: =(Summary!$C$9 * 'BCR and NPV sensitivity'!X$7) - (Summary!$C$10 * 'BCR and NPV sensitivity'!$B29) -> 167.3229656 | Y29: =(Summary!$C$9 * 'BCR and NPV sensitivity'!Y$7) - (Summary!$C$10 * 'BCR and NPV sensitivity'!$B29) -> 233.6657498 | Z29: =(Summary!$C$9 * 'BCR and NPV sensitivity'!Z$7) - (Summary!$C$10 * 'BCR and NPV sensitivity'!$B29) -> 300.0085339 | AA29: =(Summary!$C$9 * 'BCR and NPV sensitivity'!AA$7) - (Summary!$C$10 * 'BCR and NPV sensitivity'!$B29) -> 366.351318
B30: 2.4 | C30: =(Summary!$C$9 * 'BCR and NPV sensitivity'!C$7) / (Summary!$C$10 * 'BCR and NPV sensitivity'!$B30) -> 0.2419287418 | D30: =(Summary!$C$9 * 'BCR and NPV sensitivity'!D$7) / (Summary!$C$10 * 'BCR and NPV sensitivity'!$B30) -> 0.4838574836 | E30: =(Summary!$C$9 * 'BCR and NPV sensitivity'!E$7) / (Summary!$C$10 * 'BCR and NPV sensitivity'!$B30) -> 0.7257862254 | F30: =(Summary!$C$9 * 'BCR and NPV sensitivity'!F$7) / (Summary!$C$10 * 'BCR and NPV sensitivity'!$B30) -> 0.9677149671 | G30: =(Summary!$C$9 * 'BCR and NPV sensitivity'!G$7) / (Summary!$C$10 * 'BCR and NPV sensitivity'!$B30) -> 1.209643709 | H30: =(Summary!$C$9 * 'BCR and NPV sensitivity'!H$7) / (Summary!$C$10 * 'BCR and NPV sensitivity'!$B30) -> 1.451572451 | I30: =(Summary!$C$9 * 'BCR and NPV sensitivity'!I$7) / (Summary!$C$10 * 'BCR and NPV sensitivity'!$B30) -> 1.693501192 | J30: =(Summary!$C$9 * 'BCR and NPV sensitivity'!J$7) / (Summary!$C$10 * 'BCR and NPV sensitivity'!$B30) -> 1.935429934 | K30: =(Summary!$C$9 * 'BCR and NPV sensitivity'!K$7) / (Summary!$C$10 * 'BCR and NPV sensitivity'!$B30) -> 2.177358676 | L30: =(Summary!$C$9 * 'BCR and NPV sensitivity'!L$7) / (Summary!$C$10 * 'BCR and NPV sensitivity'!$B30) -> 2.419287418 | Q30: 2.4 | R30: =(Summary!$C$9 * 'BCR and NPV sensitivity'!R$7) - (Summary!$C$10 * 'BCR and NPV sensitivity'!$B30) -> -207.8816988 | S30: =(Summary!$C$9 * 'BCR and NPV sensitivity'!S$7) - (Summary!$C$10 * 'BCR and NPV sensitivity'!$B30) -> -141.5389147 | T30: =(Summary!$C$9 * 'BCR and NPV sensitivity'!T$7) - (Summary!$C$10 * 'BCR and NPV sensitivity'!$B30) -> -75.19613055 | U30: =(Summary!$C$9 * 'BCR and NPV sensitivity'!U$7) - (Summary!$C$10 * 'BCR and NPV sensitivity'!$B30) -> -8.85334644 | V30: =(Summary!$C$9 * 'BCR and NPV sensitivity'!V$7) - (Summary!$C$10 * 'BCR and NPV sensitivity'!$B30) -> 57.48943767 | W30: =(Summary!$C$9 * 'BCR and NPV sensitivity'!W$7) - (Summary!$C$10 * 'BCR and NPV sensitivity'!$B30) -> 123.8322218 | X30: =(Summary!$C$9 * 'BCR and NPV sensitivity'!X$7) - (Summary!$C$10 * 'BCR and NPV sensitivity'!$B30) -> 190.1750059 | Y30: =(Summary!$C$9 * 'BCR and NPV sensitivity'!Y$7) - (Summary!$C$10 * 'BCR and NPV sensitivity'!$B30) -> 256.51779 | Z30: =(Summary!$C$9 * 'BCR and NPV sensitivity'!Z$7) - (Summary!$C$10 * 'BCR and NPV sensitivity'!$B30) -> 322.8605741 | AA30: =(Summary!$C$9 * 'BCR and NPV sensitivity'!AA$7) - (Summary!$C$10 * 'BCR and NPV sensitivity'!$B30) -> 389.2033582
B31: 2.2 | C31: =(Summary!$C$9 * 'BCR and NPV sensitivity'!C$7) / (Summary!$C$10 * 'BCR and NPV sensitivity'!$B31) -> 0.2639222638 | D31: =(Summary!$C$9 * 'BCR and NPV sensitivity'!D$7) / (Summary!$C$10 * 'BCR and NPV sensitivity'!$B31) -> 0.5278445275 | E31: =(Summary!$C$9 * 'BCR and NPV sensitivity'!E$7) / (Summary!$C$10 * 'BCR and NPV sensitivity'!$B31) -> 0.7917667913 | F31: =(Summary!$C$9 * 'BCR and NPV sensitivity'!F$7) / (Summary!$C$10 * 'BCR and NPV sensitivity'!$B31) -> 1.055689055 | G31: =(Summary!$C$9 * 'BCR and NPV sensitivity'!G$7) / (Summary!$C$10 * 'BCR and NPV sensitivity'!$B31) -> 1.319611319 | H31: =(Summary!$C$9 * 'BCR and NPV sensitivity'!H$7) / (Summary!$C$10 * 'BCR and NPV sensitivity'!$B31) -> 1.583533583 | I31: =(Summary!$C$9 * 'BCR and NPV sensitivity'!I$7) / (Summary!$C$10 * 'BCR and NPV sensitivity'!$B31) -> 1.847455846 | J31: =(Summary!$C$9 * 'BCR and NPV sensitivity'!J$7) / (Summary!$C$10 * 'BCR and NPV sensitivity'!$B31) -> 2.11137811 | K31: =(Summary!$C$9 * 'BCR and NPV sensitivity'!K$7) / (Summary!$C$10 * 'BCR and NPV sensitivity'!$B31) -> 2.375300374 | L31: =(Summary!$C$9 * 'BCR and NPV sensitivity'!L$7) / (Summary!$C$10 * 'BCR and NPV sensitivity'!$B31) -> 2.639222638 | Q31: 2.2 | R31: =(Summary!$C$9 * 'BCR and NPV sensitivity'!R$7) - (Summary!$C$10 * 'BCR and NPV sensitivity'!$B31) -> -185.0296585 | S31: =(Summary!$C$9 * 'BCR and NPV sensitivity'!S$7) - (Summary!$C$10 * 'BCR and NPV sensitivity'!$B31) -> -118.6868744 | T31: =(Summary!$C$9 * 'BCR and NPV sensitivity'!T$7) - (Summary!$C$10 * 'BCR and NPV sensitivity'!$B31) -> -52.34409031 | U31: =(Summary!$C$9 * 'BCR and NPV sensitivity'!U$7) - (Summary!$C$10 * 'BCR and NPV sensitivity'!$B31) -> 13.9986938 | V31: =(Summary!$C$9 * 'BCR and NPV sensitivity'!V$7) - (Summary!$C$10 * 'BCR and NPV sensitivity'!$B31) -> 80.34147791 | W31: =(Summary!$C$9 * 'BCR and NPV sensitivity'!W$7) - (Summary!$C$10 * 'BCR and NPV sensitivity'!$B31) -> 146.684262 | X31: =(Summary!$C$9 * 'BCR and NPV sensitivity'!X$7) - (Summary!$C$10 * 'BCR and NPV sensitivity'!$B31) -> 213.0270461 | Y31: =(Summary!$C$9 * 'BCR and NPV sensitivity'!Y$7) - (Summary!$C$10 * 'BCR and NPV sensitivity'!$B31) -> 279.3698302 | Z31: =(Summary!$C$9 * 'BCR and NPV sensitivity'!Z$7) - (Summary!$C$10 * 'BCR and NPV sensitivity'!$B31) -> 345.7126143 | AA31: =(Summary!$C$9 * 'BCR and NPV sensitivity'!AA$7) - (Summary!$C$10 * 'BCR and NPV sensitivity'!$B31) -> 412.0553984
B32: 2 | C32: =(Summary!$C$9 * 'BCR and NPV sensitivity'!C$7) / (Summary!$C$10 * 'BCR and NPV sensitivity'!$B32) -> 0.2903144901 | D32: =(Summary!$C$9 * 'BCR and NPV sensitivity'!D$7) / (Summary!$C$10 * 'BCR and NPV sensitivity'!$B32) -> 0.5806289803 | E32: =(Summary!$C$9 * 'BCR and NPV sensitivity'!E$7) / (Summary!$C$10 * 'BCR and NPV sensitivity'!$B32) -> 0.8709434704 | F32: =(Summary!$C$9 * 'BCR and NPV sensitivity'!F$7) / (Summary!$C$10 * 'BCR and NPV sensitivity'!$B32) -> 1.161257961 | G32: =(Summary!$C$9 * 'BCR and NPV sensitivity'!G$7) / (Summary!$C$10 * 'BCR and NPV sensitivity'!$B32) -> 1.451572451 | H32: =(Summary!$C$9 * 'BCR and NPV sensitivity'!H$7) / (Summary!$C$10 * 'BCR and NPV sensitivity'!$B32) -> 1.741886941 | I32: =(Summary!$C$9 * 'BCR and NPV sensitivity'!I$7) / (Summary!$C$10 * 'BCR and NPV sensitivity'!$B32) -> 2.032201431 | J32: =(Summary!$C$9 * 'BCR and NPV sensitivity'!J$7) / (Summary!$C$10 * 'BCR and NPV sensitivity'!$B32) -> 2.322515921 | K32: =(Summary!$C$9 * 'BCR and NPV sensitivity'!K$7) / (Summary!$C$10 * 'BCR and NPV sensitivity'!$B32) -> 2.612830411 | L32: =(Summary!$C$9 * 'BCR and NPV sensitivity'!L$7) / (Summary!$C$10 * 'BCR and NPV sensitivity'!$B32) -> 2.903144901 | Q32: 2 | R32: =(Summary!$C$9 * 'BCR and NPV sensitivity'!R$7) - (Summary!$C$10 * 'BCR and NPV sensitivity'!$B32) -> -162.1776183 | S32: =(Summary!$C$9 * 'BCR and NPV sensitivity'!S$7) - (Summary!$C$10 * 'BCR and NPV sensitivity'!$B32) -> -95.83483418 | T32: =(Summary!$C$9 * 'BCR and NPV sensitivity'!T$7) - (Summary!$C$10 * 'BCR and NPV sensitivity'!$B32) -> -29.49205007 | U32: =(Summary!$C$9 * 'BCR and NPV sensitivity'!U$7) - (Summary!$C$10 * 'BCR and NPV sensitivity'!$B32) -> 36.85073404 | V32: =(Summary!$C$9 * 'BCR and NPV sensitivity'!V$7) - (Summary!$C$10 * 'BCR and NPV sensitivity'!$B32) -> 103.1935181 | W32: =(Summary!$C$9 * 'BCR and NPV sensitivity'!W$7) - (Summary!$C$10 * 'BCR and NPV sensitivity'!$B32) -> 169.5363023 | X32: =(Summary!$C$9 * 'BCR and NPV sensitivity'!X$7) - (Summary!$C$10 * 'BCR and NPV sensitivity'!$B32) -> 235.8790864 | Y32: =(Summary!$C$9 * 'BCR and NPV sensitivity'!Y$7) - (Summary!$C$10 * 'BCR and NPV sensitivity'!$B32) -> 302.2218705 | Z32: =(Summary!$C$9 * 'BCR and NPV sensitivity'!Z$7) - (Summary!$C$10 * 'BCR and NPV sensitivity'!$B32) -> 368.5646546 | AA32: =(Summary!$C$9 * 'BCR and NPV sensitivity'!AA$7) - (Summary!$C$10 * 'BCR and NPV sensitivity'!$B32) -> 434.9074387
B33: 1.8 | C33: =(Summary!$C$9 * 'BCR and NPV sensitivity'!C$7) / (Summary!$C$10 * 'BCR and NPV sensitivity'!$B33) -> 0.3225716557 | D33: =(Summary!$C$9 * 'BCR and NPV sensitivity'!D$7) / (Summary!$C$10 * 'BCR and NPV sensitivity'!$B33) -> 0.6451433114 | E33: =(Summary!$C$9 * 'BCR and NPV sensitivity'!E$7) / (Summary!$C$10 * 'BCR and NPV sensitivity'!$B33) -> 0.9677149671 | F33: =(Summary!$C$9 * 'BCR and NPV sensitivity'!F$7) / (Summary!$C$10 * 'BCR and NPV sensitivity'!$B33) -> 1.290286623 | G33: =(Summary!$C$9 * 'BCR and NPV sensitivity'!G$7) / (Summary!$C$10 * 'BCR and NPV sensitivity'!$B33) -> 1.612858279 | H33: =(Summary!$C$9 * 'BCR and NPV sensitivity'!H$7) / (Summary!$C$10 * 'BCR and NPV sensitivity'!$B33) -> 1.935429934 | I33: =(Summary!$C$9 * 'BCR and NPV sensitivity'!I$7) / (Summary!$C$10 * 'BCR and NPV sensitivity'!$B33) -> 2.25800159 | J33: =(Summary!$C$9 * 'BCR and NPV sensitivity'!J$7) / (Summary!$C$10 * 'BCR and NPV sensitivity'!$B33) -> 2.580573246 | K33: =(Summary!$C$9 * 'BCR and NPV sensitivity'!K$7) / (Summary!$C$10 * 'BCR and NPV sensitivity'!$B33) -> 2.903144901 | L33: =(Summary!$C$9 * 'BCR and NPV sensitivity'!L$7) / (Summary!$C$10 * 'BCR and NPV sensitivity'!$B33) -> 3.225716557 | Q33: 1.8 | R33: =(Summary!$C$9 * 'BCR and NPV sensitivity'!R$7) - (Summary!$C$10 * 'BCR and NPV sensitivity'!$B33) -> -139.325578 | S33: =(Summary!$C$9 * 'BCR and NPV sensitivity'!S$7) - (Summary!$C$10 * 'BCR and NPV sensitivity'!$B33) -> -72.98279394 | T33: =(Summary!$C$9 * 'BCR and NPV sensitivity'!T$7) - (Summary!$C$10 * 'BCR and NPV sensitivity'!$B33) -> -6.64000983 | U33: =(Summary!$C$9 * 'BCR and NPV sensitivity'!U$7) - (Summary!$C$10 * 'BCR and NPV sensitivity'!$B33) -> 59.70277428 | V33: =(Summary!$C$9 * 'BCR and NPV sensitivity'!V$7) - (Summary!$C$10 * 'BCR and NPV sensitivity'!$B33) -> 126.0455584 | W33: =(Summary!$C$9 * 'BCR and NPV sensitivity'!W$7) - (Summary!$C$10 * 'BCR and NPV sensitivity'!$B33) -> 192.3883425 | X33: =(Summary!$C$9 * 'BCR and NPV sensitivity'!X$7) - (Summary!$C$10 * 'BCR and NPV sensitivity'!$B33) -> 258.7311266 | Y33: =(Summary!$C$9 * 'BCR and NPV sensitivity'!Y$7) - (Summary!$C$10 * 'BCR and NPV sensitivity'!$B33) -> 325.0739107 | Z33: =(Summary!$C$9 * 'BCR and NPV sensitivity'!Z$7) - (Summary!$C$10 * 'BCR and NPV sensitivity'!$B33) -> 391.4166948 | AA33: =(Summary!$C$9 * 'BCR and NPV sensitivity'!AA$7) - (Summary!$C$10 * 'BCR and NPV sensitivity'!$B33) -> 457.7594789
B34: 1.6 | C34: =(Summary!$C$9 * 'BCR and NPV sensitivity'!C$7) / (Summary!$C$10 * 'BCR and NPV sensitivity'!$B34) -> 0.3628931127 | D34: =(Summary!$C$9 * 'BCR and NPV sensitivity'!D$7) / (Summary!$C$10 * 'BCR and NPV sensitivity'!$B34) -> 0.7257862254 | E34: =(Summary!$C$9 * 'BCR and NPV sensitivity'!E$7) / (Summary!$C$10 * 'BCR and NPV sensitivity'!$B34) -> 1.088679338 | F34: =(Summary!$C$9 * 'BCR and NPV sensitivity'!F$7) / (Summary!$C$10 * 'BCR and NPV sensitivity'!$B34) -> 1.451572451 | G34: =(Summary!$C$9 * 'BCR and NPV sensitivity'!G$7) / (Summary!$C$10 * 'BCR and NPV sensitivity'!$B34) -> 1.814465563 | H34: =(Summary!$C$9 * 'BCR and NPV sensitivity'!H$7) / (Summary!$C$10 * 'BCR and NPV sensitivity'!$B34) -> 2.177358676 | I34: =(Summary!$C$9 * 'BCR and NPV sensitivity'!I$7) / (Summary!$C$10 * 'BCR and NPV sensitivity'!$B34) -> 2.540251789 | J34: =(Summary!$C$9 * 'BCR and NPV sensitivity'!J$7) / (Summary!$C$10 * 'BCR and NPV sensitivity'!$B34) -> 2.903144901 | K34: =(Summary!$C$9 * 'BCR and NPV sensitivity'!K$7) / (Summary!$C$10 * 'BCR and NPV sensitivity'!$B34) -> 3.266038014 | L34: =(Summary!$C$9 * 'BCR and NPV sensitivity'!L$7) / (Summary!$C$10 * 'BCR and NPV sensitivity'!$B34) -> 3.628931127 | Q34: 1.6 | R34: =(Summary!$C$9 * 'BCR and NPV sensitivity'!R$7) - (Summary!$C$10 * 'BCR and NPV sensitivity'!$B34) -> -116.4735378 | S34: =(Summary!$C$9 * 'BCR and NPV sensitivity'!S$7) - (Summary!$C$10 * 'BCR and NPV sensitivity'!$B34) -> -50.1307537 | T34: =(Summary!$C$9 * 'BCR and NPV sensitivity'!T$7) - (Summary!$C$10 * 'BCR and NPV sensitivity'!$B34) -> 16.21203041 | U34: =(Summary!$C$9 * 'BCR and NPV sensitivity'!U$7) - (Summary!$C$10 * 'BCR and NPV sensitivity'!$B34) -> 82.55481452 | V34: =(Summary!$C$9 * 'BCR and NPV sensitivity'!V$7) - (Summary!$C$10 * 'BCR and NPV sensitivity'!$B34) -> 148.8975986 | W34: =(Summary!$C$9 * 'BCR and NPV sensitivity'!W$7) - (Summary!$C$10 * 'BCR and NPV sensitivity'!$B34) -> 215.2403827 | X34: =(Summary!$C$9 * 'BCR and NPV sensitivity'!X$7) - (Summary!$C$10 * 'BCR and NPV sensitivity'!$B34) -> 281.5831668 | Y34: =(Summary!$C$9 * 'BCR and NPV sensitivity'!Y$7) - (Summary!$C$10 * 'BCR and NPV sensitivity'!$B34) -> 347.9259509 | Z34: =(Summary!$C$9 * 'BCR and NPV sensitivity'!Z$7) - (Summary!$C$10 * 'BCR and NPV sensitivity'!$B34) -> 414.2687351 | AA34: =(Summary!$C$9 * 'BCR and NPV sensitivity'!AA$7) - (Summary!$C$10 * 'BCR and NPV sensitivity'!$B34) -> 480.6115192
B35: 1.4 | C35: =(Summary!$C$9 * 'BCR and NPV sensitivity'!C$7) / (Summary!$C$10 * 'BCR and NPV sensitivity'!$B35) -> 0.4147349859 | D35: =(Summary!$C$9 * 'BCR and NPV sensitivity'!D$7) / (Summary!$C$10 * 'BCR and NPV sensitivity'!$B35) -> 0.8294699718 | E35: =(Summary!$C$9 * 'BCR and NPV sensitivity'!E$7) / (Summary!$C$10 * 'BCR and NPV sensitivity'!$B35) -> 1.244204958 | F35: =(Summary!$C$9 * 'BCR and NPV sensitivity'!F$7) / (Summary!$C$10 * 'BCR and NPV sensitivity'!$B35) -> 1.658939944 | G35: =(Summary!$C$9 * 'BCR and NPV sensitivity'!G$7) / (Summary!$C$10 * 'BCR and NPV sensitivity'!$B35) -> 2.07367493 | H35: =(Summary!$C$9 * 'BCR and NPV sensitivity'!H$7) / (Summary!$C$10 * 'BCR and NPV sensitivity'!$B35) -> 2.488409916 | I35: =(Summary!$C$9 * 'BCR and NPV sensitivity'!I$7) / (Summary!$C$10 * 'BCR and NPV sensitivity'!$B35) -> 2.903144901 | J35: =(Summary!$C$9 * 'BCR and NPV sensitivity'!J$7) / (Summary!$C$10 * 'BCR and NPV sensitivity'!$B35) -> 3.317879887 | K35: =(Summary!$C$9 * 'BCR and NPV sensitivity'!K$7) / (Summary!$C$10 * 'BCR and NPV sensitivity'!$B35) -> 3.732614873 | L35: =(Summary!$C$9 * 'BCR and NPV sensitivity'!L$7) / (Summary!$C$10 * 'BCR and NPV sensitivity'!$B35) -> 4.147349859 | Q35: 1.4 | R35: =(Summary!$C$9 * 'BCR and NPV sensitivity'!R$7) - (Summary!$C$10 * 'BCR and NPV sensitivity'!$B35) -> -93.62149757 | S35: =(Summary!$C$9 * 'BCR and NPV sensitivity'!S$7) - (Summary!$C$10 * 'BCR and NPV sensitivity'!$B35) -> -27.27871346 | T35: =(Summary!$C$9 * 'BCR and NPV sensitivity'!T$7) - (Summary!$C$10 * 'BCR and NPV sensitivity'!$B35) -> 39.06407065 | U35: =(Summary!$C$9 * 'BCR and NPV sensitivity'!U$7) - (Summary!$C$10 * 'BCR and NPV sensitivity'!$B35) -> 105.4068548 | V35: =(Summary!$C$9 * 'BCR and NPV sensitivity'!V$7) - (Summary!$C$10 * 'BCR and NPV sensitivity'!$B35) -> 171.7496389 | W35: =(Summary!$C$9 * 'BCR and NPV sensitivity'!W$7) - (Summary!$C$10 * 'BCR and NPV sensitivity'!$B35) -> 238.092423 | X35: =(Summary!$C$9 * 'BCR and NPV sensitivity'!X$7) - (Summary!$C$10 * 'BCR and NPV sensitivity'!$B35) -> 304.4352071 | Y35: =(Summary!$C$9 * 'BCR and NPV sensitivity'!Y$7) - (Summary!$C$10 * 'BCR and NPV sensitivity'!$B35) -> 370.7779912 | Z35: =(Summary!$C$9 * 'BCR and NPV sensitivity'!Z$7) - (Summary!$C$10 * 'BCR and NPV sensitivity'!$B35) -> 437.1207753 | AA35: =(Summary!$C$9 * 'BCR and NPV sensitivity'!AA$7) - (Summary!$C$10 * 'BCR and NPV sensitivity'!$B35) -> 503.4635594
B36: 1.2 | C36: =(Summary!$C$9 * 'BCR and NPV sensitivity'!C$7) / (Summary!$C$10 * 'BCR and NPV sensitivity'!$B36) -> 0.4838574836 | D36: =(Summary!$C$9 * 'BCR and NPV sensitivity'!D$7) / (Summary!$C$10 * 'BCR and NPV sensitivity'!$B36) -> 0.9677149671 | E36: =(Summary!$C$9 * 'BCR and NPV sensitivity'!E$7) / (Summary!$C$10 * 'BCR and NPV sensitivity'!$B36) -> 1.451572451 | F36: =(Summary!$C$9 * 'BCR and NPV sensitivity'!F$7) / (Summary!$C$10 * 'BCR and NPV sensitivity'!$B36) -> 1.935429934 | G36: =(Summary!$C$9 * 'BCR and NPV sensitivity'!G$7) / (Summary!$C$10 * 'BCR and NPV sensitivity'!$B36) -> 2.419287418 | H36: =(Summary!$C$9 * 'BCR and NPV sensitivity'!H$7) / (Summary!$C$10 * 'BCR and NPV sensitivity'!$B36) -> 2.903144901 | I36: =(Summary!$C$9 * 'BCR and NPV sensitivity'!I$7) / (Summary!$C$10 * 'BCR and NPV sensitivity'!$B36) -> 3.387002385 | J36: =(Summary!$C$9 * 'BCR and NPV sensitivity'!J$7) / (Summary!$C$10 * 'BCR and NPV sensitivity'!$B36) -> 3.870859869 | K36: =(Summary!$C$9 * 'BCR and NPV sensitivity'!K$7) / (Summary!$C$10 * 'BCR and NPV sensitivity'!$B36) -> 4.354717352 | L36: =(Summary!$C$9 * 'BCR and NPV sensitivity'!L$7) / (Summary!$C$10 * 'BCR and NPV sensitivity'!$B36) -> 4.838574836 | Q36: 1.2 | R36: =(Summary!$C$9 * 'BCR and NPV sensitivity'!R$7) - (Summary!$C$10 * 'BCR and NPV sensitivity'!$B36) -> -70.76945733 | S36: =(Summary!$C$9 * 'BCR and NPV sensitivity'!S$7) - (Summary!$C$10 * 'BCR and NPV sensitivity'!$B36) -> -4.42667322 | T36: =(Summary!$C$9 * 'BCR and NPV sensitivity'!T$7) - (Summary!$C$10 * 'BCR and NPV sensitivity'!$B36) -> 61.91611089 | U36: =(Summary!$C$9 * 'BCR and NPV sensitivity'!U$7) - (Summary!$C$10 * 'BCR and NPV sensitivity'!$B36) -> 128.258895 | V36: =(Summary!$C$9 * 'BCR and NPV sensitivity'!V$7) - (Summary!$C$10 * 'BCR and NPV sensitivity'!$B36) -> 194.6016791 | W36: =(Summary!$C$9 * 'BCR and NPV sensitivity'!W$7) - (Summary!$C$10 * 'BCR and NPV sensitivity'!$B36) -> 260.9444632 | X36: =(Summary!$C$9 * 'BCR and NPV sensitivity'!X$7) - (Summary!$C$10 * 'BCR and NPV sensitivity'!$B36) -> 327.2872473 | Y36: =(Summary!$C$9 * 'BCR and NPV sensitivity'!Y$7) - (Summary!$C$10 * 'BCR and NPV sensitivity'!$B36) -> 393.6300314 | Z36: =(Summary!$C$9 * 'BCR and NPV sensitivity'!Z$7) - (Summary!$C$10 * 'BCR and NPV sensitivity'!$B36) -> 459.9728155 | AA36: =(Summary!$C$9 * 'BCR and NPV sensitivity'!AA$7) - (Summary!$C$10 * 'BCR and NPV sensitivity'!$B36) -> 526.3155996
B37: 1 | C37: =(Summary!$C$9 * 'BCR and NPV sensitivity'!C$7) / (Summary!$C$10 * 'BCR and NPV sensitivity'!$B37) -> 0.5806289803 | D37: =(Summary!$C$9 * 'BCR and NPV sensitivity'!D$7) / (Summary!$C$10 * 'BCR and NPV sensitivity'!$B37) -> 1.161257961 | E37: =(Summary!$C$9 * 'BCR and NPV sensitivity'!E$7) / (Summary!$C$10 * 'BCR and NPV sensitivity'!$B37) -> 1.741886941 | F37: =(Summary!$C$9 * 'BCR and NPV sensitivity'!F$7) / (Summary!$C$10 * 'BCR and NPV sensitivity'!$B37) -> 2.322515921 | G37: =(Summary!$C$9 * 'BCR and NPV sensitivity'!G$7) / (Summary!$C$10 * 'BCR and NPV sensitivity'!$B37) -> 2.903144901 | H37: =(Summary!$C$9 * 'BCR and NPV sensitivity'!H$7) / (Summary!$C$10 * 'BCR and NPV sensitivity'!$B37) -> 3.483773882 | I37: =(Summary!$C$9 * 'BCR and NPV sensitivity'!I$7) / (Summary!$C$10 * 'BCR and NPV sensitivity'!$B37) -> 4.064402862 | J37: =(Summary!$C$9 * 'BCR and NPV sensitivity'!J$7) / (Summary!$C$10 * 'BCR and NPV sensitivity'!$B37) -> 4.645031842 | K37: =(Summary!$C$9 * 'BCR and NPV sensitivity'!K$7) / (Summary!$C$10 * 'BCR and NPV sensitivity'!$B37) -> 5.225660823 | L37: =(Summary!$C$9 * 'BCR and NPV sensitivity'!L$7) / (Summary!$C$10 * 'BCR and NPV sensitivity'!$B37) -> 5.806289803 | Q37: 1 | R37: =(Summary!$C$9 * 'BCR and NPV sensitivity'!R$7) - (Summary!$C$10 * 'BCR and NPV sensitivity'!$B37) -> -47.91741709 | S37: =(Summary!$C$9 * 'BCR and NPV sensitivity'!S$7) - (Summary!$C$10 * 'BCR and NPV sensitivity'!$B37) -> 18.42536702 | T37: =(Summary!$C$9 * 'BCR and NPV sensitivity'!T$7) - (Summary!$C$10 * 'BCR and NPV sensitivity'!$B37) -> 84.76815113 | U37: =(Summary!$C$9 * 'BCR and NPV sensitivity'!U$7) - (Summary!$C$10 * 'BCR and NPV sensitivity'!$B37) -> 151.1109352 | V37: =(Summary!$C$9 * 'BCR and NPV sensitivity'!V$7) - (Summary!$C$10 * 'BCR and NPV sensitivity'!$B37) -> 217.4537193 | W37: =(Summary!$C$9 * 'BCR and NPV sensitivity'!W$7) - (Summary!$C$10 * 'BCR and NPV sensitivity'!$B37) -> 283.7965034 | X37: =(Summary!$C$9 * 'BCR and NPV sensitivity'!X$7) - (Summary!$C$10 * 'BCR and NPV sensitivity'!$B37) -> 350.1392876 | Y37: =(Summary!$C$9 * 'BCR and NPV sensitivity'!Y$7) - (Summary!$C$10 * 'BCR and NPV sensitivity'!$B37) -> 416.4820717 | Z37: =(Summary!$C$9 * 'BCR and NPV sensitivity'!Z$7) - (Summary!$C$10 * 'BCR and NPV sensitivity'!$B37) -> 482.8248558 | AA37: =(Summary!$C$9 * 'BCR and NPV sensitivity'!AA$7) - (Summary!$C$10 * 'BCR and NPV sensitivity'!$B37) -> 549.1676399
B38: 0.8 | C38: =(Summary!$C$9 * 'BCR and NPV sensitivity'!C$7) / (Summary!$C$10 * 'BCR and NPV sensitivity'!$B38) -> 0.7257862254 | D38: =(Summary!$C$9 * 'BCR and NPV sensitivity'!D$7) / (Summary!$C$10 * 'BCR and NPV sensitivity'!$B38) -> 1.451572451 | E38: =(Summary!$C$9 * 'BCR and NPV sensitivity'!E$7) / (Summary!$C$10 * 'BCR and NPV sensitivity'!$B38) -> 2.177358676 | F38: =(Summary!$C$9 * 'BCR and NPV sensitivity'!F$7) / (Summary!$C$10 * 'BCR and NPV sensitivity'!$B38) -> 2.903144901 | G38: =(Summary!$C$9 * 'BCR and NPV sensitivity'!G$7) / (Summary!$C$10 * 'BCR and NPV sensitivity'!$B38) -> 3.628931127 | H38: =(Summary!$C$9 * 'BCR and NPV sensitivity'!H$7) / (Summary!$C$10 * 'BCR and NPV sensitivity'!$B38) -> 4.354717352 | I38: =(Summary!$C$9 * 'BCR and NPV sensitivity'!I$7) / (Summary!$C$10 * 'BCR and NPV sensitivity'!$B38) -> 5.080503577 | J38: =(Summary!$C$9 * 'BCR and NPV sensitivity'!J$7) / (Summary!$C$10 * 'BCR and NPV sensitivity'!$B38) -> 5.806289803 | K38: =(Summary!$C$9 * 'BCR and NPV sensitivity'!K$7) / (Summary!$C$10 * 'BCR and NPV sensitivity'!$B38) -> 6.532076028 | L38: =(Summary!$C$9 * 'BCR and NPV sensitivity'!L$7) / (Summary!$C$10 * 'BCR and NPV sensitivity'!$B38) -> 7.257862254 | Q38: 0.8 | R38: =(Summary!$C$9 * 'BCR and NPV sensitivity'!R$7) - (Summary!$C$10 * 'BCR and NPV sensitivity'!$B38) -> -25.06537685 | S38: =(Summary!$C$9 * 'BCR and NPV sensitivity'!S$7) - (Summary!$C$10 * 'BCR and NPV sensitivity'!$B38) -> 41.27740726 | T38: =(Summary!$C$9 * 'BCR and NPV sensitivity'!T$7) - (Summary!$C$10 * 'BCR and NPV sensitivity'!$B38) -> 107.6201914 | U38: =(Summary!$C$9 * 'BCR and NPV sensitivity'!U$7) - (Summary!$C$10 * 'BCR and NPV sensitivity'!$B38) -> 173.9629755 | V38: =(Summary!$C$9 * 'BCR and NPV sensitivity'!V$7) - (Summary!$C$10 * 'BCR and NPV sensitivity'!$B38) -> 240.3057596 | W38: =(Summary!$C$9 * 'BCR and NPV sensitivity'!W$7) - (Summary!$C$10 * 'BCR and NPV sensitivity'!$B38) -> 306.6485437 | X38: =(Summary!$C$9 * 'BCR and NPV sensitivity'!X$7) - (Summary!$C$10 * 'BCR and NPV sensitivity'!$B38) -> 372.9913278 | Y38: =(Summary!$C$9 * 'BCR and NPV sensitivity'!Y$7) - (Summary!$C$10 * 'BCR and NPV sensitivity'!$B38) -> 439.3341119 | Z38: =(Summary!$C$9 * 'BCR and NPV sensitivity'!Z$7) - (Summary!$C$10 * 'BCR and NPV sensitivity'!$B38) -> 505.676896 | AA38: =(Summary!$C$9 * 'BCR and NPV sensitivity'!AA$7) - (Summary!$C$10 * 'BCR and NPV sensitivity'!$B38) -> 572.0196801
B39: 0.6 | C39: =(Summary!$C$9 * 'BCR and NPV sensitivity'!C$7) / (Summary!$C$10 * 'BCR and NPV sensitivity'!$B39) -> 0.9677149671 | D39: =(Summary!$C$9 * 'BCR and NPV sensitivity'!D$7) / (Summary!$C$10 * 'BCR and NPV sensitivity'!$B39) -> 1.935429934 | E39: =(Summary!$C$9 * 'BCR and NPV sensitivity'!E$7) / (Summary!$C$10 * 'BCR and NPV sensitivity'!$B39) -> 2.903144901 | F39: =(Summary!$C$9 * 'BCR and NPV sensitivity'!F$7) / (Summary!$C$10 * 'BCR and NPV sensitivity'!$B39) -> 3.870859869 | G39: =(Summary!$C$9 * 'BCR and NPV sensitivity'!G$7) / (Summary!$C$10 * 'BCR and NPV sensitivity'!$B39) -> 4.838574836 | H39: =(Summary!$C$9 * 'BCR and NPV sensitivity'!H$7) / (Summary!$C$10 * 'BCR and NPV sensitivity'!$B39) -> 5.806289803 | I39: =(Summary!$C$9 * 'BCR and NPV sensitivity'!I$7) / (Summary!$C$10 * 'BCR and NPV sensitivity'!$B39) -> 6.77400477 | J39: =(Summary!$C$9 * 'BCR and NPV sensitivity'!J$7) / (Summary!$C$10 * 'BCR and NPV sensitivity'!$B39) -> 7.741719737 | K39: =(Summary!$C$9 * 'BCR and NPV sensitivity'!K$7) / (Summary!$C$10 * 'BCR and NPV sensitivity'!$B39) -> 8.709434704 | L39: =(Summary!$C$9 * 'BCR and NPV sensitivity'!L$7) / (Summary!$C$10 * 'BCR and NPV sensitivity'!$B39) -> 9.677149671 | Q39: 0.6 | R39: =(Summary!$C$9 * 'BCR and NPV sensitivity'!R$7) - (Summary!$C$10 * 'BCR and NPV sensitivity'!$B39) -> -2.21333661 | S39: =(Summary!$C$9 * 'BCR and NPV sensitivity'!S$7) - (Summary!$C$10 * 'BCR and NPV sensitivity'!$B39) -> 64.1294475 | T39: =(Summary!$C$9 * 'BCR and NPV sensitivity'!T$7) - (Summary!$C$10 * 'BCR and NPV sensitivity'!$B39) -> 130.4722316 | U39: =(Summary!$C$9 * 'BCR and NPV sensitivity'!U$7) - (Summary!$C$10 * 'BCR and NPV sensitivity'!$B39) -> 196.8150157 | V39: =(Summary!$C$9 * 'BCR and NPV sensitivity'!V$7) - (Summary!$C$10 * 'BCR and NPV sensitivity'!$B39) -> 263.1577998 | W39: =(Summary!$C$9 * 'BCR and NPV sensitivity'!W$7) - (Summary!$C$10 * 'BCR and NPV sensitivity'!$B39) -> 329.5005839 | X39: =(Summary!$C$9 * 'BCR and NPV sensitivity'!X$7) - (Summary!$C$10 * 'BCR and NPV sensitivity'!$B39) -> 395.843368 | Y39: =(Summary!$C$9 * 'BCR and NPV sensitivity'!Y$7) - (Summary!$C$10 * 'BCR and NPV sensitivity'!$B39) -> 462.1861521 | Z39: =(Summary!$C$9 * 'BCR and NPV sensitivity'!Z$7) - (Summary!$C$10 * 'BCR and NPV sensitivity'!$B39) -> 528.5289362 | AA39: =(Summary!$C$9 * 'BCR and NPV sensitivity'!AA$7) - (Summary!$C$10 * 'BCR and NPV sensitivity'!$B39) -> 594.8717204
A42: OPTION 2
A43: 20 years of costs, Nominal - 2024-25 $
B44: Benefit Cost Ratio | P44: Net Benefit (Net Present Value, Real - 2024-25 $)
C45: Benefit compared with central estimate | R45: Benefit compared with central estimate
C46: 0.2 | D46: 0.4 | E46: 0.6 | F46: 0.8 | G46: 1 | H46: 1.2 | I46: 1.4 | J46: 1.6 | K46: 1.8 | L46: 2 | R46: 0.2 | S46: 0.4 | T46: 0.6 | U46: 0.8 | V46: 1 | W46: 1.2 | X46: 1.4 | Y46: 1.6 | Z46: 1.8 | AA46: 2
A47: Cost compared with central estimate | B47: 3 | C47: =(Summary!#REF! * 'BCR and NPV sensitivity'!C$7) / (Summary!#REF! * 'BCR and NPV sensitivity'!$B47) ->  | D47: =(Summary!#REF! * 'BCR and NPV sensitivity'!D$7) / (Summary!#REF! * 'BCR and NPV sensitivity'!$B47) ->  | E47: =(Summary!#REF! * 'BCR and NPV sensitivity'!E$7) / (Summary!#REF! * 'BCR and NPV sensitivity'!$B47) ->  | F47: =(Summary!#REF! * 'BCR and NPV sensitivity'!F$7) / (Summary!#REF! * 'BCR and NPV sensitivity'!$B47) ->  | G47: =(Summary!#REF! * 'BCR and NPV sensitivity'!G$7) / (Summary!#REF! * 'BCR and NPV sensitivity'!$B47) ->  | H47: =(Summary!#REF! * 'BCR and NPV sensitivity'!H$7) / (Summary!#REF! * 'BCR and NPV sensitivity'!$B47) ->  | I47: =(Summary!#REF! * 'BCR and NPV sensitivity'!I$7) / (Summary!#REF! * 'BCR and NPV sensitivity'!$B47) ->  | J47: =(Summary!#REF! * 'BCR and NPV sensitivity'!J$7) / (Summary!#REF! * 'BCR and NPV sensitivity'!$B47) ->  | K47: =(Summary!#REF! * 'BCR and NPV sensitivity'!K$7) / (Summary!#REF! * 'BCR and NPV sensitivity'!$B47) ->  | L47: =(Summary!#REF! * 'BCR and NPV sensitivity'!L$7) / (Summary!#REF! * 'BCR and NPV sensitivity'!$B47) ->  | P47: Cost compared with central estimate | Q47: 3 | R47: =(Summary!#REF! * 'BCR and NPV sensitivity'!R$7) - (Summary!#REF! * 'BCR and NPV sensitivity'!$B47) ->  | S47: =(Summary!#REF! * 'BCR and NPV sensitivity'!S$7) - (Summary!#REF! * 'BCR and NPV sensitivity'!$B47) ->  | T47: =(Summary!#REF! * 'BCR and NPV sensitivity'!T$7) - (Summary!#REF! * 'BCR and NPV sensitivity'!$B47) ->  | U47: =(Summary!#REF! * 'BCR and NPV sensitivity'!U$7) - (Summary!#REF! * 'BCR and NPV sensitivity'!$B47) ->  | V47: =(Summary!#REF! * 'BCR and NPV sensitivity'!V$7) - (Summary!#REF! * 'BCR and NPV sensitivity'!$B47) ->  | W47: =(Summary!#REF! * 'BCR and NPV sensitivity'!W$7) - (Summary!#REF! * 'BCR and NPV sensitivity'!$B47) ->  | X47: =(Summary!#REF! * 'BCR and NPV sensitivity'!X$7) - (Summary!#REF! * 'BCR and NPV sensitivity'!$B47) ->  | Y47: =(Summary!#REF! * 'BCR and NPV sensitivity'!Y$7) - (Summary!#REF! * 'BCR and NPV sensitivity'!$B47) ->  | Z47: =(Summary!#REF! * 'BCR and NPV sensitivity'!Z$7) - (Summary!#REF! * 'BCR and NPV sensitivity'!$B47) ->  | AA47: =(Summary!#REF! * 'BCR and NPV sensitivity'!AA$7) - (Summary!#REF! * 'BCR and NPV sensitivity'!$B47) -> 
B48: 2.8 | C48: =(Summary!#REF! * 'BCR and NPV sensitivity'!C$7) / (Summary!#REF! * 'BCR and NPV sensitivity'!$B48) ->  | D48: =(Summary!#REF! * 'BCR and NPV sensitivity'!D$7) / (Summary!#REF! * 'BCR and NPV sensitivity'!$B48) ->  | E48: =(Summary!#REF! * 'BCR and NPV sensitivity'!E$7) / (Summary!#REF! * 'BCR and NPV sensitivity'!$B48) ->  | F48: =(Summary!#REF! * 'BCR and NPV sensitivity'!F$7) / (Summary!#REF! * 'BCR and NPV sensitivity'!$B48) ->  | G48: =(Summary!#REF! * 'BCR and NPV sensitivity'!G$7) / (Summary!#REF! * 'BCR and NPV sensitivity'!$B48) ->  | H48: =(Summary!#REF! * 'BCR and NPV sensitivity'!H$7) / (Summary!#REF! * 'BCR and NPV sensitivity'!$B48) ->  | I48: =(Summary!#REF! * 'BCR and NPV sensitivity'!I$7) / (Summary!#REF! * 'BCR and NPV sensitivity'!$B48) ->  | J48: =(Summary!#REF! * 'BCR and NPV sensitivity'!J$7) / (Summary!#REF! * 'BCR and NPV sensitivity'!$B48) ->  | K48: =(Summary!#REF! * 'BCR and NPV sensitivity'!K$7) / (Summary!#REF! * 'BCR and NPV sensitivity'!$B48) ->  | L48: =(Summary!#REF! * 'BCR and NPV sensitivity'!L$7) / (Summary!#REF! * 'BCR and NPV sensitivity'!$B48) ->  | Q48: 2.8 | R48: =(Summary!#REF! * 'BCR and NPV sensitivity'!R$7) - (Summary!#REF! * 'BCR and NPV sensitivity'!$B48) ->  | S48: =(Summary!#REF! * 'BCR and NPV sensitivity'!S$7) - (Summary!#REF! * 'BCR and NPV sensitivity'!$B48) ->  | T48: =(Summary!#REF! * 'BCR and NPV sensitivity'!T$7) - (Summary!#REF! * 'BCR and NPV sensitivity'!$B48) ->  | U48: =(Summary!#REF! * 'BCR and NPV sensitivity'!U$7) - (Summary!#REF! * 'BCR and NPV sensitivity'!$B48) ->  | V48: =(Summary!#REF! * 'BCR and NPV sensitivity'!V$7) - (Summary!#REF! * 'BCR and NPV sensitivity'!$B48) ->  | W48: =(Summary!#REF! * 'BCR and NPV sensitivity'!W$7) - (Summary!#REF! * 'BCR and NPV sensitivity'!$B48) ->  | X48: =(Summary!#REF! * 'BCR and NPV sensitivity'!X$7) - (Summary!#REF! * 'BCR and NPV sensitivity'!$B48) ->  | Y48: =(Summary!#REF! * 'BCR and NPV sensitivity'!Y$7) - (Summary!#REF! * 'BCR and NPV sensitivity'!$B48) ->  | Z48: =(Summary!#REF! * 'BCR and NPV sensitivity'!Z$7) - (Summary!#REF! * 'BCR and NPV sensitivity'!$B48) ->  | AA48: =(Summary!#REF! * 'BCR and NPV sensitivity'!AA$7) - (Summary!#REF! * 'BCR and NPV sensitivity'!$B48) -> 
B49: 2.6 | C49: =(Summary!#REF! * 'BCR and NPV sensitivity'!C$7) / (Summary!#REF! * 'BCR and NPV sensitivity'!$B49) ->  | D49: =(Summary!#REF! * 'BCR and NPV sensitivity'!D$7) / (Summary!#REF! * 'BCR and NPV sensitivity'!$B49) ->  | E49: =(Summary!#REF! * 'BCR and NPV sensitivity'!E$7) / (Summary!#REF! * 'BCR and NPV sensitivity'!$B49) ->  | F49: =(Summary!#REF! * 'BCR and NPV sensitivity'!F$7) / (Summary!#REF! * 'BCR and NPV sensitivity'!$B49) ->  | G49: =(Summary!#REF! * 'BCR and NPV sensitivity'!G$7) / (Summary!#REF! * 'BCR and NPV sensitivity'!$B49) ->  | H49: =(Summary!#REF! * 'BCR and NPV sensitivity'!H$7) / (Summary!#REF! * 'BCR and NPV sensitivity'!$B49) ->  | I49: =(Summary!#REF! * 'BCR and NPV sensitivity'!I$7) / (Summary!#REF! * 'BCR and NPV sensitivity'!$B49) ->  | J49: =(Summary!#REF! * 'BCR and NPV sensitivity'!J$7) / (Summary!#REF! * 'BCR and NPV sensitivity'!$B49) ->  | K49: =(Summary!#REF! * 'BCR and NPV sensitivity'!K$7) / (Summary!#REF! * 'BCR and NPV sensitivity'!$B49) ->  | L49: =(Summary!#REF! * 'BCR and NPV sensitivity'!L$7) / (Summary!#REF! * 'BCR and NPV sensitivity'!$B49) ->  | Q49: 2.6 | R49: =(Summary!#REF! * 'BCR and NPV sensitivity'!R$7) - (Summary!#REF! * 'BCR and NPV sensitivity'!$B49) ->  | S49: =(Summary!#REF! * 'BCR and NPV sensitivity'!S$7) - (Summary!#REF! * 'BCR and NPV sensitivity'!$B49) ->  | T49: =(Summary!#REF! * 'BCR and NPV sensitivity'!T$7) - (Summary!#REF! * 'BCR and NPV sensitivity'!$B49) ->  | U49: =(Summary!#REF! * 'BCR and NPV sensitivity'!U$7) - (Summary!#REF! * 'BCR and NPV sensitivity'!$B49) ->  | V49: =(Summary!#REF! * 'BCR and NPV sensitivity'!V$7) - (Summary!#REF! * 'BCR and NPV sensitivity'!$B49) ->  | W49: =(Summary!#REF! * 'BCR and NPV sensitivity'!W$7) - (Summary!#REF! * 'BCR and NPV sensitivity'!$B49) ->  | X49: =(Summary!#REF! * 'BCR and NPV sensitivity'!X$7) - (Summary!#REF! * 'BCR and NPV sensitivity'!$B49) ->  | Y49: =(Summary!#REF! * 'BCR and NPV sensitivity'!Y$7) - (Summary!#REF! * 'BCR and NPV sensitivity'!$B49) ->  | Z49: =(Summary!#REF! * 'BCR and NPV sensitivity'!Z$7) - (Summary!#REF! * 'BCR and NPV sensitivity'!$B49) ->  | AA49: =(Summary!#REF! * 'BCR and NPV sensitivity'!AA$7) - (Summary!#REF! * 'BCR and NPV sensitivity'!$B49) -> 
B50: 2.4 | C50: =(Summary!#REF! * 'BCR and NPV sensitivity'!C$7) / (Summary!#REF! * 'BCR and NPV sensitivity'!$B50) ->  | D50: =(Summary!#REF! * 'BCR and NPV sensitivity'!D$7) / (Summary!#REF! * 'BCR and NPV sensitivity'!$B50) ->  | E50: =(Summary!#REF! * 'BCR and NPV sensitivity'!E$7) / (Summary!#REF! * 'BCR and NPV sensitivity'!$B50) ->  | F50: =(Summary!#REF! * 'BCR and NPV sensitivity'!F$7) / (Summary!#REF! * 'BCR and NPV sensitivity'!$B50) ->  | G50: =(Summary!#REF! * 'BCR and NPV sensitivity'!G$7) / (Summary!#REF! * 'BCR and NPV sensitivity'!$B50) ->  | H50: =(Summary!#REF! * 'BCR and NPV sensitivity'!H$7) / (Summary!#REF! * 'BCR and NPV sensitivity'!$B50) ->  | I50: =(Summary!#REF! * 'BCR and NPV sensitivity'!I$7) / (Summary!#REF! * 'BCR and NPV sensitivity'!$B50) ->  | J50: =(Summary!#REF! * 'BCR and NPV sensitivity'!J$7) / (Summary!#REF! * 'BCR and NPV sensitivity'!$B50) ->  | K50: =(Summary!#REF! * 'BCR and NPV sensitivity'!K$7) / (Summary!#REF! * 'BCR and NPV sensitivity'!$B50) ->  | L50: =(Summary!#REF! * 'BCR and NPV sensitivity'!L$7) / (Summary!#REF! * 'BCR and NPV sensitivity'!$B50) ->  | Q50: 2.4 | R50: =(Summary!#REF! * 'BCR and NPV sensitivity'!R$7) - (Summary!#REF! * 'BCR and NPV sensitivity'!$B50) ->  | S50: =(Summary!#REF! * 'BCR and NPV sensitivity'!S$7) - (Summary!#REF! * 'BCR and NPV sensitivity'!$B50) ->  | T50: =(Summary!#REF! * 'BCR and NPV sensitivity'!T$7) - (Summary!#REF! * 'BCR and NPV sensitivity'!$B50) ->  | U50: =(Summary!#REF! * 'BCR and NPV sensitivity'!U$7) - (Summary!#REF! * 'BCR and NPV sensitivity'!$B50) ->  | V50: =(Summary!#REF! * 'BCR and NPV sensitivity'!V$7) - (Summary!#REF! * 'BCR and NPV sensitivity'!$B50) ->  | W50: =(Summary!#REF! * 'BCR and NPV sensitivity'!W$7) - (Summary!#REF! * 'BCR and NPV sensitivity'!$B50) ->  | X50: =(Summary!#REF! * 'BCR and NPV sensitivity'!X$7) - (Summary!#REF! * 'BCR and NPV sensitivity'!$B50) ->  | Y50: =(Summary!#REF! * 'BCR and NPV sensitivity'!Y$7) - (Summary!#REF! * 'BCR and NPV sensitivity'!$B50) ->  | Z50: =(Summary!#REF! * 'BCR and NPV sensitivity'!Z$7) - (Summary!#REF! * 'BCR and NPV sensitivity'!$B50) ->  | AA50: =(Summary!#REF! * 'BCR and NPV sensitivity'!AA$7) - (Summary!#REF! * 'BCR and NPV sensitivity'!$B50) -> 
B51: 2.2 | C51: =(Summary!#REF! * 'BCR and NPV sensitivity'!C$7) / (Summary!#REF! * 'BCR and NPV sensitivity'!$B51) ->  | D51: =(Summary!#REF! * 'BCR and NPV sensitivity'!D$7) / (Summary!#REF! * 'BCR and NPV sensitivity'!$B51) ->  | E51: =(Summary!#REF! * 'BCR and NPV sensitivity'!E$7) / (Summary!#REF! * 'BCR and NPV sensitivity'!$B51) ->  | F51: =(Summary!#REF! * 'BCR and NPV sensitivity'!F$7) / (Summary!#REF! * 'BCR and NPV sensitivity'!$B51) ->  | G51: =(Summary!#REF! * 'BCR and NPV sensitivity'!G$7) / (Summary!#REF! * 'BCR and NPV sensitivity'!$B51) ->  | H51: =(Summary!#REF! * 'BCR and NPV sensitivity'!H$7) / (Summary!#REF! * 'BCR and NPV sensitivity'!$B51) ->  | I51: =(Summary!#REF! * 'BCR and NPV sensitivity'!I$7) / (Summary!#REF! * 'BCR and NPV sensitivity'!$B51) ->  | J51: =(Summary!#REF! * 'BCR and NPV sensitivity'!J$7) / (Summary!#REF! * 'BCR and NPV sensitivity'!$B51) ->  | K51: =(Summary!#REF! * 'BCR and NPV sensitivity'!K$7) / (Summary!#REF! * 'BCR and NPV sensitivity'!$B51) ->  | L51: =(Summary!#REF! * 'BCR and NPV sensitivity'!L$7) / (Summary!#REF! * 'BCR and NPV sensitivity'!$B51) ->  | Q51: 2.2 | R51: =(Summary!#REF! * 'BCR and NPV sensitivity'!R$7) - (Summary!#REF! * 'BCR and NPV sensitivity'!$B51) ->  | S51: =(Summary!#REF! * 'BCR and NPV sensitivity'!S$7) - (Summary!#REF! * 'BCR and NPV sensitivity'!$B51) ->  | T51: =(Summary!#REF! * 'BCR and NPV sensitivity'!T$7) - (Summary!#REF! * 'BCR and NPV sensitivity'!$B51) ->  | U51: =(Summary!#REF! * 'BCR and NPV sensitivity'!U$7) - (Summary!#REF! * 'BCR and NPV sensitivity'!$B51) ->  | V51: =(Summary!#REF! * 'BCR and NPV sensitivity'!V$7) - (Summary!#REF! * 'BCR and NPV sensitivity'!$B51) ->  | W51: =(Summary!#REF! * 'BCR and NPV sensitivity'!W$7) - (Summary!#REF! * 'BCR and NPV sensitivity'!$B51) ->  | X51: =(Summary!#REF! * 'BCR and NPV sensitivity'!X$7) - (Summary!#REF! * 'BCR and NPV sensitivity'!$B51) ->  | Y51: =(Summary!#REF! * 'BCR and NPV sensitivity'!Y$7) - (Summary!#REF! * 'BCR and NPV sensitivity'!$B51) ->  | Z51: =(Summary!#REF! * 'BCR and NPV sensitivity'!Z$7) - (Summary!#REF! * 'BCR and NPV sensitivity'!$B51) ->  | AA51: =(Summary!#REF! * 'BCR and NPV sensitivity'!AA$7) - (Summary!#REF! * 'BCR and NPV sensitivity'!$B51) -> 
B52: 2 | C52: =(Summary!#REF! * 'BCR and NPV sensitivity'!C$7) / (Summary!#REF! * 'BCR and NPV sensitivity'!$B52) ->  | D52: =(Summary!#REF! * 'BCR and NPV sensitivity'!D$7) / (Summary!#REF! * 'BCR and NPV sensitivity'!$B52) ->  | E52: =(Summary!#REF! * 'BCR and NPV sensitivity'!E$7) / (Summary!#REF! * 'BCR and NPV sensitivity'!$B52) ->  | F52: =(Summary!#REF! * 'BCR and NPV sensitivity'!F$7) / (Summary!#REF! * 'BCR and NPV sensitivity'!$B52) ->  | G52: =(Summary!#REF! * 'BCR and NPV sensitivity'!G$7) / (Summary!#REF! * 'BCR and NPV sensitivity'!$B52) ->  | H52: =(Summary!#REF! * 'BCR and NPV sensitivity'!H$7) / (Summary!#REF! * 'BCR and NPV sensitivity'!$B52) ->  | I52: =(Summary!#REF! * 'BCR and NPV sensitivity'!I$7) / (Summary!#REF! * 'BCR and NPV sensitivity'!$B52) ->  | J52: =(Summary!#REF! * 'BCR and NPV sensitivity'!J$7) / (Summary!#REF! * 'BCR and NPV sensitivity'!$B52) ->  | K52: =(Summary!#REF! * 'BCR and NPV sensitivity'!K$7) / (Summary!#REF! * 'BCR and NPV sensitivity'!$B52) ->  | L52: =(Summary!#REF! * 'BCR and NPV sensitivity'!L$7) / (Summary!#REF! * 'BCR and NPV sensitivity'!$B52) ->  | Q52: 2 | R52: =(Summary!#REF! * 'BCR and NPV sensitivity'!R$7) - (Summary!#REF! * 'BCR and NPV sensitivity'!$B52) ->  | S52: =(Summary!#REF! * 'BCR and NPV sensitivity'!S$7) - (Summary!#REF! * 'BCR and NPV sensitivity'!$B52) ->  | T52: =(Summary!#REF! * 'BCR and NPV sensitivity'!T$7) - (Summary!#REF! * 'BCR and NPV sensitivity'!$B52) ->  | U52: =(Summary!#REF! * 'BCR and NPV sensitivity'!U$7) - (Summary!#REF! * 'BCR and NPV sensitivity'!$B52) ->  | V52: =(Summary!#REF! * 'BCR and NPV sensitivity'!V$7) - (Summary!#REF! * 'BCR and NPV sensitivity'!$B52) ->  | W52: =(Summary!#REF! * 'BCR and NPV sensitivity'!W$7) - (Summary!#REF! * 'BCR and NPV sensitivity'!$B52) ->  | X52: =(Summary!#REF! * 'BCR and NPV sensitivity'!X$7) - (Summary!#REF! * 'BCR and NPV sensitivity'!$B52) ->  | Y52: =(Summary!#REF! * 'BCR and NPV sensitivity'!Y$7) - (Summary!#REF! * 'BCR and NPV sensitivity'!$B52) ->  | Z52: =(Summary!#REF! * 'BCR and NPV sensitivity'!Z$7) - (Summary!#REF! * 'BCR and NPV sensitivity'!$B52) ->  | AA52: =(Summary!#REF! * 'BCR and NPV sensitivity'!AA$7) - (Summary!#REF! * 'BCR and NPV sensitivity'!$B52) -> 
B53: 1.8 | C53: =(Summary!#REF! * 'BCR and NPV sensitivity'!C$7) / (Summary!#REF! * 'BCR and NPV sensitivity'!$B53) ->  | D53: =(Summary!#REF! * 'BCR and NPV sensitivity'!D$7) / (Summary!#REF! * 'BCR and NPV sensitivity'!$B53) ->  | E53: =(Summary!#REF! * 'BCR and NPV sensitivity'!E$7) / (Summary!#REF! * 'BCR and NPV sensitivity'!$B53) ->  | F53: =(Summary!#REF! * 'BCR and NPV sensitivity'!F$7) / (Summary!#REF! * 'BCR and NPV sensitivity'!$B53) ->  | G53: =(Summary!#REF! * 'BCR and NPV sensitivity'!G$7) / (Summary!#REF! * 'BCR and NPV sensitivity'!$B53) ->  | H53: =(Summary!#REF! * 'BCR and NPV sensitivity'!H$7) / (Summary!#REF! * 'BCR and NPV sensitivity'!$B53) ->  | I53: =(Summary!#REF! * 'BCR and NPV sensitivity'!I$7) / (Summary!#REF! * 'BCR and NPV sensitivity'!$B53) ->  | J53: =(Summary!#REF! * 'BCR and NPV sensitivity'!J$7) / (Summary!#REF! * 'BCR and NPV sensitivity'!$B53) ->  | K53: =(Summary!#REF! * 'BCR and NPV sensitivity'!K$7) / (Summary!#REF! * 'BCR and NPV sensitivity'!$B53) ->  | L53: =(Summary!#REF! * 'BCR and NPV sensitivity'!L$7) / (Summary!#REF! * 'BCR and NPV sensitivity'!$B53) ->  | Q53: 1.8 | R53: =(Summary!#REF! * 'BCR and NPV sensitivity'!R$7) - (Summary!#REF! * 'BCR and NPV sensitivity'!$B53) ->  | S53: =(Summary!#REF! * 'BCR and NPV sensitivity'!S$7) - (Summary!#REF! * 'BCR and NPV sensitivity'!$B53) ->  | T53: =(Summary!#REF! * 'BCR and NPV sensitivity'!T$7) - (Summary!#REF! * 'BCR and NPV sensitivity'!$B53) ->  | U53: =(Summary!#REF! * 'BCR and NPV sensitivity'!U$7) - (Summary!#REF! * 'BCR and NPV sensitivity'!$B53) ->  | V53: =(Summary!#REF! * 'BCR and NPV sensitivity'!V$7) - (Summary!#REF! * 'BCR and NPV sensitivity'!$B53) ->  | W53: =(Summary!#REF! * 'BCR and NPV sensitivity'!W$7) - (Summary!#REF! * 'BCR and NPV sensitivity'!$B53) ->  | X53: =(Summary!#REF! * 'BCR and NPV sensitivity'!X$7) - (Summary!#REF! * 'BCR and NPV sensitivity'!$B53) ->  | Y53: =(Summary!#REF! * 'BCR and NPV sensitivity'!Y$7) - (Summary!#REF! * 'BCR and NPV sensitivity'!$B53) ->  | Z53: =(Summary!#REF! * 'BCR and NPV sensitivity'!Z$7) - (Summary!#REF! * 'BCR and NPV sensitivity'!$B53) ->  | AA53: =(Summary!#REF! * 'BCR and NPV sensitivity'!AA$7) - (Summary!#REF! * 'BCR and NPV sensitivity'!$B53) -> 
B54: 1.6 | C54: =(Summary!#REF! * 'BCR and NPV sensitivity'!C$7) / (Summary!#REF! * 'BCR and NPV sensitivity'!$B54) ->  | D54: =(Summary!#REF! * 'BCR and NPV sensitivity'!D$7) / (Summary!#REF! * 'BCR and NPV sensitivity'!$B54) ->  | E54: =(Summary!#REF! * 'BCR and NPV sensitivity'!E$7) / (Summary!#REF! * 'BCR and NPV sensitivity'!$B54) ->  | F54: =(Summary!#REF! * 'BCR and NPV sensitivity'!F$7) / (Summary!#REF! * 'BCR and NPV sensitivity'!$B54) ->  | G54: =(Summary!#REF! * 'BCR and NPV sensitivity'!G$7) / (Summary!#REF! * 'BCR and NPV sensitivity'!$B54) ->  | H54: =(Summary!#REF! * 'BCR and NPV sensitivity'!H$7) / (Summary!#REF! * 'BCR and NPV sensitivity'!$B54) ->  | I54: =(Summary!#REF! * 'BCR and NPV sensitivity'!I$7) / (Summary!#REF! * 'BCR and NPV sensitivity'!$B54) ->  | J54: =(Summary!#REF! * 'BCR and NPV sensitivity'!J$7) / (Summary!#REF! * 'BCR and NPV sensitivity'!$B54) ->  | K54: =(Summary!#REF! * 'BCR and NPV sensitivity'!K$7) / (Summary!#REF! * 'BCR and NPV sensitivity'!$B54) ->  | L54: =(Summary!#REF! * 'BCR and NPV sensitivity'!L$7) / (Summary!#REF! * 'BCR and NPV sensitivity'!$B54) ->  | Q54: 1.6 | R54: =(Summary!#REF! * 'BCR and NPV sensitivity'!R$7) - (Summary!#REF! * 'BCR and NPV sensitivity'!$B54) ->  | S54: =(Summary!#REF! * 'BCR and NPV sensitivity'!S$7) - (Summary!#REF! * 'BCR and NPV sensitivity'!$B54) ->  | T54: =(Summary!#REF! * 'BCR and NPV sensitivity'!T$7) - (Summary!#REF! * 'BCR and NPV sensitivity'!$B54) ->  | U54: =(Summary!#REF! * 'BCR and NPV sensitivity'!U$7) - (Summary!#REF! * 'BCR and NPV sensitivity'!$B54) ->  | V54: =(Summary!#REF! * 'BCR and NPV sensitivity'!V$7) - (Summary!#REF! * 'BCR and NPV sensitivity'!$B54) ->  | W54: =(Summary!#REF! * 'BCR and NPV sensitivity'!W$7) - (Summary!#REF! * 'BCR and NPV sensitivity'!$B54) ->  | X54: =(Summary!#REF! * 'BCR and NPV sensitivity'!X$7) - (Summary!#REF! * 'BCR and NPV sensitivity'!$B54) ->  | Y54: =(Summary!#REF! * 'BCR and NPV sensitivity'!Y$7) - (Summary!#REF! * 'BCR and NPV sensitivity'!$B54) ->  | Z54: =(Summary!#REF! * 'BCR and NPV sensitivity'!Z$7) - (Summary!#REF! * 'BCR and NPV sensitivity'!$B54) ->  | AA54: =(Summary!#REF! * 'BCR and NPV sensitivity'!AA$7) - (Summary!#REF! * 'BCR and NPV sensitivity'!$B54) -> 
B55: 1.4 | C55: =(Summary!#REF! * 'BCR and NPV sensitivity'!C$7) / (Summary!#REF! * 'BCR and NPV sensitivity'!$B55) ->  | D55: =(Summary!#REF! * 'BCR and NPV sensitivity'!D$7) / (Summary!#REF! * 'BCR and NPV sensitivity'!$B55) ->  | E55: =(Summary!#REF! * 'BCR and NPV sensitivity'!E$7) / (Summary!#REF! * 'BCR and NPV sensitivity'!$B55) ->  | F55: =(Summary!#REF! * 'BCR and NPV sensitivity'!F$7) / (Summary!#REF! * 'BCR and NPV sensitivity'!$B55) ->  | G55: =(Summary!#REF! * 'BCR and NPV sensitivity'!G$7) / (Summary!#REF! * 'BCR and NPV sensitivity'!$B55) ->  | H55: =(Summary!#REF! * 'BCR and NPV sensitivity'!H$7) / (Summary!#REF! * 'BCR and NPV sensitivity'!$B55) ->  | I55: =(Summary!#REF! * 'BCR and NPV sensitivity'!I$7) / (Summary!#REF! * 'BCR and NPV sensitivity'!$B55) ->  | J55: =(Summary!#REF! * 'BCR and NPV sensitivity'!J$7) / (Summary!#REF! * 'BCR and NPV sensitivity'!$B55) ->  | K55: =(Summary!#REF! * 'BCR and NPV sensitivity'!K$7) / (Summary!#REF! * 'BCR and NPV sensitivity'!$B55) ->  | L55: =(Summary!#REF! * 'BCR and NPV sensitivity'!L$7) / (Summary!#REF! * 'BCR and NPV sensitivity'!$B55) ->  | Q55: 1.4 | R55: =(Summary!#REF! * 'BCR and NPV sensitivity'!R$7) - (Summary!#REF! * 'BCR and NPV sensitivity'!$B55) ->  | S55: =(Summary!#REF! * 'BCR and NPV sensitivity'!S$7) - (Summary!#REF! * 'BCR and NPV sensitivity'!$B55) ->  | T55: =(Summary!#REF! * 'BCR and NPV sensitivity'!T$7) - (Summary!#REF! * 'BCR and NPV sensitivity'!$B55) ->  | U55: =(Summary!#REF! * 'BCR and NPV sensitivity'!U$7) - (Summary!#REF! * 'BCR and NPV sensitivity'!$B55) ->  | V55: =(Summary!#REF! * 'BCR and NPV sensitivity'!V$7) - (Summary!#REF! * 'BCR and NPV sensitivity'!$B55) ->  | W55: =(Summary!#REF! * 'BCR and NPV sensitivity'!W$7) - (Summary!#REF! * 'BCR and NPV sensitivity'!$B55) ->  | X55: =(Summary!#REF! * 'BCR and NPV sensitivity'!X$7) - (Summary!#REF! * 'BCR and NPV sensitivity'!$B55) ->  | Y55: =(Summary!#REF! * 'BCR and NPV sensitivity'!Y$7) - (Summary!#REF! * 'BCR and NPV sensitivity'!$B55) ->  | Z55: =(Summary!#REF! * 'BCR and NPV sensitivity'!Z$7) - (Summary!#REF! * 'BCR and NPV sensitivity'!$B55) ->  | AA55: =(Summary!#REF! * 'BCR and NPV sensitivity'!AA$7) - (Summary!#REF! * 'BCR and NPV sensitivity'!$B55) -> 
B56: 1.2 | C56: =(Summary!#REF! * 'BCR and NPV sensitivity'!C$7) / (Summary!#REF! * 'BCR and NPV sensitivity'!$B56) ->  | D56: =(Summary!#REF! * 'BCR and NPV sensitivity'!D$7) / (Summary!#REF! * 'BCR and NPV sensitivity'!$B56) ->  | E56: =(Summary!#REF! * 'BCR and NPV sensitivity'!E$7) / (Summary!#REF! * 'BCR and NPV sensitivity'!$B56) ->  | F56: =(Summary!#REF! * 'BCR and NPV sensitivity'!F$7) / (Summary!#REF! * 'BCR and NPV sensitivity'!$B56) ->  | G56: =(Summary!#REF! * 'BCR and NPV sensitivity'!G$7) / (Summary!#REF! * 'BCR and NPV sensitivity'!$B56) ->  | H56: =(Summary!#REF! * 'BCR and NPV sensitivity'!H$7) / (Summary!#REF! * 'BCR and NPV sensitivity'!$B56) ->  | I56: =(Summary!#REF! * 'BCR and NPV sensitivity'!I$7) / (Summary!#REF! * 'BCR and NPV sensitivity'!$B56) ->  | J56: =(Summary!#REF! * 'BCR and NPV sensitivity'!J$7) / (Summary!#REF! * 'BCR and NPV sensitivity'!$B56) ->  | K56: =(Summary!#REF! * 'BCR and NPV sensitivity'!K$7) / (Summary!#REF! * 'BCR and NPV sensitivity'!$B56) ->  | L56: =(Summary!#REF! * 'BCR and NPV sensitivity'!L$7) / (Summary!#REF! * 'BCR and NPV sensitivity'!$B56) ->  | Q56: 1.2 | R56: =(Summary!#REF! * 'BCR and NPV sensitivity'!R$7) - (Summary!#REF! * 'BCR and NPV sensitivity'!$B56) ->  | S56: =(Summary!#REF! * 'BCR and NPV sensitivity'!S$7) - (Summary!#REF! * 'BCR and NPV sensitivity'!$B56) ->  | T56: =(Summary!#REF! * 'BCR and NPV sensitivity'!T$7) - (Summary!#REF! * 'BCR and NPV sensitivity'!$B56) ->  | U56: =(Summary!#REF! * 'BCR and NPV sensitivity'!U$7) - (Summary!#REF! * 'BCR and NPV sensitivity'!$B56) ->  | V56: =(Summary!#REF! * 'BCR and NPV sensitivity'!V$7) - (Summary!#REF! * 'BCR and NPV sensitivity'!$B56) ->  | W56: =(Summary!#REF! * 'BCR and NPV sensitivity'!W$7) - (Summary!#REF! * 'BCR and NPV sensitivity'!$B56) ->  | X56: =(Summary!#REF! * 'BCR and NPV sensitivity'!X$7) - (Summary!#REF! * 'BCR and NPV sensitivity'!$B56) ->  | Y56: =(Summary!#REF! * 'BCR and NPV sensitivity'!Y$7) - (Summary!#REF! * 'BCR and NPV sensitivity'!$B56) ->  | Z56: =(Summary!#REF! * 'BCR and NPV sensitivity'!Z$7) - (Summary!#REF! * 'BCR and NPV sensitivity'!$B56) ->  | AA56: =(Summary!#REF! * 'BCR and NPV sensitivity'!AA$7) - (Summary!#REF! * 'BCR and NPV sensitivity'!$B56) -> 
B57: 1 | C57: =(Summary!#REF! * 'BCR and NPV sensitivity'!C$7) / (Summary!#REF! * 'BCR and NPV sensitivity'!$B57) ->  | D57: =(Summary!#REF! * 'BCR and NPV sensitivity'!D$7) / (Summary!#REF! * 'BCR and NPV sensitivity'!$B57) ->  | E57: =(Summary!#REF! * 'BCR and NPV sensitivity'!E$7) / (Summary!#REF! * 'BCR and NPV sensitivity'!$B57) ->  | F57: =(Summary!#REF! * 'BCR and NPV sensitivity'!F$7) / (Summary!#REF! * 'BCR and NPV sensitivity'!$B57) ->  | G57: =(Summary!#REF! * 'BCR and NPV sensitivity'!G$7) / (Summary!#REF! * 'BCR and NPV sensitivity'!$B57) ->  | H57: =(Summary!#REF! * 'BCR and NPV sensitivity'!H$7) / (Summary!#REF! * 'BCR and NPV sensitivity'!$B57) ->  | I57: =(Summary!#REF! * 'BCR and NPV sensitivity'!I$7) / (Summary!#REF! * 'BCR and NPV sensitivity'!$B57) ->  | J57: =(Summary!#REF! * 'BCR and NPV sensitivity'!J$7) / (Summary!#REF! * 'BCR and NPV sensitivity'!$B57) ->  | K57: =(Summary!#REF! * 'BCR and NPV sensitivity'!K$7) / (Summary!#REF! * 'BCR and NPV sensitivity'!$B57) ->  | L57: =(Summary!#REF! * 'BCR and NPV sensitivity'!L$7) / (Summary!#REF! * 'BCR and NPV sensitivity'!$B57) ->  | Q57: 1 | R57: =(Summary!#REF! * 'BCR and NPV sensitivity'!R$7) - (Summary!#REF! * 'BCR and NPV sensitivity'!$B57) ->  | S57: =(Summary!#REF! * 'BCR and NPV sensitivity'!S$7) - (Summary!#REF! * 'BCR and NPV sensitivity'!$B57) ->  | T57: =(Summary!#REF! * 'BCR and NPV sensitivity'!T$7) - (Summary!#REF! * 'BCR and NPV sensitivity'!$B57) ->  | U57: =(Summary!#REF! * 'BCR and NPV sensitivity'!U$7) - (Summary!#REF! * 'BCR and NPV sensitivity'!$B57) ->  | V57: =(Summary!#REF! * 'BCR and NPV sensitivity'!V$7) - (Summary!#REF! * 'BCR and NPV sensitivity'!$B57) ->  | W57: =(Summary!#REF! * 'BCR and NPV sensitivity'!W$7) - (Summary!#REF! * 'BCR and NPV sensitivity'!$B57) ->  | X57: =(Summary!#REF! * 'BCR and NPV sensitivity'!X$7) - (Summary!#REF! * 'BCR and NPV sensitivity'!$B57) ->  | Y57: =(Summary!#REF! * 'BCR and NPV sensitivity'!Y$7) - (Summary!#REF! * 'BCR and NPV sensitivity'!$B57) ->  | Z57: =(Summary!#REF! * 'BCR and NPV sensitivity'!Z$7) - (Summary!#REF! * 'BCR and NPV sensitivity'!$B57) ->  | AA57: =(Summary!#REF! * 'BCR and NPV sensitivity'!AA$7) - (Summary!#REF! * 'BCR and NPV sensitivity'!$B57) -> 
B58: 0.8 | C58: =(Summary!#REF! * 'BCR and NPV sensitivity'!C$7) / (Summary!#REF! * 'BCR and NPV sensitivity'!$B58) ->  | D58: =(Summary!#REF! * 'BCR and NPV sensitivity'!D$7) / (Summary!#REF! * 'BCR and NPV sensitivity'!$B58) ->  | E58: =(Summary!#REF! * 'BCR and NPV sensitivity'!E$7) / (Summary!#REF! * 'BCR and NPV sensitivity'!$B58) ->  | F58: =(Summary!#REF! * 'BCR and NPV sensitivity'!F$7) / (Summary!#REF! * 'BCR and NPV sensitivity'!$B58) ->  | G58: =(Summary!#REF! * 'BCR and NPV sensitivity'!G$7) / (Summary!#REF! * 'BCR and NPV sensitivity'!$B58) ->  | H58: =(Summary!#REF! * 'BCR and NPV sensitivity'!H$7) / (Summary!#REF! * 'BCR and NPV sensitivity'!$B58) ->  | I58: =(Summary!#REF! * 'BCR and NPV sensitivity'!I$7) / (Summary!#REF! * 'BCR and NPV sensitivity'!$B58) ->  | J58: =(Summary!#REF! * 'BCR and NPV sensitivity'!J$7) / (Summary!#REF! * 'BCR and NPV sensitivity'!$B58) ->  | K58: =(Summary!#REF! * 'BCR and NPV sensitivity'!K$7) / (Summary!#REF! * 'BCR and NPV sensitivity'!$B58) ->  | L58: =(Summary!#REF! * 'BCR and NPV sensitivity'!L$7) / (Summary!#REF! * 'BCR and NPV sensitivity'!$B58) ->  | Q58: 0.8 | R58: =(Summary!#REF! * 'BCR and NPV sensitivity'!R$7) - (Summary!#REF! * 'BCR and NPV sensitivity'!$B58) ->  | S58: =(Summary!#REF! * 'BCR and NPV sensitivity'!S$7) - (Summary!#REF! * 'BCR and NPV sensitivity'!$B58) ->  | T58: =(Summary!#REF! * 'BCR and NPV sensitivity'!T$7) - (Summary!#REF! * 'BCR and NPV sensitivity'!$B58) ->  | U58: =(Summary!#REF! * 'BCR and NPV sensitivity'!U$7) - (Summary!#REF! * 'BCR and NPV sensitivity'!$B58) ->  | V58: =(Summary!#REF! * 'BCR and NPV sensitivity'!V$7) - (Summary!#REF! * 'BCR and NPV sensitivity'!$B58) ->  | W58: =(Summary!#REF! * 'BCR and NPV sensitivity'!W$7) - (Summary!#REF! * 'BCR and NPV sensitivity'!$B58) ->  | X58: =(Summary!#REF! * 'BCR and NPV sensitivity'!X$7) - (Summary!#REF! * 'BCR and NPV sensitivity'!$B58) ->  | Y58: =(Summary!#REF! * 'BCR and NPV sensitivity'!Y$7) - (Summary!#REF! * 'BCR and NPV sensitivity'!$B58) ->  | Z58: =(Summary!#REF! * 'BCR and NPV sensitivity'!Z$7) - (Summary!#REF! * 'BCR and NPV sensitivity'!$B58) ->  | AA58: =(Summary!#REF! * 'BCR and NPV sensitivity'!AA$7) - (Summary!#REF! * 'BCR and NPV sensitivity'!$B58) -> 
B59: 0.6 | C59: =(Summary!#REF! * 'BCR and NPV sensitivity'!C$7) / (Summary!#REF! * 'BCR and NPV sensitivity'!$B59) ->  | D59: =(Summary!#REF! * 'BCR and NPV sensitivity'!D$7) / (Summary!#REF! * 'BCR and NPV sensitivity'!$B59) ->  | E59: =(Summary!#REF! * 'BCR and NPV sensitivity'!E$7) / (Summary!#REF! * 'BCR and NPV sensitivity'!$B59) ->  | F59: =(Summary!#REF! * 'BCR and NPV sensitivity'!F$7) / (Summary!#REF! * 'BCR and NPV sensitivity'!$B59) ->  | G59: =(Summary!#REF! * 'BCR and NPV sensitivity'!G$7) / (Summary!#REF! * 'BCR and NPV sensitivity'!$B59) ->  | H59: =(Summary!#REF! * 'BCR and NPV sensitivity'!H$7) / (Summary!#REF! * 'BCR and NPV sensitivity'!$B59) ->  | I59: =(Summary!#REF! * 'BCR and NPV sensitivity'!I$7) / (Summary!#REF! * 'BCR and NPV sensitivity'!$B59) ->  | J59: =(Summary!#REF! * 'BCR and NPV sensitivity'!J$7) / (Summary!#REF! * 'BCR and NPV sensitivity'!$B59) ->  | K59: =(Summary!#REF! * 'BCR and NPV sensitivity'!K$7) / (Summary!#REF! * 'BCR and NPV sensitivity'!$B59) ->  | L59: =(Summary!#REF! * 'BCR and NPV sensitivity'!L$7) / (Summary!#REF! * 'BCR and NPV sensitivity'!$B59) ->  | Q59: 0.6 | R59: =(Summary!#REF! * 'BCR and NPV sensitivity'!R$7) - (Summary!#REF! * 'BCR and NPV sensitivity'!$B59) ->  | S59: =(Summary!#REF! * 'BCR and NPV sensitivity'!S$7) - (Summary!#REF! * 'BCR and NPV sensitivity'!$B59) ->  | T59: =(Summary!#REF! * 'BCR and NPV sensitivity'!T$7) - (Summary!#REF! * 'BCR and NPV sensitivity'!$B59) ->  | U59: =(Summary!#REF! * 'BCR and NPV sensitivity'!U$7) - (Summary!#REF! * 'BCR and NPV sensitivity'!$B59) ->  | V59: =(Summary!#REF! * 'BCR and NPV sensitivity'!V$7) - (Summary!#REF! * 'BCR and NPV sensitivity'!$B59) ->  | W59: =(Summary!#REF! * 'BCR and NPV sensitivity'!W$7) - (Summary!#REF! * 'BCR and NPV sensitivity'!$B59) ->  | X59: =(Summary!#REF! * 'BCR and NPV sensitivity'!X$7) - (Summary!#REF! * 'BCR and NPV sensitivity'!$B59) ->  | Y59: =(Summary!#REF! * 'BCR and NPV sensitivity'!Y$7) - (Summary!#REF! * 'BCR and NPV sensitivity'!$B59) ->  | Z59: =(Summary!#REF! * 'BCR and NPV sensitivity'!Z$7) - (Summary!#REF! * 'BCR and NPV sensitivity'!$B59) ->  | AA59: =(Summary!#REF! * 'BCR and NPV sensitivity'!AA$7) - (Summary!#REF! * 'BCR and NPV sensitivity'!$B59) -> 
A61: OPTION 2
A62: 20 years of costs, real
B63: Benefit Cost Ratio | P63: Net Benefit (Net Present Value, Real)
C64: Benefit compared with central estimate | R64: Benefit compared with central estimate
C65: 0.2 | D65: 0.4 | E65: 0.6 | F65: 0.8 | G65: 1 | H65: 1.2 | I65: 1.4 | J65: 1.6 | K65: 1.8 | L65: 2 | R65: 0.2 | S65: 0.4 | T65: 0.6 | U65: 0.8 | V65: 1 | W65: 1.2 | X65: 1.4 | Y65: 1.6 | Z65: 1.8 | AA65: 2
A66: Cost compared with central estimate | B66: 3 | C66: =(Summary!$D$9 * 'BCR and NPV sensitivity'!C$7) / (Summary!$D$10 * 'BCR and NPV sensitivity'!$B66) -> 0.1964331216 | D66: =(Summary!$D$9 * 'BCR and NPV sensitivity'!D$7) / (Summary!$D$10 * 'BCR and NPV sensitivity'!$B66) -> 0.3928662432 | E66: =(Summary!$D$9 * 'BCR and NPV sensitivity'!E$7) / (Summary!$D$10 * 'BCR and NPV sensitivity'!$B66) -> 0.5892993647 | F66: =(Summary!$D$9 * 'BCR and NPV sensitivity'!F$7) / (Summary!$D$10 * 'BCR and NPV sensitivity'!$B66) -> 0.7857324863 | G66: =(Summary!$D$9 * 'BCR and NPV sensitivity'!G$7) / (Summary!$D$10 * 'BCR and NPV sensitivity'!$B66) -> 0.9821656079 | H66: =(Summary!$D$9 * 'BCR and NPV sensitivity'!H$7) / (Summary!$D$10 * 'BCR and NPV sensitivity'!$B66) -> 1.178598729 | I66: =(Summary!$D$9 * 'BCR and NPV sensitivity'!I$7) / (Summary!$D$10 * 'BCR and NPV sensitivity'!$B66) -> 1.375031851 | J66: =(Summary!$D$9 * 'BCR and NPV sensitivity'!J$7) / (Summary!$D$10 * 'BCR and NPV sensitivity'!$B66) -> 1.571464973 | K66: =(Summary!$D$9 * 'BCR and NPV sensitivity'!K$7) / (Summary!$D$10 * 'BCR and NPV sensitivity'!$B66) -> 1.767898094 | L66: =(Summary!$D$9 * 'BCR and NPV sensitivity'!L$7) / (Summary!$D$10 * 'BCR and NPV sensitivity'!$B66) -> 1.964331216 | P66: Cost compared with central estimate | Q66: 3 | R66: =(Summary!$D$9 * 'BCR and NPV sensitivity'!R$7) - (Summary!$D$10 * 'BCR and NPV sensitivity'!$B66) -> -284.7186708 | S66: =(Summary!$D$9 * 'BCR and NPV sensitivity'!S$7) - (Summary!$D$10 * 'BCR and NPV sensitivity'!$B66) -> -215.1187672 | T66: =(Summary!$D$9 * 'BCR and NPV sensitivity'!T$7) - (Summary!$D$10 * 'BCR and NPV sensitivity'!$B66) -> -145.5188636 | U66: =(Summary!$D$9 * 'BCR and NPV sensitivity'!U$7) - (Summary!$D$10 * 'BCR and NPV sensitivity'!$B66) -> -75.91896 | V66: =(Summary!$D$9 * 'BCR and NPV sensitivity'!V$7) - (Summary!$D$10 * 'BCR and NPV sensitivity'!$B66) -> -6.319056392 | W66: =(Summary!$D$9 * 'BCR and NPV sensitivity'!W$7) - (Summary!$D$10 * 'BCR and NPV sensitivity'!$B66) -> 63.28084721 | X66: =(Summary!$D$9 * 'BCR and NPV sensitivity'!X$7) - (Summary!$D$10 * 'BCR and NPV sensitivity'!$B66) -> 132.8807508 | Y66: =(Summary!$D$9 * 'BCR and NPV sensitivity'!Y$7) - (Summary!$D$10 * 'BCR and NPV sensitivity'!$B66) -> 202.4806544 | Z66: =(Summary!$D$9 * 'BCR and NPV sensitivity'!Z$7) - (Summary!$D$10 * 'BCR and NPV sensitivity'!$B66) -> 272.080558 | AA66: =(Summary!$D$9 * 'BCR and NPV sensitivity'!AA$7) - (Summary!$D$10 * 'BCR and NPV sensitivity'!$B66) -> 341.6804616
B67: 2.8 | C67: =(Summary!$D$9 * 'BCR and NPV sensitivity'!C$7) / (Summary!$D$10 * 'BCR and NPV sensitivity'!$B67) -> 0.2104640588 | D67: =(Summary!$D$9 * 'BCR and NPV sensitivity'!D$7) / (Summary!$D$10 * 'BCR and NPV sensitivity'!$B67) -> 0.4209281177 | E67: =(Summary!$D$9 * 'BCR and NPV sensitivity'!E$7) / (Summary!$D$10 * 'BCR and NPV sensitivity'!$B67) -> 0.6313921765 | F67: =(Summary!$D$9 * 'BCR and NPV sensitivity'!F$7) / (Summary!$D$10 * 'BCR and NPV sensitivity'!$B67) -> 0.8418562353 | G67: =(Summary!$D$9 * 'BCR and NPV sensitivity'!G$7) / (Summary!$D$10 * 'BCR and NPV sensitivity'!$B67) -> 1.052320294 | H67: =(Summary!$D$9 * 'BCR and NPV sensitivity'!H$7) / (Summary!$D$10 * 'BCR and NPV sensitivity'!$B67) -> 1.262784353 | I67: =(Summary!$D$9 * 'BCR and NPV sensitivity'!I$7) / (Summary!$D$10 * 'BCR and NPV sensitivity'!$B67) -> 1.473248412 | J67: =(Summary!$D$9 * 'BCR and NPV sensitivity'!J$7) / (Summary!$D$10 * 'BCR and NPV sensitivity'!$B67) -> 1.683712471 | K67: =(Summary!$D$9 * 'BCR and NPV sensitivity'!K$7) / (Summary!$D$10 * 'BCR and NPV sensitivity'!$B67) -> 1.894176529 | L67: =(Summary!$D$9 * 'BCR and NPV sensitivity'!L$7) / (Summary!$D$10 * 'BCR and NPV sensitivity'!$B67) -> 2.104640588 | Q67: 2.8 | R67: =(Summary!$D$9 * 'BCR and NPV sensitivity'!R$7) - (Summary!$D$10 * 'BCR and NPV sensitivity'!$B67) -> -261.0974325 | S67: =(Summary!$D$9 * 'BCR and NPV sensitivity'!S$7) - (Summary!$D$10 * 'BCR and NPV sensitivity'!$B67) -> -191.4975289 | T67: =(Summary!$D$9 * 'BCR and NPV sensitivity'!T$7) - (Summary!$D$10 * 'BCR and NPV sensitivity'!$B67) -> -121.8976253 | U67: =(Summary!$D$9 * 'BCR and NPV sensitivity'!U$7) - (Summary!$D$10 * 'BCR and NPV sensitivity'!$B67) -> -52.2977217 | V67: =(Summary!$D$9 * 'BCR and NPV sensitivity'!V$7) - (Summary!$D$10 * 'BCR and NPV sensitivity'!$B67) -> 17.3021819 | W67: =(Summary!$D$9 * 'BCR and NPV sensitivity'!W$7) - (Summary!$D$10 * 'BCR and NPV sensitivity'!$B67) -> 86.90208551 | X67: =(Summary!$D$9 * 'BCR and NPV sensitivity'!X$7) - (Summary!$D$10 * 'BCR and NPV sensitivity'!$B67) -> 156.5019891 | Y67: =(Summary!$D$9 * 'BCR and NPV sensitivity'!Y$7) - (Summary!$D$10 * 'BCR and NPV sensitivity'!$B67) -> 226.1018927 | Z67: =(Summary!$D$9 * 'BCR and NPV sensitivity'!Z$7) - (Summary!$D$10 * 'BCR and NPV sensitivity'!$B67) -> 295.7017963 | AA67: =(Summary!$D$9 * 'BCR and NPV sensitivity'!AA$7) - (Summary!$D$10 * 'BCR and NPV sensitivity'!$B67) -> 365.3016999
B68: 2.6 | C68: =(Summary!$D$9 * 'BCR and NPV sensitivity'!C$7) / (Summary!$D$10 * 'BCR and NPV sensitivity'!$B68) -> 0.2266536018 | D68: =(Summary!$D$9 * 'BCR and NPV sensitivity'!D$7) / (Summary!$D$10 * 'BCR and NPV sensitivity'!$B68) -> 0.4533072036 | E68: =(Summary!$D$9 * 'BCR and NPV sensitivity'!E$7) / (Summary!$D$10 * 'BCR and NPV sensitivity'!$B68) -> 0.6799608055 | F68: =(Summary!$D$9 * 'BCR and NPV sensitivity'!F$7) / (Summary!$D$10 * 'BCR and NPV sensitivity'!$B68) -> 0.9066144073 | G68: =(Summary!$D$9 * 'BCR and NPV sensitivity'!G$7) / (Summary!$D$10 * 'BCR and NPV sensitivity'!$B68) -> 1.133268009 | H68: =(Summary!$D$9 * 'BCR and NPV sensitivity'!H$7) / (Summary!$D$10 * 'BCR and NPV sensitivity'!$B68) -> 1.359921611 | I68: =(Summary!$D$9 * 'BCR and NPV sensitivity'!I$7) / (Summary!$D$10 * 'BCR and NPV sensitivity'!$B68) -> 1.586575213 | J68: =(Summary!$D$9 * 'BCR and NPV sensitivity'!J$7) / (Summary!$D$10 * 'BCR and NPV sensitivity'!$B68) -> 1.813228815 | K68: =(Summary!$D$9 * 'BCR and NPV sensitivity'!K$7) / (Summary!$D$10 * 'BCR and NPV sensitivity'!$B68) -> 2.039882416 | L68: =(Summary!$D$9 * 'BCR and NPV sensitivity'!L$7) / (Summary!$D$10 * 'BCR and NPV sensitivity'!$B68) -> 2.266536018 | Q68: 2.6 | R68: =(Summary!$D$9 * 'BCR and NPV sensitivity'!R$7) - (Summary!$D$10 * 'BCR and NPV sensitivity'!$B68) -> -237.4761942 | S68: =(Summary!$D$9 * 'BCR and NPV sensitivity'!S$7) - (Summary!$D$10 * 'BCR and NPV sensitivity'!$B68) -> -167.8762906 | T68: =(Summary!$D$9 * 'BCR and NPV sensitivity'!T$7) - (Summary!$D$10 * 'BCR and NPV sensitivity'!$B68) -> -98.27638701 | U68: =(Summary!$D$9 * 'BCR and NPV sensitivity'!U$7) - (Summary!$D$10 * 'BCR and NPV sensitivity'!$B68) -> -28.67648341 | V68: =(Summary!$D$9 * 'BCR and NPV sensitivity'!V$7) - (Summary!$D$10 * 'BCR and NPV sensitivity'!$B68) -> 40.9234202 | W68: =(Summary!$D$9 * 'BCR and NPV sensitivity'!W$7) - (Summary!$D$10 * 'BCR and NPV sensitivity'!$B68) -> 110.5233238 | X68: =(Summary!$D$9 * 'BCR and NPV sensitivity'!X$7) - (Summary!$D$10 * 'BCR and NPV sensitivity'!$B68) -> 180.1232274 | Y68: =(Summary!$D$9 * 'BCR and NPV sensitivity'!Y$7) - (Summary!$D$10 * 'BCR and NPV sensitivity'!$B68) -> 249.723131 | Z68: =(Summary!$D$9 * 'BCR and NPV sensitivity'!Z$7) - (Summary!$D$10 * 'BCR and NPV sensitivity'!$B68) -> 319.3230346 | AA68: =(Summary!$D$9 * 'BCR and NPV sensitivity'!AA$7) - (Summary!$D$10 * 'BCR and NPV sensitivity'!$B68) -> 388.9229382
B69: 2.4 | C69: =(Summary!$D$9 * 'BCR and NPV sensitivity'!C$7) / (Summary!$D$10 * 'BCR and NPV sensitivity'!$B69) -> 0.245541402 | D69: =(Summary!$D$9 * 'BCR and NPV sensitivity'!D$7) / (Summary!$D$10 * 'BCR and NPV sensitivity'!$B69) -> 0.4910828039 | E69: =(Summary!$D$9 * 'BCR and NPV sensitivity'!E$7) / (Summary!$D$10 * 'BCR and NPV sensitivity'!$B69) -> 0.7366242059 | F69: =(Summary!$D$9 * 'BCR and NPV sensitivity'!F$7) / (Summary!$D$10 * 'BCR and NPV sensitivity'!$B69) -> 0.9821656079 | G69: =(Summary!$D$9 * 'BCR and NPV sensitivity'!G$7) / (Summary!$D$10 * 'BCR and NPV sensitivity'!$B69) -> 1.22770701 | H69: =(Summary!$D$9 * 'BCR and NPV sensitivity'!H$7) / (Summary!$D$10 * 'BCR and NPV sensitivity'!$B69) -> 1.473248412 | I69: =(Summary!$D$9 * 'BCR and NPV sensitivity'!I$7) / (Summary!$D$10 * 'BCR and NPV sensitivity'!$B69) -> 1.718789814 | J69: =(Summary!$D$9 * 'BCR and NPV sensitivity'!J$7) / (Summary!$D$10 * 'BCR and NPV sensitivity'!$B69) -> 1.964331216 | K69: =(Summary!$D$9 * 'BCR and NPV sensitivity'!K$7) / (Summary!$D$10 * 'BCR and NPV sensitivity'!$B69) -> 2.209872618 | L69: =(Summary!$D$9 * 'BCR and NPV sensitivity'!L$7) / (Summary!$D$10 * 'BCR and NPV sensitivity'!$B69) -> 2.45541402 | Q69: 2.4 | R69: =(Summary!$D$9 * 'BCR and NPV sensitivity'!R$7) - (Summary!$D$10 * 'BCR and NPV sensitivity'!$B69) -> -213.8549559 | S69: =(Summary!$D$9 * 'BCR and NPV sensitivity'!S$7) - (Summary!$D$10 * 'BCR and NPV sensitivity'!$B69) -> -144.2550523 | T69: =(Summary!$D$9 * 'BCR and NPV sensitivity'!T$7) - (Summary!$D$10 * 'BCR and NPV sensitivity'!$B69) -> -74.65514872 | U69: =(Summary!$D$9 * 'BCR and NPV sensitivity'!U$7) - (Summary!$D$10 * 'BCR and NPV sensitivity'!$B69) -> -5.055245114 | V69: =(Summary!$D$9 * 'BCR and NPV sensitivity'!V$7) - (Summary!$D$10 * 'BCR and NPV sensitivity'!$B69) -> 64.54465849 | W69: =(Summary!$D$9 * 'BCR and NPV sensitivity'!W$7) - (Summary!$D$10 * 'BCR and NPV sensitivity'!$B69) -> 134.1445621 | X69: =(Summary!$D$9 * 'BCR and NPV sensitivity'!X$7) - (Summary!$D$10 * 'BCR and NPV sensitivity'!$B69) -> 203.7444657 | Y69: =(Summary!$D$9 * 'BCR and NPV sensitivity'!Y$7) - (Summary!$D$10 * 'BCR and NPV sensitivity'!$B69) -> 273.3443693 | Z69: =(Summary!$D$9 * 'BCR and NPV sensitivity'!Z$7) - (Summary!$D$10 * 'BCR and NPV sensitivity'!$B69) -> 342.9442729 | AA69: =(Summary!$D$9 * 'BCR and NPV sensitivity'!AA$7) - (Summary!$D$10 * 'BCR and NPV sensitivity'!$B69) -> 412.5441765
B70: 2.2 | C70: =(Summary!$D$9 * 'BCR and NPV sensitivity'!C$7) / (Summary!$D$10 * 'BCR and NPV sensitivity'!$B70) -> 0.2678633476 | D70: =(Summary!$D$9 * 'BCR and NPV sensitivity'!D$7) / (Summary!$D$10 * 'BCR and NPV sensitivity'!$B70) -> 0.5357266952 | E70: =(Summary!$D$9 * 'BCR and NPV sensitivity'!E$7) / (Summary!$D$10 * 'BCR and NPV sensitivity'!$B70) -> 0.8035900428 | F70: =(Summary!$D$9 * 'BCR and NPV sensitivity'!F$7) / (Summary!$D$10 * 'BCR and NPV sensitivity'!$B70) -> 1.07145339 | G70: =(Summary!$D$9 * 'BCR and NPV sensitivity'!G$7) / (Summary!$D$10 * 'BCR and NPV sensitivity'!$B70) -> 1.339316738 | H70: =(Summary!$D$9 * 'BCR and NPV sensitivity'!H$7) / (Summary!$D$10 * 'BCR and NPV sensitivity'!$B70) -> 1.607180086 | I70: =(Summary!$D$9 * 'BCR and NPV sensitivity'!I$7) / (Summary!$D$10 * 'BCR and NPV sensitivity'!$B70) -> 1.875043433 | J70: =(Summary!$D$9 * 'BCR and NPV sensitivity'!J$7) / (Summary!$D$10 * 'BCR and NPV sensitivity'!$B70) -> 2.142906781 | K70: =(Summary!$D$9 * 'BCR and NPV sensitivity'!K$7) / (Summary!$D$10 * 'BCR and NPV sensitivity'!$B70) -> 2.410770128 | L70: =(Summary!$D$9 * 'BCR and NPV sensitivity'!L$7) / (Summary!$D$10 * 'BCR and NPV sensitivity'!$B70) -> 2.678633476 | Q70: 2.2 | R70: =(Summary!$D$9 * 'BCR and NPV sensitivity'!R$7) - (Summary!$D$10 * 'BCR and NPV sensitivity'!$B70) -> -190.2337176 | S70: =(Summary!$D$9 * 'BCR and NPV sensitivity'!S$7) - (Summary!$D$10 * 'BCR and NPV sensitivity'!$B70) -> -120.633814 | T70: =(Summary!$D$9 * 'BCR and NPV sensitivity'!T$7) - (Summary!$D$10 * 'BCR and NPV sensitivity'!$B70) -> -51.03391042 | U70: =(Summary!$D$9 * 'BCR and NPV sensitivity'!U$7) - (Summary!$D$10 * 'BCR and NPV sensitivity'!$B70) -> 18.56599318 | V70: =(Summary!$D$9 * 'BCR and NPV sensitivity'!V$7) - (Summary!$D$10 * 'BCR and NPV sensitivity'!$B70) -> 88.16589679 | W70: =(Summary!$D$9 * 'BCR and NPV sensitivity'!W$7) - (Summary!$D$10 * 'BCR and NPV sensitivity'!$B70) -> 157.7658004 | X70: =(Summary!$D$9 * 'BCR and NPV sensitivity'!X$7) - (Summary!$D$10 * 'BCR and NPV sensitivity'!$B70) -> 227.365704 | Y70: =(Summary!$D$9 * 'BCR and NPV sensitivity'!Y$7) - (Summary!$D$10 * 'BCR and NPV sensitivity'!$B70) -> 296.9656076 | Z70: =(Summary!$D$9 * 'BCR and NPV sensitivity'!Z$7) - (Summary!$D$10 * 'BCR and NPV sensitivity'!$B70) -> 366.5655112 | AA70: =(Summary!$D$9 * 'BCR and NPV sensitivity'!AA$7) - (Summary!$D$10 * 'BCR and NPV sensitivity'!$B70) -> 436.1654148
B71: 2 | C71: =(Summary!$D$9 * 'BCR and NPV sensitivity'!C$7) / (Summary!$D$10 * 'BCR and NPV sensitivity'!$B71) -> 0.2946496824 | D71: =(Summary!$D$9 * 'BCR and NPV sensitivity'!D$7) / (Summary!$D$10 * 'BCR and NPV sensitivity'!$B71) -> 0.5892993647 | E71: =(Summary!$D$9 * 'BCR and NPV sensitivity'!E$7) / (Summary!$D$10 * 'BCR and NPV sensitivity'!$B71) -> 0.8839490471 | F71: =(Summary!$D$9 * 'BCR and NPV sensitivity'!F$7) / (Summary!$D$10 * 'BCR and NPV sensitivity'!$B71) -> 1.178598729 | G71: =(Summary!$D$9 * 'BCR and NPV sensitivity'!G$7) / (Summary!$D$10 * 'BCR and NPV sensitivity'!$B71) -> 1.473248412 | H71: =(Summary!$D$9 * 'BCR and NPV sensitivity'!H$7) / (Summary!$D$10 * 'BCR and NPV sensitivity'!$B71) -> 1.767898094 | I71: =(Summary!$D$9 * 'BCR and NPV sensitivity'!I$7) / (Summary!$D$10 * 'BCR and NPV sensitivity'!$B71) -> 2.062547777 | J71: =(Summary!$D$9 * 'BCR and NPV sensitivity'!J$7) / (Summary!$D$10 * 'BCR and NPV sensitivity'!$B71) -> 2.357197459 | K71: =(Summary!$D$9 * 'BCR and NPV sensitivity'!K$7) / (Summary!$D$10 * 'BCR and NPV sensitivity'!$B71) -> 2.651847141 | L71: =(Summary!$D$9 * 'BCR and NPV sensitivity'!L$7) / (Summary!$D$10 * 'BCR and NPV sensitivity'!$B71) -> 2.946496824 | Q71: 2 | R71: =(Summary!$D$9 * 'BCR and NPV sensitivity'!R$7) - (Summary!$D$10 * 'BCR and NPV sensitivity'!$B71) -> -166.6124793 | S71: =(Summary!$D$9 * 'BCR and NPV sensitivity'!S$7) - (Summary!$D$10 * 'BCR and NPV sensitivity'!$B71) -> -97.01257574 | T71: =(Summary!$D$9 * 'BCR and NPV sensitivity'!T$7) - (Summary!$D$10 * 'BCR and NPV sensitivity'!$B71) -> -27.41267213 | U71: =(Summary!$D$9 * 'BCR and NPV sensitivity'!U$7) - (Summary!$D$10 * 'BCR and NPV sensitivity'!$B71) -> 42.18723148 | V71: =(Summary!$D$9 * 'BCR and NPV sensitivity'!V$7) - (Summary!$D$10 * 'BCR and NPV sensitivity'!$B71) -> 111.7871351 | W71: =(Summary!$D$9 * 'BCR and NPV sensitivity'!W$7) - (Summary!$D$10 * 'BCR and NPV sensitivity'!$B71) -> 181.3870387 | X71: =(Summary!$D$9 * 'BCR and NPV sensitivity'!X$7) - (Summary!$D$10 * 'BCR and NPV sensitivity'!$B71) -> 250.9869423 | Y71: =(Summary!$D$9 * 'BCR and NPV sensitivity'!Y$7) - (Summary!$D$10 * 'BCR and NPV sensitivity'!$B71) -> 320.5868459 | Z71: =(Summary!$D$9 * 'BCR and NPV sensitivity'!Z$7) - (Summary!$D$10 * 'BCR and NPV sensitivity'!$B71) -> 390.1867495 | AA71: =(Summary!$D$9 * 'BCR and NPV sensitivity'!AA$7) - (Summary!$D$10 * 'BCR and NPV sensitivity'!$B71) -> 459.7866531
B72: 1.8 | C72: =(Summary!$D$9 * 'BCR and NPV sensitivity'!C$7) / (Summary!$D$10 * 'BCR and NPV sensitivity'!$B72) -> 0.327388536 | D72: =(Summary!$D$9 * 'BCR and NPV sensitivity'!D$7) / (Summary!$D$10 * 'BCR and NPV sensitivity'!$B72) -> 0.6547770719 | E72: =(Summary!$D$9 * 'BCR and NPV sensitivity'!E$7) / (Summary!$D$10 * 'BCR and NPV sensitivity'!$B72) -> 0.9821656079 | F72: =(Summary!$D$9 * 'BCR and NPV sensitivity'!F$7) / (Summary!$D$10 * 'BCR and NPV sensitivity'!$B72) -> 1.309554144 | G72: =(Summary!$D$9 * 'BCR and NPV sensitivity'!G$7) / (Summary!$D$10 * 'BCR and NPV sensitivity'!$B72) -> 1.63694268 | H72: =(Summary!$D$9 * 'BCR and NPV sensitivity'!H$7) / (Summary!$D$10 * 'BCR and NPV sensitivity'!$B72) -> 1.964331216 | I72: =(Summary!$D$9 * 'BCR and NPV sensitivity'!I$7) / (Summary!$D$10 * 'BCR and NPV sensitivity'!$B72) -> 2.291719752 | J72: =(Summary!$D$9 * 'BCR and NPV sensitivity'!J$7) / (Summary!$D$10 * 'BCR and NPV sensitivity'!$B72) -> 2.619108288 | K72: =(Summary!$D$9 * 'BCR and NPV sensitivity'!K$7) / (Summary!$D$10 * 'BCR and NPV sensitivity'!$B72) -> 2.946496824 | L72: =(Summary!$D$9 * 'BCR and NPV sensitivity'!L$7) / (Summary!$D$10 * 'BCR and NPV sensitivity'!$B72) -> 3.27388536 | Q72: 1.8 | R72: =(Summary!$D$9 * 'BCR and NPV sensitivity'!R$7) - (Summary!$D$10 * 'BCR and NPV sensitivity'!$B72) -> -142.991241 | S72: =(Summary!$D$9 * 'BCR and NPV sensitivity'!S$7) - (Summary!$D$10 * 'BCR and NPV sensitivity'!$B72) -> -73.39133744 | T72: =(Summary!$D$9 * 'BCR and NPV sensitivity'!T$7) - (Summary!$D$10 * 'BCR and NPV sensitivity'!$B72) -> -3.791433835 | U72: =(Summary!$D$9 * 'BCR and NPV sensitivity'!U$7) - (Summary!$D$10 * 'BCR and NPV sensitivity'!$B72) -> 65.80846977 | V72: =(Summary!$D$9 * 'BCR and NPV sensitivity'!V$7) - (Summary!$D$10 * 'BCR and NPV sensitivity'!$B72) -> 135.4083734 | W72: =(Summary!$D$9 * 'BCR and NPV sensitivity'!W$7) - (Summary!$D$10 * 'BCR and NPV sensitivity'!$B72) -> 205.008277 | X72: =(Summary!$D$9 * 'BCR and NPV sensitivity'!X$7) - (Summary!$D$10 * 'BCR and NPV sensitivity'!$B72) -> 274.6081806 | Y72: =(Summary!$D$9 * 'BCR and NPV sensitivity'!Y$7) - (Summary!$D$10 * 'BCR and NPV sensitivity'!$B72) -> 344.2080842 | Z72: =(Summary!$D$9 * 'BCR and NPV sensitivity'!Z$7) - (Summary!$D$10 * 'BCR and NPV sensitivity'!$B72) -> 413.8079878 | AA72: =(Summary!$D$9 * 'BCR and NPV sensitivity'!AA$7) - (Summary!$D$10 * 'BCR and NPV sensitivity'!$B72) -> 483.4078914
B73: 1.6 | C73: =(Summary!$D$9 * 'BCR and NPV sensitivity'!C$7) / (Summary!$D$10 * 'BCR and NPV sensitivity'!$B73) -> 0.368312103 | D73: =(Summary!$D$9 * 'BCR and NPV sensitivity'!D$7) / (Summary!$D$10 * 'BCR and NPV sensitivity'!$B73) -> 0.7366242059 | E73: =(Summary!$D$9 * 'BCR and NPV sensitivity'!E$7) / (Summary!$D$10 * 'BCR and NPV sensitivity'!$B73) -> 1.104936309 | F73: =(Summary!$D$9 * 'BCR and NPV sensitivity'!F$7) / (Summary!$D$10 * 'BCR and NPV sensitivity'!$B73) -> 1.473248412 | G73: =(Summary!$D$9 * 'BCR and NPV sensitivity'!G$7) / (Summary!$D$10 * 'BCR and NPV sensitivity'!$B73) -> 1.841560515 | H73: =(Summary!$D$9 * 'BCR and NPV sensitivity'!H$7) / (Summary!$D$10 * 'BCR and NPV sensitivity'!$B73) -> 2.209872618 | I73: =(Summary!$D$9 * 'BCR and NPV sensitivity'!I$7) / (Summary!$D$10 * 'BCR and NPV sensitivity'!$B73) -> 2.578184721 | J73: =(Summary!$D$9 * 'BCR and NPV sensitivity'!J$7) / (Summary!$D$10 * 'BCR and NPV sensitivity'!$B73) -> 2.946496824 | K73: =(Summary!$D$9 * 'BCR and NPV sensitivity'!K$7) / (Summary!$D$10 * 'BCR and NPV sensitivity'!$B73) -> 3.314808927 | L73: =(Summary!$D$9 * 'BCR and NPV sensitivity'!L$7) / (Summary!$D$10 * 'BCR and NPV sensitivity'!$B73) -> 3.68312103 | Q73: 1.6 | R73: =(Summary!$D$9 * 'BCR and NPV sensitivity'!R$7) - (Summary!$D$10 * 'BCR and NPV sensitivity'!$B73) -> -119.3700028 | S73: =(Summary!$D$9 * 'BCR and NPV sensitivity'!S$7) - (Summary!$D$10 * 'BCR and NPV sensitivity'!$B73) -> -49.77009915 | T73: =(Summary!$D$9 * 'BCR and NPV sensitivity'!T$7) - (Summary!$D$10 * 'BCR and NPV sensitivity'!$B73) -> 19.82980446 | U73: =(Summary!$D$9 * 'BCR and NPV sensitivity'!U$7) - (Summary!$D$10 * 'BCR and NPV sensitivity'!$B73) -> 89.42970807 | V73: =(Summary!$D$9 * 'BCR and NPV sensitivity'!V$7) - (Summary!$D$10 * 'BCR and NPV sensitivity'!$B73) -> 159.0296117 | W73: =(Summary!$D$9 * 'BCR and NPV sensitivity'!W$7) - (Summary!$D$10 * 'BCR and NPV sensitivity'!$B73) -> 228.6295153 | X73: =(Summary!$D$9 * 'BCR and NPV sensitivity'!X$7) - (Summary!$D$10 * 'BCR and NPV sensitivity'!$B73) -> 298.2294189 | Y73: =(Summary!$D$9 * 'BCR and NPV sensitivity'!Y$7) - (Summary!$D$10 * 'BCR and NPV sensitivity'!$B73) -> 367.8293225 | Z73: =(Summary!$D$9 * 'BCR and NPV sensitivity'!Z$7) - (Summary!$D$10 * 'BCR and NPV sensitivity'!$B73) -> 437.4292261 | AA73: =(Summary!$D$9 * 'BCR and NPV sensitivity'!AA$7) - (Summary!$D$10 * 'BCR and NPV sensitivity'!$B73) -> 507.0291297
B74: 1.4 | C74: =(Summary!$D$9 * 'BCR and NPV sensitivity'!C$7) / (Summary!$D$10 * 'BCR and NPV sensitivity'!$B74) -> 0.4209281177 | D74: =(Summary!$D$9 * 'BCR and NPV sensitivity'!D$7) / (Summary!$D$10 * 'BCR and NPV sensitivity'!$B74) -> 0.8418562353 | E74: =(Summary!$D$9 * 'BCR and NPV sensitivity'!E$7) / (Summary!$D$10 * 'BCR and NPV sensitivity'!$B74) -> 1.262784353 | F74: =(Summary!$D$9 * 'BCR and NPV sensitivity'!F$7) / (Summary!$D$10 * 'BCR and NPV sensitivity'!$B74) -> 1.683712471 | G74: =(Summary!$D$9 * 'BCR and NPV sensitivity'!G$7) / (Summary!$D$10 * 'BCR and NPV sensitivity'!$B74) -> 2.104640588 | H74: =(Summary!$D$9 * 'BCR and NPV sensitivity'!H$7) / (Summary!$D$10 * 'BCR and NPV sensitivity'!$B74) -> 2.525568706 | I74: =(Summary!$D$9 * 'BCR and NPV sensitivity'!I$7) / (Summary!$D$10 * 'BCR and NPV sensitivity'!$B74) -> 2.946496824 | J74: =(Summary!$D$9 * 'BCR and NPV sensitivity'!J$7) / (Summary!$D$10 * 'BCR and NPV sensitivity'!$B74) -> 3.367424941 | K74: =(Summary!$D$9 * 'BCR and NPV sensitivity'!K$7) / (Summary!$D$10 * 'BCR and NPV sensitivity'!$B74) -> 3.788353059 | L74: =(Summary!$D$9 * 'BCR and NPV sensitivity'!L$7) / (Summary!$D$10 * 'BCR and NPV sensitivity'!$B74) -> 4.209281177 | Q74: 1.4 | R74: =(Summary!$D$9 * 'BCR and NPV sensitivity'!R$7) - (Summary!$D$10 * 'BCR and NPV sensitivity'!$B74) -> -95.74876446 | S74: =(Summary!$D$9 * 'BCR and NPV sensitivity'!S$7) - (Summary!$D$10 * 'BCR and NPV sensitivity'!$B74) -> -26.14886085 | T74: =(Summary!$D$9 * 'BCR and NPV sensitivity'!T$7) - (Summary!$D$10 * 'BCR and NPV sensitivity'!$B74) -> 43.45104275 | U74: =(Summary!$D$9 * 'BCR and NPV sensitivity'!U$7) - (Summary!$D$10 * 'BCR and NPV sensitivity'!$B74) -> 113.0509464 | V74: =(Summary!$D$9 * 'BCR and NPV sensitivity'!V$7) - (Summary!$D$10 * 'BCR and NPV sensitivity'!$B74) -> 182.65085 | W74: =(Summary!$D$9 * 'BCR and NPV sensitivity'!W$7) - (Summary!$D$10 * 'BCR and NPV sensitivity'!$B74) -> 252.2507536 | X74: =(Summary!$D$9 * 'BCR and NPV sensitivity'!X$7) - (Summary!$D$10 * 'BCR and NPV sensitivity'!$B74) -> 321.8506572 | Y74: =(Summary!$D$9 * 'BCR and NPV sensitivity'!Y$7) - (Summary!$D$10 * 'BCR and NPV sensitivity'!$B74) -> 391.4505608 | Z74: =(Summary!$D$9 * 'BCR and NPV sensitivity'!Z$7) - (Summary!$D$10 * 'BCR and NPV sensitivity'!$B74) -> 461.0504644 | AA74: =(Summary!$D$9 * 'BCR and NPV sensitivity'!AA$7) - (Summary!$D$10 * 'BCR and NPV sensitivity'!$B74) -> 530.650368
B75: 1.2 | C75: =(Summary!$D$9 * 'BCR and NPV sensitivity'!C$7) / (Summary!$D$10 * 'BCR and NPV sensitivity'!$B75) -> 0.4910828039 | D75: =(Summary!$D$9 * 'BCR and NPV sensitivity'!D$7) / (Summary!$D$10 * 'BCR and NPV sensitivity'!$B75) -> 0.9821656079 | E75: =(Summary!$D$9 * 'BCR and NPV sensitivity'!E$7) / (Summary!$D$10 * 'BCR and NPV sensitivity'!$B75) -> 1.473248412 | F75: =(Summary!$D$9 * 'BCR and NPV sensitivity'!F$7) / (Summary!$D$10 * 'BCR and NPV sensitivity'!$B75) -> 1.964331216 | G75: =(Summary!$D$9 * 'BCR and NPV sensitivity'!G$7) / (Summary!$D$10 * 'BCR and NPV sensitivity'!$B75) -> 2.45541402 | H75: =(Summary!$D$9 * 'BCR and NPV sensitivity'!H$7) / (Summary!$D$10 * 'BCR and NPV sensitivity'!$B75) -> 2.946496824 | I75: =(Summary!$D$9 * 'BCR and NPV sensitivity'!I$7) / (Summary!$D$10 * 'BCR and NPV sensitivity'!$B75) -> 3.437579628 | J75: =(Summary!$D$9 * 'BCR and NPV sensitivity'!J$7) / (Summary!$D$10 * 'BCR and NPV sensitivity'!$B75) -> 3.928662432 | K75: =(Summary!$D$9 * 'BCR and NPV sensitivity'!K$7) / (Summary!$D$10 * 'BCR and NPV sensitivity'!$B75) -> 4.419745235 | L75: =(Summary!$D$9 * 'BCR and NPV sensitivity'!L$7) / (Summary!$D$10 * 'BCR and NPV sensitivity'!$B75) -> 4.910828039 | Q75: 1.2 | R75: =(Summary!$D$9 * 'BCR and NPV sensitivity'!R$7) - (Summary!$D$10 * 'BCR and NPV sensitivity'!$B75) -> -72.12752616 | S75: =(Summary!$D$9 * 'BCR and NPV sensitivity'!S$7) - (Summary!$D$10 * 'BCR and NPV sensitivity'!$B75) -> -2.527622557 | T75: =(Summary!$D$9 * 'BCR and NPV sensitivity'!T$7) - (Summary!$D$10 * 'BCR and NPV sensitivity'!$B75) -> 67.07228105 | U75: =(Summary!$D$9 * 'BCR and NPV sensitivity'!U$7) - (Summary!$D$10 * 'BCR and NPV sensitivity'!$B75) -> 136.6721847 | V75: =(Summary!$D$9 * 'BCR and NPV sensitivity'!V$7) - (Summary!$D$10 * 'BCR and NPV sensitivity'!$B75) -> 206.2720883 | W75: =(Summary!$D$9 * 'BCR and NPV sensitivity'!W$7) - (Summary!$D$10 * 'BCR and NPV sensitivity'!$B75) -> 275.8719919 | X75: =(Summary!$D$9 * 'BCR and NPV sensitivity'!X$7) - (Summary!$D$10 * 'BCR and NPV sensitivity'!$B75) -> 345.4718955 | Y75: =(Summary!$D$9 * 'BCR and NPV sensitivity'!Y$7) - (Summary!$D$10 * 'BCR and NPV sensitivity'!$B75) -> 415.0717991 | Z75: =(Summary!$D$9 * 'BCR and NPV sensitivity'!Z$7) - (Summary!$D$10 * 'BCR and NPV sensitivity'!$B75) -> 484.6717027 | AA75: =(Summary!$D$9 * 'BCR and NPV sensitivity'!AA$7) - (Summary!$D$10 * 'BCR and NPV sensitivity'!$B75) -> 554.2716063
B76: 1 | C76: =(Summary!$D$9 * 'BCR and NPV sensitivity'!C$7) / (Summary!$D$10 * 'BCR and NPV sensitivity'!$B76) -> 0.5892993647 | D76: =(Summary!$D$9 * 'BCR and NPV sensitivity'!D$7) / (Summary!$D$10 * 'BCR and NPV sensitivity'!$B76) -> 1.178598729 | E76: =(Summary!$D$9 * 'BCR and NPV sensitivity'!E$7) / (Summary!$D$10 * 'BCR and NPV sensitivity'!$B76) -> 1.767898094 | F76: =(Summary!$D$9 * 'BCR and NPV sensitivity'!F$7) / (Summary!$D$10 * 'BCR and NPV sensitivity'!$B76) -> 2.357197459 | G76: =(Summary!$D$9 * 'BCR and NPV sensitivity'!G$7) / (Summary!$D$10 * 'BCR and NPV sensitivity'!$B76) -> 2.946496824 | H76: =(Summary!$D$9 * 'BCR and NPV sensitivity'!H$7) / (Summary!$D$10 * 'BCR and NPV sensitivity'!$B76) -> 3.535796188 | I76: =(Summary!$D$9 * 'BCR and NPV sensitivity'!I$7) / (Summary!$D$10 * 'BCR and NPV sensitivity'!$B76) -> 4.125095553 | J76: =(Summary!$D$9 * 'BCR and NPV sensitivity'!J$7) / (Summary!$D$10 * 'BCR and NPV sensitivity'!$B76) -> 4.714394918 | K76: =(Summary!$D$9 * 'BCR and NPV sensitivity'!K$7) / (Summary!$D$10 * 'BCR and NPV sensitivity'!$B76) -> 5.303694283 | L76: =(Summary!$D$9 * 'BCR and NPV sensitivity'!L$7) / (Summary!$D$10 * 'BCR and NPV sensitivity'!$B76) -> 5.892993647 | Q76: 1 | R76: =(Summary!$D$9 * 'BCR and NPV sensitivity'!R$7) - (Summary!$D$10 * 'BCR and NPV sensitivity'!$B76) -> -48.50628787 | S76: =(Summary!$D$9 * 'BCR and NPV sensitivity'!S$7) - (Summary!$D$10 * 'BCR and NPV sensitivity'!$B76) -> 21.09361574 | T76: =(Summary!$D$9 * 'BCR and NPV sensitivity'!T$7) - (Summary!$D$10 * 'BCR and NPV sensitivity'!$B76) -> 90.69351934 | U76: =(Summary!$D$9 * 'BCR and NPV sensitivity'!U$7) - (Summary!$D$10 * 'BCR and NPV sensitivity'!$B76) -> 160.2934229 | V76: =(Summary!$D$9 * 'BCR and NPV sensitivity'!V$7) - (Summary!$D$10 * 'BCR and NPV sensitivity'!$B76) -> 229.8933266 | W76: =(Summary!$D$9 * 'BCR and NPV sensitivity'!W$7) - (Summary!$D$10 * 'BCR and NPV sensitivity'!$B76) -> 299.4932302 | X76: =(Summary!$D$9 * 'BCR and NPV sensitivity'!X$7) - (Summary!$D$10 * 'BCR and NPV sensitivity'!$B76) -> 369.0931338 | Y76: =(Summary!$D$9 * 'BCR and NPV sensitivity'!Y$7) - (Summary!$D$10 * 'BCR and NPV sensitivity'!$B76) -> 438.6930374 | Z76: =(Summary!$D$9 * 'BCR and NPV sensitivity'!Z$7) - (Summary!$D$10 * 'BCR and NPV sensitivity'!$B76) -> 508.292941 | AA76: =(Summary!$D$9 * 'BCR and NPV sensitivity'!AA$7) - (Summary!$D$10 * 'BCR and NPV sensitivity'!$B76) -> 577.8928446
B77: 0.8 | C77: =(Summary!$D$9 * 'BCR and NPV sensitivity'!C$7) / (Summary!$D$10 * 'BCR and NPV sensitivity'!$B77) -> 0.7366242059 | D77: =(Summary!$D$9 * 'BCR and NPV sensitivity'!D$7) / (Summary!$D$10 * 'BCR and NPV sensitivity'!$B77) -> 1.473248412 | E77: =(Summary!$D$9 * 'BCR and NPV sensitivity'!E$7) / (Summary!$D$10 * 'BCR and NPV sensitivity'!$B77) -> 2.209872618 | F77: =(Summary!$D$9 * 'BCR and NPV sensitivity'!F$7) / (Summary!$D$10 * 'BCR and NPV sensitivity'!$B77) -> 2.946496824 | G77: =(Summary!$D$9 * 'BCR and NPV sensitivity'!G$7) / (Summary!$D$10 * 'BCR and NPV sensitivity'!$B77) -> 3.68312103 | H77: =(Summary!$D$9 * 'BCR and NPV sensitivity'!H$7) / (Summary!$D$10 * 'BCR and NPV sensitivity'!$B77) -> 4.419745235 | I77: =(Summary!$D$9 * 'BCR and NPV sensitivity'!I$7) / (Summary!$D$10 * 'BCR and NPV sensitivity'!$B77) -> 5.156369441 | J77: =(Summary!$D$9 * 'BCR and NPV sensitivity'!J$7) / (Summary!$D$10 * 'BCR and NPV sensitivity'!$B77) -> 5.892993647 | K77: =(Summary!$D$9 * 'BCR and NPV sensitivity'!K$7) / (Summary!$D$10 * 'BCR and NPV sensitivity'!$B77) -> 6.629617853 | L77: =(Summary!$D$9 * 'BCR and NPV sensitivity'!L$7) / (Summary!$D$10 * 'BCR and NPV sensitivity'!$B77) -> 7.366242059 | Q77: 0.8 | R77: =(Summary!$D$9 * 'BCR and NPV sensitivity'!R$7) - (Summary!$D$10 * 'BCR and NPV sensitivity'!$B77) -> -24.88504957 | S77: =(Summary!$D$9 * 'BCR and NPV sensitivity'!S$7) - (Summary!$D$10 * 'BCR and NPV sensitivity'!$B77) -> 44.71485403 | T77: =(Summary!$D$9 * 'BCR and NPV sensitivity'!T$7) - (Summary!$D$10 * 'BCR and NPV sensitivity'!$B77) -> 114.3147576 | U77: =(Summary!$D$9 * 'BCR and NPV sensitivity'!U$7) - (Summary!$D$10 * 'BCR and NPV sensitivity'!$B77) -> 183.9146612 | V77: =(Summary!$D$9 * 'BCR and NPV sensitivity'!V$7) - (Summary!$D$10 * 'BCR and NPV sensitivity'!$B77) -> 253.5145648 | W77: =(Summary!$D$9 * 'BCR and NPV sensitivity'!W$7) - (Summary!$D$10 * 'BCR and NPV sensitivity'!$B77) -> 323.1144685 | X77: =(Summary!$D$9 * 'BCR and NPV sensitivity'!X$7) - (Summary!$D$10 * 'BCR and NPV sensitivity'!$B77) -> 392.7143721 | Y77: =(Summary!$D$9 * 'BCR and NPV sensitivity'!Y$7) - (Summary!$D$10 * 'BCR and NPV sensitivity'!$B77) -> 462.3142757 | Z77: =(Summary!$D$9 * 'BCR and NPV sensitivity'!Z$7) - (Summary!$D$10 * 'BCR and NPV sensitivity'!$B77) -> 531.9141793 | AA77: =(Summary!$D$9 * 'BCR and NPV sensitivity'!AA$7) - (Summary!$D$10 * 'BCR and NPV sensitivity'!$B77) -> 601.5140829
B78: 0.6 | C78: =(Summary!$D$9 * 'BCR and NPV sensitivity'!C$7) / (Summary!$D$10 * 'BCR and NPV sensitivity'!$B78) -> 0.9821656079 | D78: =(Summary!$D$9 * 'BCR and NPV sensitivity'!D$7) / (Summary!$D$10 * 'BCR and NPV sensitivity'!$B78) -> 1.964331216 | E78: =(Summary!$D$9 * 'BCR and NPV sensitivity'!E$7) / (Summary!$D$10 * 'BCR and NPV sensitivity'!$B78) -> 2.946496824 | F78: =(Summary!$D$9 * 'BCR and NPV sensitivity'!F$7) / (Summary!$D$10 * 'BCR and NPV sensitivity'!$B78) -> 3.928662432 | G78: =(Summary!$D$9 * 'BCR and NPV sensitivity'!G$7) / (Summary!$D$10 * 'BCR and NPV sensitivity'!$B78) -> 4.910828039 | H78: =(Summary!$D$9 * 'BCR and NPV sensitivity'!H$7) / (Summary!$D$10 * 'BCR and NPV sensitivity'!$B78) -> 5.892993647 | I78: =(Summary!$D$9 * 'BCR and NPV sensitivity'!I$7) / (Summary!$D$10 * 'BCR and NPV sensitivity'!$B78) -> 6.875159255 | J78: =(Summary!$D$9 * 'BCR and NPV sensitivity'!J$7) / (Summary!$D$10 * 'BCR and NPV sensitivity'!$B78) -> 7.857324863 | K78: =(Summary!$D$9 * 'BCR and NPV sensitivity'!K$7) / (Summary!$D$10 * 'BCR and NPV sensitivity'!$B78) -> 8.839490471 | L78: =(Summary!$D$9 * 'BCR and NPV sensitivity'!L$7) / (Summary!$D$10 * 'BCR and NPV sensitivity'!$B78) -> 9.821656079 | Q78: 0.6 | R78: =(Summary!$D$9 * 'BCR and NPV sensitivity'!R$7) - (Summary!$D$10 * 'BCR and NPV sensitivity'!$B78) -> -1.263811278 | S78: =(Summary!$D$9 * 'BCR and NPV sensitivity'!S$7) - (Summary!$D$10 * 'BCR and NPV sensitivity'!$B78) -> 68.33609233 | T78: =(Summary!$D$9 * 'BCR and NPV sensitivity'!T$7) - (Summary!$D$10 * 'BCR and NPV sensitivity'!$B78) -> 137.9359959 | U78: =(Summary!$D$9 * 'BCR and NPV sensitivity'!U$7) - (Summary!$D$10 * 'BCR and NPV sensitivity'!$B78) -> 207.5358995 | V78: =(Summary!$D$9 * 'BCR and NPV sensitivity'!V$7) - (Summary!$D$10 * 'BCR and NPV sensitivity'!$B78) -> 277.1358031 | W78: =(Summary!$D$9 * 'BCR and NPV sensitivity'!W$7) - (Summary!$D$10 * 'BCR and NPV sensitivity'!$B78) -> 346.7357068 | X78: =(Summary!$D$9 * 'BCR and NPV sensitivity'!X$7) - (Summary!$D$10 * 'BCR and NPV sensitivity'!$B78) -> 416.3356104 | Y78: =(Summary!$D$9 * 'BCR and NPV sensitivity'!Y$7) - (Summary!$D$10 * 'BCR and NPV sensitivity'!$B78) -> 485.935514 | Z78: =(Summary!$D$9 * 'BCR and NPV sensitivity'!Z$7) - (Summary!$D$10 * 'BCR and NPV sensitivity'!$B78) -> 555.5354176 | AA78: =(Summary!$D$9 * 'BCR and NPV sensitivity'!AA$7) - (Summary!$D$10 * 'BCR and NPV sensitivity'!$B78) -> 625.1353212
A81: OPTION 3
A82: 20 years of costs, Nominal - 2024-25 $
B83: Benefit Cost Ratio | P83: Net Benefit (Net Present Value, Real - 2024-25 $)
C84: Benefit compared with central estimate | R84: Benefit compared with central estimate
C85: 0.2 | D85: 0.4 | E85: 0.6 | F85: 0.8 | G85: 1 | H85: 1.2 | I85: 1.4 | J85: 1.6 | K85: 1.8 | L85: 2 | R85: 0.2 | S85: 0.4 | T85: 0.6 | U85: 0.8 | V85: 1 | W85: 1.2 | X85: 1.4 | Y85: 1.6 | Z85: 1.8 | AA85: 2
A86: Cost compared with central estimate | B86: 3 | C86: =(Summary!#REF! * 'BCR and NPV sensitivity'!C$7) / (Summary!#REF! * 'BCR and NPV sensitivity'!$B86) ->  | D86: =(Summary!#REF! * 'BCR and NPV sensitivity'!D$7) / (Summary!#REF! * 'BCR and NPV sensitivity'!$B86) ->  | E86: =(Summary!#REF! * 'BCR and NPV sensitivity'!E$7) / (Summary!#REF! * 'BCR and NPV sensitivity'!$B86) ->  | F86: =(Summary!#REF! * 'BCR and NPV sensitivity'!F$7) / (Summary!#REF! * 'BCR and NPV sensitivity'!$B86) ->  | G86: =(Summary!#REF! * 'BCR and NPV sensitivity'!G$7) / (Summary!#REF! * 'BCR and NPV sensitivity'!$B86) ->  | H86: =(Summary!#REF! * 'BCR and NPV sensitivity'!H$7) / (Summary!#REF! * 'BCR and NPV sensitivity'!$B86) ->  | I86: =(Summary!#REF! * 'BCR and NPV sensitivity'!I$7) / (Summary!#REF! * 'BCR and NPV sensitivity'!$B86) ->  | J86: =(Summary!#REF! * 'BCR and NPV sensitivity'!J$7) / (Summary!#REF! * 'BCR and NPV sensitivity'!$B86) ->  | K86: =(Summary!#REF! * 'BCR and NPV sensitivity'!K$7) / (Summary!#REF! * 'BCR and NPV sensitivity'!$B86) ->  | L86: =(Summary!#REF! * 'BCR and NPV sensitivity'!L$7) / (Summary!#REF! * 'BCR and NPV sensitivity'!$B86) ->  | P86: Cost compared with central estimate | Q86: 3 | R86: =(Summary!#REF! * 'BCR and NPV sensitivity'!R$7) - (Summary!#REF! * 'BCR and NPV sensitivity'!$B86) ->  | S86: =(Summary!#REF! * 'BCR and NPV sensitivity'!S$7) - (Summary!#REF! * 'BCR and NPV sensitivity'!$B86) ->  | T86: =(Summary!#REF! * 'BCR and NPV sensitivity'!T$7) - (Summary!#REF! * 'BCR and NPV sensitivity'!$B86) ->  | U86: =(Summary!#REF! * 'BCR and NPV sensitivity'!U$7) - (Summary!#REF! * 'BCR and NPV sensitivity'!$B86) ->  | V86: =(Summary!#REF! * 'BCR and NPV sensitivity'!V$7) - (Summary!#REF! * 'BCR and NPV sensitivity'!$B86) ->  | W86: =(Summary!#REF! * 'BCR and NPV sensitivity'!W$7) - (Summary!#REF! * 'BCR and NPV sensitivity'!$B86) ->  | X86: =(Summary!#REF! * 'BCR and NPV sensitivity'!X$7) - (Summary!#REF! * 'BCR and NPV sensitivity'!$B86) ->  | Y86: =(Summary!#REF! * 'BCR and NPV sensitivity'!Y$7) - (Summary!#REF! * 'BCR and NPV sensitivity'!$B86) ->  | Z86: =(Summary!#REF! * 'BCR and NPV sensitivity'!Z$7) - (Summary!#REF! * 'BCR and NPV sensitivity'!$B86) ->  | AA86: =(Summary!#REF! * 'BCR and NPV sensitivity'!AA$7) - (Summary!#REF! * 'BCR and NPV sensitivity'!$B86) -> 
B87: 2.8 | C87: =(Summary!#REF! * 'BCR and NPV sensitivity'!C$7) / (Summary!#REF! * 'BCR and NPV sensitivity'!$B87) ->  | D87: =(Summary!#REF! * 'BCR and NPV sensitivity'!D$7) / (Summary!#REF! * 'BCR and NPV sensitivity'!$B87) ->  | E87: =(Summary!#REF! * 'BCR and NPV sensitivity'!E$7) / (Summary!#REF! * 'BCR and NPV sensitivity'!$B87) ->  | F87: =(Summary!#REF! * 'BCR and NPV sensitivity'!F$7) / (Summary!#REF! * 'BCR and NPV sensitivity'!$B87) ->  | G87: =(Summary!#REF! * 'BCR and NPV sensitivity'!G$7) / (Summary!#REF! * 'BCR and NPV sensitivity'!$B87) ->  | H87: =(Summary!#REF! * 'BCR and NPV sensitivity'!H$7) / (Summary!#REF! * 'BCR and NPV sensitivity'!$B87) ->  | I87: =(Summary!#REF! * 'BCR and NPV sensitivity'!I$7) / (Summary!#REF! * 'BCR and NPV sensitivity'!$B87) ->  | J87: =(Summary!#REF! * 'BCR and NPV sensitivity'!J$7) / (Summary!#REF! * 'BCR and NPV sensitivity'!$B87) ->  | K87: =(Summary!#REF! * 'BCR and NPV sensitivity'!K$7) / (Summary!#REF! * 'BCR and NPV sensitivity'!$B87) ->  | L87: =(Summary!#REF! * 'BCR and NPV sensitivity'!L$7) / (Summary!#REF! * 'BCR and NPV sensitivity'!$B87) ->  | Q87: 2.8 | R87: =(Summary!#REF! * 'BCR and NPV sensitivity'!R$7) - (Summary!#REF! * 'BCR and NPV sensitivity'!$B87) ->  | S87: =(Summary!#REF! * 'BCR and NPV sensitivity'!S$7) - (Summary!#REF! * 'BCR and NPV sensitivity'!$B87) ->  | T87: =(Summary!#REF! * 'BCR and NPV sensitivity'!T$7) - (Summary!#REF! * 'BCR and NPV sensitivity'!$B87) ->  | U87: =(Summary!#REF! * 'BCR and NPV sensitivity'!U$7) - (Summary!#REF! * 'BCR and NPV sensitivity'!$B87) ->  | V87: =(Summary!#REF! * 'BCR and NPV sensitivity'!V$7) - (Summary!#REF! * 'BCR and NPV sensitivity'!$B87) ->  | W87: =(Summary!#REF! * 'BCR and NPV sensitivity'!W$7) - (Summary!#REF! * 'BCR and NPV sensitivity'!$B87) ->  | X87: =(Summary!#REF! * 'BCR and NPV sensitivity'!X$7) - (Summary!#REF! * 'BCR and NPV sensitivity'!$B87) ->  | Y87: =(Summary!#REF! * 'BCR and NPV sensitivity'!Y$7) - (Summary!#REF! * 'BCR and NPV sensitivity'!$B87) ->  | Z87: =(Summary!#REF! * 'BCR and NPV sensitivity'!Z$7) - (Summary!#REF! * 'BCR and NPV sensitivity'!$B87) ->  | AA87: =(Summary!#REF! * 'BCR and NPV sensitivity'!AA$7) - (Summary!#REF! * 'BCR and NPV sensitivity'!$B87) -> 
B88: 2.6 | C88: =(Summary!#REF! * 'BCR and NPV sensitivity'!C$7) / (Summary!#REF! * 'BCR and NPV sensitivity'!$B88) ->  | D88: =(Summary!#REF! * 'BCR and NPV sensitivity'!D$7) / (Summary!#REF! * 'BCR and NPV sensitivity'!$B88) ->  | E88: =(Summary!#REF! * 'BCR and NPV sensitivity'!E$7) / (Summary!#REF! * 'BCR and NPV sensitivity'!$B88) ->  | F88: =(Summary!#REF! * 'BCR and NPV sensitivity'!F$7) / (Summary!#REF! * 'BCR and NPV sensitivity'!$B88) ->  | G88: =(Summary!#REF! * 'BCR and NPV sensitivity'!G$7) / (Summary!#REF! * 'BCR and NPV sensitivity'!$B88) ->  | H88: =(Summary!#REF! * 'BCR and NPV sensitivity'!H$7) / (Summary!#REF! * 'BCR and NPV sensitivity'!$B88) ->  | I88: =(Summary!#REF! * 'BCR and NPV sensitivity'!I$7) / (Summary!#REF! * 'BCR and NPV sensitivity'!$B88) ->  | J88: =(Summary!#REF! * 'BCR and NPV sensitivity'!J$7) / (Summary!#REF! * 'BCR and NPV sensitivity'!$B88) ->  | K88: =(Summary!#REF! * 'BCR and NPV sensitivity'!K$7) / (Summary!#REF! * 'BCR and NPV sensitivity'!$B88) ->  | L88: =(Summary!#REF! * 'BCR and NPV sensitivity'!L$7) / (Summary!#REF! * 'BCR and NPV sensitivity'!$B88) ->  | Q88: 2.6 | R88: =(Summary!#REF! * 'BCR and NPV sensitivity'!R$7) - (Summary!#REF! * 'BCR and NPV sensitivity'!$B88) ->  | S88: =(Summary!#REF! * 'BCR and NPV sensitivity'!S$7) - (Summary!#REF! * 'BCR and NPV sensitivity'!$B88) ->  | T88: =(Summary!#REF! * 'BCR and NPV sensitivity'!T$7) - (Summary!#REF! * 'BCR and NPV sensitivity'!$B88) ->  | U88: =(Summary!#REF! * 'BCR and NPV sensitivity'!U$7) - (Summary!#REF! * 'BCR and NPV sensitivity'!$B88) ->  | V88: =(Summary!#REF! * 'BCR and NPV sensitivity'!V$7) - (Summary!#REF! * 'BCR and NPV sensitivity'!$B88) ->  | W88: =(Summary!#REF! * 'BCR and NPV sensitivity'!W$7) - (Summary!#REF! * 'BCR and NPV sensitivity'!$B88) ->  | X88: =(Summary!#REF! * 'BCR and NPV sensitivity'!X$7) - (Summary!#REF! * 'BCR and NPV sensitivity'!$B88) ->  | Y88: =(Summary!#REF! * 'BCR and NPV sensitivity'!Y$7) - (Summary!#REF! * 'BCR and NPV sensitivity'!$B88) ->  | Z88: =(Summary!#REF! * 'BCR and NPV sensitivity'!Z$7) - (Summary!#REF! * 'BCR and NPV sensitivity'!$B88) ->  | AA88: =(Summary!#REF! * 'BCR and NPV sensitivity'!AA$7) - (Summary!#REF! * 'BCR and NPV sensitivity'!$B88) -> 
B89: 2.4 | C89: =(Summary!#REF! * 'BCR and NPV sensitivity'!C$7) / (Summary!#REF! * 'BCR and NPV sensitivity'!$B89) ->  | D89: =(Summary!#REF! * 'BCR and NPV sensitivity'!D$7) / (Summary!#REF! * 'BCR and NPV sensitivity'!$B89) ->  | E89: =(Summary!#REF! * 'BCR and NPV sensitivity'!E$7) / (Summary!#REF! * 'BCR and NPV sensitivity'!$B89) ->  | F89: =(Summary!#REF! * 'BCR and NPV sensitivity'!F$7) / (Summary!#REF! * 'BCR and NPV sensitivity'!$B89) ->  | G89: =(Summary!#REF! * 'BCR and NPV sensitivity'!G$7) / (Summary!#REF! * 'BCR and NPV sensitivity'!$B89) ->  | H89: =(Summary!#REF! * 'BCR and NPV sensitivity'!H$7) / (Summary!#REF! * 'BCR and NPV sensitivity'!$B89) ->  | I89: =(Summary!#REF! * 'BCR and NPV sensitivity'!I$7) / (Summary!#REF! * 'BCR and NPV sensitivity'!$B89) ->  | J89: =(Summary!#REF! * 'BCR and NPV sensitivity'!J$7) / (Summary!#REF! * 'BCR and NPV sensitivity'!$B89) ->  | K89: =(Summary!#REF! * 'BCR and NPV sensitivity'!K$7) / (Summary!#REF! * 'BCR and NPV sensitivity'!$B89) ->  | L89: =(Summary!#REF! * 'BCR and NPV sensitivity'!L$7) / (Summary!#REF! * 'BCR and NPV sensitivity'!$B89) ->  | Q89: 2.4 | R89: =(Summary!#REF! * 'BCR and NPV sensitivity'!R$7) - (Summary!#REF! * 'BCR and NPV sensitivity'!$B89) ->  | S89: =(Summary!#REF! * 'BCR and NPV sensitivity'!S$7) - (Summary!#REF! * 'BCR and NPV sensitivity'!$B89) ->  | T89: =(Summary!#REF! * 'BCR and NPV sensitivity'!T$7) - (Summary!#REF! * 'BCR and NPV sensitivity'!$B89) ->  | U89: =(Summary!#REF! * 'BCR and NPV sensitivity'!U$7) - (Summary!#REF! * 'BCR and NPV sensitivity'!$B89) ->  | V89: =(Summary!#REF! * 'BCR and NPV sensitivity'!V$7) - (Summary!#REF! * 'BCR and NPV sensitivity'!$B89) ->  | W89: =(Summary!#REF! * 'BCR and NPV sensitivity'!W$7) - (Summary!#REF! * 'BCR and NPV sensitivity'!$B89) ->  | X89: =(Summary!#REF! * 'BCR and NPV sensitivity'!X$7) - (Summary!#REF! * 'BCR and NPV sensitivity'!$B89) ->  | Y89: =(Summary!#REF! * 'BCR and NPV sensitivity'!Y$7) - (Summary!#REF! * 'BCR and NPV sensitivity'!$B89) ->  | Z89: =(Summary!#REF! * 'BCR and NPV sensitivity'!Z$7) - (Summary!#REF! * 'BCR and NPV sensitivity'!$B89) ->  | AA89: =(Summary!#REF! * 'BCR and NPV sensitivity'!AA$7) - (Summary!#REF! * 'BCR and NPV sensitivity'!$B89) -> 
B90: 2.2 | C90: =(Summary!#REF! * 'BCR and NPV sensitivity'!C$7) / (Summary!#REF! * 'BCR and NPV sensitivity'!$B90) ->  | D90: =(Summary!#REF! * 'BCR and NPV sensitivity'!D$7) / (Summary!#REF! * 'BCR and NPV sensitivity'!$B90) ->  | E90: =(Summary!#REF! * 'BCR and NPV sensitivity'!E$7) / (Summary!#REF! * 'BCR and NPV sensitivity'!$B90) ->  | F90: =(Summary!#REF! * 'BCR and NPV sensitivity'!F$7) / (Summary!#REF! * 'BCR and NPV sensitivity'!$B90) ->  | G90: =(Summary!#REF! * 'BCR and NPV sensitivity'!G$7) / (Summary!#REF! * 'BCR and NPV sensitivity'!$B90) ->  | H90: =(Summary!#REF! * 'BCR and NPV sensitivity'!H$7) / (Summary!#REF! * 'BCR and NPV sensitivity'!$B90) ->  | I90: =(Summary!#REF! * 'BCR and NPV sensitivity'!I$7) / (Summary!#REF! * 'BCR and NPV sensitivity'!$B90) ->  | J90: =(Summary!#REF! * 'BCR and NPV sensitivity'!J$7) / (Summary!#REF! * 'BCR and NPV sensitivity'!$B90) ->  | K90: =(Summary!#REF! * 'BCR and NPV sensitivity'!K$7) / (Summary!#REF! * 'BCR and NPV sensitivity'!$B90) ->  | L90: =(Summary!#REF! * 'BCR and NPV sensitivity'!L$7) / (Summary!#REF! * 'BCR and NPV sensitivity'!$B90) ->  | Q90: 2.2 | R90: =(Summary!#REF! * 'BCR and NPV sensitivity'!R$7) - (Summary!#REF! * 'BCR and NPV sensitivity'!$B90) ->  | S90: =(Summary!#REF! * 'BCR and NPV sensitivity'!S$7) - (Summary!#REF! * 'BCR and NPV sensitivity'!$B90) ->  | T90: =(Summary!#REF! * 'BCR and NPV sensitivity'!T$7) - (Summary!#REF! * 'BCR and NPV sensitivity'!$B90) ->  | U90: =(Summary!#REF! * 'BCR and NPV sensitivity'!U$7) - (Summary!#REF! * 'BCR and NPV sensitivity'!$B90) ->  | V90: =(Summary!#REF! * 'BCR and NPV sensitivity'!V$7) - (Summary!#REF! * 'BCR and NPV sensitivity'!$B90) ->  | W90: =(Summary!#REF! * 'BCR and NPV sensitivity'!W$7) - (Summary!#REF! * 'BCR and NPV sensitivity'!$B90) ->  | X90: =(Summary!#REF! * 'BCR and NPV sensitivity'!X$7) - (Summary!#REF! * 'BCR and NPV sensitivity'!$B90) ->  | Y90: =(Summary!#REF! * 'BCR and NPV sensitivity'!Y$7) - (Summary!#REF! * 'BCR and NPV sensitivity'!$B90) ->  | Z90: =(Summary!#REF! * 'BCR and NPV sensitivity'!Z$7) - (Summary!#REF! * 'BCR and NPV sensitivity'!$B90) ->  | AA90: =(Summary!#REF! * 'BCR and NPV sensitivity'!AA$7) - (Summary!#REF! * 'BCR and NPV sensitivity'!$B90) -> 
B91: 2 | C91: =(Summary!#REF! * 'BCR and NPV sensitivity'!C$7) / (Summary!#REF! * 'BCR and NPV sensitivity'!$B91) ->  | D91: =(Summary!#REF! * 'BCR and NPV sensitivity'!D$7) / (Summary!#REF! * 'BCR and NPV sensitivity'!$B91) ->  | E91: =(Summary!#REF! * 'BCR and NPV sensitivity'!E$7) / (Summary!#REF! * 'BCR and NPV sensitivity'!$B91) ->  | F91: =(Summary!#REF! * 'BCR and NPV sensitivity'!F$7) / (Summary!#REF! * 'BCR and NPV sensitivity'!$B91) ->  | G91: =(Summary!#REF! * 'BCR and NPV sensitivity'!G$7) / (Summary!#REF! * 'BCR and NPV sensitivity'!$B91) ->  | H91: =(Summary!#REF! * 'BCR and NPV sensitivity'!H$7) / (Summary!#REF! * 'BCR and NPV sensitivity'!$B91) ->  | I91: =(Summary!#REF! * 'BCR and NPV sensitivity'!I$7) / (Summary!#REF! * 'BCR and NPV sensitivity'!$B91) ->  | J91: =(Summary!#REF! * 'BCR and NPV sensitivity'!J$7) / (Summary!#REF! * 'BCR and NPV sensitivity'!$B91) ->  | K91: =(Summary!#REF! * 'BCR and NPV sensitivity'!K$7) / (Summary!#REF! * 'BCR and NPV sensitivity'!$B91) ->  | L91: =(Summary!#REF! * 'BCR and NPV sensitivity'!L$7) / (Summary!#REF! * 'BCR and NPV sensitivity'!$B91) ->  | Q91: 2 | R91: =(Summary!#REF! * 'BCR and NPV sensitivity'!R$7) - (Summary!#REF! * 'BCR and NPV sensitivity'!$B91) ->  | S91: =(Summary!#REF! * 'BCR and NPV sensitivity'!S$7) - (Summary!#REF! * 'BCR and NPV sensitivity'!$B91) ->  | T91: =(Summary!#REF! * 'BCR and NPV sensitivity'!T$7) - (Summary!#REF! * 'BCR and NPV sensitivity'!$B91) ->  | U91: =(Summary!#REF! * 'BCR and NPV sensitivity'!U$7) - (Summary!#REF! * 'BCR and NPV sensitivity'!$B91) ->  | V91: =(Summary!#REF! * 'BCR and NPV sensitivity'!V$7) - (Summary!#REF! * 'BCR and NPV sensitivity'!$B91) ->  | W91: =(Summary!#REF! * 'BCR and NPV sensitivity'!W$7) - (Summary!#REF! * 'BCR and NPV sensitivity'!$B91) ->  | X91: =(Summary!#REF! * 'BCR and NPV sensitivity'!X$7) - (Summary!#REF! * 'BCR and NPV sensitivity'!$B91) ->  | Y91: =(Summary!#REF! * 'BCR and NPV sensitivity'!Y$7) - (Summary!#REF! * 'BCR and NPV sensitivity'!$B91) ->  | Z91: =(Summary!#REF! * 'BCR and NPV sensitivity'!Z$7) - (Summary!#REF! * 'BCR and NPV sensitivity'!$B91) ->  | AA91: =(Summary!#REF! * 'BCR and NPV sensitivity'!AA$7) - (Summary!#REF! * 'BCR and NPV sensitivity'!$B91) -> 
B92: 1.8 | C92: =(Summary!#REF! * 'BCR and NPV sensitivity'!C$7) / (Summary!#REF! * 'BCR and NPV sensitivity'!$B92) ->  | D92: =(Summary!#REF! * 'BCR and NPV sensitivity'!D$7) / (Summary!#REF! * 'BCR and NPV sensitivity'!$B92) ->  | E92: =(Summary!#REF! * 'BCR and NPV sensitivity'!E$7) / (Summary!#REF! * 'BCR and NPV sensitivity'!$B92) ->  | F92: =(Summary!#REF! * 'BCR and NPV sensitivity'!F$7) / (Summary!#REF! * 'BCR and NPV sensitivity'!$B92) ->  | G92: =(Summary!#REF! * 'BCR and NPV sensitivity'!G$7) / (Summary!#REF! * 'BCR and NPV sensitivity'!$B92) ->  | H92: =(Summary!#REF! * 'BCR and NPV sensitivity'!H$7) / (Summary!#REF! * 'BCR and NPV sensitivity'!$B92) ->  | I92: =(Summary!#REF! * 'BCR and NPV sensitivity'!I$7) / (Summary!#REF! * 'BCR and NPV sensitivity'!$B92) ->  | J92: =(Summary!#REF! * 'BCR and NPV sensitivity'!J$7) / (Summary!#REF! * 'BCR and NPV sensitivity'!$B92) ->  | K92: =(Summary!#REF! * 'BCR and NPV sensitivity'!K$7) / (Summary!#REF! * 'BCR and NPV sensitivity'!$B92) ->  | L92: =(Summary!#REF! * 'BCR and NPV sensitivity'!L$7) / (Summary!#REF! * 'BCR and NPV sensitivity'!$B92) ->  | Q92: 1.8 | R92: =(Summary!#REF! * 'BCR and NPV sensitivity'!R$7) - (Summary!#REF! * 'BCR and NPV sensitivity'!$B92) ->  | S92: =(Summary!#REF! * 'BCR and NPV sensitivity'!S$7) - (Summary!#REF! * 'BCR and NPV sensitivity'!$B92) ->  | T92: =(Summary!#REF! * 'BCR and NPV sensitivity'!T$7) - (Summary!#REF! * 'BCR and NPV sensitivity'!$B92) ->  | U92: =(Summary!#REF! * 'BCR and NPV sensitivity'!U$7) - (Summary!#REF! * 'BCR and NPV sensitivity'!$B92) ->  | V92: =(Summary!#REF! * 'BCR and NPV sensitivity'!V$7) - (Summary!#REF! * 'BCR and NPV sensitivity'!$B92) ->  | W92: =(Summary!#REF! * 'BCR and NPV sensitivity'!W$7) - (Summary!#REF! * 'BCR and NPV sensitivity'!$B92) ->  | X92: =(Summary!#REF! * 'BCR and NPV sensitivity'!X$7) - (Summary!#REF! * 'BCR and NPV sensitivity'!$B92) ->  | Y92: =(Summary!#REF! * 'BCR and NPV sensitivity'!Y$7) - (Summary!#REF! * 'BCR and NPV sensitivity'!$B92) ->  | Z92: =(Summary!#REF! * 'BCR and NPV sensitivity'!Z$7) - (Summary!#REF! * 'BCR and NPV sensitivity'!$B92) ->  | AA92: =(Summary!#REF! * 'BCR and NPV sensitivity'!AA$7) - (Summary!#REF! * 'BCR and NPV sensitivity'!$B92) -> 
B93: 1.6 | C93: =(Summary!#REF! * 'BCR and NPV sensitivity'!C$7) / (Summary!#REF! * 'BCR and NPV sensitivity'!$B93) ->  | D93: =(Summary!#REF! * 'BCR and NPV sensitivity'!D$7) / (Summary!#REF! * 'BCR and NPV sensitivity'!$B93) ->  | E93: =(Summary!#REF! * 'BCR and NPV sensitivity'!E$7) / (Summary!#REF! * 'BCR and NPV sensitivity'!$B93) ->  | F93: =(Summary!#REF! * 'BCR and NPV sensitivity'!F$7) / (Summary!#REF! * 'BCR and NPV sensitivity'!$B93) ->  | G93: =(Summary!#REF! * 'BCR and NPV sensitivity'!G$7) / (Summary!#REF! * 'BCR and NPV sensitivity'!$B93) ->  | H93: =(Summary!#REF! * 'BCR and NPV sensitivity'!H$7) / (Summary!#REF! * 'BCR and NPV sensitivity'!$B93) ->  | I93: =(Summary!#REF! * 'BCR and NPV sensitivity'!I$7) / (Summary!#REF! * 'BCR and NPV sensitivity'!$B93) ->  | J93: =(Summary!#REF! * 'BCR and NPV sensitivity'!J$7) / (Summary!#REF! * 'BCR and NPV sensitivity'!$B93) ->  | K93: =(Summary!#REF! * 'BCR and NPV sensitivity'!K$7) / (Summary!#REF! * 'BCR and NPV sensitivity'!$B93) ->  | L93: =(Summary!#REF! * 'BCR and NPV sensitivity'!L$7) / (Summary!#REF! * 'BCR and NPV sensitivity'!$B93) ->  | Q93: 1.6 | R93: =(Summary!#REF! * 'BCR and NPV sensitivity'!R$7) - (Summary!#REF! * 'BCR and NPV sensitivity'!$B93) ->  | S93: =(Summary!#REF! * 'BCR and NPV sensitivity'!S$7) - (Summary!#REF! * 'BCR and NPV sensitivity'!$B93) ->  | T93: =(Summary!#REF! * 'BCR and NPV sensitivity'!T$7) - (Summary!#REF! * 'BCR and NPV sensitivity'!$B93) ->  | U93: =(Summary!#REF! * 'BCR and NPV sensitivity'!U$7) - (Summary!#REF! * 'BCR and NPV sensitivity'!$B93) ->  | V93: =(Summary!#REF! * 'BCR and NPV sensitivity'!V$7) - (Summary!#REF! * 'BCR and NPV sensitivity'!$B93) ->  | W93: =(Summary!#REF! * 'BCR and NPV sensitivity'!W$7) - (Summary!#REF! * 'BCR and NPV sensitivity'!$B93) ->  | X93: =(Summary!#REF! * 'BCR and NPV sensitivity'!X$7) - (Summary!#REF! * 'BCR and NPV sensitivity'!$B93) ->  | Y93: =(Summary!#REF! * 'BCR and NPV sensitivity'!Y$7) - (Summary!#REF! * 'BCR and NPV sensitivity'!$B93) ->  | Z93: =(Summary!#REF! * 'BCR and NPV sensitivity'!Z$7) - (Summary!#REF! * 'BCR and NPV sensitivity'!$B93) ->  | AA93: =(Summary!#REF! * 'BCR and NPV sensitivity'!AA$7) - (Summary!#REF! * 'BCR and NPV sensitivity'!$B93) -> 
B94: 1.4 | C94: =(Summary!#REF! * 'BCR and NPV sensitivity'!C$7) / (Summary!#REF! * 'BCR and NPV sensitivity'!$B94) ->  | D94: =(Summary!#REF! * 'BCR and NPV sensitivity'!D$7) / (Summary!#REF! * 'BCR and NPV sensitivity'!$B94) ->  | E94: =(Summary!#REF! * 'BCR and NPV sensitivity'!E$7) / (Summary!#REF! * 'BCR and NPV sensitivity'!$B94) ->  | F94: =(Summary!#REF! * 'BCR and NPV sensitivity'!F$7) / (Summary!#REF! * 'BCR and NPV sensitivity'!$B94) ->  | G94: =(Summary!#REF! * 'BCR and NPV sensitivity'!G$7) / (Summary!#REF! * 'BCR and NPV sensitivity'!$B94) ->  | H94: =(Summary!#REF! * 'BCR and NPV sensitivity'!H$7) / (Summary!#REF! * 'BCR and NPV sensitivity'!$B94) ->  | I94: =(Summary!#REF! * 'BCR and NPV sensitivity'!I$7) / (Summary!#REF! * 'BCR and NPV sensitivity'!$B94) ->  | J94: =(Summary!#REF! * 'BCR and NPV sensitivity'!J$7) / (Summary!#REF! * 'BCR and NPV sensitivity'!$B94) ->  | K94: =(Summary!#REF! * 'BCR and NPV sensitivity'!K$7) / (Summary!#REF! * 'BCR and NPV sensitivity'!$B94) ->  | L94: =(Summary!#REF! * 'BCR and NPV sensitivity'!L$7) / (Summary!#REF! * 'BCR and NPV sensitivity'!$B94) ->  | Q94: 1.4 | R94: =(Summary!#REF! * 'BCR and NPV sensitivity'!R$7) - (Summary!#REF! * 'BCR and NPV sensitivity'!$B94) ->  | S94: =(Summary!#REF! * 'BCR and NPV sensitivity'!S$7) - (Summary!#REF! * 'BCR and NPV sensitivity'!$B94) ->  | T94: =(Summary!#REF! * 'BCR and NPV sensitivity'!T$7) - (Summary!#REF! * 'BCR and NPV sensitivity'!$B94) ->  | U94: =(Summary!#REF! * 'BCR and NPV sensitivity'!U$7) - (Summary!#REF! * 'BCR and NPV sensitivity'!$B94) ->  | V94: =(Summary!#REF! * 'BCR and NPV sensitivity'!V$7) - (Summary!#REF! * 'BCR and NPV sensitivity'!$B94) ->  | W94: =(Summary!#REF! * 'BCR and NPV sensitivity'!W$7) - (Summary!#REF! * 'BCR and NPV sensitivity'!$B94) ->  | X94: =(Summary!#REF! * 'BCR and NPV sensitivity'!X$7) - (Summary!#REF! * 'BCR and NPV sensitivity'!$B94) ->  | Y94: =(Summary!#REF! * 'BCR and NPV sensitivity'!Y$7) - (Summary!#REF! * 'BCR and NPV sensitivity'!$B94) ->  | Z94: =(Summary!#REF! * 'BCR and NPV sensitivity'!Z$7) - (Summary!#REF! * 'BCR and NPV sensitivity'!$B94) ->  | AA94: =(Summary!#REF! * 'BCR and NPV sensitivity'!AA$7) - (Summary!#REF! * 'BCR and NPV sensitivity'!$B94) -> 
B95: 1.2 | C95: =(Summary!#REF! * 'BCR and NPV sensitivity'!C$7) / (Summary!#REF! * 'BCR and NPV sensitivity'!$B95) ->  | D95: =(Summary!#REF! * 'BCR and NPV sensitivity'!D$7) / (Summary!#REF! * 'BCR and NPV sensitivity'!$B95) ->  | E95: =(Summary!#REF! * 'BCR and NPV sensitivity'!E$7) / (Summary!#REF! * 'BCR and NPV sensitivity'!$B95) ->  | F95: =(Summary!#REF! * 'BCR and NPV sensitivity'!F$7) / (Summary!#REF! * 'BCR and NPV sensitivity'!$B95) ->  | G95: =(Summary!#REF! * 'BCR and NPV sensitivity'!G$7) / (Summary!#REF! * 'BCR and NPV sensitivity'!$B95) ->  | H95: =(Summary!#REF! * 'BCR and NPV sensitivity'!H$7) / (Summary!#REF! * 'BCR and NPV sensitivity'!$B95) ->  | I95: =(Summary!#REF! * 'BCR and NPV sensitivity'!I$7) / (Summary!#REF! * 'BCR and NPV sensitivity'!$B95) ->  | J95: =(Summary!#REF! * 'BCR and NPV sensitivity'!J$7) / (Summary!#REF! * 'BCR and NPV sensitivity'!$B95) ->  | K95: =(Summary!#REF! * 'BCR and NPV sensitivity'!K$7) / (Summary!#REF! * 'BCR and NPV sensitivity'!$B95) ->  | L95: =(Summary!#REF! * 'BCR and NPV sensitivity'!L$7) / (Summary!#REF! * 'BCR and NPV sensitivity'!$B95) ->  | Q95: 1.2 | R95: =(Summary!#REF! * 'BCR and NPV sensitivity'!R$7) - (Summary!#REF! * 'BCR and NPV sensitivity'!$B95) ->  | S95: =(Summary!#REF! * 'BCR and NPV sensitivity'!S$7) - (Summary!#REF! * 'BCR and NPV sensitivity'!$B95) ->  | T95: =(Summary!#REF! * 'BCR and NPV sensitivity'!T$7) - (Summary!#REF! * 'BCR and NPV sensitivity'!$B95) ->  | U95: =(Summary!#REF! * 'BCR and NPV sensitivity'!U$7) - (Summary!#REF! * 'BCR and NPV sensitivity'!$B95) ->  | V95: =(Summary!#REF! * 'BCR and NPV sensitivity'!V$7) - (Summary!#REF! * 'BCR and NPV sensitivity'!$B95) ->  | W95: =(Summary!#REF! * 'BCR and NPV sensitivity'!W$7) - (Summary!#REF! * 'BCR and NPV sensitivity'!$B95) ->  | X95: =(Summary!#REF! * 'BCR and NPV sensitivity'!X$7) - (Summary!#REF! * 'BCR and NPV sensitivity'!$B95) ->  | Y95: =(Summary!#REF! * 'BCR and NPV sensitivity'!Y$7) - (Summary!#REF! * 'BCR and NPV sensitivity'!$B95) ->  | Z95: =(Summary!#REF! * 'BCR and NPV sensitivity'!Z$7) - (Summary!#REF! * 'BCR and NPV sensitivity'!$B95) ->  | AA95: =(Summary!#REF! * 'BCR and NPV sensitivity'!AA$7) - (Summary!#REF! * 'BCR and NPV sensitivity'!$B95) -> 
B96: 1 | C96: =(Summary!#REF! * 'BCR and NPV sensitivity'!C$7) / (Summary!#REF! * 'BCR and NPV sensitivity'!$B96) ->  | D96: =(Summary!#REF! * 'BCR and NPV sensitivity'!D$7) / (Summary!#REF! * 'BCR and NPV sensitivity'!$B96) ->  | E96: =(Summary!#REF! * 'BCR and NPV sensitivity'!E$7) / (Summary!#REF! * 'BCR and NPV sensitivity'!$B96) ->  | F96: =(Summary!#REF! * 'BCR and NPV sensitivity'!F$7) / (Summary!#REF! * 'BCR and NPV sensitivity'!$B96) ->  | G96: =(Summary!#REF! * 'BCR and NPV sensitivity'!G$7) / (Summary!#REF! * 'BCR and NPV sensitivity'!$B96) ->  | H96: =(Summary!#REF! * 'BCR and NPV sensitivity'!H$7) / (Summary!#REF! * 'BCR and NPV sensitivity'!$B96) ->  | I96: =(Summary!#REF! * 'BCR and NPV sensitivity'!I$7) / (Summary!#REF! * 'BCR and NPV sensitivity'!$B96) ->  | J96: =(Summary!#REF! * 'BCR and NPV sensitivity'!J$7) / (Summary!#REF! * 'BCR and NPV sensitivity'!$B96) ->  | K96: =(Summary!#REF! * 'BCR and NPV sensitivity'!K$7) / (Summary!#REF! * 'BCR and NPV sensitivity'!$B96) ->  | L96: =(Summary!#REF! * 'BCR and NPV sensitivity'!L$7) / (Summary!#REF! * 'BCR and NPV sensitivity'!$B96) ->  | Q96: 1 | R96: =(Summary!#REF! * 'BCR and NPV sensitivity'!R$7) - (Summary!#REF! * 'BCR and NPV sensitivity'!$B96) ->  | S96: =(Summary!#REF! * 'BCR and NPV sensitivity'!S$7) - (Summary!#REF! * 'BCR and NPV sensitivity'!$B96) ->  | T96: =(Summary!#REF! * 'BCR and NPV sensitivity'!T$7) - (Summary!#REF! * 'BCR and NPV sensitivity'!$B96) ->  | U96: =(Summary!#REF! * 'BCR and NPV sensitivity'!U$7) - (Summary!#REF! * 'BCR and NPV sensitivity'!$B96) ->  | V96: =(Summary!#REF! * 'BCR and NPV sensitivity'!V$7) - (Summary!#REF! * 'BCR and NPV sensitivity'!$B96) ->  | W96: =(Summary!#REF! * 'BCR and NPV sensitivity'!W$7) - (Summary!#REF! * 'BCR and NPV sensitivity'!$B96) ->  | X96: =(Summary!#REF! * 'BCR and NPV sensitivity'!X$7) - (Summary!#REF! * 'BCR and NPV sensitivity'!$B96) ->  | Y96: =(Summary!#REF! * 'BCR and NPV sensitivity'!Y$7) - (Summary!#REF! * 'BCR and NPV sensitivity'!$B96) ->  | Z96: =(Summary!#REF! * 'BCR and NPV sensitivity'!Z$7) - (Summary!#REF! * 'BCR and NPV sensitivity'!$B96) ->  | AA96: =(Summary!#REF! * 'BCR and NPV sensitivity'!AA$7) - (Summary!#REF! * 'BCR and NPV sensitivity'!$B96) -> 
B97: 0.8 | C97: =(Summary!#REF! * 'BCR and NPV sensitivity'!C$7) / (Summary!#REF! * 'BCR and NPV sensitivity'!$B97) ->  | D97: =(Summary!#REF! * 'BCR and NPV sensitivity'!D$7) / (Summary!#REF! * 'BCR and NPV sensitivity'!$B97) ->  | E97: =(Summary!#REF! * 'BCR and NPV sensitivity'!E$7) / (Summary!#REF! * 'BCR and NPV sensitivity'!$B97) ->  | F97: =(Summary!#REF! * 'BCR and NPV sensitivity'!F$7) / (Summary!#REF! * 'BCR and NPV sensitivity'!$B97) ->  | G97: =(Summary!#REF! * 'BCR and NPV sensitivity'!G$7) / (Summary!#REF! * 'BCR and NPV sensitivity'!$B97) ->  | H97: =(Summary!#REF! * 'BCR and NPV sensitivity'!H$7) / (Summary!#REF! * 'BCR and NPV sensitivity'!$B97) ->  | I97: =(Summary!#REF! * 'BCR and NPV sensitivity'!I$7) / (Summary!#REF! * 'BCR and NPV sensitivity'!$B97) ->  | J97: =(Summary!#REF! * 'BCR and NPV sensitivity'!J$7) / (Summary!#REF! * 'BCR and NPV sensitivity'!$B97) ->  | K97: =(Summary!#REF! * 'BCR and NPV sensitivity'!K$7) / (Summary!#REF! * 'BCR and NPV sensitivity'!$B97) ->  | L97: =(Summary!#REF! * 'BCR and NPV sensitivity'!L$7) / (Summary!#REF! * 'BCR and NPV sensitivity'!$B97) ->  | Q97: 0.8 | R97: =(Summary!#REF! * 'BCR and NPV sensitivity'!R$7) - (Summary!#REF! * 'BCR and NPV sensitivity'!$B97) ->  | S97: =(Summary!#REF! * 'BCR and NPV sensitivity'!S$7) - (Summary!#REF! * 'BCR and NPV sensitivity'!$B97) ->  | T97: =(Summary!#REF! * 'BCR and NPV sensitivity'!T$7) - (Summary!#REF! * 'BCR and NPV sensitivity'!$B97) ->  | U97: =(Summary!#REF! * 'BCR and NPV sensitivity'!U$7) - (Summary!#REF! * 'BCR and NPV sensitivity'!$B97) ->  | V97: =(Summary!#REF! * 'BCR and NPV sensitivity'!V$7) - (Summary!#REF! * 'BCR and NPV sensitivity'!$B97) ->  | W97: =(Summary!#REF! * 'BCR and NPV sensitivity'!W$7) - (Summary!#REF! * 'BCR and NPV sensitivity'!$B97) ->  | X97: =(Summary!#REF! * 'BCR and NPV sensitivity'!X$7) - (Summary!#REF! * 'BCR and NPV sensitivity'!$B97) ->  | Y97: =(Summary!#REF! * 'BCR and NPV sensitivity'!Y$7) - (Summary!#REF! * 'BCR and NPV sensitivity'!$B97) ->  | Z97: =(Summary!#REF! * 'BCR and NPV sensitivity'!Z$7) - (Summary!#REF! * 'BCR and NPV sensitivity'!$B97) ->  | AA97: =(Summary!#REF! * 'BCR and NPV sensitivity'!AA$7) - (Summary!#REF! * 'BCR and NPV sensitivity'!$B97) -> 
B98: 0.6 | C98: =(Summary!#REF! * 'BCR and NPV sensitivity'!C$7) / (Summary!#REF! * 'BCR and NPV sensitivity'!$B98) ->  | D98: =(Summary!#REF! * 'BCR and NPV sensitivity'!D$7) / (Summary!#REF! * 'BCR and NPV sensitivity'!$B98) ->  | E98: =(Summary!#REF! * 'BCR and NPV sensitivity'!E$7) / (Summary!#REF! * 'BCR and NPV sensitivity'!$B98) ->  | F98: =(Summary!#REF! * 'BCR and NPV sensitivity'!F$7) / (Summary!#REF! * 'BCR and NPV sensitivity'!$B98) ->  | G98: =(Summary!#REF! * 'BCR and NPV sensitivity'!G$7) / (Summary!#REF! * 'BCR and NPV sensitivity'!$B98) ->  | H98: =(Summary!#REF! * 'BCR and NPV sensitivity'!H$7) / (Summary!#REF! * 'BCR and NPV sensitivity'!$B98) ->  | I98: =(Summary!#REF! * 'BCR and NPV sensitivity'!I$7) / (Summary!#REF! * 'BCR and NPV sensitivity'!$B98) ->  | J98: =(Summary!#REF! * 'BCR and NPV sensitivity'!J$7) / (Summary!#REF! * 'BCR and NPV sensitivity'!$B98) ->  | K98: =(Summary!#REF! * 'BCR and NPV sensitivity'!K$7) / (Summary!#REF! * 'BCR and NPV sensitivity'!$B98) ->  | L98: =(Summary!#REF! * 'BCR and NPV sensitivity'!L$7) / (Summary!#REF! * 'BCR and NPV sensitivity'!$B98) ->  | Q98: 0.6 | R98: =(Summary!#REF! * 'BCR and NPV sensitivity'!R$7) - (Summary!#REF! * 'BCR and NPV sensitivity'!$B98) ->  | S98: =(Summary!#REF! * 'BCR and NPV sensitivity'!S$7) - (Summary!#REF! * 'BCR and NPV sensitivity'!$B98) ->  | T98: =(Summary!#REF! * 'BCR and NPV sensitivity'!T$7) - (Summary!#REF! * 'BCR and NPV sensitivity'!$B98) ->  | U98: =(Summary!#REF! * 'BCR and NPV sensitivity'!U$7) - (Summary!#REF! * 'BCR and NPV sensitivity'!$B98) ->  | V98: =(Summary!#REF! * 'BCR and NPV sensitivity'!V$7) - (Summary!#REF! * 'BCR and NPV sensitivity'!$B98) ->  | W98: =(Summary!#REF! * 'BCR and NPV sensitivity'!W$7) - (Summary!#REF! * 'BCR and NPV sensitivity'!$B98) ->  | X98: =(Summary!#REF! * 'BCR and NPV sensitivity'!X$7) - (Summary!#REF! * 'BCR and NPV sensitivity'!$B98) ->  | Y98: =(Summary!#REF! * 'BCR and NPV sensitivity'!Y$7) - (Summary!#REF! * 'BCR and NPV sensitivity'!$B98) ->  | Z98: =(Summary!#REF! * 'BCR and NPV sensitivity'!Z$7) - (Summary!#REF! * 'BCR and NPV sensitivity'!$B98) ->  | AA98: =(Summary!#REF! * 'BCR and NPV sensitivity'!AA$7) - (Summary!#REF! * 'BCR and NPV sensitivity'!$B98) -> 
A100: OPTION 3
A101: 20 years of costs, Real (2024-25 $)
B102: Benefit Cost Ratio | P102: Net Benefit (Net Present Value, Real (2024-25 $))
C103: Benefit compared with central estimate | R103: Benefit compared with central estimate
C104: 0.2 | D104: 0.4 | E104: 0.6 | F104: 0.8 | G104: 1 | H104: 1.2 | I104: 1.4 | J104: 1.6 | K104: 1.8 | L104: 2 | R104: 0.2 | S104: 0.4 | T104: 0.6 | U104: 0.8 | V104: 1 | W104: 1.2 | X104: 1.4 | Y104: 1.6 | Z104: 1.8 | AA104: 2
A105: Cost compared with central estimate | B105: 3 | C105: =(Summary!$E$9 * 'BCR and NPV sensitivity'!C$7) / (Summary!$E$10 * 'BCR and NPV sensitivity'!$B105) -> 0.202844765 | D105: =(Summary!$E$9 * 'BCR and NPV sensitivity'!D$7) / (Summary!$E$10 * 'BCR and NPV sensitivity'!$B105) -> 0.4056895301 | E105: =(Summary!$E$9 * 'BCR and NPV sensitivity'!E$7) / (Summary!$E$10 * 'BCR and NPV sensitivity'!$B105) -> 0.6085342951 | F105: =(Summary!$E$9 * 'BCR and NPV sensitivity'!F$7) / (Summary!$E$10 * 'BCR and NPV sensitivity'!$B105) -> 0.8113790601 | G105: =(Summary!$E$9 * 'BCR and NPV sensitivity'!G$7) / (Summary!$E$10 * 'BCR and NPV sensitivity'!$B105) -> 1.014223825 | H105: =(Summary!$E$9 * 'BCR and NPV sensitivity'!H$7) / (Summary!$E$10 * 'BCR and NPV sensitivity'!$B105) -> 1.21706859 | I105: =(Summary!$E$9 * 'BCR and NPV sensitivity'!I$7) / (Summary!$E$10 * 'BCR and NPV sensitivity'!$B105) -> 1.419913355 | J105: =(Summary!$E$9 * 'BCR and NPV sensitivity'!J$7) / (Summary!$E$10 * 'BCR and NPV sensitivity'!$B105) -> 1.62275812 | K105: =(Summary!$E$9 * 'BCR and NPV sensitivity'!K$7) / (Summary!$E$10 * 'BCR and NPV sensitivity'!$B105) -> 1.825602885 | L105: =(Summary!$E$9 * 'BCR and NPV sensitivity'!L$7) / (Summary!$E$10 * 'BCR and NPV sensitivity'!$B105) -> 2.02844765 | P105: Cost compared with central estimate | Q105: 3 | R105: =(Summary!$E$9 * 'BCR and NPV sensitivity'!R$7) - (Summary!$E$10 * 'BCR and NPV sensitivity'!$B105) -> -281.4324978 | S105: =(Summary!$E$9 * 'BCR and NPV sensitivity'!S$7) - (Summary!$E$10 * 'BCR and NPV sensitivity'!$B105) -> -209.8189571 | T105: =(Summary!$E$9 * 'BCR and NPV sensitivity'!T$7) - (Summary!$E$10 * 'BCR and NPV sensitivity'!$B105) -> -138.2054164 | U105: =(Summary!$E$9 * 'BCR and NPV sensitivity'!U$7) - (Summary!$E$10 * 'BCR and NPV sensitivity'!$B105) -> -66.59187561 | V105: =(Summary!$E$9 * 'BCR and NPV sensitivity'!V$7) - (Summary!$E$10 * 'BCR and NPV sensitivity'!$B105) -> 5.021665127 | W105: =(Summary!$E$9 * 'BCR and NPV sensitivity'!W$7) - (Summary!$E$10 * 'BCR and NPV sensitivity'!$B105) -> 76.63520587 | X105: =(Summary!$E$9 * 'BCR and NPV sensitivity'!X$7) - (Summary!$E$10 * 'BCR and NPV sensitivity'!$B105) -> 148.2487466 | Y105: =(Summary!$E$9 * 'BCR and NPV sensitivity'!Y$7) - (Summary!$E$10 * 'BCR and NPV sensitivity'!$B105) -> 219.8622873 | Z105: =(Summary!$E$9 * 'BCR and NPV sensitivity'!Z$7) - (Summary!$E$10 * 'BCR and NPV sensitivity'!$B105) -> 291.4758281 | AA105: =(Summary!$E$9 * 'BCR and NPV sensitivity'!AA$7) - (Summary!$E$10 * 'BCR and NPV sensitivity'!$B105) -> 363.0893688
B106: 2.8 | C106: =(Summary!$E$9 * 'BCR and NPV sensitivity'!C$7) / (Summary!$E$10 * 'BCR and NPV sensitivity'!$B106) -> 0.2173336768 | D106: =(Summary!$E$9 * 'BCR and NPV sensitivity'!D$7) / (Summary!$E$10 * 'BCR and NPV sensitivity'!$B106) -> 0.4346673536 | E106: =(Summary!$E$9 * 'BCR and NPV sensitivity'!E$7) / (Summary!$E$10 * 'BCR and NPV sensitivity'!$B106) -> 0.6520010305 | F106: =(Summary!$E$9 * 'BCR and NPV sensitivity'!F$7) / (Summary!$E$10 * 'BCR and NPV sensitivity'!$B106) -> 0.8693347073 | G106: =(Summary!$E$9 * 'BCR and NPV sensitivity'!G$7) / (Summary!$E$10 * 'BCR and NPV sensitivity'!$B106) -> 1.086668384 | H106: =(Summary!$E$9 * 'BCR and NPV sensitivity'!H$7) / (Summary!$E$10 * 'BCR and NPV sensitivity'!$B106) -> 1.304002061 | I106: =(Summary!$E$9 * 'BCR and NPV sensitivity'!I$7) / (Summary!$E$10 * 'BCR and NPV sensitivity'!$B106) -> 1.521335738 | J106: =(Summary!$E$9 * 'BCR and NPV sensitivity'!J$7) / (Summary!$E$10 * 'BCR and NPV sensitivity'!$B106) -> 1.738669415 | K106: =(Summary!$E$9 * 'BCR and NPV sensitivity'!K$7) / (Summary!$E$10 * 'BCR and NPV sensitivity'!$B106) -> 1.956003091 | L106: =(Summary!$E$9 * 'BCR and NPV sensitivity'!L$7) / (Summary!$E$10 * 'BCR and NPV sensitivity'!$B106) -> 2.173336768 | Q106: 2.8 | R106: =(Summary!$E$9 * 'BCR and NPV sensitivity'!R$7) - (Summary!$E$10 * 'BCR and NPV sensitivity'!$B106) -> -257.8960953 | S106: =(Summary!$E$9 * 'BCR and NPV sensitivity'!S$7) - (Summary!$E$10 * 'BCR and NPV sensitivity'!$B106) -> -186.2825545 | T106: =(Summary!$E$9 * 'BCR and NPV sensitivity'!T$7) - (Summary!$E$10 * 'BCR and NPV sensitivity'!$B106) -> -114.6690138 | U106: =(Summary!$E$9 * 'BCR and NPV sensitivity'!U$7) - (Summary!$E$10 * 'BCR and NPV sensitivity'!$B106) -> -43.05547304 | V106: =(Summary!$E$9 * 'BCR and NPV sensitivity'!V$7) - (Summary!$E$10 * 'BCR and NPV sensitivity'!$B106) -> 28.5580677 | W106: =(Summary!$E$9 * 'BCR and NPV sensitivity'!W$7) - (Summary!$E$10 * 'BCR and NPV sensitivity'!$B106) -> 100.1716084 | X106: =(Summary!$E$9 * 'BCR and NPV sensitivity'!X$7) - (Summary!$E$10 * 'BCR and NPV sensitivity'!$B106) -> 171.7851492 | Y106: =(Summary!$E$9 * 'BCR and NPV sensitivity'!Y$7) - (Summary!$E$10 * 'BCR and NPV sensitivity'!$B106) -> 243.3986899 | Z106: =(Summary!$E$9 * 'BCR and NPV sensitivity'!Z$7) - (Summary!$E$10 * 'BCR and NPV sensitivity'!$B106) -> 315.0122307 | AA106: =(Summary!$E$9 * 'BCR and NPV sensitivity'!AA$7) - (Summary!$E$10 * 'BCR and NPV sensitivity'!$B106) -> 386.6257714
B107: 2.6 | C107: =(Summary!$E$9 * 'BCR and NPV sensitivity'!C$7) / (Summary!$E$10 * 'BCR and NPV sensitivity'!$B107) -> 0.234051652 | D107: =(Summary!$E$9 * 'BCR and NPV sensitivity'!D$7) / (Summary!$E$10 * 'BCR and NPV sensitivity'!$B107) -> 0.4681033039 | E107: =(Summary!$E$9 * 'BCR and NPV sensitivity'!E$7) / (Summary!$E$10 * 'BCR and NPV sensitivity'!$B107) -> 0.7021549559 | F107: =(Summary!$E$9 * 'BCR and NPV sensitivity'!F$7) / (Summary!$E$10 * 'BCR and NPV sensitivity'!$B107) -> 0.9362066078 | G107: =(Summary!$E$9 * 'BCR and NPV sensitivity'!G$7) / (Summary!$E$10 * 'BCR and NPV sensitivity'!$B107) -> 1.17025826 | H107: =(Summary!$E$9 * 'BCR and NPV sensitivity'!H$7) / (Summary!$E$10 * 'BCR and NPV sensitivity'!$B107) -> 1.404309912 | I107: =(Summary!$E$9 * 'BCR and NPV sensitivity'!I$7) / (Summary!$E$10 * 'BCR and NPV sensitivity'!$B107) -> 1.638361564 | J107: =(Summary!$E$9 * 'BCR and NPV sensitivity'!J$7) / (Summary!$E$10 * 'BCR and NPV sensitivity'!$B107) -> 1.872413216 | K107: =(Summary!$E$9 * 'BCR and NPV sensitivity'!K$7) / (Summary!$E$10 * 'BCR and NPV sensitivity'!$B107) -> 2.106464868 | L107: =(Summary!$E$9 * 'BCR and NPV sensitivity'!L$7) / (Summary!$E$10 * 'BCR and NPV sensitivity'!$B107) -> 2.34051652 | Q107: 2.6 | R107: =(Summary!$E$9 * 'BCR and NPV sensitivity'!R$7) - (Summary!$E$10 * 'BCR and NPV sensitivity'!$B107) -> -234.3596927 | S107: =(Summary!$E$9 * 'BCR and NPV sensitivity'!S$7) - (Summary!$E$10 * 'BCR and NPV sensitivity'!$B107) -> -162.7461519 | T107: =(Summary!$E$9 * 'BCR and NPV sensitivity'!T$7) - (Summary!$E$10 * 'BCR and NPV sensitivity'!$B107) -> -91.13261121 | U107: =(Summary!$E$9 * 'BCR and NPV sensitivity'!U$7) - (Summary!$E$10 * 'BCR and NPV sensitivity'!$B107) -> -19.51907047 | V107: =(Summary!$E$9 * 'BCR and NPV sensitivity'!V$7) - (Summary!$E$10 * 'BCR and NPV sensitivity'!$B107) -> 52.09447027 | W107: =(Summary!$E$9 * 'BCR and NPV sensitivity'!W$7) - (Summary!$E$10 * 'BCR and NPV sensitivity'!$B107) -> 123.708011 | X107: =(Summary!$E$9 * 'BCR and NPV sensitivity'!X$7) - (Summary!$E$10 * 'BCR and NPV sensitivity'!$B107) -> 195.3215517 | Y107: =(Summary!$E$9 * 'BCR and NPV sensitivity'!Y$7) - (Summary!$E$10 * 'BCR and NPV sensitivity'!$B107) -> 266.9350925 | Z107: =(Summary!$E$9 * 'BCR and NPV sensitivity'!Z$7) - (Summary!$E$10 * 'BCR and NPV sensitivity'!$B107) -> 338.5486332 | AA107: =(Summary!$E$9 * 'BCR and NPV sensitivity'!AA$7) - (Summary!$E$10 * 'BCR and NPV sensitivity'!$B107) -> 410.162174
B108: 2.4 | C108: =(Summary!$E$9 * 'BCR and NPV sensitivity'!C$7) / (Summary!$E$10 * 'BCR and NPV sensitivity'!$B108) -> 0.2535559563 | D108: =(Summary!$E$9 * 'BCR and NPV sensitivity'!D$7) / (Summary!$E$10 * 'BCR and NPV sensitivity'!$B108) -> 0.5071119126 | E108: =(Summary!$E$9 * 'BCR and NPV sensitivity'!E$7) / (Summary!$E$10 * 'BCR and NPV sensitivity'!$B108) -> 0.7606678689 | F108: =(Summary!$E$9 * 'BCR and NPV sensitivity'!F$7) / (Summary!$E$10 * 'BCR and NPV sensitivity'!$B108) -> 1.014223825 | G108: =(Summary!$E$9 * 'BCR and NPV sensitivity'!G$7) / (Summary!$E$10 * 'BCR and NPV sensitivity'!$B108) -> 1.267779781 | H108: =(Summary!$E$9 * 'BCR and NPV sensitivity'!H$7) / (Summary!$E$10 * 'BCR and NPV sensitivity'!$B108) -> 1.521335738 | I108: =(Summary!$E$9 * 'BCR and NPV sensitivity'!I$7) / (Summary!$E$10 * 'BCR and NPV sensitivity'!$B108) -> 1.774891694 | J108: =(Summary!$E$9 * 'BCR and NPV sensitivity'!J$7) / (Summary!$E$10 * 'BCR and NPV sensitivity'!$B108) -> 2.02844765 | K108: =(Summary!$E$9 * 'BCR and NPV sensitivity'!K$7) / (Summary!$E$10 * 'BCR and NPV sensitivity'!$B108) -> 2.282003607 | L108: =(Summary!$E$9 * 'BCR and NPV sensitivity'!L$7) / (Summary!$E$10 * 'BCR and NPV sensitivity'!$B108) -> 2.535559563 | Q108: 2.4 | R108: =(Summary!$E$9 * 'BCR and NPV sensitivity'!R$7) - (Summary!$E$10 * 'BCR and NPV sensitivity'!$B108) -> -210.8232901 | S108: =(Summary!$E$9 * 'BCR and NPV sensitivity'!S$7) - (Summary!$E$10 * 'BCR and NPV sensitivity'!$B108) -> -139.2097494 | T108: =(Summary!$E$9 * 'BCR and NPV sensitivity'!T$7) - (Summary!$E$10 * 'BCR and NPV sensitivity'!$B108) -> -67.59620864 | U108: =(Summary!$E$9 * 'BCR and NPV sensitivity'!U$7) - (Summary!$E$10 * 'BCR and NPV sensitivity'!$B108) -> 4.017332101 | V108: =(Summary!$E$9 * 'BCR and NPV sensitivity'!V$7) - (Summary!$E$10 * 'BCR and NPV sensitivity'!$B108) -> 75.63087284 | W108: =(Summary!$E$9 * 'BCR and NPV sensitivity'!W$7) - (Summary!$E$10 * 'BCR and NPV sensitivity'!$B108) -> 147.2444136 | X108: =(Summary!$E$9 * 'BCR and NPV sensitivity'!X$7) - (Summary!$E$10 * 'BCR and NPV sensitivity'!$B108) -> 218.8579543 | Y108: =(Summary!$E$9 * 'BCR and NPV sensitivity'!Y$7) - (Summary!$E$10 * 'BCR and NPV sensitivity'!$B108) -> 290.4714951 | Z108: =(Summary!$E$9 * 'BCR and NPV sensitivity'!Z$7) - (Summary!$E$10 * 'BCR and NPV sensitivity'!$B108) -> 362.0850358 | AA108: =(Summary!$E$9 * 'BCR and NPV sensitivity'!AA$7) - (Summary!$E$10 * 'BCR and NPV sensitivity'!$B108) -> 433.6985765
B109: 2.2 | C109: =(Summary!$E$9 * 'BCR and NPV sensitivity'!C$7) / (Summary!$E$10 * 'BCR and NPV sensitivity'!$B109) -> 0.2766064978 | D109: =(Summary!$E$9 * 'BCR and NPV sensitivity'!D$7) / (Summary!$E$10 * 'BCR and NPV sensitivity'!$B109) -> 0.5532129955 | E109: =(Summary!$E$9 * 'BCR and NPV sensitivity'!E$7) / (Summary!$E$10 * 'BCR and NPV sensitivity'!$B109) -> 0.8298194933 | F109: =(Summary!$E$9 * 'BCR and NPV sensitivity'!F$7) / (Summary!$E$10 * 'BCR and NPV sensitivity'!$B109) -> 1.106425991 | G109: =(Summary!$E$9 * 'BCR and NPV sensitivity'!G$7) / (Summary!$E$10 * 'BCR and NPV sensitivity'!$B109) -> 1.383032489 | H109: =(Summary!$E$9 * 'BCR and NPV sensitivity'!H$7) / (Summary!$E$10 * 'BCR and NPV sensitivity'!$B109) -> 1.659638987 | I109: =(Summary!$E$9 * 'BCR and NPV sensitivity'!I$7) / (Summary!$E$10 * 'BCR and NPV sensitivity'!$B109) -> 1.936245484 | J109: =(Summary!$E$9 * 'BCR and NPV sensitivity'!J$7) / (Summary!$E$10 * 'BCR and NPV sensitivity'!$B109) -> 2.212851982 | K109: =(Summary!$E$9 * 'BCR and NPV sensitivity'!K$7) / (Summary!$E$10 * 'BCR and NPV sensitivity'!$B109) -> 2.48945848 | L109: =(Summary!$E$9 * 'BCR and NPV sensitivity'!L$7) / (Summary!$E$10 * 'BCR and NPV sensitivity'!$B109) -> 2.766064978 | Q109: 2.2 | R109: =(Summary!$E$9 * 'BCR and NPV sensitivity'!R$7) - (Summary!$E$10 * 'BCR and NPV sensitivity'!$B109) -> -187.2868875 | S109: =(Summary!$E$9 * 'BCR and NPV sensitivity'!S$7) - (Summary!$E$10 * 'BCR and NPV sensitivity'!$B109) -> -115.6733468 | T109: =(Summary!$E$9 * 'BCR and NPV sensitivity'!T$7) - (Summary!$E$10 * 'BCR and NPV sensitivity'!$B109) -> -44.05980607 | U109: =(Summary!$E$9 * 'BCR and NPV sensitivity'!U$7) - (Summary!$E$10 * 'BCR and NPV sensitivity'!$B109) -> 27.55373467 | V109: =(Summary!$E$9 * 'BCR and NPV sensitivity'!V$7) - (Summary!$E$10 * 'BCR and NPV sensitivity'!$B109) -> 99.16727541 | W109: =(Summary!$E$9 * 'BCR and NPV sensitivity'!W$7) - (Summary!$E$10 * 'BCR and NPV sensitivity'!$B109) -> 170.7808162 | X109: =(Summary!$E$9 * 'BCR and NPV sensitivity'!X$7) - (Summary!$E$10 * 'BCR and NPV sensitivity'!$B109) -> 242.3943569 | Y109: =(Summary!$E$9 * 'BCR and NPV sensitivity'!Y$7) - (Summary!$E$10 * 'BCR and NPV sensitivity'!$B109) -> 314.0078976 | Z109: =(Summary!$E$9 * 'BCR and NPV sensitivity'!Z$7) - (Summary!$E$10 * 'BCR and NPV sensitivity'!$B109) -> 385.6214384 | AA109: =(Summary!$E$9 * 'BCR and NPV sensitivity'!AA$7) - (Summary!$E$10 * 'BCR and NPV sensitivity'!$B109) -> 457.2349791
B110: 2 | C110: =(Summary!$E$9 * 'BCR and NPV sensitivity'!C$7) / (Summary!$E$10 * 'BCR and NPV sensitivity'!$B110) -> 0.3042671475 | D110: =(Summary!$E$9 * 'BCR and NPV sensitivity'!D$7) / (Summary!$E$10 * 'BCR and NPV sensitivity'!$B110) -> 0.6085342951 | E110: =(Summary!$E$9 * 'BCR and NPV sensitivity'!E$7) / (Summary!$E$10 * 'BCR and NPV sensitivity'!$B110) -> 0.9128014426 | F110: =(Summary!$E$9 * 'BCR and NPV sensitivity'!F$7) / (Summary!$E$10 * 'BCR and NPV sensitivity'!$B110) -> 1.21706859 | G110: =(Summary!$E$9 * 'BCR and NPV sensitivity'!G$7) / (Summary!$E$10 * 'BCR and NPV sensitivity'!$B110) -> 1.521335738 | H110: =(Summary!$E$9 * 'BCR and NPV sensitivity'!H$7) / (Summary!$E$10 * 'BCR and NPV sensitivity'!$B110) -> 1.825602885 | I110: =(Summary!$E$9 * 'BCR and NPV sensitivity'!I$7) / (Summary!$E$10 * 'BCR and NPV sensitivity'!$B110) -> 2.129870033 | J110: =(Summary!$E$9 * 'BCR and NPV sensitivity'!J$7) / (Summary!$E$10 * 'BCR and NPV sensitivity'!$B110) -> 2.43413718 | K110: =(Summary!$E$9 * 'BCR and NPV sensitivity'!K$7) / (Summary!$E$10 * 'BCR and NPV sensitivity'!$B110) -> 2.738404328 | L110: =(Summary!$E$9 * 'BCR and NPV sensitivity'!L$7) / (Summary!$E$10 * 'BCR and NPV sensitivity'!$B110) -> 3.042671475 | Q110: 2 | R110: =(Summary!$E$9 * 'BCR and NPV sensitivity'!R$7) - (Summary!$E$10 * 'BCR and NPV sensitivity'!$B110) -> -163.750485 | S110: =(Summary!$E$9 * 'BCR and NPV sensitivity'!S$7) - (Summary!$E$10 * 'BCR and NPV sensitivity'!$B110) -> -92.13694423 | T110: =(Summary!$E$9 * 'BCR and NPV sensitivity'!T$7) - (Summary!$E$10 * 'BCR and NPV sensitivity'!$B110) -> -20.5234035 | U110: =(Summary!$E$9 * 'BCR and NPV sensitivity'!U$7) - (Summary!$E$10 * 'BCR and NPV sensitivity'!$B110) -> 51.09013724 | V110: =(Summary!$E$9 * 'BCR and NPV sensitivity'!V$7) - (Summary!$E$10 * 'BCR and NPV sensitivity'!$B110) -> 122.703678 | W110: =(Summary!$E$9 * 'BCR and NPV sensitivity'!W$7) - (Summary!$E$10 * 'BCR and NPV sensitivity'!$B110) -> 194.3172187 | X110: =(Summary!$E$9 * 'BCR and NPV sensitivity'!X$7) - (Summary!$E$10 * 'BCR and NPV sensitivity'!$B110) -> 265.9307595 | Y110: =(Summary!$E$9 * 'BCR and NPV sensitivity'!Y$7) - (Summary!$E$10 * 'BCR and NPV sensitivity'!$B110) -> 337.5443002 | Z110: =(Summary!$E$9 * 'BCR and NPV sensitivity'!Z$7) - (Summary!$E$10 * 'BCR and NPV sensitivity'!$B110) -> 409.1578409 | AA110: =(Summary!$E$9 * 'BCR and NPV sensitivity'!AA$7) - (Summary!$E$10 * 'BCR and NPV sensitivity'!$B110) -> 480.7713817
B111: 1.8 | C111: =(Summary!$E$9 * 'BCR and NPV sensitivity'!C$7) / (Summary!$E$10 * 'BCR and NPV sensitivity'!$B111) -> 0.3380746084 | D111: =(Summary!$E$9 * 'BCR and NPV sensitivity'!D$7) / (Summary!$E$10 * 'BCR and NPV sensitivity'!$B111) -> 0.6761492168 | E111: =(Summary!$E$9 * 'BCR and NPV sensitivity'!E$7) / (Summary!$E$10 * 'BCR and NPV sensitivity'!$B111) -> 1.014223825 | F111: =(Summary!$E$9 * 'BCR and NPV sensitivity'!F$7) / (Summary!$E$10 * 'BCR and NPV sensitivity'!$B111) -> 1.352298434 | G111: =(Summary!$E$9 * 'BCR and NPV sensitivity'!G$7) / (Summary!$E$10 * 'BCR and NPV sensitivity'!$B111) -> 1.690373042 | H111: =(Summary!$E$9 * 'BCR and NPV sensitivity'!H$7) / (Summary!$E$10 * 'BCR and NPV sensitivity'!$B111) -> 2.02844765 | I111: =(Summary!$E$9 * 'BCR and NPV sensitivity'!I$7) / (Summary!$E$10 * 'BCR and NPV sensitivity'!$B111) -> 2.366522259 | J111: =(Summary!$E$9 * 'BCR and NPV sensitivity'!J$7) / (Summary!$E$10 * 'BCR and NPV sensitivity'!$B111) -> 2.704596867 | K111: =(Summary!$E$9 * 'BCR and NPV sensitivity'!K$7) / (Summary!$E$10 * 'BCR and NPV sensitivity'!$B111) -> 3.042671475 | L111: =(Summary!$E$9 * 'BCR and NPV sensitivity'!L$7) / (Summary!$E$10 * 'BCR and NPV sensitivity'!$B111) -> 3.380746084 | Q111: 1.8 | R111: =(Summary!$E$9 * 'BCR and NPV sensitivity'!R$7) - (Summary!$E$10 * 'BCR and NPV sensitivity'!$B111) -> -140.2140824 | S111: =(Summary!$E$9 * 'BCR and NPV sensitivity'!S$7) - (Summary!$E$10 * 'BCR and NPV sensitivity'!$B111) -> -68.60054166 | T111: =(Summary!$E$9 * 'BCR and NPV sensitivity'!T$7) - (Summary!$E$10 * 'BCR and NPV sensitivity'!$B111) -> 3.012999076 | U111: =(Summary!$E$9 * 'BCR and NPV sensitivity'!U$7) - (Summary!$E$10 * 'BCR and NPV sensitivity'!$B111) -> 74.62653982 | V111: =(Summary!$E$9 * 'BCR and NPV sensitivity'!V$7) - (Summary!$E$10 * 'BCR and NPV sensitivity'!$B111) -> 146.2400806 | W111: =(Summary!$E$9 * 'BCR and NPV sensitivity'!W$7) - (Summary!$E$10 * 'BCR and NPV sensitivity'!$B111) -> 217.8536213 | X111: =(Summary!$E$9 * 'BCR and NPV sensitivity'!X$7) - (Summary!$E$10 * 'BCR and NPV sensitivity'!$B111) -> 289.467162 | Y111: =(Summary!$E$9 * 'BCR and NPV sensitivity'!Y$7) - (Summary!$E$10 * 'BCR and NPV sensitivity'!$B111) -> 361.0807028 | Z111: =(Summary!$E$9 * 'BCR and NPV sensitivity'!Z$7) - (Summary!$E$10 * 'BCR and NPV sensitivity'!$B111) -> 432.6942435 | AA111: =(Summary!$E$9 * 'BCR and NPV sensitivity'!AA$7) - (Summary!$E$10 * 'BCR and NPV sensitivity'!$B111) -> 504.3077843
B112: 1.6 | C112: =(Summary!$E$9 * 'BCR and NPV sensitivity'!C$7) / (Summary!$E$10 * 'BCR and NPV sensitivity'!$B112) -> 0.3803339344 | D112: =(Summary!$E$9 * 'BCR and NPV sensitivity'!D$7) / (Summary!$E$10 * 'BCR and NPV sensitivity'!$B112) -> 0.7606678689 | E112: =(Summary!$E$9 * 'BCR and NPV sensitivity'!E$7) / (Summary!$E$10 * 'BCR and NPV sensitivity'!$B112) -> 1.141001803 | F112: =(Summary!$E$9 * 'BCR and NPV sensitivity'!F$7) / (Summary!$E$10 * 'BCR and NPV sensitivity'!$B112) -> 1.521335738 | G112: =(Summary!$E$9 * 'BCR and NPV sensitivity'!G$7) / (Summary!$E$10 * 'BCR and NPV sensitivity'!$B112) -> 1.901669672 | H112: =(Summary!$E$9 * 'BCR and NPV sensitivity'!H$7) / (Summary!$E$10 * 'BCR and NPV sensitivity'!$B112) -> 2.282003607 | I112: =(Summary!$E$9 * 'BCR and NPV sensitivity'!I$7) / (Summary!$E$10 * 'BCR and NPV sensitivity'!$B112) -> 2.662337541 | J112: =(Summary!$E$9 * 'BCR and NPV sensitivity'!J$7) / (Summary!$E$10 * 'BCR and NPV sensitivity'!$B112) -> 3.042671475 | K112: =(Summary!$E$9 * 'BCR and NPV sensitivity'!K$7) / (Summary!$E$10 * 'BCR and NPV sensitivity'!$B112) -> 3.42300541 | L112: =(Summary!$E$9 * 'BCR and NPV sensitivity'!L$7) / (Summary!$E$10 * 'BCR and NPV sensitivity'!$B112) -> 3.803339344 | Q112: 1.6 | R112: =(Summary!$E$9 * 'BCR and NPV sensitivity'!R$7) - (Summary!$E$10 * 'BCR and NPV sensitivity'!$B112) -> -116.6776798 | S112: =(Summary!$E$9 * 'BCR and NPV sensitivity'!S$7) - (Summary!$E$10 * 'BCR and NPV sensitivity'!$B112) -> -45.06413909 | T112: =(Summary!$E$9 * 'BCR and NPV sensitivity'!T$7) - (Summary!$E$10 * 'BCR and NPV sensitivity'!$B112) -> 26.54940165 | U112: =(Summary!$E$9 * 'BCR and NPV sensitivity'!U$7) - (Summary!$E$10 * 'BCR and NPV sensitivity'!$B112) -> 98.16294239 | V112: =(Summary!$E$9 * 'BCR and NPV sensitivity'!V$7) - (Summary!$E$10 * 'BCR and NPV sensitivity'!$B112) -> 169.7764831 | W112: =(Summary!$E$9 * 'BCR and NPV sensitivity'!W$7) - (Summary!$E$10 * 'BCR and NPV sensitivity'!$B112) -> 241.3900239 | X112: =(Summary!$E$9 * 'BCR and NPV sensitivity'!X$7) - (Summary!$E$10 * 'BCR and NPV sensitivity'!$B112) -> 313.0035646 | Y112: =(Summary!$E$9 * 'BCR and NPV sensitivity'!Y$7) - (Summary!$E$10 * 'BCR and NPV sensitivity'!$B112) -> 384.6171053 | Z112: =(Summary!$E$9 * 'BCR and NPV sensitivity'!Z$7) - (Summary!$E$10 * 'BCR and NPV sensitivity'!$B112) -> 456.2306461 | AA112: =(Summary!$E$9 * 'BCR and NPV sensitivity'!AA$7) - (Summary!$E$10 * 'BCR and NPV sensitivity'!$B112) -> 527.8441868
B113: 1.4 | C113: =(Summary!$E$9 * 'BCR and NPV sensitivity'!C$7) / (Summary!$E$10 * 'BCR and NPV sensitivity'!$B113) -> 0.4346673536 | D113: =(Summary!$E$9 * 'BCR and NPV sensitivity'!D$7) / (Summary!$E$10 * 'BCR and NPV sensitivity'!$B113) -> 0.8693347073 | E113: =(Summary!$E$9 * 'BCR and NPV sensitivity'!E$7) / (Summary!$E$10 * 'BCR and NPV sensitivity'!$B113) -> 1.304002061 | F113: =(Summary!$E$9 * 'BCR and NPV sensitivity'!F$7) / (Summary!$E$10 * 'BCR and NPV sensitivity'!$B113) -> 1.738669415 | G113: =(Summary!$E$9 * 'BCR and NPV sensitivity'!G$7) / (Summary!$E$10 * 'BCR and NPV sensitivity'!$B113) -> 2.173336768 | H113: =(Summary!$E$9 * 'BCR and NPV sensitivity'!H$7) / (Summary!$E$10 * 'BCR and NPV sensitivity'!$B113) -> 2.608004122 | I113: =(Summary!$E$9 * 'BCR and NPV sensitivity'!I$7) / (Summary!$E$10 * 'BCR and NPV sensitivity'!$B113) -> 3.042671475 | J113: =(Summary!$E$9 * 'BCR and NPV sensitivity'!J$7) / (Summary!$E$10 * 'BCR and NPV sensitivity'!$B113) -> 3.477338829 | K113: =(Summary!$E$9 * 'BCR and NPV sensitivity'!K$7) / (Summary!$E$10 * 'BCR and NPV sensitivity'!$B113) -> 3.912006183 | L113: =(Summary!$E$9 * 'BCR and NPV sensitivity'!L$7) / (Summary!$E$10 * 'BCR and NPV sensitivity'!$B113) -> 4.346673536 | Q113: 1.4 | R113: =(Summary!$E$9 * 'BCR and NPV sensitivity'!R$7) - (Summary!$E$10 * 'BCR and NPV sensitivity'!$B113) -> -93.14127726 | S113: =(Summary!$E$9 * 'BCR and NPV sensitivity'!S$7) - (Summary!$E$10 * 'BCR and NPV sensitivity'!$B113) -> -21.52773652 | T113: =(Summary!$E$9 * 'BCR and NPV sensitivity'!T$7) - (Summary!$E$10 * 'BCR and NPV sensitivity'!$B113) -> 50.08580422 | U113: =(Summary!$E$9 * 'BCR and NPV sensitivity'!U$7) - (Summary!$E$10 * 'BCR and NPV sensitivity'!$B113) -> 121.699345 | V113: =(Summary!$E$9 * 'BCR and NPV sensitivity'!V$7) - (Summary!$E$10 * 'BCR and NPV sensitivity'!$B113) -> 193.3128857 | W113: =(Summary!$E$9 * 'BCR and NPV sensitivity'!W$7) - (Summary!$E$10 * 'BCR and NPV sensitivity'!$B113) -> 264.9264264 | X113: =(Summary!$E$9 * 'BCR and NPV sensitivity'!X$7) - (Summary!$E$10 * 'BCR and NPV sensitivity'!$B113) -> 336.5399672 | Y113: =(Summary!$E$9 * 'BCR and NPV sensitivity'!Y$7) - (Summary!$E$10 * 'BCR and NPV sensitivity'!$B113) -> 408.1535079 | Z113: =(Summary!$E$9 * 'BCR and NPV sensitivity'!Z$7) - (Summary!$E$10 * 'BCR and NPV sensitivity'!$B113) -> 479.7670487 | AA113: =(Summary!$E$9 * 'BCR and NPV sensitivity'!AA$7) - (Summary!$E$10 * 'BCR and NPV sensitivity'!$B113) -> 551.3805894
B114: 1.2 | C114: =(Summary!$E$9 * 'BCR and NPV sensitivity'!C$7) / (Summary!$E$10 * 'BCR and NPV sensitivity'!$B114) -> 0.5071119126 | D114: =(Summary!$E$9 * 'BCR and NPV sensitivity'!D$7) / (Summary!$E$10 * 'BCR and NPV sensitivity'!$B114) -> 1.014223825 | E114: =(Summary!$E$9 * 'BCR and NPV sensitivity'!E$7) / (Summary!$E$10 * 'BCR and NPV sensitivity'!$B114) -> 1.521335738 | F114: =(Summary!$E$9 * 'BCR and NPV sensitivity'!F$7) / (Summary!$E$10 * 'BCR and NPV sensitivity'!$B114) -> 2.02844765 | G114: =(Summary!$E$9 * 'BCR and NPV sensitivity'!G$7) / (Summary!$E$10 * 'BCR and NPV sensitivity'!$B114) -> 2.535559563 | H114: =(Summary!$E$9 * 'BCR and NPV sensitivity'!H$7) / (Summary!$E$10 * 'BCR and NPV sensitivity'!$B114) -> 3.042671475 | I114: =(Summary!$E$9 * 'BCR and NPV sensitivity'!I$7) / (Summary!$E$10 * 'BCR and NPV sensitivity'!$B114) -> 3.549783388 | J114: =(Summary!$E$9 * 'BCR and NPV sensitivity'!J$7) / (Summary!$E$10 * 'BCR and NPV sensitivity'!$B114) -> 4.056895301 | K114: =(Summary!$E$9 * 'BCR and NPV sensitivity'!K$7) / (Summary!$E$10 * 'BCR and NPV sensitivity'!$B114) -> 4.564007213 | L114: =(Summary!$E$9 * 'BCR and NPV sensitivity'!L$7) / (Summary!$E$10 * 'BCR and NPV sensitivity'!$B114) -> 5.071119126 | Q114: 1.2 | R114: =(Summary!$E$9 * 'BCR and NPV sensitivity'!R$7) - (Summary!$E$10 * 'BCR and NPV sensitivity'!$B114) -> -69.60487469 | S114: =(Summary!$E$9 * 'BCR and NPV sensitivity'!S$7) - (Summary!$E$10 * 'BCR and NPV sensitivity'!$B114) -> 2.008666051 | T114: =(Summary!$E$9 * 'BCR and NPV sensitivity'!T$7) - (Summary!$E$10 * 'BCR and NPV sensitivity'!$B114) -> 73.62220679 | U114: =(Summary!$E$9 * 'BCR and NPV sensitivity'!U$7) - (Summary!$E$10 * 'BCR and NPV sensitivity'!$B114) -> 145.2357475 | V114: =(Summary!$E$9 * 'BCR and NPV sensitivity'!V$7) - (Summary!$E$10 * 'BCR and NPV sensitivity'!$B114) -> 216.8492883 | W114: =(Summary!$E$9 * 'BCR and NPV sensitivity'!W$7) - (Summary!$E$10 * 'BCR and NPV sensitivity'!$B114) -> 288.462829 | X114: =(Summary!$E$9 * 'BCR and NPV sensitivity'!X$7) - (Summary!$E$10 * 'BCR and NPV sensitivity'!$B114) -> 360.0763697 | Y114: =(Summary!$E$9 * 'BCR and NPV sensitivity'!Y$7) - (Summary!$E$10 * 'BCR and NPV sensitivity'!$B114) -> 431.6899105 | Z114: =(Summary!$E$9 * 'BCR and NPV sensitivity'!Z$7) - (Summary!$E$10 * 'BCR and NPV sensitivity'!$B114) -> 503.3034512 | AA114: =(Summary!$E$9 * 'BCR and NPV sensitivity'!AA$7) - (Summary!$E$10 * 'BCR and NPV sensitivity'!$B114) -> 574.916992
B115: 1 | C115: =(Summary!$E$9 * 'BCR and NPV sensitivity'!C$7) / (Summary!$E$10 * 'BCR and NPV sensitivity'!$B115) -> 0.6085342951 | D115: =(Summary!$E$9 * 'BCR and NPV sensitivity'!D$7) / (Summary!$E$10 * 'BCR and NPV sensitivity'!$B115) -> 1.21706859 | E115: =(Summary!$E$9 * 'BCR and NPV sensitivity'!E$7) / (Summary!$E$10 * 'BCR and NPV sensitivity'!$B115) -> 1.825602885 | F115: =(Summary!$E$9 * 'BCR and NPV sensitivity'!F$7) / (Summary!$E$10 * 'BCR and NPV sensitivity'!$B115) -> 2.43413718 | G115: =(Summary!$E$9 * 'BCR and NPV sensitivity'!G$7) / (Summary!$E$10 * 'BCR and NPV sensitivity'!$B115) -> 3.042671475 | H115: =(Summary!$E$9 * 'BCR and NPV sensitivity'!H$7) / (Summary!$E$10 * 'BCR and NPV sensitivity'!$B115) -> 3.651205771 | I115: =(Summary!$E$9 * 'BCR and NPV sensitivity'!I$7) / (Summary!$E$10 * 'BCR and NPV sensitivity'!$B115) -> 4.259740066 | J115: =(Summary!$E$9 * 'BCR and NPV sensitivity'!J$7) / (Summary!$E$10 * 'BCR and NPV sensitivity'!$B115) -> 4.868274361 | K115: =(Summary!$E$9 * 'BCR and NPV sensitivity'!K$7) / (Summary!$E$10 * 'BCR and NPV sensitivity'!$B115) -> 5.476808656 | L115: =(Summary!$E$9 * 'BCR and NPV sensitivity'!L$7) / (Summary!$E$10 * 'BCR and NPV sensitivity'!$B115) -> 6.085342951 | Q115: 1 | R115: =(Summary!$E$9 * 'BCR and NPV sensitivity'!R$7) - (Summary!$E$10 * 'BCR and NPV sensitivity'!$B115) -> -46.06847212 | S115: =(Summary!$E$9 * 'BCR and NPV sensitivity'!S$7) - (Summary!$E$10 * 'BCR and NPV sensitivity'!$B115) -> 25.54506862 | T115: =(Summary!$E$9 * 'BCR and NPV sensitivity'!T$7) - (Summary!$E$10 * 'BCR and NPV sensitivity'!$B115) -> 97.15860936 | U115: =(Summary!$E$9 * 'BCR and NPV sensitivity'!U$7) - (Summary!$E$10 * 'BCR and NPV sensitivity'!$B115) -> 168.7721501 | V115: =(Summary!$E$9 * 'BCR and NPV sensitivity'!V$7) - (Summary!$E$10 * 'BCR and NPV sensitivity'!$B115) -> 240.3856908 | W115: =(Summary!$E$9 * 'BCR and NPV sensitivity'!W$7) - (Summary!$E$10 * 'BCR and NPV sensitivity'!$B115) -> 311.9992316 | X115: =(Summary!$E$9 * 'BCR and NPV sensitivity'!X$7) - (Summary!$E$10 * 'BCR and NPV sensitivity'!$B115) -> 383.6127723 | Y115: =(Summary!$E$9 * 'BCR and NPV sensitivity'!Y$7) - (Summary!$E$10 * 'BCR and NPV sensitivity'!$B115) -> 455.2263131 | Z115: =(Summary!$E$9 * 'BCR and NPV sensitivity'!Z$7) - (Summary!$E$10 * 'BCR and NPV sensitivity'!$B115) -> 526.8398538 | AA115: =(Summary!$E$9 * 'BCR and NPV sensitivity'!AA$7) - (Summary!$E$10 * 'BCR and NPV sensitivity'!$B115) -> 598.4533945
B116: 0.8 | C116: =(Summary!$E$9 * 'BCR and NPV sensitivity'!C$7) / (Summary!$E$10 * 'BCR and NPV sensitivity'!$B116) -> 0.7606678689 | D116: =(Summary!$E$9 * 'BCR and NPV sensitivity'!D$7) / (Summary!$E$10 * 'BCR and NPV sensitivity'!$B116) -> 1.521335738 | E116: =(Summary!$E$9 * 'BCR and NPV sensitivity'!E$7) / (Summary!$E$10 * 'BCR and NPV sensitivity'!$B116) -> 2.282003607 | F116: =(Summary!$E$9 * 'BCR and NPV sensitivity'!F$7) / (Summary!$E$10 * 'BCR and NPV sensitivity'!$B116) -> 3.042671475 | G116: =(Summary!$E$9 * 'BCR and NPV sensitivity'!G$7) / (Summary!$E$10 * 'BCR and NPV sensitivity'!$B116) -> 3.803339344 | H116: =(Summary!$E$9 * 'BCR and NPV sensitivity'!H$7) / (Summary!$E$10 * 'BCR and NPV sensitivity'!$B116) -> 4.564007213 | I116: =(Summary!$E$9 * 'BCR and NPV sensitivity'!I$7) / (Summary!$E$10 * 'BCR and NPV sensitivity'!$B116) -> 5.324675082 | J116: =(Summary!$E$9 * 'BCR and NPV sensitivity'!J$7) / (Summary!$E$10 * 'BCR and NPV sensitivity'!$B116) -> 6.085342951 | K116: =(Summary!$E$9 * 'BCR and NPV sensitivity'!K$7) / (Summary!$E$10 * 'BCR and NPV sensitivity'!$B116) -> 6.84601082 | L116: =(Summary!$E$9 * 'BCR and NPV sensitivity'!L$7) / (Summary!$E$10 * 'BCR and NPV sensitivity'!$B116) -> 7.606678689 | Q116: 0.8 | R116: =(Summary!$E$9 * 'BCR and NPV sensitivity'!R$7) - (Summary!$E$10 * 'BCR and NPV sensitivity'!$B116) -> -22.53206955 | S116: =(Summary!$E$9 * 'BCR and NPV sensitivity'!S$7) - (Summary!$E$10 * 'BCR and NPV sensitivity'!$B116) -> 49.08147119 | T116: =(Summary!$E$9 * 'BCR and NPV sensitivity'!T$7) - (Summary!$E$10 * 'BCR and NPV sensitivity'!$B116) -> 120.6950119 | U116: =(Summary!$E$9 * 'BCR and NPV sensitivity'!U$7) - (Summary!$E$10 * 'BCR and NPV sensitivity'!$B116) -> 192.3085527 | V116: =(Summary!$E$9 * 'BCR and NPV sensitivity'!V$7) - (Summary!$E$10 * 'BCR and NPV sensitivity'!$B116) -> 263.9220934 | W116: =(Summary!$E$9 * 'BCR and NPV sensitivity'!W$7) - (Summary!$E$10 * 'BCR and NPV sensitivity'!$B116) -> 335.5356342 | X116: =(Summary!$E$9 * 'BCR and NPV sensitivity'!X$7) - (Summary!$E$10 * 'BCR and NPV sensitivity'!$B116) -> 407.1491749 | Y116: =(Summary!$E$9 * 'BCR and NPV sensitivity'!Y$7) - (Summary!$E$10 * 'BCR and NPV sensitivity'!$B116) -> 478.7627156 | Z116: =(Summary!$E$9 * 'BCR and NPV sensitivity'!Z$7) - (Summary!$E$10 * 'BCR and NPV sensitivity'!$B116) -> 550.3762564 | AA116: =(Summary!$E$9 * 'BCR and NPV sensitivity'!AA$7) - (Summary!$E$10 * 'BCR and NPV sensitivity'!$B116) -> 621.9897971
B117: 0.6 | C117: =(Summary!$E$9 * 'BCR and NPV sensitivity'!C$7) / (Summary!$E$10 * 'BCR and NPV sensitivity'!$B117) -> 1.014223825 | D117: =(Summary!$E$9 * 'BCR and NPV sensitivity'!D$7) / (Summary!$E$10 * 'BCR and NPV sensitivity'!$B117) -> 2.02844765 | E117: =(Summary!$E$9 * 'BCR and NPV sensitivity'!E$7) / (Summary!$E$10 * 'BCR and NPV sensitivity'!$B117) -> 3.042671475 | F117: =(Summary!$E$9 * 'BCR and NPV sensitivity'!F$7) / (Summary!$E$10 * 'BCR and NPV sensitivity'!$B117) -> 4.056895301 | G117: =(Summary!$E$9 * 'BCR and NPV sensitivity'!G$7) / (Summary!$E$10 * 'BCR and NPV sensitivity'!$B117) -> 5.071119126 | H117: =(Summary!$E$9 * 'BCR and NPV sensitivity'!H$7) / (Summary!$E$10 * 'BCR and NPV sensitivity'!$B117) -> 6.085342951 | I117: =(Summary!$E$9 * 'BCR and NPV sensitivity'!I$7) / (Summary!$E$10 * 'BCR and NPV sensitivity'!$B117) -> 7.099566776 | J117: =(Summary!$E$9 * 'BCR and NPV sensitivity'!J$7) / (Summary!$E$10 * 'BCR and NPV sensitivity'!$B117) -> 8.113790601 | K117: =(Summary!$E$9 * 'BCR and NPV sensitivity'!K$7) / (Summary!$E$10 * 'BCR and NPV sensitivity'!$B117) -> 9.128014426 | L117: =(Summary!$E$9 * 'BCR and NPV sensitivity'!L$7) / (Summary!$E$10 * 'BCR and NPV sensitivity'!$B117) -> 10.14223825 | Q117: 0.6 | R117: =(Summary!$E$9 * 'BCR and NPV sensitivity'!R$7) - (Summary!$E$10 * 'BCR and NPV sensitivity'!$B117) -> 1.004333025 | S117: =(Summary!$E$9 * 'BCR and NPV sensitivity'!S$7) - (Summary!$E$10 * 'BCR and NPV sensitivity'!$B117) -> 72.61787376 | T117: =(Summary!$E$9 * 'BCR and NPV sensitivity'!T$7) - (Summary!$E$10 * 'BCR and NPV sensitivity'!$B117) -> 144.2314145 | U117: =(Summary!$E$9 * 'BCR and NPV sensitivity'!U$7) - (Summary!$E$10 * 'BCR and NPV sensitivity'!$B117) -> 215.8449552 | V117: =(Summary!$E$9 * 'BCR and NPV sensitivity'!V$7) - (Summary!$E$10 * 'BCR and NPV sensitivity'!$B117) -> 287.458496 | W117: =(Summary!$E$9 * 'BCR and NPV sensitivity'!W$7) - (Summary!$E$10 * 'BCR and NPV sensitivity'!$B117) -> 359.0720367 | X117: =(Summary!$E$9 * 'BCR and NPV sensitivity'!X$7) - (Summary!$E$10 * 'BCR and NPV sensitivity'!$B117) -> 430.6855775 | Y117: =(Summary!$E$9 * 'BCR and NPV sensitivity'!Y$7) - (Summary!$E$10 * 'BCR and NPV sensitivity'!$B117) -> 502.2991182 | Z117: =(Summary!$E$9 * 'BCR and NPV sensitivity'!Z$7) - (Summary!$E$10 * 'BCR and NPV sensitivity'!$B117) -> 573.9126589 | AA117: =(Summary!$E$9 * 'BCR and NPV sensitivity'!AA$7) - (Summary!$E$10 * 'BCR and NPV sensitivity'!$B117) -> 645.5261997

Sheet CPI and Discount rate sensitivi (hidden)
A1: Sensitivity Analysis for CPI and Discount Rates for Nominal Dollars
A3: Option 1
A5: Benefit Cost Ratio | P5: Net Present Value ($ million)
D6: Discount rate sensitivity analysis (NPV) | S6: Discount rate sensitivity analysis (NPV)
D7: 0.01 | E7: 0.02 | F7: 0.03 | G7: 0.04 | H7: 0.05 | I7: 0.06 | J7: 0.07 | K7: 0.08 | L7: 0.09 | M7: 0.1 | S7: 0.01 | T7: 0.02 | U7: 0.03 | V7: 0.04 | W7: 0.05 | X7: 0.06 | Y7: 0.07 | Z7: 0.08 | AA7: 0.09 | AB7: 0.1
B8: CPI growth % annually | C8: 2 | D8: ='Option 1 (nominal $, 2% CPI)'!Z37 ->  | E8: ='Option 1 (nominal $, 2% CPI)'!AA37 ->  | F8: ='Option 1 (nominal $, 2% CPI)'!AB37 ->  | G8: ='Option 1 (nominal $, 2% CPI)'!AC37 ->  | H8: ='Option 1 (nominal $, 2% CPI)'!AD37 ->  | I8: ='Option 1 (nominal $, 2% CPI)'!AE37 ->  | J8: ='Option 1 (nominal $, 2% CPI)'!AF37 ->  | K8: ='Option 1 (nominal $, 2% CPI)'!AG37 ->  | L8: ='Option 1 (nominal $, 2% CPI)'!AH37 ->  | M8: ='Option 1 (nominal $, 2% CPI)'!AI37 ->  | Q8: CPI growth % annually | R8: 2 | S8: ='Option 1 (nominal $, 2% CPI)'!Z36 ->  | T8: ='Option 1 (nominal $, 2% CPI)'!AA36 ->  | U8: ='Option 1 (nominal $, 2% CPI)'!AB36 ->  | V8: ='Option 1 (nominal $, 2% CPI)'!AC36 ->  | W8: ='Option 1 (nominal $, 2% CPI)'!AD36 ->  | X8: ='Option 1 (nominal $, 2% CPI)'!AE36 ->  | Y8: ='Option 1 (nominal $, 2% CPI)'!AF36 ->  | Z8: ='Option 1 (nominal $, 2% CPI)'!AG36 ->  | AA8: ='Option 1 (nominal $, 2% CPI)'!AH36 ->  | AB8: ='Option 1 (nominal $, 2% CPI)'!AI36 -> 
C9: 2.5 | D9: =#REF! ->  | E9: =#REF! ->  | F9: =#REF! ->  | G9: =#REF! ->  | H9: =#REF! ->  | I9: =#REF! ->  | J9: =#REF! ->  | K9: =#REF! ->  | L9: =#REF! ->  | M9: =#REF! ->  | R9: 2.5 | S9: =#REF! ->  | T9: =#REF! ->  | U9: =#REF! ->  | V9: =#REF! ->  | W9: =#REF! ->  | X9: =#REF! ->  | Y9: =#REF! ->  | Z9: =#REF! ->  | AA9: =#REF! ->  | AB9: =#REF! -> 
C10: 3 | D10: ='Option 1 (nominal $, 3% CPI)'!Z37 ->  | E10: ='Option 1 (nominal $, 3% CPI)'!AA37 ->  | F10: ='Option 1 (nominal $, 3% CPI)'!AB37 ->  | G10: ='Option 1 (nominal $, 3% CPI)'!AC37 ->  | H10: ='Option 1 (nominal $, 3% CPI)'!AD37 ->  | I10: ='Option 1 (nominal $, 3% CPI)'!AE37 ->  | J10: ='Option 1 (nominal $, 3% CPI)'!AF37 ->  | K10: ='Option 1 (nominal $, 3% CPI)'!AG37 ->  | L10: ='Option 1 (nominal $, 3% CPI)'!AH37 ->  | M10: ='Option 1 (nominal $, 3% CPI)'!AI37 ->  | R10: 3 | S10: ='Option 1 (nominal $, 3% CPI)'!Z36 ->  | T10: ='Option 1 (nominal $, 3% CPI)'!AA36 ->  | U10: ='Option 1 (nominal $, 3% CPI)'!AB36 ->  | V10: ='Option 1 (nominal $, 3% CPI)'!AC36 ->  | W10: ='Option 1 (nominal $, 3% CPI)'!AD36 ->  | X10: ='Option 1 (nominal $, 3% CPI)'!AE36 ->  | Y10: ='Option 1 (nominal $, 3% CPI)'!AF36 ->  | Z10: ='Option 1 (nominal $, 3% CPI)'!AG36 ->  | AA10: ='Option 1 (nominal $, 3% CPI)'!AH36 ->  | AB10: ='Option 1 (nominal $, 3% CPI)'!AI36 -> 
C11: 3.5 | D11: ='Option 1 (nominal $, 3.5% CPI)'!Z37 ->  | E11: ='Option 1 (nominal $, 3.5% CPI)'!AA37 ->  | F11: ='Option 1 (nominal $, 3.5% CPI)'!AB37 ->  | G11: ='Option 1 (nominal $, 3.5% CPI)'!AC37 ->  | H11: ='Option 1 (nominal $, 3.5% CPI)'!AD37 ->  | I11: ='Option 1 (nominal $, 3.5% CPI)'!AE37 ->  | J11: ='Option 1 (nominal $, 3.5% CPI)'!AF37 ->  | K11: ='Option 1 (nominal $, 3.5% CPI)'!AG37 ->  | L11: ='Option 1 (nominal $, 3.5% CPI)'!AH37 ->  | M11: ='Option 1 (nominal $, 3.5% CPI)'!AI37 ->  | R11: 3.5 | S11: ='Option 1 (nominal $, 3.5% CPI)'!Z36 ->  | T11: ='Option 1 (nominal $, 3.5% CPI)'!AA36 ->  | U11: ='Option 1 (nominal $, 3.5% CPI)'!AB36 ->  | V11: ='Option 1 (nominal $, 3.5% CPI)'!AC36 ->  | W11: ='Option 1 (nominal $, 3.5% CPI)'!AD36 ->  | X11: ='Option 1 (nominal $, 3.5% CPI)'!AE36 ->  | Y11: ='Option 1 (nominal $, 3.5% CPI)'!AF36 ->  | Z11: ='Option 1 (nominal $, 3.5% CPI)'!AG36 ->  | AA11: ='Option 1 (nominal $, 3.5% CPI)'!AH36 ->  | AB11: ='Option 1 (nominal $, 3.5% CPI)'!AI36 -> 
C12: 4 | D12: ='Option 1 (nominal $, 4% CPI)'!Z37 ->  | E12: ='Option 1 (nominal $, 4% CPI)'!AA37 ->  | F12: ='Option 1 (nominal $, 4% CPI)'!AB37 ->  | G12: ='Option 1 (nominal $, 4% CPI)'!AC37 ->  | H12: ='Option 1 (nominal $, 4% CPI)'!AD37 ->  | I12: ='Option 1 (nominal $, 4% CPI)'!AE37 ->  | J12: ='Option 1 (nominal $, 4% CPI)'!AF37 ->  | K12: ='Option 1 (nominal $, 4% CPI)'!AG37 ->  | L12: ='Option 1 (nominal $, 4% CPI)'!AH37 ->  | M12: ='Option 1 (nominal $, 4% CPI)'!AI37 ->  | R12: 4 | S12: ='Option 1 (nominal $, 4% CPI)'!Z36 ->  | T12: ='Option 1 (nominal $, 4% CPI)'!AA36 ->  | U12: ='Option 1 (nominal $, 4% CPI)'!AB36 ->  | V12: ='Option 1 (nominal $, 4% CPI)'!AC36 ->  | W12: ='Option 1 (nominal $, 4% CPI)'!AD36 ->  | X12: ='Option 1 (nominal $, 4% CPI)'!AE36 ->  | Y12: ='Option 1 (nominal $, 4% CPI)'!AF36 ->  | Z12: ='Option 1 (nominal $, 4% CPI)'!AG36 ->  | AA12: ='Option 1 (nominal $, 4% CPI)'!AH36 ->  | AB12: ='Option 1 (nominal $, 4% CPI)'!AI36 -> 
C13: 4.5 | D13: ='Option 1 (nominal $, 4.5% CPI)'!Z37 ->  | E13: ='Option 1 (nominal $, 4.5% CPI)'!AA37 ->  | F13: ='Option 1 (nominal $, 4.5% CPI)'!AB37 ->  | G13: ='Option 1 (nominal $, 4.5% CPI)'!AC37 ->  | H13: ='Option 1 (nominal $, 4.5% CPI)'!AD37 ->  | I13: ='Option 1 (nominal $, 4.5% CPI)'!AE37 ->  | J13: ='Option 1 (nominal $, 4.5% CPI)'!AF37 ->  | K13: ='Option 1 (nominal $, 4.5% CPI)'!AG37 ->  | L13: ='Option 1 (nominal $, 4.5% CPI)'!AH37 ->  | M13: ='Option 1 (nominal $, 4.5% CPI)'!AI37 ->  | R13: 4.5 | S13: ='Option 1 (nominal $, 4.5% CPI)'!Z36 ->  | T13: ='Option 1 (nominal $, 4.5% CPI)'!AA36 ->  | U13: ='Option 1 (nominal $, 4.5% CPI)'!AB36 ->  | V13: ='Option 1 (nominal $, 4.5% CPI)'!AC36 ->  | W13: ='Option 1 (nominal $, 4.5% CPI)'!AD36 ->  | X13: ='Option 1 (nominal $, 4.5% CPI)'!AE36 ->  | Y13: ='Option 1 (nominal $, 4.5% CPI)'!AF36 ->  | Z13: ='Option 1 (nominal $, 4.5% CPI)'!AG36 ->  | AA13: ='Option 1 (nominal $, 4.5% CPI)'!AH36 ->  | AB13: ='Option 1 (nominal $, 4.5% CPI)'!AI36 -> 
C14: 5 | D14: ='Option 1 (nominal $, 5% CPI)'!Z37 ->  | E14: ='Option 1 (nominal $, 5% CPI)'!AA37 ->  | F14: ='Option 1 (nominal $, 5% CPI)'!AB37 ->  | G14: ='Option 1 (nominal $, 5% CPI)'!AC37 ->  | H14: ='Option 1 (nominal $, 5% CPI)'!AD37 ->  | I14: ='Option 1 (nominal $, 5% CPI)'!AE37 ->  | J14: ='Option 1 (nominal $, 5% CPI)'!AF37 ->  | K14: ='Option 1 (nominal $, 5% CPI)'!AG37 ->  | L14: ='Option 1 (nominal $, 5% CPI)'!AH37 ->  | M14: ='Option 1 (nominal $, 5% CPI)'!AI37 ->  | R14: 5 | S14: ='Option 1 (nominal $, 5% CPI)'!Z36 ->  | T14: ='Option 1 (nominal $, 5% CPI)'!AA36 ->  | U14: ='Option 1 (nominal $, 5% CPI)'!AB36 ->  | V14: ='Option 1 (nominal $, 5% CPI)'!AC36 ->  | W14: ='Option 1 (nominal $, 5% CPI)'!AD36 ->  | X14: ='Option 1 (nominal $, 5% CPI)'!AE36 ->  | Y14: ='Option 1 (nominal $, 5% CPI)'!AF36 ->  | Z14: ='Option 1 (nominal $, 5% CPI)'!AG36 ->  | AA14: ='Option 1 (nominal $, 5% CPI)'!AH36 ->  | AB14: ='Option 1 (nominal $, 5% CPI)'!AI36 -> 
A16: Option 2
A18: Benefit Cost Ratio | P18: Net Present Value ($ million)
D19: Discount rate sensitivity analysis (NPV) | S19: Discount rate sensitivity analysis (NPV)
D20: 0.01 | E20: 0.02 | F20: 0.03 | G20: 0.04 | H20: 0.05 | I20: 0.06 | J20: 0.07 | K20: 0.08 | L20: 0.09 | M20: 0.1 | S20: 0.01 | T20: 0.02 | U20: 0.03 | V20: 0.04 | W20: 0.05 | X20: 0.06 | Y20: 0.07 | Z20: 0.08 | AA20: 0.09 | AB20: 0.1
B21: CPI growth % annually | C21: 2 | D21: ='Option 2 (nominal $, 2% CPI)'!Z46 ->  | E21: ='Option 2 (nominal $, 2% CPI)'!AA46 ->  | F21: ='Option 2 (nominal $, 2% CPI)'!AB46 ->  | G21: ='Option 2 (nominal $, 2% CPI)'!AC46 ->  | H21: ='Option 2 (nominal $, 2% CPI)'!AD46 ->  | I21: ='Option 2 (nominal $, 2% CPI)'!AE46 ->  | J21: ='Option 2 (nominal $, 2% CPI)'!AF46 ->  | K21: ='Option 2 (nominal $, 2% CPI)'!AG46 ->  | L21: ='Option 2 (nominal $, 2% CPI)'!AH46 ->  | M21: ='Option 2 (nominal $, 2% CPI)'!AI46 ->  | Q21: CPI growth % annually | R21: 2 | S21: ='Option 2 (nominal $, 2% CPI)'!Z45 ->  | T21: ='Option 2 (nominal $, 2% CPI)'!AA45 ->  | U21: ='Option 2 (nominal $, 2% CPI)'!AB45 ->  | V21: ='Option 2 (nominal $, 2% CPI)'!AC45 ->  | W21: ='Option 2 (nominal $, 2% CPI)'!AD45 ->  | X21: ='Option 2 (nominal $, 2% CPI)'!AE45 ->  | Y21: ='Option 2 (nominal $, 2% CPI)'!AF45 ->  | Z21: ='Option 2 (nominal $, 2% CPI)'!AG45 ->  | AA21: ='Option 2 (nominal $, 2% CPI)'!AH45 ->  | AB21: ='Option 2 (nominal $, 2% CPI)'!AI45 -> 
C22: 2.5 | D22: =#REF! ->  | E22: =#REF! ->  | F22: =#REF! ->  | G22: =#REF! ->  | H22: =#REF! ->  | I22: =#REF! ->  | J22: =#REF! ->  | K22: =#REF! ->  | L22: =#REF! ->  | M22: =#REF! ->  | R22: 2.5 | S22: ='Option 2'!#REF! ->  | T22: ='Option 2'!#REF! ->  | U22: ='Option 2'!#REF! ->  | V22: ='Option 2'!#REF! ->  | W22: ='Option 2'!#REF! ->  | X22: ='Option 2'!#REF! ->  | Y22: ='Option 2'!#REF! ->  | Z22: ='Option 2'!#REF! ->  | AA22: ='Option 2'!#REF! ->  | AB22: ='Option 2'!#REF! -> 
C23: 3 | D23: ='Option 2 (nominal $, 3% CPI)'!Z46 ->  | E23: ='Option 2 (nominal $, 3% CPI)'!AA46 ->  | F23: ='Option 2 (nominal $, 3% CPI)'!AB46 ->  | G23: ='Option 2 (nominal $, 3% CPI)'!AC46 ->  | H23: ='Option 2 (nominal $, 3% CPI)'!AD46 ->  | I23: ='Option 2 (nominal $, 3% CPI)'!AE46 ->  | J23: ='Option 2 (nominal $, 3% CPI)'!AF46 ->  | K23: ='Option 2 (nominal $, 3% CPI)'!AG46 ->  | L23: ='Option 2 (nominal $, 3% CPI)'!AH46 ->  | M23: ='Option 2 (nominal $, 3% CPI)'!AI46 ->  | R23: 3 | S23: ='Option 2 (nominal $, 3% CPI)'!Z45 ->  | T23: ='Option 2 (nominal $, 3% CPI)'!AA45 ->  | U23: ='Option 2 (nominal $, 3% CPI)'!AB45 ->  | V23: ='Option 2 (nominal $, 3% CPI)'!AC45 ->  | W23: ='Option 2 (nominal $, 3% CPI)'!AD45 ->  | X23: ='Option 2 (nominal $, 3% CPI)'!AE45 ->  | Y23: ='Option 2 (nominal $, 3% CPI)'!AF45 ->  | Z23: ='Option 2 (nominal $, 3% CPI)'!AG45 ->  | AA23: ='Option 2 (nominal $, 3% CPI)'!AH45 ->  | AB23: ='Option 2 (nominal $, 3% CPI)'!AI45 -> 
C24: 3.5 | D24: ='Option 2 (nominal $, 3.5% CPI)'!Z46 ->  | E24: ='Option 2 (nominal $, 3.5% CPI)'!AA46 ->  | F24: ='Option 2 (nominal $, 3.5% CPI)'!AB46 ->  | G24: ='Option 2 (nominal $, 3.5% CPI)'!AC46 ->  | H24: ='Option 2 (nominal $, 3.5% CPI)'!AD46 ->  | I24: ='Option 2 (nominal $, 3.5% CPI)'!AE46 ->  | J24: ='Option 2 (nominal $, 3.5% CPI)'!AF46 ->  | K24: ='Option 2 (nominal $, 3.5% CPI)'!AG46 ->  | L24: ='Option 2 (nominal $, 3.5% CPI)'!AH46 ->  | M24: ='Option 2 (nominal $, 3.5% CPI)'!AI46 ->  | R24: 3.5 | S24: ='Option 2 (nominal $, 3.5% CPI)'!Z45 ->  | T24: ='Option 2 (nominal $, 3.5% CPI)'!AA45 ->  | U24: ='Option 2 (nominal $, 3.5% CPI)'!AB45 ->  | V24: ='Option 2 (nominal $, 3.5% CPI)'!AC45 ->  | W24: ='Option 2 (nominal $, 3.5% CPI)'!AD45 ->  | X24: ='Option 2 (nominal $, 3.5% CPI)'!AE45 ->  | Y24: ='Option 2 (nominal $, 3.5% CPI)'!AF45 ->  | Z24: ='Option 2 (nominal $, 3.5% CPI)'!AG45 ->  | AA24: ='Option 2 (nominal $, 3.5% CPI)'!AH45 ->  | AB24: ='Option 2 (nominal $, 3.5% CPI)'!AI45 -> 
C25: 4 | D25: ='Option 2 (nominal $, 4% CPI)'!Z46 ->  | E25: ='Option 2 (nominal $, 4% CPI)'!AA46 ->  | F25: ='Option 2 (nominal $, 4% CPI)'!AB46 ->  | G25: ='Option 2 (nominal $, 4% CPI)'!AC46 ->  | H25: ='Option 2 (nominal $, 4% CPI)'!AD46 ->  | I25: ='Option 2 (nominal $, 4% CPI)'!AE46 ->  | J25: ='Option 2 (nominal $, 4% CPI)'!AF46 ->  | K25: ='Option 2 (nominal $, 4% CPI)'!AG46 ->  | L25: ='Option 2 (nominal $, 4% CPI)'!AH46 ->  | M25: ='Option 2 (nominal $, 4% CPI)'!AI46 ->  | R25: 4 | S25: ='Option 2 (nominal $, 4% CPI)'!Z45 ->  | T25: ='Option 2 (nominal $, 4% CPI)'!AA45 ->  | U25: ='Option 2 (nominal $, 4% CPI)'!AB45 ->  | V25: ='Option 2 (nominal $, 4% CPI)'!AC45 ->  | W25: ='Option 2 (nominal $, 4% CPI)'!AD45 ->  | X25: ='Option 2 (nominal $, 4% CPI)'!AE45 ->  | Y25: ='Option 2 (nominal $, 4% CPI)'!AF45 ->  | Z25: ='Option 2 (nominal $, 4% CPI)'!AG45 ->  | AA25: ='Option 2 (nominal $, 4% CPI)'!AH45 ->  | AB25: ='Option 2 (nominal $, 4% CPI)'!AI45 -> 
C26: 4.5 | D26: ='Option 2 (nominal $, 4.5% CPI)'!Z46 ->  | E26: ='Option 2 (nominal $, 4.5% CPI)'!AA46 ->  | F26: ='Option 2 (nominal $, 4.5% CPI)'!AB46 ->  | G26: ='Option 2 (nominal $, 4.5% CPI)'!AC46 ->  | H26: ='Option 2 (nominal $, 4.5% CPI)'!AD46 ->  | I26: ='Option 2 (nominal $, 4.5% CPI)'!AE46 ->  | J26: ='Option 2 (nominal $, 4.5% CPI)'!AF46 ->  | K26: ='Option 2 (nominal $, 4.5% CPI)'!AG46 ->  | L26: ='Option 2 (nominal $, 4.5% CPI)'!AH46 ->  | M26: ='Option 2 (nominal $, 4.5% CPI)'!AI46 ->  | R26: 4.5 | S26: ='Option 2 (nominal $, 4.5% CPI)'!Z45 ->  | T26: ='Option 2 (nominal $, 4.5% CPI)'!AA45 ->  | U26: ='Option 2 (nominal $, 4.5% CPI)'!AB45 ->  | V26: ='Option 2 (nominal $, 4.5% CPI)'!AC45 ->  | W26: ='Option 2 (nominal $, 4.5% CPI)'!AD45 ->  | X26: ='Option 2 (nominal $, 4.5% CPI)'!AE45 ->  | Y26: ='Option 2 (nominal $, 4.5% CPI)'!AF45 ->  | Z26: ='Option 2 (nominal $, 4.5% CPI)'!AG45 ->  | AA26: ='Option 2 (nominal $, 4.5% CPI)'!AH45 ->  | AB26: ='Option 2 (nominal $, 4.5% CPI)'!AI45 -> 
C27: 5 | D27: ='Option 2 (nominal $, 5% CPI)'!Z46 ->  | E27: ='Option 2 (nominal $, 5% CPI)'!AA46 ->  | F27: ='Option 2 (nominal $, 5% CPI)'!AB46 ->  | G27: ='Option 2 (nominal $, 5% CPI)'!AC46 ->  | H27: ='Option 2 (nominal $, 5% CPI)'!AD46 ->  | I27: ='Option 2 (nominal $, 5% CPI)'!AE46 ->  | J27: ='Option 2 (nominal $, 5% CPI)'!AF46 ->  | K27: ='Option 2 (nominal $, 5% CPI)'!AG46 ->  | L27: ='Option 2 (nominal $, 5% CPI)'!AH46 ->  | M27: ='Option 2 (nominal $, 5% CPI)'!AI46 ->  | R27: 5 | S27: ='Option 2 (nominal $, 5% CPI)'!Z45 ->  | T27: ='Option 2 (nominal $, 5% CPI)'!AA45 ->  | U27: ='Option 2 (nominal $, 5% CPI)'!AB45 ->  | V27: ='Option 2 (nominal $, 5% CPI)'!AC45 ->  | W27: ='Option 2 (nominal $, 5% CPI)'!AD45 ->  | X27: ='Option 2 (nominal $, 5% CPI)'!AE45 ->  | Y27: ='Option 2 (nominal $, 5% CPI)'!AF45 ->  | Z27: ='Option 2 (nominal $, 5% CPI)'!AG45 ->  | AA27: ='Option 2 (nominal $, 5% CPI)'!AH45 ->  | AB27: ='Option 2 (nominal $, 5% CPI)'!AI45 -> 
A29: Option 3
A31: Benefit Cost Ratio | P31: Net Present Value ($ million)
D32: Discount rate sensitivity analysis (NPV) | S32: Discount rate sensitivity analysis (NPV)
D33: 0.01 | E33: 0.02 | F33: 0.03 | G33: 0.04 | H33: 0.05 | I33: 0.06 | J33: 0.07 | K33: 0.08 | L33: 0.09 | M33: 0.1 | S33: 0.01 | T33: 0.02 | U33: 0.03 | V33: 0.04 | W33: 0.05 | X33: 0.06 | Y33: 0.07 | Z33: 0.08 | AA33: 0.09 | AB33: 0.1
B34: CPI growth % annually | C34: 2 | D34: ='Option 3 (nominal $, 2% CPI)'!Z53 ->  | E34: ='Option 3 (nominal $, 2% CPI)'!AA53 ->  | F34: ='Option 3 (nominal $, 2% CPI)'!AB53 ->  | G34: ='Option 3 (nominal $, 2% CPI)'!AC53 ->  | H34: ='Option 3 (nominal $, 2% CPI)'!AD53 ->  | I34: ='Option 3 (nominal $, 2% CPI)'!AE53 ->  | J34: ='Option 3 (nominal $, 2% CPI)'!AF53 ->  | K34: ='Option 3 (nominal $, 2% CPI)'!AG53 ->  | L34: ='Option 3 (nominal $, 2% CPI)'!AH53 ->  | M34: ='Option 3 (nominal $, 2% CPI)'!AI53 ->  | Q34: CPI growth % annually | R34: 2 | S34: ='Option 3 (nominal $, 2% CPI)'!Z52 ->  | T34: ='Option 3 (nominal $, 2% CPI)'!AA52 ->  | U34: ='Option 3 (nominal $, 2% CPI)'!AB52 ->  | V34: ='Option 3 (nominal $, 2% CPI)'!AC52 ->  | W34: ='Option 3 (nominal $, 2% CPI)'!AD52 ->  | X34: ='Option 3 (nominal $, 2% CPI)'!AE52 ->  | Y34: ='Option 3 (nominal $, 2% CPI)'!AF52 ->  | Z34: ='Option 3 (nominal $, 2% CPI)'!AG52 ->  | AA34: ='Option 3 (nominal $, 2% CPI)'!AH52 ->  | AB34: ='Option 3 (nominal $, 2% CPI)'!AI52 -> 
C35: 2.5 | D35: =#REF! ->  | E35: =#REF! ->  | F35: =#REF! ->  | G35: =#REF! ->  | H35: =#REF! ->  | I35: =#REF! ->  | J35: =#REF! ->  | K35: =#REF! ->  | L35: =#REF! ->  | M35: =#REF! ->  | R35: 2.5 | S35: =#REF! ->  | T35: =#REF! ->  | U35: =#REF! ->  | V35: =#REF! ->  | W35: =#REF! ->  | X35: =#REF! ->  | Y35: =#REF! ->  | Z35: =#REF! ->  | AA35: =#REF! ->  | AB35: =#REF! -> 
C36: 3 | D36: ='Option 3 (nominal $, 3% CPI)'!Z53 ->  | E36: ='Option 3 (nominal $, 3% CPI)'!AA53 ->  | F36: ='Option 3 (nominal $, 3% CPI)'!AB53 ->  | G36: ='Option 3 (nominal $, 3% CPI)'!AC53 ->  | H36: ='Option 3 (nominal $, 3% CPI)'!AD53 ->  | I36: ='Option 3 (nominal $, 3% CPI)'!AE53 ->  | J36: ='Option 3 (nominal $, 3% CPI)'!AF53 ->  | K36: ='Option 3 (nominal $, 3% CPI)'!AG53 ->  | L36: ='Option 3 (nominal $, 3% CPI)'!AH53 ->  | M36: ='Option 3 (nominal $, 3% CPI)'!AI53 ->  | R36: 3 | S36: ='Option 3 (nominal $, 3% CPI)'!Z52 ->  | T36: ='Option 3 (nominal $, 3% CPI)'!AA52 ->  | U36: ='Option 3 (nominal $, 3% CPI)'!AB52 ->  | V36: ='Option 3 (nominal $, 3% CPI)'!AC52 ->  | W36: ='Option 3 (nominal $, 3% CPI)'!AD52 ->  | X36: ='Option 3 (nominal $, 3% CPI)'!AE52 ->  | Y36: ='Option 3 (nominal $, 3% CPI)'!AF52 ->  | Z36: ='Option 3 (nominal $, 3% CPI)'!AG52 ->  | AA36: ='Option 3 (nominal $, 3% CPI)'!AH52 ->  | AB36: ='Option 3 (nominal $, 3% CPI)'!AI52 -> 
C37: 3.5 | D37: ='Option 3 (nominal $, 3.5% CPI)'!Z53 ->  | E37: ='Option 3 (nominal $, 3.5% CPI)'!AA53 ->  | F37: ='Option 3 (nominal $, 3.5% CPI)'!AB53 ->  | G37: ='Option 3 (nominal $, 3.5% CPI)'!AC53 ->  | H37: ='Option 3 (nominal $, 3.5% CPI)'!AD53 ->  | I37: ='Option 3 (nominal $, 3.5% CPI)'!AE53 ->  | J37: ='Option 3 (nominal $, 3.5% CPI)'!AF53 ->  | K37: ='Option 3 (nominal $, 3.5% CPI)'!AG53 ->  | L37: ='Option 3 (nominal $, 3.5% CPI)'!AH53 ->  | M37: ='Option 3 (nominal $, 3.5% CPI)'!AI53 ->  | R37: 3.5 | S37: ='Option 3 (nominal $, 3.5% CPI)'!Z52 ->  | T37: ='Option 3 (nominal $, 3.5% CPI)'!AA52 ->  | U37: ='Option 3 (nominal $, 3.5% CPI)'!AB52 ->  | V37: ='Option 3 (nominal $, 3.5% CPI)'!AC52 ->  | W37: ='Option 3 (nominal $, 3.5% CPI)'!AD52 ->  | X37: ='Option 3 (nominal $, 3.5% CPI)'!AE52 ->  | Y37: ='Option 3 (nominal $, 3.5% CPI)'!AF52 ->  | Z37: ='Option 3 (nominal $, 3.5% CPI)'!AG52 ->  | AA37: ='Option 3 (nominal $, 3.5% CPI)'!AH52 ->  | AB37: ='Option 3 (nominal $, 3.5% CPI)'!AI52 -> 
C38: 4 | D38: ='Option 3 (nominal $, 4% CPI)'!Z53 ->  | E38: ='Option 3 (nominal $, 4% CPI)'!AA53 ->  | F38: ='Option 3 (nominal $, 4% CPI)'!AB53 ->  | G38: ='Option 3 (nominal $, 4% CPI)'!AC53 ->  | H38: ='Option 3 (nominal $, 4% CPI)'!AD53 ->  | I38: ='Option 3 (nominal $, 4% CPI)'!AE53 ->  | J38: ='Option 3 (nominal $, 4% CPI)'!AF53 ->  | K38: ='Option 3 (nominal $, 4% CPI)'!AG53 ->  | L38: ='Option 3 (nominal $, 4% CPI)'!AH53 ->  | M38: ='Option 3 (nominal $, 4% CPI)'!AI53 ->  | R38: 4 | S38: ='Option 3 (nominal $, 4% CPI)'!Z52 ->  | T38: ='Option 3 (nominal $, 4% CPI)'!AA52 ->  | U38: ='Option 3 (nominal $, 4% CPI)'!AB52 ->  | V38: ='Option 3 (nominal $, 4% CPI)'!AC52 ->  | W38: ='Option 3 (nominal $, 4% CPI)'!AD52 ->  | X38: ='Option 3 (nominal $, 4% CPI)'!AE52 ->  | Y38: ='Option 3 (nominal $, 4% CPI)'!AF52 ->  | Z38: ='Option 3 (nominal $, 4% CPI)'!AG52 ->  | AA38: ='Option 3 (nominal $, 4% CPI)'!AH52 ->  | AB38: ='Option 3 (nominal $, 4% CPI)'!AI52 -> 
C39: 4.5 | D39: ='Option 3 (nominal $, 4.5% CPI )'!Z53 ->  | E39: ='Option 3 (nominal $, 4.5% CPI )'!AA53 ->  | F39: ='Option 3 (nominal $, 4.5% CPI )'!AB53 ->  | G39: ='Option 3 (nominal $, 4.5% CPI )'!AC53 ->  | H39: ='Option 3 (nominal $, 4.5% CPI )'!AD53 ->  | I39: ='Option 3 (nominal $, 4.5% CPI )'!AE53 ->  | J39: ='Option 3 (nominal $, 4.5% CPI )'!AF53 ->  | K39: ='Option 3 (nominal $, 4.5% CPI )'!AG53 ->  | L39: ='Option 3 (nominal $, 4.5% CPI )'!AH53 ->  | M39: ='Option 3 (nominal $, 4.5% CPI )'!AI53 ->  | R39: 4.5 | S39: ='Option 3 (nominal $, 4.5% CPI )'!Z52 ->  | T39: ='Option 3 (nominal $, 4.5% CPI )'!AA52 ->  | U39: ='Option 3 (nominal $, 4.5% CPI )'!AB52 ->  | V39: ='Option 3 (nominal $, 4.5% CPI )'!AC52 ->  | W39: ='Option 3 (nominal $, 4.5% CPI )'!AD52 ->  | X39: ='Option 3 (nominal $, 4.5% CPI )'!AE52 ->  | Y39: ='Option 3 (nominal $, 4.5% CPI )'!AF52 ->  | Z39: ='Option 3 (nominal $, 4.5% CPI )'!AG52 ->  | AA39: ='Option 3 (nominal $, 4.5% CPI )'!AH52 ->  | AB39: ='Option 3 (nominal $, 4.5% CPI )'!AI52 -> 
C40: 5 | D40: ='Option 3 (nominal $, 5% CPI)'!Z53 ->  | E40: ='Option 3 (nominal $, 5% CPI)'!AA53 ->  | F40: ='Option 3 (nominal $, 5% CPI)'!AB53 ->  | G40: ='Option 3 (nominal $, 5% CPI)'!AC53 ->  | H40: ='Option 3 (nominal $, 5% CPI)'!AD53 ->  | I40: ='Option 3 (nominal $, 5% CPI)'!AE53 ->  | J40: ='Option 3 (nominal $, 5% CPI)'!AF53 ->  | K40: ='Option 3 (nominal $, 5% CPI)'!AG53 ->  | L40: ='Option 3 (nominal $, 5% CPI)'!AH53 ->  | M40: ='Option 3 (nominal $, 5% CPI)'!AI53 ->  | R40: 5 | S40: ='Option 3 (nominal $, 5% CPI)'!Z52 ->  | T40: ='Option 3 (nominal $, 5% CPI)'!AA52 ->  | U40: ='Option 3 (nominal $, 5% CPI)'!AB52 ->  | V40: ='Option 3 (nominal $, 5% CPI)'!AC52 ->  | W40: ='Option 3 (nominal $, 5% CPI)'!AD52 ->  | X40: ='Option 3 (nominal $, 5% CPI)'!AE52 ->  | Y40: ='Option 3 (nominal $, 5% CPI)'!AF52 ->  | Z40: ='Option 3 (nominal $, 5% CPI)'!AG52 ->  | AA40: ='Option 3 (nominal $, 5% CPI)'!AH52 ->  | AB40: ='Option 3 (nominal $, 5% CPI)'!AI52 -> 

Sheet Individual para sensitivit 02 (hidden)
A1: Individual Parameter Sensitivity for Scenario 2
A2: (numbers may be slightly different than other Worksheets due to rounding and calculation method)
C4: Real (2024-25 $) | D4: Benefit Cost Ratio (2024-25 $) | Y4: Net Benefit (Net Present Value, 2024-25 $)
D5: % of Central Estimate | Y5: % of Central Estimate
C6: Parameter | D6: 0.1 | E6: 0.2 | F6: 0.3 | G6: 0.4 | H6: 0.5 | I6: 0.6 | J6: 0.7 | K6: 0.8 | L6: 0.9 | M6: 1 | N6: 1.1 | O6: 1.2 | P6: 1.3 | Q6: 1.4 | R6: 1.5 | S6: 1.6 | T6: 1.7 | U6: 1.8 | V6: 1.9 | W6: 2 | Y6: 0.1 | Z6: 0.2 | AA6: 0.3 | AB6: 0.4 | AC6: 0.5 | AD6: 0.6 | AE6: 0.7 | AF6: 0.8 | AG6: 0.9 | AH6: 1 | AI6: 1.1 | AJ6: 1.2 | AK6: 1.3 | AL6: 1.4 | AM6: 1.5 | AN6: 1.6 | AO6: 1.7 | AP6: 1.8 | AQ6: 1.9 | AR6: 2
B7: Input
C8: Aerial and ground based inspection
B9: VBA | C9: Aerial and ground based inspection | D9: 3.642580728 | E9: 3.63750257 | F9: 3.632438551 | G9: 3.627388613 | H9: 3.622352696 | I9: 3.617330743 | J9: 3.612322695 | K9: 3.607328494 | L9: 3.602348084 | M9: 3.597381408 | N9: 3.592428408 | O9: 3.587489028 | P9: 3.582563212 | Q9: 3.577650905 | R9: 3.57275205 | S9: 3.567866593 | T9: 3.562994478 | U9: 3.558135652 | V9: 3.553290059 | W9: 3.548457647 | Y9: 262.82 | Z9: 262.68 | AA9: 262.54 | AB9: 262.4 | AC9: 262.26 | AD9: 262.12 | AE9: 261.98 | AF9: 261.85 | AG9: 261.71 | AH9: 261.57 | AI9: 261.43 | AJ9: 261.29 | AK9: 261.15 | AL9: 261.01 | AM9: 260.87 | AN9: 260.73 | AO9: 260.6 | AP9: 260.46 | AQ9: 260.32 | AR9: 260.18
B10: VBA | C10: Additional digital data acquisition assurance | D10: 3.627077821 | E10: 3.62375403 | F10: 3.620436325 | G10: 3.617124689 | H10: 3.613819107 | I10: 3.61051956 | J10: 3.607226034 | K10: 3.60393851 | L10: 3.600656974 | M10: 3.597381408 | N10: 3.594111796 | O10: 3.590848122 | P10: 3.58759037 | Q10: 3.584338524 | R10: 3.581092568 | S10: 3.577852485 | T10: 3.57461826 | U10: 3.571389877 | V10: 3.56816732 | W10: 3.564950573 | Y10: 262.39 | Z10: 262.3 | AA10: 262.21 | AB10: 262.12 | AC10: 262.03 | AD10: 261.93 | AE10: 261.84 | AF10: 261.75 | AG10: 261.66 | AH10: 261.57 | AI10: 261.48 | AJ10: 261.38 | AK10: 261.29 | AL10: 261.2 | AM10: 261.11 | AN10: 261.02 | AO10: 260.93 | AP10: 260.83 | AQ10: 260.74 | AR10: 260.65
B11: VBA | C11: Project Management Staff | D11: 3.794790989 | E11: 3.771793146 | F11: 3.749072375 | G11: 3.726623699 | H11: 3.704442259 | I11: 3.682523311 | J11: 3.660862223 | K11: 3.639454472 | L11: 3.618295639 | M11: 3.597381408 | N11: 3.576707561 | O11: 3.556269979 | P11: 3.536064633 | Q11: 3.516087588 | R11: 3.496334996 | S11: 3.476803095 | T11: 3.457488208 | U11: 3.438386737 | V11: 3.419495166 | W11: 3.400810052 | Y11: 266.81 | Z11: 266.22 | AA11: 265.64 | AB11: 265.06 | AC11: 264.48 | AD11: 263.9 | AE11: 263.31 | AF11: 262.73 | AG11: 262.15 | AH11: 261.57 | AI11: 260.99 | AJ11: 260.4 | AK11: 259.82 | AL11: 259.24 | AM11: 258.66 | AN11: 258.07 | AO11: 257.49 | AP11: 256.91 | AQ11: 256.33 | AR11: 255.75
C13: High Voltage Covered Conductors
B14: VBA | C14: CAPEX investment | D14: 3.742461903 | E14: 3.725766547 | F14: 3.709219488 | G14: 3.692818758 | H14: 3.676562426 | I14: 3.660448591 | J14: 3.644475389 | K14: 3.628640987 | L14: 3.612943583 | M14: 3.597381408 | N14: 3.58195272 | O14: 3.566655811 | P14: 3.551488998 | Q14: 3.53645063 | R14: 3.521539081 | S14: 3.506752754 | T14: 3.492090078 | U14: 3.477549509 | V14: 3.463129528 | W14: 3.44882864 | Y14: 265.47 | Z14: 265.04 | AA14: 264.6 | AB14: 264.17 | AC14: 263.74 | AD14: 263.3 | AE14: 262.87 | AF14: 262.43 | AG14: 262 | AH14: 261.57 | AI14: 261.13 | AJ14: 260.7 | AK14: 260.27 | AL14: 259.83 | AM14: 259.4 | AN14: 258.96 | AO14: 258.53 | AP14: 258.1 | AQ14: 257.66 | AR14: 257.23
B15: VBA | C15: Ongoing Cost | D15: 3.597381408 | E15: 3.597381408 | F15: 3.597381408 | G15: 3.597381408 | H15: 3.597381408 | I15: 3.597381408 | J15: 3.597381408 | K15: 3.597381408 | L15: 3.597381408 | M15: 3.597381408 | N15: 3.597381408 | O15: 3.597381408 | P15: 3.597381408 | Q15: 3.597381408 | R15: 3.597381408 | S15: 3.597381408 | T15: 3.597381408 | U15: 3.597381408 | V15: 3.597381408 | W15: 3.597381408 | Y15: 261.57 | Z15: 261.57 | AA15: 261.57 | AB15: 261.57 | AC15: 261.57 | AD15: 261.57 | AE15: 261.57 | AF15: 261.57 | AG15: 261.57 | AH15: 261.57 | AI15: 261.57 | AJ15: 261.57 | AK15: 261.57 | AL15: 261.57 | AM15: 261.57 | AN15: 261.57 | AO15: 261.57 | AP15: 261.57 | AQ15: 261.57 | AR15: 261.57
B16: VBA | C16: Kilometres of High Voltage Covered Conductor | D16: 3.428442233 | E16: 3.447120372 | F16: 3.46582163 | G16: 3.484546051 | H16: 3.503293678 | I16: 3.522064553 | J16: 3.54085872 | K16: 3.559676223 | L16: 3.578517104 | M16: 3.597381408 | N16: 3.616269178 | O16: 3.635180458 | P16: 3.654115292 | Q16: 3.673073723 | R16: 3.692055797 | S16: 3.711061557 | T16: 3.730091048 | U16: 3.749144314 | V16: 3.768221399 | W16: 3.787322349 | Y16: 245.92 | Z16: 247.66 | AA16: 249.4 | AB16: 251.14 | AC16: 252.88 | AD16: 254.61 | AE16: 256.35 | AF16: 258.09 | AG16: 259.83 | AH16: 261.57 | AI16: 263.31 | AJ16: 265.04 | AK16: 266.78 | AL16: 268.52 | AM16: 270.26 | AN16: 272 | AO16: 273.74 | AP16: 275.47 | AQ16: 277.21 | AR16: 278.95
C18: General Assumptions
B19: VBA | C19: Bare to CCT bushfire risk reduction effectiveness | D19: 3.597381408 | E19: 3.597381408 | F19: 3.597381408 | G19: 3.597381408 | H19: 3.597381408 | I19: 3.597381408 | J19: 3.597381408 | K19: 3.597381408 | L19: 3.597381408 | M19: 3.597381408 | N19: 3.597381408 | O19: 3.597381408 | P19: 3.597381408 | Q19: 3.597381408 | R19: 3.597381408 | S19: 3.597381408 | T19: 3.597381408 | U19: 3.597381408 | V19: 3.597381408 | W19: 3.597381408 | Y19: 261.57 | Z19: 261.57 | AA19: 261.57 | AB19: 261.57 | AC19: 261.57 | AD19: 261.57 | AE19: 261.57 | AF19: 261.57 | AG19: 261.57 | AH19: 261.57 | AI19: 261.57 | AJ19: 261.57 | AK19: 261.57 | AL19: 261.57 | AM19: 261.57 | AN19: 261.57 | AO19: 261.57 | AP19: 261.57 | AQ19: 261.57 | AR19: 261.57
B20: VBA | C20: Bare to CCT reliability risk reduction effectiveness | D20: 3.597381408 | E20: 3.597381408 | F20: 3.597381408 | G20: 3.597381408 | H20: 3.597381408 | I20: 3.597381408 | J20: 3.597381408 | K20: 3.597381408 | L20: 3.597381408 | M20: 3.597381408 | N20: 3.597381408 | O20: 3.597381408 | P20: 3.597381408 | Q20: 3.597381408 | R20: 3.597381408 | S20: 3.597381408 | T20: 3.597381408 | U20: 3.597381408 | V20: 3.597381408 | W20: 3.597381408 | Y20: 261.57 | Z20: 261.57 | AA20: 261.57 | AB20: 261.57 | AC20: 261.57 | AD20: 261.57 | AE20: 261.57 | AF20: 261.57 | AG20: 261.57 | AH20: 261.57 | AI20: 261.57 | AJ20: 261.57 | AK20: 261.57 | AL20: 261.57 | AM20: 261.57 | AN20: 261.57 | AO20: 261.57 | AP20: 261.57 | AQ20: 261.57 | AR20: 261.57
C22: Assumptions - Vegetation Model Analysis
B23: VBA | C23: Veg fault to ignition | D23: 0.61539701 | E23: 0.9467286097 | F23: 1.27806021 | G23: 1.609391809 | H23: 1.940723409 | I23: 2.272055009 | J23: 2.603386609 | K23: 2.934718208 | L23: 3.266049808 | M23: 3.597381408 | N23: 3.928713008 | O23: 4.260044607 | P23: 4.591376207 | Q23: 4.922707807 | R23: 5.254039407 | S23: 5.585371006 | T23: 5.916702606 | U23: 6.248034206 | V23: 6.579365806 | W23: 6.910697405 | Y23: -38.73 | Z23: -5.36 | AA23: 28 | AB23: 61.37 | AC23: 94.73 | AD23: 128.1 | AE23: 161.47 | AF23: 194.83 | AG23: 228.2 | AH23: 261.57 | AI23: 294.93 | AJ23: 328.3 | AK23: 361.67 | AL23: 395.03 | AM23: 428.4 | AN23: 461.77 | AO23: 495.13 | AP23: 528.5 | AQ23: 561.87 | AR23: 595.23
B24: VBA | C24: Network annual average vegetation contacts | D24: 0.3597381408 | E24: 0.7194762816 | F24: 1.079214422 | G24: 1.438952563 | H24: 1.798690704 | I24: 2.158428845 | J24: 2.518166985 | K24: 2.877905126 | L24: 3.237643267 | M24: 3.597381408 | N24: 3.957119549 | O24: 4.316857689 | P24: 4.67659583 | Q24: 5.036333971 | R24: 5.396072112 | S24: 5.755810253 | T24: 6.115548393 | U24: 6.475286534 | V24: 6.835024675 | W24: 7.194762816 | Y24: -64.48 | Z24: -28.25 | AA24: 7.98 | AB24: 44.2 | AC24: 80.43 | AD24: 116.66 | AE24: 152.89 | AF24: 189.11 | AG24: 225.34 | AH24: 261.57 | AI24: 297.79 | AJ24: 334.02 | AK24: 370.25 | AL24: 406.48 | AM24: 442.7 | AN24: 478.93 | AO24: 515.16 | AP24: 551.38 | AQ24: 587.61 | AR24: 623.84
B25: VBA | C25: Vegetation outage duration (minutes) | D25: 3.341722539 | E25: 3.37012908 | F25: 3.398535621 | G25: 3.426942162 | H25: 3.455348703 | I25: 3.483755244 | J25: 3.512161785 | K25: 3.540568326 | L25: 3.568974867 | M25: 3.597381408 | N25: 3.625787949 | O25: 3.65419449 | P25: 3.682601031 | Q25: 3.711007572 | R25: 3.739414113 | S25: 3.767820654 | T25: 3.796227195 | U25: 3.824633736 | V25: 3.853040277 | W25: 3.881446818 | Y25: 235.82 | Z25: 238.68 | AA25: 241.54 | AB25: 244.4 | AC25: 247.26 | AD25: 250.12 | AE25: 252.99 | AF25: 255.85 | AG25: 258.71 | AH25: 261.57 | AI25: 264.43 | AJ25: 267.29 | AK25: 270.15 | AL25: 273.01 | AM25: 275.87 | AN25: 278.73 | AO25: 281.59 | AP25: 284.45 | AQ25: 287.31 | AR25: 290.17
B26: VBA | C26: Incremental vegetation maintenance cost increase | D26: 4.817434126 | E26: 4.642489529 | F26: 4.479805865 | G26: 4.328137819 | H26: 4.186403197 | I26: 4.053657065 | J26: 3.929070658 | K26: 3.811914059 | L26: 3.701541887 | M26: 3.597381408 | N26: 3.498922586 | O26: 3.405709737 | P26: 3.317334476 | Q26: 3.233429734 | R26: 3.153664663 | S26: 3.077740275 | T26: 3.0053857 | U26: 2.936354951 | V26: 2.870424136 | W26: 2.80738903 | Y26: 287.07 | Z26: 284.24 | AA26: 281.4 | AB26: 278.57 | AC26: 275.74 | AD26: 272.9 | AE26: 270.07 | AF26: 267.24 | AG26: 264.4 | AH26: 261.57 | AI26: 258.73 | AJ26: 255.9 | AK26: 253.07 | AL26: 250.23 | AM26: 247.4 | AN26: 244.56 | AO26: 241.73 | AP26: 238.9 | AQ26: 236.06 | AR26: 233.23
C28: VMA Analysis
B29: Manual | C29: Baseline Vegetation Contacts | F29: 0.8 | G29: 1.2 | H29: 1.6 | I29: 2 | J29: 2.5 | K29: 2.8 | L29: 3.227598856 | M29: 3.597381408 | N29: 3.956397401 | AA29: -24.9 | AB29: 20 | AC29: 63.4 | AD29: 105.5 | AE29: 146.3 | AF29: 185.9 | AG29: 224.3287265 | AH29: 261.57 | AI29: 297.7218553
B30: Manual | C30: CTS (A+B+C) Vegetation Contacts | L30: 3.655107216 | M30: 3.597381408 | N30: 3.539655599 | O30: 3.481929791 | P30: 3.424203983 | Q30: 3.366478174 | R30: 3.308752366 | S30: 3.251026558 | T30: 3.193300749 | U30: 3.135574941 | V30: 3.077849133 | W30: 3.020123324 | AG30: 267.3806458 | AH30: 261.57 | AI30: 255.7541745 | AJ30: 249.9409389 | AK30: 244.1277032 | AL30: 238.3144676 | AM30: 232.5012319 | AN30: 226.6879963 | AO30: 220.8747606 | AP30: 215.061525 | AQ30: 209.2482893 | AR30: 203.4350537
B31: Manual | C31: VMA ($/min) | L31: 3.568974867 | M31: 3.597381408 | N31: 3.625787949 | AG31: 258.7067501 | AH31: 261.57 | AI31: 264.4280703
B32: Manual | C32: Upfront CTS treatment cost ($) | L32: 3.802563975 | M32: 3.597381408 | N32: 3.413208097 | AG32: 267.0013126 | AH32: 261.57 | AI32: 256.1335078
B33: Manual | C33: Upfront Outage Cost ($) | L33: 3.617368531 | M33: 3.597381408 | N33: 3.577613941 | AG33: 262.1238336 | AH33: 261.57 | AI33: 261.0109867
B35: Manual | C35: UoM consequence | E35: 0.94672861 | F35: 1.27806021 | G35: 1.609391809 | H35: 1.940723409 | I35: 2.272055009 | J35: 2.603386609 | K35: 2.934718208 | L35: 3.266049808 | M35: 3.597381408 | N35: 3.928713008 | Z35: -5.364656705 | AA35: 28.00185165 | AB35: 61.36836001 | AC35: 94.73486837 | AD35: 128.1013767 | AE35: 161.4678851 | AF35: 194.8343934 | AG35: 228.2009018 | AH35: 261.57 | AI35: 294.9339185
B36: VBA | C36: Discount rate | D36: 4.124792806 | E36: 4.061494899 | F36: 3.99939771 | G36: 3.938491171 | H36: 3.878764263 | I36: 3.820205092 | J36: 3.762800964 | K36: 3.706538459 | L36: 3.651403498 | M36: 3.597381408 | N36: 3.544456987 | O36: 3.492614566 | P36: 3.441838062 | Q36: 3.392111035 | R36: 3.343416743 | S36: 3.295738184 | T36: 3.249058148 | U36: 3.203359257 | V36: 3.158624008 | W36: 3.11483481 | Y36: 380.8 | Z36: 364.84 | AA36: 349.64 | AB36: 335.17 | AC36: 321.39 | AD36: 308.26 | AE36: 295.74 | AF36: 283.81 | AG36: 272.42 | AH36: 261.57 | AI36: 251.21 | AJ36: 241.32 | AK36: 231.88 | AL36: 222.86 | AM36: 214.25 | AN36: 206.02 | AO36: 198.15 | AP36: 190.63 | AQ36: 183.44 | AR36: 176.56
N37: =N36/M36 - 1 -> -0.01471192915
C38: Nominal ($, Net Present Value) | D38: Benefit Cost Ratio ( $) | Y38: Net Benefit (Net Present Value, $)
D39: % of Central Estimate | Y39: % of Central Estimate
C40: Parameter | D40: 0.1 | E40: 0.2 | F40: 0.3 | G40: 0.4 | H40: 0.5 | I40: 0.6 | J40: 0.7 | K40: 0.8 | L40: 0.9 | M40: 1 | N40: 1.1 | O40: 1.2 | P40: 1.3 | Q40: 1.4 | R40: 1.5 | S40: 1.6 | T40: 1.7 | U40: 1.8 | V40: 1.9 | W40: 2 | Y40: 0.1 | Z40: 0.2 | AA40: 0.3 | AB40: 0.4 | AC40: 0.5 | AD40: 0.6 | AE40: 0.7 | AF40: 0.8 | AG40: 0.9 | AH40: 1 | AI40: 1.1 | AJ40: 1.2 | AK40: 1.3 | AL40: 1.4 | AM40: 1.5 | AN40: 1.6 | AO40: 1.7 | AP40: 1.8 | AQ40: 1.9 | AR40: 2
C42: Aerial and ground based inspection
B43: VBA | C43: Aerial and ground based inspection | D43: 3.974208124 | E43: 3.968882082 | F43: 3.963570296 | G43: 3.95827271 | H43: 3.952989265 | I43: 3.947719906 | J43: 3.942464577 | K43: 3.937223221 | L43: 3.931995783 | M43: 3.926782208 | N43: 3.92158244 | O43: 3.916396425 | P43: 3.911224108 | Q43: 3.906065434 | R43: 3.900920351 | S43: 3.895788805 | T43: 3.890670741 | U43: 3.885566107 | V43: 3.880474851 | W43: 3.875396919 | Y43: 333.79 | Z43: 333.64 | AA43: 333.49 | AB43: 333.34 | AC43: 333.19 | AD43: 333.04 | AE43: 332.89 | AF43: 332.74 | AG43: 332.59 | AH43: 332.44 | AI43: 332.29 | AJ43: 332.14 | AK43: 331.99 | AL43: 331.84 | AM43: 331.69 | AN43: 331.53 | AO43: 331.38 | AP43: 331.23 | AQ43: 331.08 | AR43: 330.93
B44: VBA | C44: Additional digital data acquisition assurance | D44: 3.957573501 | E44: 3.95412842 | F44: 3.950689332 | G44: 3.947256222 | H44: 3.943829073 | I44: 3.940407869 | J44: 3.936992597 | K44: 3.933583239 | L44: 3.930179781 | M44: 3.926782208 | N44: 3.923390504 | O44: 3.920004654 | P44: 3.916624643 | Q44: 3.913250455 | R44: 3.909882077 | S44: 3.906519492 | T44: 3.903162686 | U44: 3.899811643 | V44: 3.89646635 | W44: 3.893126792 | Y44: 333.32 | Z44: 333.22 | AA44: 333.13 | AB44: 333.03 | AC44: 332.93 | AD44: 332.83 | AE44: 332.73 | AF44: 332.63 | AG44: 332.54 | AH44: 332.44 | AI44: 332.34 | AJ44: 332.24 | AK44: 332.14 | AL44: 332.05 | AM44: 331.95 | AN44: 331.85 | AO44: 331.75 | AP44: 331.65 | AQ44: 331.55 | AR44: 331.46
B45: VBA | C45: Project Management Staff | D45: 4.132906282 | E45: 4.108941178 | F45: 4.0852524 | G45: 4.061835197 | H45: 4.038684924 | I45: 4.015797044 | J45: 3.993167121 | K45: 3.970790818 | L45: 3.948663896 | M45: 3.926782208 | N45: 3.9051417 | O45: 3.883738407 | P45: 3.862568449 | Q45: 3.841628031 | R45: 3.820913441 | S45: 3.800421045 | T45: 3.780147286 | U45: 3.760088685 | V45: 3.740241834 | W45: 3.720603398 | Y45: 338.1 | Z45: 337.47 | AA45: 336.84 | AB45: 336.21 | AC45: 335.59 | AD45: 334.96 | AE45: 334.33 | AF45: 333.7 | AG45: 333.07 | AH45: 332.44 | AI45: 331.81 | AJ45: 331.18 | AK45: 330.55 | AL45: 329.92 | AM45: 329.29 | AN45: 328.66 | AO45: 328.03 | AP45: 327.4 | AQ45: 326.77 | AR45: 326.14
C47: High Voltage Covered Conductors
B48: VBA | C48: CAPEX investment | D48: 4.078873562 | E48: 4.061395211 | F48: 4.044066014 | G48: 4.026884069 | H48: 4.009847507 | I48: 3.992954492 | J48: 3.976203216 | K48: 3.959591903 | L48: 3.943118807 | M48: 3.926782208 | N48: 3.910580418 | O48: 3.894511775 | P48: 3.878574645 | Q48: 3.862767418 | R48: 3.847088514 | S48: 3.831536377 | T48: 3.816109474 | U48: 3.8008063 | V48: 3.785625372 | W48: 3.77056523 | Y48: 336.67 | Z48: 336.2 | AA48: 335.73 | AB48: 335.26 | AC48: 334.79 | AD48: 334.32 | AE48: 333.85 | AF48: 333.38 | AG48: 332.91 | AH48: 332.44 | AI48: 331.97 | AJ48: 331.5 | AK48: 331.03 | AL48: 330.56 | AM48: 330.09 | AN48: 329.61 | AO48: 329.14 | AP48: 328.67 | AQ48: 328.2 | AR48: 327.73
B49: VBA | C49: Ongoing Cost | D49: 3.926782208 | E49: 3.926782208 | F49: 3.926782208 | G49: 3.926782208 | H49: 3.926782208 | I49: 3.926782208 | J49: 3.926782208 | K49: 3.926782208 | L49: 3.926782208 | M49: 3.926782208 | N49: 3.926782208 | O49: 3.926782208 | P49: 3.926782208 | Q49: 3.926782208 | R49: 3.926782208 | S49: 3.926782208 | T49: 3.926782208 | U49: 3.926782208 | V49: 3.926782208 | W49: 3.926782208 | Y49: 332.44 | Z49: 332.44 | AA49: 332.44 | AB49: 332.44 | AC49: 332.44 | AD49: 332.44 | AE49: 332.44 | AF49: 332.44 | AG49: 332.44 | AH49: 332.44 | AI49: 332.44 | AJ49: 332.44 | AK49: 332.44 | AL49: 332.44 | AM49: 332.44 | AN49: 332.44 | AO49: 332.44 | AP49: 332.44 | AQ49: 332.44 | AR49: 332.44
B50: VBA | C50: Kilometres of High Voltage Covered Conductor | D50: 3.733135245 | E50: 3.75454467 | F50: 3.775980705 | G50: 3.797443399 | H50: 3.818932803 | I50: 3.840448965 | J50: 3.861991937 | K50: 3.883561768 | L50: 3.905158508 | M50: 3.926782208 | N50: 3.948432919 | O50: 3.97011069 | P50: 3.991815574 | Q50: 4.01354762 | R50: 4.035306879 | S50: 4.057093404 | T50: 4.078907245 | U50: 4.100748453 | V50: 4.12261708 | W50: 4.144513178 | Y50: 312.19 | Z50: 314.44 | AA50: 316.69 | AB50: 318.94 | AC50: 321.19 | AD50: 323.44 | AE50: 325.69 | AF50: 327.94 | AG50: 330.19 | AH50: 332.44 | AI50: 334.69 | AJ50: 336.94 | AK50: 339.19 | AL50: 341.44 | AM50: 343.69 | AN50: 345.94 | AO50: 348.19 | AP50: 350.44 | AQ50: 352.69 | AR50: 354.94
C52: General Assumptions
B53: VBA | C53: Bare to CCT bushfire risk reduction effectiveness | D53: 3.926782208 | E53: 3.926782208 | F53: 3.926782208 | G53: 3.926782208 | H53: 3.926782208 | I53: 3.926782208 | J53: 3.926782208 | K53: 3.926782208 | L53: 3.926782208 | M53: 3.926782208 | N53: 3.926782208 | O53: 3.926782208 | P53: 3.926782208 | Q53: 3.926782208 | R53: 3.926782208 | S53: 3.926782208 | T53: 3.926782208 | U53: 3.926782208 | V53: 3.926782208 | W53: 3.926782208 | Y53: 332.44 | Z53: 332.44 | AA53: 332.44 | AB53: 332.44 | AC53: 332.44 | AD53: 332.44 | AE53: 332.44 | AF53: 332.44 | AG53: 332.44 | AH53: 332.44 | AI53: 332.44 | AJ53: 332.44 | AK53: 332.44 | AL53: 332.44 | AM53: 332.44 | AN53: 332.44 | AO53: 332.44 | AP53: 332.44 | AQ53: 332.44 | AR53: 332.44
B54: VBA | C54: Bare to CCT reliability risk reduction effectiveness | D54: 3.926782208 | E54: 3.926782208 | F54: 3.926782208 | G54: 3.926782208 | H54: 3.926782208 | I54: 3.926782208 | J54: 3.926782208 | K54: 3.926782208 | L54: 3.926782208 | M54: 3.926782208 | N54: 3.926782208 | O54: 3.926782208 | P54: 3.926782208 | Q54: 3.926782208 | R54: 3.926782208 | S54: 3.926782208 | T54: 3.926782208 | U54: 3.926782208 | V54: 3.926782208 | W54: 3.926782208 | Y54: 332.44 | Z54: 332.44 | AA54: 332.44 | AB54: 332.44 | AC54: 332.44 | AD54: 332.44 | AE54: 332.44 | AF54: 332.44 | AG54: 332.44 | AH54: 332.44 | AI54: 332.44 | AJ54: 332.44 | AK54: 332.44 | AL54: 332.44 | AM54: 332.44 | AN54: 332.44 | AO54: 332.44 | AP54: 332.44 | AQ54: 332.44 | AR54: 332.44
C56: Assumptions - Vegetation Model Analysis
B57: VBA | C57: Veg fault to ignition | D57: 0.67571856 | E57: 1.036947854 | F57: 1.398177148 | G57: 1.759406443 | H57: 2.120635737 | I57: 2.481865031 | J57: 2.843094325 | K57: 3.20432362 | L57: 3.565552914 | M57: 3.926782208 | N57: 4.288011502 | O57: 4.649240796 | P57: 5.010470091 | Q57: 5.371699385 | R57: 5.732928679 | S57: 6.094157973 | T57: 6.455387268 | U57: 6.816616562 | V57: 7.177845856 | W57: 7.53907515 | Y57: -36.83 | Z57: 4.2 | AA57: 45.23 | AB57: 86.26 | AC57: 127.29 | AD57: 168.32 | AE57: 209.35 | AF57: 250.38 | AG57: 291.41 | AH57: 332.44 | AI57: 373.47 | AJ57: 414.5 | AK57: 455.53 | AL57: 496.56 | AM57: 537.59 | AN57: 578.62 | AO57: 619.65 | AP57: 660.68 | AQ57: 701.71 | AR57: 742.74
B58: VBA | C58: Network annual average vegetation contacts | D58: 0.3926782208 | E58: 0.7853564416 | F58: 1.178034662 | G58: 1.570712883 | H58: 1.963391104 | I58: 2.356069325 | J58: 2.748747546 | K58: 3.141425766 | L58: 3.534103987 | M58: 3.926782208 | N58: 4.319460429 | O58: 4.71213865 | P58: 5.10481687 | Q58: 5.497495091 | R58: 5.890173312 | S58: 6.282851533 | T58: 6.675529754 | U58: 7.068207974 | V58: 7.460886195 | W58: 7.853564416 | Y58: -68.98 | Z58: -24.38 | AA58: 20.22 | AB58: 64.82 | AC58: 109.43 | AD58: 154.03 | AE58: 198.63 | AF58: 243.23 | AG58: 287.84 | AH58: 332.44 | AI58: 377.04 | AJ58: 421.64 | AK58: 466.25 | AL58: 510.85 | AM58: 555.45 | AN58: 600.05 | AO58: 644.65 | AP58: 689.26 | AQ58: 733.86 | AR58: 778.46
B59: VBA | C59: Vegetation outage duration (minutes) | D59: 3.643741869 | E59: 3.675190795 | F59: 3.706639722 | G59: 3.738088649 | H59: 3.769537575 | I59: 3.800986502 | J59: 3.832435428 | K59: 3.863884355 | L59: 3.895333281 | M59: 3.926782208 | N59: 3.958231135 | O59: 3.989680061 | P59: 4.021128988 | Q59: 4.052577914 | R59: 4.084026841 | S59: 4.115475768 | T59: 4.146924694 | U59: 4.178373621 | V59: 4.209822547 | W59: 4.241271474 | Y59: 300.29 | Z59: 303.86 | AA59: 307.43 | AB59: 311.01 | AC59: 314.58 | AD59: 318.15 | AE59: 321.72 | AF59: 325.29 | AG59: 328.87 | AH59: 332.44 | AI59: 336.01 | AJ59: 339.58 | AK59: 343.15 | AL59: 346.73 | AM59: 350.3 | AN59: 353.87 | AO59: 357.44 | AP59: 361.02 | AQ59: 364.59 | AR59: 368.16
B60: VBA | C60: Incremental vegetation maintenance cost increase | D60: 5.448423961 | E60: 5.223520372 | F60: 5.016448162 | G60: 4.825167561 | H60: 4.647938487 | I60: 4.483267451 | J60: 4.329865374 | K60: 4.186613771 | L60: 4.052537436 | M60: 3.926782208 | N60: 3.80859676 | O60: 3.697317572 | P60: 3.592356471 | Q60: 3.493190228 | R60: 3.399351837 | S60: 3.310423161 | T60: 3.226028701 | U60: 3.145830299 | V60: 3.069522606 | W60: 2.996829198 | Y60: 364.16 | Z60: 360.64 | AA60: 357.11 | AB60: 353.59 | AC60: 350.06 | AD60: 346.54 | AE60: 343.01 | AF60: 339.49 | AG60: 335.96 | AH60: 332.44 | AI60: 328.91 | AJ60: 325.39 | AK60: 321.86 | AL60: 318.34 | AM60: 314.81 | AN60: 311.29 | AO60: 307.77 | AP60: 304.24 | AQ60: 300.72 | AR60: 297.19
C62: VMA Analysis
B63: Manual | C63: Baseline Vegetation Contacts
B64: Manual | C64: CTS (A+B+C) Vegetation Contacts
B65: Manual | C65: VMA ($/min)
B66: Manual | C66: Upfront CTS treatment cost ($)
B67: Manual | C67: Upfront Outage Cost ($)
C69: UoM Consequence
C72: Total ($) | D72: Benefit Cost Ratio (2024-25 $) | Y72: Net Benefit (Net Present Value, 2024-25 $)
D73: % of Central Estimate | Y73: % of Central Estimate
C74: Parameter | D74: 0.1 | E74: 0.2 | F74: 0.3 | G74: 0.4 | H74: 0.5 | I74: 0.6 | J74: 0.7 | K74: 0.8 | L74: 0.9 | M74: 1 | N74: 1.1 | O74: 1.2 | P74: 1.3 | Q74: 1.4 | R74: 1.5 | S74: 1.6 | T74: 1.7 | U74: 1.8 | V74: 1.9 | W74: 2 | Y74: 0.1 | Z74: 0.2 | AA74: 0.3 | AB74: 0.4 | AC74: 0.5 | AD74: 0.6 | AE74: 0.7 | AF74: 0.8 | AG74: 0.9 | AH74: 1 | AI74: 1.1 | AJ74: 1.2 | AK74: 1.3 | AL74: 1.4 | AM74: 1.5 | AN74: 1.6 | AO74: 1.7 | AP74: 1.8 | AQ74: 1.9 | AR74: 2
C76: Aerial and ground based inspection
B77: VBA | C77: Aerial and ground based inspection | D77: 4.783654787 | E77: 4.777882237 | F77: 4.772123601 | G77: 4.766378831 | H77: 4.760647875 | I77: 4.754933862 | J77: 4.749230379 | K77: 4.743540562 | L77: 4.737864362 | M77: 4.73220173 | N77: 4.726552618 | O77: 4.720916978 | P77: 4.71529476 | Q77: 4.709685918 | R77: 4.704090403 | S77: 4.698508168 | T77: 4.692939167 | U77: 4.687383351 | V77: 4.681840674 | W77: 4.67631109 | Y77: 562.77 | Z77: 562.59 | AA77: 562.41 | AB77: 562.23 | AC77: 562.05 | AD77: 561.87 | AE77: 561.69 | AF77: 561.51 | AG77: 561.33 | AH77: 561.15 | AI77: 560.97 | AJ77: 560.79 | AK77: 560.61 | AL77: 560.43 | AM77: 560.25 | AN77: 560.07 | AO77: 559.89 | AP77: 559.71 | AQ77: 559.53 | AR77: 559.35
B78: VBA | C78: Additional digital data acquisition assurance | D78: 4.764913686 | E78: 4.761256354 | F78: 4.757604632 | G78: 4.753958507 | H78: 4.750317967 | I78: 4.746682998 | J78: 4.743053588 | K78: 4.739432881 | L78: 4.735814545 | M78: 4.73220173 | N78: 4.728594424 | O78: 4.724992612 | P78: 4.721396283 | Q78: 4.717805425 | R78: 4.714220025 | S78: 4.71064007 | T78: 4.707065548 | U78: 4.703496447 | V78: 4.699932754 | W78: 4.696374458 | Y78: 562.18 | Z78: 562.07 | AA78: 561.95 | AB78: 561.84 | AC78: 561.72 | AD78: 561.61 | AE78: 561.49 | AF78: 561.38 | AG78: 561.26 | AH78: 561.15 | AI78: 561.03 | AJ78: 560.92 | AK78: 560.8 | AL78: 560.69 | AM78: 560.57 | AN78: 560.46 | AO78: 560.35 | AP78: 560.23 | AQ78: 560.12 | AR78: 560
B79: VBA | C79: Project Management Staff | D79: 4.954422868 | E79: 4.928706707 | F79: 4.903256129 | G79: 4.878067041 | H79: 4.853132124 | I79: 4.828454103 | J79: 4.804025787 | K79: 4.779843404 | L79: 4.755903259 | M79: 4.73220173 | N79: 4.708735268 | O79: 4.685497307 | P79: 4.662490637 | Q79: 4.639708798 | R79: 4.617148508 | S79: 4.594806553 | T79: 4.572679779 | U79: 4.550762179 | V79: 4.52905657 | W79: 4.507557035 | Y79: 567.89 | Z79: 567.14 | AA79: 566.39 | AB79: 565.64 | AC79: 564.89 | AD79: 564.15 | AE79: 563.4 | AF79: 562.65 | AG79: 561.9 | AH79: 561.15 | AI79: 560.4 | AJ79: 559.65 | AK79: 558.9 | AL79: 558.15 | AM79: 557.4 | AN79: 556.65 | AO79: 555.9 | AP79: 555.15 | AQ79: 554.4 | AR79: 553.65
C81: High Voltage Covered Conductors
B82: VBA | C82: CAPEX investment | D82: 4.896840975 | E82: 4.877983432 | F82: 4.859270571 | G82: 4.840700734 | H82: 4.822275554 | I82: 4.803986863 | J82: 4.78583637 | K82: 4.767822513 | L82: 4.749943755 | M82: 4.73220173 | N82: 4.714588629 | O82: 4.697106152 | P82: 4.679752852 | Q82: 4.662530357 | R82: 4.64543113 | S82: 4.628456863 | T82: 4.611606191 | U82: 4.594877769 | V82: 4.578273219 | W82: 4.561785319 | Y82: 566.2 | Z82: 565.64 | AA82: 565.08 | AB82: 564.52 | AC82: 563.96 | AD82: 563.39 | AE82: 562.83 | AF82: 562.27 | AG82: 561.71 | AH82: 561.15 | AI82: 560.59 | AJ82: 560.02 | AK82: 559.46 | AL82: 558.9 | AM82: 558.34 | AN82: 557.78 | AO82: 557.22 | AP82: 556.65 | AQ82: 556.09 | AR82: 555.53
B83: VBA | C83: Ongoing Cost | D83: 4.73220173 | E83: 4.73220173 | F83: 4.73220173 | G83: 4.73220173 | H83: 4.73220173 | I83: 4.73220173 | J83: 4.73220173 | K83: 4.73220173 | L83: 4.73220173 | M83: 4.73220173 | N83: 4.73220173 | O83: 4.73220173 | P83: 4.73220173 | Q83: 4.73220173 | R83: 4.73220173 | S83: 4.73220173 | T83: 4.73220173 | U83: 4.73220173 | V83: 4.73220173 | W83: 4.73220173 | Y83: 561.15 | Z83: 561.15 | AA83: 561.15 | AB83: 561.15 | AC83: 561.15 | AD83: 561.15 | AE83: 561.15 | AF83: 561.15 | AG83: 561.15 | AH83: 561.15 | AI83: 561.15 | AJ83: 561.15 | AK83: 561.15 | AL83: 561.15 | AM83: 561.15 | AN83: 561.15 | AO83: 561.15 | AP83: 561.15 | AQ83: 561.15 | AR83: 561.15
B84: VBA | C84: Kilometres of High Voltage Covered Conductor | D84: 4.475504496 | E84: 4.503880268 | F84: 4.532295253 | G84: 4.560745899 | H84: 4.589232271 | I84: 4.617754437 | J84: 4.646312465 | K84: 4.674905758 | L84: 4.703532585 | M84: 4.73220173 | N84: 4.760900714 | O84: 4.789639047 | P84: 4.818416862 | Q84: 4.847223926 | R84: 4.876071276 | S84: 4.904955102 | T84: 4.933875475 | U84: 4.962829145 | V84: 4.991826136 | W84: 5.020855895 | Y84: 525.51 | Z84: 529.47 | AA84: 533.43 | AB84: 537.39 | AC84: 541.35 | AD84: 545.31 | AE84: 549.27 | AF84: 553.23 | AG84: 557.19 | AH84: 561.15 | AI84: 565.11 | AJ84: 569.07 | AK84: 573.03 | AL84: 576.99 | AM84: 580.94 | AN84: 584.9 | AO84: 588.86 | AP84: 592.82 | AQ84: 596.78 | AR84: 600.74
C86: General Assumptions
B87: VBA | C87: Bare to CCT bushfire risk reduction effectiveness | D87: 4.73220173 | E87: 4.73220173 | F87: 4.73220173 | G87: 4.73220173 | H87: 4.73220173 | I87: 4.73220173 | J87: 4.73220173 | K87: 4.73220173 | L87: 4.73220173 | M87: 4.73220173 | N87: 4.73220173 | O87: 4.73220173 | P87: 4.73220173 | Q87: 4.73220173 | R87: 4.73220173 | S87: 4.73220173 | T87: 4.73220173 | U87: 4.73220173 | V87: 4.73220173 | W87: 4.73220173 | Y87: 561.15 | Z87: 561.15 | AA87: 561.15 | AB87: 561.15 | AC87: 561.15 | AD87: 561.15 | AE87: 561.15 | AF87: 561.15 | AG87: 561.15 | AH87: 561.15 | AI87: 561.15 | AJ87: 561.15 | AK87: 561.15 | AL87: 561.15 | AM87: 561.15 | AN87: 561.15 | AO87: 561.15 | AP87: 561.15 | AQ87: 561.15 | AR87: 561.15
B88: VBA | C88: Bare to CCT reliability risk reduction effectiveness | D88: 4.73220173 | E88: 4.73220173 | F88: 4.73220173 | G88: 4.73220173 | H88: 4.73220173 | I88: 4.73220173 | J88: 4.73220173 | K88: 4.73220173 | L88: 4.73220173 | M88: 4.73220173 | N88: 4.73220173 | O88: 4.73220173 | P88: 4.73220173 | Q88: 4.73220173 | R88: 4.73220173 | S88: 4.73220173 | T88: 4.73220173 | U88: 4.73220173 | V88: 4.73220173 | W88: 4.73220173 | Y88: 561.15 | Z88: 561.15 | AA88: 561.15 | AB88: 561.15 | AC88: 561.15 | AD88: 561.15 | AE88: 561.15 | AF88: 561.15 | AG88: 561.15 | AH88: 561.15 | AI88: 561.15 | AJ88: 561.15 | AK88: 561.15 | AL88: 561.15 | AM88: 561.15 | AN88: 561.15 | AO88: 561.15 | AP88: 561.15 | AQ88: 561.15 | AR88: 561.15
C90: Assumptions - Vegetation Model Analysis
B91: VBA | C91: Veg fault to ignition | D91: 0.8231536297 | E91: 1.257491864 | F91: 1.691830099 | G91: 2.126169663 | H91: 2.560507898 | I91: 2.994846797 | J91: 3.429185697 | K91: 3.863523931 | L91: 4.297862831 | M91: 4.73220173 | N91: 5.16654063 | O91: 5.600878864 | P91: 6.035217764 | Q91: 6.469556664 | R91: 6.903894898 | S91: 7.338233798 | T91: 7.772572697 | U91: 8.206910932 | V91: 8.641250496 | W91: 9.075588731 | Y91: -26.59 | Z91: 38.71 | AA91: 104.02 | AB91: 169.32 | AC91: 234.63 | AD91: 299.93 | AE91: 365.24 | AF91: 430.54 | AG91: 495.84 | AH91: 561.15 | AI91: 626.45 | AJ91: 691.76 | AK91: 757.06 | AL91: 822.36 | AM91: 887.67 | AN91: 952.97 | AO91: 1018.28 | AP91: 1083.58 | AQ91: 1148.89 | AR91: 1214.19
B92: VBA | C92: Network annual average vegetation contacts | D92: 0.47322004 | E92: 0.9464400801 | F92: 1.419660785 | G92: 1.892880825 | H92: 2.366100865 | I92: 2.839320905 | J92: 3.312540945 | K92: 3.785760985 | L92: 4.25898169 | M92: 4.73220173 | N92: 5.20542177 | O92: 5.678641811 | P92: 6.151861851 | Q92: 6.625081891 | R92: 7.098302596 | S92: 7.571522636 | T92: 8.044742676 | U92: 8.517962716 | V92: 8.991182756 | W92: 9.464402796 | Y92: -79.2 | Z92: -8.05 | AA92: 63.1 | AB92: 134.25 | AC92: 205.4 | AD92: 276.55 | AE92: 347.7 | AF92: 418.85 | AG92: 490 | AH92: 561.15 | AI92: 632.3 | AJ92: 703.45 | AK92: 774.6 | AL92: 845.75 | AM92: 916.9 | AN92: 988.05 | AO92: 1059.2 | AP92: 1130.35 | AQ92: 1201.5 | AR92: 1272.65
B93: VBA | C93: Vegetation outage duration (minutes) | D93: 4.382268806 | E93: 4.421149946 | F93: 4.460031752 | G93: 4.498912892 | H93: 4.537794033 | I93: 4.576675838 | J93: 4.615556979 | K93: 4.654438784 | L93: 4.693319925 | M93: 4.73220173 | N93: 4.771083536 | O93: 4.809964011 | P93: 4.848845817 | Q93: 4.887727623 | R93: 4.926608763 | S93: 4.965490569 | T93: 5.004371709 | U93: 5.043252849 | V93: 5.082134655 | W93: 5.121015795 | Y93: 508.53 | Z93: 514.38 | AA93: 520.23 | AB93: 526.07 | AC93: 531.92 | AD93: 537.76 | AE93: 543.61 | AF93: 549.46 | AG93: 555.3 | AH93: 561.15 | AI93: 566.99 | AJ93: 572.84 | AK93: 578.69 | AL93: 584.53 | AM93: 590.38 | AN93: 596.22 | AO93: 602.07 | AP93: 607.92 | AQ93: 613.76 | AR93: 619.61
B94: VBA | C94: Incremental vegetation maintenance cost increase | D94: 7.198857089 | E94: 6.804749449 | F94: 6.451553584 | G94: 6.133213342 | H94: 5.844811681 | I94: 5.58231488 | J94: 5.342382706 | K94: 5.122225526 | L94: 4.919495343 | M94: 4.73220173 | N94: 4.558646261 | O94: 4.397370853 | P94: 4.247116711 | Q94: 4.106791404 | R94: 3.975442257 | S94: 3.852234698 | T94: 3.736434507 | U94: 3.627393171 | V94: 3.524535731 | W94: 3.427350646 | Y94: 612.67 | Z94: 606.94 | AA94: 601.22 | AB94: 595.49 | AC94: 589.77 | AD94: 584.04 | AE94: 578.32 | AF94: 572.6 | AG94: 566.87 | AH94: 561.15 | AI94: 555.42 | AJ94: 549.7 | AK94: 543.98 | AL94: 538.25 | AM94: 532.53 | AN94: 526.8 | AO94: 521.08 | AP94: 515.35 | AQ94: 509.63 | AR94: 503.91
C96: VMA Analysis
B97: Manual | C97: Baseline Vegetation Contacts
B98: Manual | C98: CTS (A+B+C) Vegetation Contacts
B99: Manual | C99: VMA ($/min)
B100: Manual | C100: Upfront CTS treatment cost ($)
B101: Manual | C101: Upfront Outage Cost ($)
C103: UoM Consequence

Sheet Individual para sensitivit 03 (hidden)
A1: Individual Parameter Sensitivity for Scenario 3
A2: (numbers may be slightly different than other Worksheets due to rounding and calculation method)
C4: Real (2024-25 $) | D4: Benefit Cost Ratio (2024-25 $) | Y4: Net Benefit (Net Present Value, 2024-25 $)
D5: % of Central Estimate | Y5: % of Central Estimate
C6: Parameter | D6: 0.1 | E6: 0.2 | F6: 0.3 | G6: 0.4 | H6: 0.5 | I6: 0.6 | J6: 0.7 | K6: 0.8 | L6: 0.9 | M6: 1 | N6: 1.1 | O6: 1.2 | P6: 1.3 | Q6: 1.4 | R6: 1.5 | S6: 1.6 | T6: 1.7 | U6: 1.8 | V6: 1.9 | W6: 2 | Y6: 0.1 | Z6: 0.2 | AA6: 0.3 | AB6: 0.4 | AC6: 0.5 | AD6: 0.6 | AE6: 0.7 | AF6: 0.8 | AG6: 0.9 | AH6: 1 | AI6: 1.1 | AJ6: 1.2 | AK6: 1.3 | AL6: 1.4 | AM6: 1.5 | AN6: 1.6 | AO6: 1.7 | AP6: 1.8 | AQ6: 1.9 | AR6: 2
B7: Input | C7: SAPS Related Parameters
B8: VBA | C8: SAPS (excluding pole removal costs) | D8: 3.973093644 | E8: 3.946757361 | F8: 3.920767927 | G8: 3.895118536 | H8: 3.869802556 | I8: 3.844813529 | J8: 3.820145162 | K8: 3.795791323 | L8: 3.771746032 | M8: 3.748003465 | N8: 3.72455794 | O8: 3.701403916 | P8: 3.678535992 | Q8: 3.655948897 | R8: 3.63363749 | S8: 3.611596753 | T8: 3.589821792 | U8: 3.568307827 | V8: 3.547050194 | W8: 3.52604434 | Y8: 275.13 | Z8: 274.52 | AA8: 273.9 | AB8: 273.28 | AC8: 272.66 | AD8: 272.05 | AE8: 271.43 | AF8: 270.81 | AG8: 270.19 | AH8: 269.58 | AI8: 268.96 | AJ8: 268.34 | AK8: 267.72 | AL8: 267.11 | AM8: 266.49 | AN8: 265.87 | AO8: 265.25 | AP8: 264.64 | AQ8: 264.02 | AR8: 263.4
B9: VBA | C9: Pole removal costs / pole | D9: 3.765341488 | E9: 3.763407124 | F9: 3.761474746 | G9: 3.759544351 | H9: 3.757615937 | I9: 3.7556895 | J9: 3.753765038 | K9: 3.751842546 | L9: 3.749922023 | M9: 3.748003465 | N9: 3.746086869 | O9: 3.744172232 | P9: 3.742259552 | Q9: 3.740348824 | R9: 3.738440047 | S9: 3.736533217 | T9: 3.734628331 | U9: 3.732725387 | V9: 3.73082438 | W9: 3.728925309 | Y9: 270.03 | Z9: 269.98 | AA9: 269.93 | AB9: 269.88 | AC9: 269.83 | AD9: 269.78 | AE9: 269.73 | AF9: 269.68 | AG9: 269.63 | AH9: 269.58 | AI9: 269.53 | AJ9: 269.47 | AK9: 269.42 | AL9: 269.37 | AM9: 269.32 | AN9: 269.27 | AO9: 269.22 | AP9: 269.17 | AQ9: 269.12 | AR9: 269.07
B10: VBA | C10: Median number of poles | D10: 3.765341488 | E10: 3.763407124 | F10: 3.761474746 | G10: 3.759544351 | H10: 3.757615937 | I10: 3.7556895 | J10: 3.753765038 | K10: 3.751842546 | L10: 3.749922023 | M10: 3.748003465 | N10: 3.746086869 | O10: 3.744172232 | P10: 3.742259552 | Q10: 3.740348824 | R10: 3.738440047 | S10: 3.736533217 | T10: 3.734628331 | U10: 3.732725387 | V10: 3.73082438 | W10: 3.728925309 | Y10: 270.03 | Z10: 269.98 | AA10: 269.93 | AB10: 269.88 | AC10: 269.83 | AD10: 269.78 | AE10: 269.73 | AF10: 269.68 | AG10: 269.63 | AH10: 269.58 | AI10: 269.53 | AJ10: 269.47 | AK10: 269.42 | AL10: 269.37 | AM10: 269.32 | AN10: 269.27 | AO10: 269.22 | AP10: 269.17 | AQ10: 269.12 | AR10: 269.07
B11: VBA | C11: Net Cost of Pole Removals | D11: n/a - is a calculation
B12: VBA | C12: Operating costs of SAPS (annual) | D12: 3.748003465 | E12: 3.748003465 | F12: 3.748003465 | G12: 3.748003465 | H12: 3.748003465 | I12: 3.748003465 | J12: 3.748003465 | K12: 3.748003465 | L12: 3.748003465 | M12: 3.748003465 | N12: 3.748003465 | O12: 3.748003465 | P12: 3.748003465 | Q12: 3.748003465 | R12: 3.748003465 | S12: 3.748003465 | T12: 3.748003465 | U12: 3.748003465 | V12: 3.748003465 | W12: 3.748003465 | Y12: 269.58 | Z12: 269.58 | AA12: 269.58 | AB12: 269.58 | AC12: 269.58 | AD12: 269.58 | AE12: 269.58 | AF12: 269.58 | AG12: 269.58 | AH12: 269.58 | AI12: 269.58 | AJ12: 269.58 | AK12: 269.58 | AL12: 269.58 | AM12: 269.58 | AN12: 269.58 | AO12: 269.58 | AP12: 269.58 | AQ12: 269.58 | AR12: 269.58
B13: VBA | C13: Total SAPS cost (including pole removal costs) | D13: n/a - is a calculation
C15: SAPS OPEX and CAPEX
B16: VBA | C16: Avoided CAPEX ($FY20) | D16: 3.631087933 | E16: 3.64371709 | F16: 3.656434404 | G16: 3.669240801 | H16: 3.68213722 | I16: 3.695124613 | J16: 3.708203948 | K16: 3.721376203 | L16: 3.734642373 | M16: 3.748003465 | N16: 3.761460502 | O16: 3.775014521 | P16: 3.788666573 | Q16: 3.802417728 | R16: 3.816269067 | S16: 3.83022169 | T16: 3.844276711 | U16: 3.858435262 | V16: 3.872698491 | W16: 3.887067563 | Y16: 266.42 | Z16: 266.77 | AA16: 267.12 | AB16: 267.47 | AC16: 267.82 | AD16: 268.17 | AE16: 268.52 | AF16: 268.87 | AG16: 269.22 | AH16: 269.58 | AI16: 269.93 | AJ16: 270.28 | AK16: 270.63 | AL16: 270.98 | AM16: 271.33 | AN16: 271.68 | AO16: 272.03 | AP16: 272.38 | AQ16: 272.73 | AR16: 273.08
B17: VBA | C17: Avoided OPEX ($FY20) | D17: 3.696716717 | E17: 3.702345826 | F17: 3.707992104 | G17: 3.713655631 | H17: 3.719336484 | I17: 3.725034745 | J17: 3.730750492 | K17: 3.730750492 | L17: 3.742234771 | M17: 3.748003465 | N17: 3.748003465 | O17: 3.759594373 | P17: 3.759594373 | Q17: 3.771257195 | R17: 3.771257195 | S17: 3.782992601 | T17: 3.788887736 | U17: 3.788887736 | V17: 3.800733297 | W17: 3.800733297 | Y17: 268.21 | Z17: 268.37 | AA17: 268.52 | AB17: 268.67 | AC17: 268.82 | AD17: 268.97 | AE17: 269.12 | AF17: 269.12 | AG17: 269.42 | AH17: 269.58 | AI17: 269.58 | AJ17: 269.88 | AK17: 269.88 | AL17: 270.18 | AM17: 270.18 | AN17: 270.48 | AO17: 270.63 | AP17: 270.63 | AQ17: 270.94 | AR17: 270.94
B18: VBA | C18: Total avoided expenditure ($FY20) | D18: n/a - is a calculation | Y18: n/a - is a calculation
B19: VBA | C19: Sites | D19: 6.950024106 | E19: 6.950024106 | F19: 4.25641588 | G19: 4.059737732 | H19: 4.059737732 | I19: 3.880432805 | J19: 3.832075702 | K19: 3.832075702 | L19: 3.769443726 | M19: 3.769443726 | N19: 3.730642007 | O19: 3.730642007 | P19: 3.704243921 | Q19: 3.704243921 | R19: 3.685121534 | S19: 3.677409342 | T19: 3.677409342 | U19: 3.664627171 | V19: 3.664627171 | W19: 3.654465235 | Y19: 314.77 | Z19: 314.77 | AA19: 281.29 | AB19: 277.11 | AC19: 277.11 | AD19: 272.92 | AE19: 271.73 | AF19: 271.73 | AG19: 270.13 | AH19: 270.13 | AI19: 269.12 | AJ19: 269.12 | AK19: 268.42 | AL19: 268.42 | AM19: 267.9 | AN19: 267.69 | AO19: 267.69 | AP19: 267.34 | AQ19: 267.34 | AR19: 267.06
B20: VBA | C20: Average remaining Distribution lines and cables CAPEX (avoided CAPEX period) | D20: 3.748003465 | E20: 3.748003465 | F20: 3.748003465 | G20: 3.748003465 | H20: 3.748003465 | I20: 3.748003465 | J20: 3.748003465 | K20: 3.748003465 | L20: 3.748003465 | M20: 3.748003465 | N20: 3.748003465 | O20: 3.748003465 | P20: 3.748003465 | Q20: 3.748003465 | R20: 3.748003465 | S20: 3.748003465 | T20: 3.748003465 | U20: 3.748003465 | V20: 3.748003465 | W20: 3.748003465 | Y20: 269.58 | Z20: 269.58 | AA20: 269.58 | AB20: 269.58 | AC20: 269.58 | AD20: 269.58 | AE20: 269.58 | AF20: 269.58 | AG20: 269.58 | AH20: 269.58 | AI20: 269.58 | AJ20: 269.58 | AK20: 269.58 | AL20: 269.58 | AM20: 269.58 | AN20: 269.58 | AO20: 269.58 | AP20: 269.58 | AQ20: 269.58 | AR20: 269.58
B21: VBA | C21: Annualised avoided CAPEX / site | D21: n/a - is a calculation | Y21: n/a - is a calculation
B22: VBA | C22: SAPS life | D22: 3.748003465 | E22: 4.713075399 | F22: 4.25641588 | G22: 4.25641588 | H22: 3.950219964 | I22: 3.880432805 | J22: 3.880432805 | K22: 3.796591483 | L22: 3.769443726 | M22: 3.769443726 | N22: 3.730642007 | O22: 3.716296519 | P22: 3.704243921 | Q22: 3.704243921 | R22: 3.685121534 | S22: 3.677409342 | T22: 3.677409342 | U22: 3.664627171 | V22: 3.659271749 | W22: 3.659271749 | Y22: 269.58 | Z22: 289.66 | AA22: 281.29 | AB22: 281.29 | AC22: 274.6 | AD22: 272.92 | AE22: 272.92 | AF22: 270.83 | AG22: 270.13 | AH22: 270.13 | AI22: 269.12 | AJ22: 268.74 | AK22: 268.42 | AL22: 268.42 | AM22: 267.9 | AN22: 267.69 | AO22: 267.69 | AP22: 267.34 | AQ22: 267.2 | AR22: 267.2
B23: VBA | C23: Avoided OPEX / year | D23: n/a - is a calculation
B24: VBA | C24: Avoided OPEX / year / site | D24: n/a - is a calculation
C26: SAPS component replacement costs
B27: VBA | C27: Batteries / Converters | D27: 3.752377252 | E27: 3.752377252 | F27: 3.751404417 | G27: 3.750918189 | H27: 3.750918189 | I27: 3.749946111 | J27: 3.749460261 | K27: 3.749460261 | L27: 3.748488938 | M27: 3.748003465 | N27: 3.748003465 | O27: 3.747032897 | P27: 3.747032897 | Q27: 3.746062831 | R27: 3.746062831 | S27: 3.745093267 | T27: 3.744608674 | U27: 3.744608674 | V27: 3.743639863 | W27: 3.743155645 | Y27: 269.69 | Z27: 269.69 | AA27: 269.66 | AB27: 269.65 | AC27: 269.65 | AD27: 269.63 | AE27: 269.61 | AF27: 269.61 | AG27: 269.59 | AH27: 269.58 | AI27: 269.58 | AJ27: 269.55 | AK27: 269.55 | AL27: 269.52 | AM27: 269.52 | AN27: 269.5 | AO27: 269.49 | AP27: 269.49 | AQ27: 269.46 | AR27: 269.45
B28: VBA | C28: Solar Panels | D28: 3.748003465 | E28: 3.748003465 | F28: 3.748003465 | G28: 3.748003465 | H28: 3.748003465 | I28: 3.748003465 | J28: 3.748003465 | K28: 3.748003465 | L28: 3.748003465 | M28: 3.748003465 | N28: 3.748003465 | O28: 3.748003465 | P28: 3.748003465 | Q28: 3.748003465 | R28: 3.748003465 | S28: 3.748003465 | T28: 3.748003465 | U28: 3.748003465 | V28: 3.748003465 | W28: 3.748003465 | Y28: 269.58 | Z28: 269.58 | AA28: 269.58 | AB28: 269.58 | AC28: 269.58 | AD28: 269.58 | AE28: 269.58 | AF28: 269.58 | AG28: 269.58 | AH28: 269.58 | AI28: 269.58 | AJ28: 269.58 | AK28: 269.58 | AL28: 269.58 | AM28: 269.58 | AN28: 269.58 | AO28: 269.58 | AP28: 269.58 | AQ28: 269.58 | AR28: 269.58
B29: VBA | C29: Generators | D29: 3.748003465 | E29: 3.74870684 | F29: 3.74870684 | G29: 3.748530972 | H29: 3.748443044 | I29: 3.748443044 | J29: 3.7482672 | K29: 3.748179284 | L29: 3.748179284 | M29: 3.748003465 | N29: 3.747915562 | O29: 3.747827662 | P29: 3.747739767 | Q29: 3.747739767 | R29: 3.747563989 | S29: 3.747476107 | T29: 3.747476107 | U29: 3.747300354 | V29: 3.747212483 | W29: 3.747212483 | Y29: 269.58 | Z29: 269.59 | AA29: 269.59 | AB29: 269.59 | AC29: 269.59 | AD29: 269.59 | AE29: 269.58 | AF29: 269.58 | AG29: 269.58 | AH29: 269.58 | AI29: 269.57 | AJ29: 269.57 | AK29: 269.57 | AL29: 269.57 | AM29: 269.56 | AN29: 269.56 | AO29: 269.56 | AP29: 269.56 | AQ29: 269.55 | AR29: 269.55
C31: Vegetation cost savings from SAPS
B32: VBA | C32: Potential network for removal following SAPS installation | D32: 3.522107387 | E32: 3.522107387 | F32: 3.572057253 | G32: 3.572057253 | H32: 3.62214905 | I32: 3.647248361 | J32: 3.647248361 | K32: 3.697554188 | L32: 3.722760857 | M32: 3.722760857 | N32: 3.773282089 | O32: 3.798596807 | P32: 3.823947695 | Q32: 3.849334832 | R32: 3.849334832 | S32: 3.900218161 | T32: 3.900218161 | U32: 3.951247419 | V32: 3.951247419 | W32: 4.002423235 | Y32: 249 | Z32: 249 | AA32: 253.57 | AB32: 253.57 | AC32: 258.15 | AD32: 260.43 | AE32: 260.43 | AF32: 265 | AG32: 267.29 | AH32: 267.29 | AI32: 271.86 | AJ32: 274.15 | AK32: 276.43 | AL32: 278.72 | AM32: 278.72 | AN32: 283.29 | AO32: 283.29 | AP32: 287.86 | AQ32: 287.86 | AR32: 292.43
B33: VBA | C33: Potential SAPS investment sites | D33: 3.748003465 | E33: 3.823159727 | F33: 3.823159727 | G33: 3.835643156 | H33: 3.779653769 | I33: 3.779653769 | J33: 3.763719447 | K33: 3.763719447 | L33: 3.776093052 | M33: 3.748003465 | N33: 3.748003465 | O33: 3.750811247 | P33: 3.750811247 | Q33: 3.729077052 | R33: 3.711425363 | S33: 3.711425363 | T33: 3.7076005 | U33: 3.696324671 | V33: 3.696324671 | W33: 3.69338579 | Y33: 269.58 | Z33: 272.81 | AA33: 272.81 | AB33: 275.14 | AC33: 270.25 | AD33: 270.25 | AE33: 269.58 | AF33: 269.58 | AG33: 272.12 | AH33: 269.58 | AI33: 269.58 | AJ33: 271.24 | AK33: 271.24 | AL33: 270.02 | AM33: 268.4 | AN33: 268.4 | AO33: 269.44 | AP33: 268.49 | AQ33: 268.49 | AR33: 268.85
B34: VBA | C34: Potetial substations to remove | D34: 3.748003465 | E34: 3.748003465 | F34: 3.748003465 | G34: 3.748003465 | H34: 3.748003465 | I34: 3.748003465 | J34: 3.748003465 | K34: 3.748003465 | L34: 3.748003465 | M34: 3.748003465 | N34: 3.748003465 | O34: 3.748003465 | P34: 3.748003465 | Q34: 3.748003465 | R34: 3.748003465 | S34: 3.748003465 | T34: 3.748003465 | U34: 3.748003465 | V34: 3.748003465 | W34: 3.748003465 | Y34: 269.58 | Z34: 269.58 | AA34: 269.58 | AB34: 269.58 | AC34: 269.58 | AD34: 269.58 | AE34: 269.58 | AF34: 269.58 | AG34: 269.58 | AH34: 269.58 | AI34: 269.58 | AJ34: 269.58 | AK34: 269.58 | AL34: 269.58 | AM34: 269.58 | AN34: 269.58 | AO34: 269.58 | AP34: 269.58 | AQ34: 269.58 | AR34: 269.58
B35: VBA | C35: Customers who agree to SAPS | D35: 3.748003465 | E35: 3.60231045 | F35: 3.60231045 | G35: 3.651663115 | H35: 3.651663115 | I35: 3.689512577 | J35: 3.689512577 | K35: 3.689512577 | L35: 3.748003465 | M35: 3.748003465 | N35: 3.748003465 | O35: 3.806077804 | P35: 3.806077804 | Q35: 3.806077804 | R35: 3.835358998 | S35: 3.835358998 | T35: 3.892804106 | U35: 3.892804106 | V35: 3.927979904 | W35: 3.927979904 | Y35: 269.58 | Z35: 253.06 | AA35: 253.06 | AB35: 258.64 | AC35: 258.64 | AD35: 262.89 | AE35: 262.89 | AF35: 262.89 | AG35: 269.58 | AH35: 269.58 | AI35: 269.58 | AJ35: 276.26 | AK35: 276.26 | AL35: 276.26 | AM35: 279.69 | AN35: 279.69 | AO35: 286.37 | AP35: 286.37 | AQ35: 290.35 | AR35: 290.35
C36: Potential network for removal with SAPS factoring in customer acceptance | D36: n/a - is a calculation
C37: Potential network for removal with SAPS factoring in customer acceptance per SAP | D37: n/a - is a calculation
C38: New P1 network (total bay length) | D38: n/a - is a calculation
C39: Total clear to sky cost and outage cost | D39: n/a - is a calculation
C40: Total clear to sky maintenance cost increase | D40: n/a - is a calculation
C41: Average cost of veg CTS treatment (cut and outage) per km of new P1 network (bay length) | D41: n/a - is a calculation
C42: Average veg maintenance cost increase per km of new P1 network (bay length) | D42: n/a - is a calculation
C43: Total CAPEX saving of avoided veg treatment and outages from SAPS in new P1 areas | D43: n/a - is a calculation
C44: Avoided ongoing vegetation maintenance cost increase due to SAPS installation | D44: n/a - is a calculation
C45: SAPS sites | D45: n/a - is a calculation
C46: CAPEX saving of avoided veg treatment and outages from SAPS installation in new P1 areas per site | D46: n/a - is a calculation
C47: OPEX saving of avoided annual veg maintenance cost increase from SAPS installation in new P1 areas per site | D47: n/a - is a calculation
C48: Avoided CAPEX and OPEX from SAPS | D48: n/a - is a calculation
C49: Total Cost savings from SAPS | D49: n/a - is a calculation
C51: Inspection and data acquisition costs
B52: VBA | C52: Aerial and ground based inspection | D52: 3.748003465 | E52: 3.790927544 | F52: 3.790927544 | G52: 3.780104614 | H52: 3.780104614 | I52: 3.769343307 | J52: 3.769343307 | K52: 3.758643097 | L52: 3.753315741 | M52: 3.753315741 | N52: 3.742706206 | O52: 3.737423899 | P52: 3.732156481 | Q52: 3.726903891 | R52: 3.721666064 | S52: 3.716442939 | T52: 3.711234455 | U52: 3.706040549 | V52: 3.70086116 | W52: 3.695696228 | Y52: 269.58 | Z52: 270.69 | AA52: 270.69 | AB52: 270.41 | AC52: 270.41 | AD52: 270.13 | AE52: 270.13 | AF52: 269.85 | AG52: 269.71 | AH52: 269.71 | AI52: 269.44 | AJ52: 269.3 | AK52: 269.16 | AL52: 269.02 | AM52: 268.88 | AN52: 268.74 | AO52: 268.6 | AP52: 268.46 | AQ52: 268.33 | AR52: 268.19
B53: VBA | C53: Additional digital data acquisition assurance | D53: 3.779772062 | E53: 3.776215648 | F53: 3.77266592 | G53: 3.769122859 | H53: 3.765586447 | I53: 3.762056665 | J53: 3.758533495 | K53: 3.755016917 | L53: 3.751506913 | M53: 3.748003465 | N53: 3.744506555 | O53: 3.741016163 | P53: 3.737532273 | Q53: 3.734054866 | R53: 3.730583923 | S53: 3.727119427 | T53: 3.72366136 | U53: 3.720209704 | V53: 3.716764441 | W53: 3.713325553 | Y53: 270.4 | Z53: 270.31 | AA53: 270.22 | AB53: 270.12 | AC53: 270.03 | AD53: 269.94 | AE53: 269.85 | AF53: 269.76 | AG53: 269.67 | AH53: 269.58 | AI53: 269.48 | AJ53: 269.39 | AK53: 269.3 | AL53: 269.21 | AM53: 269.12 | AN53: 269.03 | AO53: 268.93 | AP53: 268.84 | AQ53: 268.75 | AR53: 268.66
B54: VBA | C54: Project Management staff | D54: 3.959449978 | E54: 3.934785095 | F54: 3.910425604 | G54: 3.886365866 | H54: 3.862600384 | I54: 3.839123791 | J54: 3.815930852 | K54: 3.793016457 | L54: 3.770375618 | M54: 3.748003465 | N54: 3.725895244 | O54: 3.704046312 | P54: 3.682452133 | Q54: 3.661108278 | R54: 3.64001042 | S54: 3.619154329 | T54: 3.598535874 | U54: 3.578151017 | V54: 3.55799581 | W54: 3.538066393 | Y54: 274.81 | Z54: 274.23 | AA54: 273.65 | AB54: 273.07 | AC54: 272.49 | AD54: 271.9 | AE54: 271.32 | AF54: 270.74 | AG54: 270.16 | AH54: 269.58 | AI54: 268.99 | AJ54: 268.41 | AK54: 267.83 | AL54: 267.25 | AM54: 266.66 | AN54: 266.08 | AO54: 265.5 | AP54: 264.92 | AQ54: 264.34 | AR54: 263.75
C56: Assumptions - Vegetation Model Analysis
B57: VBA | C57: Veg fault to ignition | D57: 0.6478587974 | E57: 0.992319316 | F57: 1.336779835 | G57: 1.681240353 | H57: 2.025700872 | I57: 2.37016139 | J57: 2.714621909 | K57: 3.059082428 | L57: 3.403542946 | M57: 3.748003465 | N57: 4.092463984 | O57: 4.436924502 | P57: 4.781385021 | Q57: 5.125845539 | R57: 5.470306058 | S57: 5.814766577 | T57: 6.159227095 | U57: 6.503687614 | V57: 6.848148133 | W57: 7.192608651 | Y57: -34.54 | Z57: -0.75 | AA57: 33.04 | AB57: 66.83 | AC57: 100.62 | AD57: 134.41 | AE57: 168.2 | AF57: 201.99 | AG57: 235.78 | AH57: 269.58 | AI57: 303.37 | AJ57: 337.16 | AK57: 370.95 | AL57: 404.74 | AM57: 438.53 | AN57: 472.32 | AO57: 506.11 | AP57: 539.9 | AQ57: 573.69 | AR57: 607.49
B58: VBA | C58: Network annual average vegetation contacts | D58: 0.3748003465 | E58: 0.749600693 | F58: 1.124401039 | G58: 1.499201386 | H58: 1.874001732 | I58: 2.248802079 | J58: 2.623602425 | K58: 2.998402772 | L58: 3.373203118 | M58: 3.748003465 | N58: 4.122803811 | O58: 4.497604158 | P58: 4.872404504 | Q58: 5.247204851 | R58: 5.622005197 | S58: 5.996805544 | T58: 6.37160589 | U58: 6.746406237 | V58: 7.121206583 | W58: 7.49600693 | Y58: -61.33 | Z58: -24.56 | AA58: 12.2 | AB58: 48.97 | AC58: 85.74 | AD58: 122.51 | AE58: 159.27 | AF58: 196.04 | AG58: 232.81 | AH58: 269.58 | AI58: 306.34 | AJ58: 343.11 | AK58: 379.88 | AL58: 416.64 | AM58: 453.41 | AN58: 490.18 | AO58: 526.95 | AP58: 563.71 | AQ58: 600.48 | AR58: 637.25
B59: VBA | C59: Vegetation outage duration (minutes) | D59: 3.474945014 | E59: 3.505284842 | F59: 3.53562467 | G59: 3.565964498 | H59: 3.596304326 | I59: 3.626644153 | J59: 3.656983981 | K59: 3.687323809 | L59: 3.717663637 | M59: 3.748003465 | N59: 3.778343293 | O59: 3.808683121 | P59: 3.839022949 | Q59: 3.869362776 | R59: 3.899702604 | S59: 3.930042432 | T59: 3.96038226 | U59: 3.990722088 | V59: 4.021061916 | W59: 4.051401744 | Y59: 242.79 | Z59: 245.76 | AA59: 248.74 | AB59: 251.72 | AC59: 254.69 | AD59: 257.67 | AE59: 260.65 | AF59: 263.62 | AG59: 266.6 | AH59: 269.58 | AI59: 272.55 | AJ59: 275.53 | AK59: 278.5 | AL59: 281.48 | AM59: 284.46 | AN59: 287.43 | AO59: 290.41 | AP59: 293.39 | AQ59: 296.36 | AR59: 299.34
B60: VBA | C60: Incremental vegetation maintenance cost increase | D60: 5.063163864 | E60: 4.87316654 | F60: 4.696912934 | G60: 4.532963844 | H60: 4.380074234 | I60: 4.237161561 | J60: 4.103280102 | K60: 3.977600002 | L60: 3.859390054 | M60: 3.748003465 | N60: 3.642866017 | O60: 3.543466166 | P60: 3.449346714 | Q60: 3.360097785 | R60: 3.275350852 | S60: 3.194773653 | T60: 3.118065836 | U60: 3.044955221 | V60: 2.975194569 | W60: 2.908558792 | Y60: 295.06 | Z60: 292.23 | AA60: 289.39 | AB60: 286.56 | AC60: 283.73 | AD60: 280.9 | AE60: 278.07 | AF60: 275.24 | AG60: 272.41 | AH60: 269.58 | AI60: 266.74 | AJ60: 263.91 | AK60: 261.08 | AL60: 258.25 | AM60: 255.42 | AN60: 252.59 | AO60: 249.76 | AP60: 246.93 | AQ60: 244.09 | AR60: 241.26
C62: VMA Analysis
B63: Manual | C63: Baseline Vegetation Contacts | F63: 0.8 | G63: 1.3 | H63: 1.7 | I63: 2.1 | J63: 2.6 | K63: 3 | L63: 3.363643362 | M63: 3.748003465 | N63: 4.121172571 | AA63: -20.5 | AB63: 24.9 | AC63: 68.9 | AD63: 111.6 | AE63: 152.9 | AF63: 193 | AG63: 231.8699954 | AH63: 269.58 | AI63: 306.1825152
B64: Manual | C64: CTS (A+B+C) Vegetation Contacts | L64: 3.807254407 | M64: 3.748003465 | N64: 3.688752523 | O64: 3.62950158 | P64: 3.570250638 | Q64: 3.510999695 | R64: 3.451748753 | S64: 3.39249781 | T64: 3.333246868 | U64: 3.273995925 | V64: 3.214744983 | W64: 3.155494041 | AG64: 275.3875974 | AH64: 269.58 | AI64: 263.7627338 | AJ64: 257.9503021 | AK64: 252.1378703 | AL64: 246.3254385 | AM64: 240.5130068 | AN64: 234.700575 | AO64: 228.8881433 | AP64: 223.0757115 | AQ64: 217.2632797 | AR64: 211.450848
B65: Manual | C65: VMA ($/min) | L65: 3.717663637 | M65: 3.748003465 | N65: 3.778343293 | AG65: 266.5988724 | AH65: 269.58 | AI65: 272.5514588
B66: Manual | C66: Upfront CTS treatment cost ($) | L66: 3.967602426 | M66: 3.748003465 | N66: 3.551438364 | AG66: 275.0047269 | AH66: 269.58 | AI66: 264.1456043
B67: Manual | C67: Upfront Outage Cost ($) | L67: 3.769366597 | M67: 3.748003465 | N67: 3.726881123 | AG67: 270.1311456 | AH67: 269.58 | AI67: 269.0191856
B69: Manual | C69: UoM consequence | E69: 0.992319316 | F69: 1.336779835 | G69: 1.681240353 | H69: 2.025700872 | I69: 2.37016139 | J69: 2.714621909 | K69: 3.059082428 | L69: 3.403542946 | M69: 3.748003465 | N69: 4.092463984 | Z69: -0.753463992 | AA69: 33.03761471 | AB69: 66.8286934 | AC69: 100.6197721 | AD69: 134.4108508 | AE69: 168.2019295 | AF69: 201.9930082 | AG69: 235.7840869 | AH69: 269.58 | AI69: 303.3662443
B70: VBA | C70: Discount rate | D70: 4.340370417 | E70: 4.268716991 | F70: 4.198571345 | G70: 4.129913513 | H70: 4.062722733 | I70: 3.996977542 | J70: 3.932655857 | K70: 3.869735062 | L70: 3.808192084 | M70: 3.748003465 | N70: 3.689145433 | O70: 3.631593965 | P70: 3.57532485 | Q70: 3.520313742 | R70: 3.466536219 | S70: 3.413967827 | T70: 3.362584126 | U70: 3.312360736 | V70: 3.263273373 | W70: 3.215297884 | Y70: 393.11 | Z70: 376.56 | AA70: 360.82 | AB70: 345.82 | AC70: 331.54 | AD70: 317.93 | AE70: 304.97 | AF70: 292.61 | AG70: 280.82 | AH70: 269.58 | AI70: 258.85 | AJ70: 248.61 | AK70: 238.84 | AL70: 229.5 | AM70: 220.59 | AN70: 212.07 | AO70: 203.93 | AP70: 196.15 | AQ70: 188.71 | AR70: 181.59
C72: Nominal ($, Net Present Value) | D72: Benefit Cost Ratio (2024-25 $) | Y72: Net Benefit (Net Present Value, 2024-25 $)
D73: % of Central Estimate | Y73: % of Central Estimate
C74: Parameter | D74: 0.1 | E74: 0.2 | F74: 0.3 | G74: 0.4 | H74: 0.5 | I74: 0.6 | J74: 0.7 | K74: 0.8 | L74: 0.9 | M74: 1 | N74: 1.1 | O74: 1.2 | P74: 1.3 | Q74: 1.4 | R74: 1.5 | S74: 1.6 | T74: 1.7 | U74: 1.8 | V74: 1.9 | W74: 2 | Y74: 0.1 | Z74: 0.2 | AA74: 0.3 | AB74: 0.4 | AC74: 0.5 | AD74: 0.6 | AE74: 0.7 | AF74: 0.8 | AG74: 0.9 | AH74: 1 | AI74: 1.1 | AJ74: 1.2 | AK74: 1.3 | AL74: 1.4 | AM74: 1.5 | AN74: 1.6 | AO74: 1.7 | AP74: 1.8 | AQ74: 1.9 | AR74: 2
C75: SAPS Related Parameters
B76: VBA | C76: SAPS (excluding pole removal costs) | D76: 4.355551975 | E76: 4.327656676 | F76: 4.300116416 | G76: 4.27292446 | H76: 4.246074242 | I76: 4.219559359 | J76: 4.19337357 | K76: 4.167510784 | L76: 4.141965062 | M76: 4.116730609 | N76: 4.09180177 | O76: 4.067173026 | P76: 4.042838992 | Q76: 4.018794409 | R76: 3.995034142 | S76: 3.97155318 | T76: 3.948346625 | U76: 3.925409695 | V76: 3.902737719 | W76: 3.880326132 | Y76: 349.02 | Z76: 348.35 | AA76: 347.68 | AB76: 347.01 | AC76: 346.34 | AD76: 345.67 | AE76: 345 | AF76: 344.33 | AG76: 343.66 | AH76: 342.99 | AI76: 342.32 | AJ76: 341.65 | AK76: 340.98 | AL76: 340.31 | AM76: 339.64 | AN76: 338.97 | AO76: 338.3 | AP76: 337.63 | AQ76: 336.96 | AR76: 336.28
B77: VBA | C77: Pole removal costs / pole | D77: 4.135159095 | E77: 4.133103342 | F77: 4.131049632 | G77: 4.128997961 | H77: 4.126948328 | I77: 4.124900728 | J77: 4.12285516 | K77: 4.120811619 | L77: 4.118770103 | M77: 4.116730609 | N77: 4.114693133 | O77: 4.112657673 | P77: 4.110624227 | Q77: 4.10859279 | R77: 4.106563359 | S77: 4.104535933 | T77: 4.102510508 | U77: 4.10048708 | V77: 4.098465648 | W77: 4.096446207 | Y77: 343.48 | Z77: 343.43 | AA77: 343.37 | AB77: 343.32 | AC77: 343.26 | AD77: 343.21 | AE77: 343.15 | AF77: 343.1 | AG77: 343.04 | AH77: 342.99 | AI77: 342.93 | AJ77: 342.88 | AK77: 342.83 | AL77: 342.77 | AM77: 342.72 | AN77: 342.66 | AO77: 342.61 | AP77: 342.55 | AQ77: 342.5 | AR77: 342.44
B78: VBA | C78: Median number of poles | D78: 4.135159095 | E78: 4.133103342 | F78: 4.131049632 | G78: 4.128997961 | H78: 4.126948328 | I78: 4.124900728 | J78: 4.12285516 | K78: 4.120811619 | L78: 4.118770103 | M78: 4.116730609 | N78: 4.114693133 | O78: 4.112657673 | P78: 4.110624227 | Q78: 4.10859279 | R78: 4.106563359 | S78: 4.104535933 | T78: 4.102510508 | U78: 4.10048708 | V78: 4.098465648 | W78: 4.096446207 | Y78: 343.48 | Z78: 343.43 | AA78: 343.37 | AB78: 343.32 | AC78: 343.26 | AD78: 343.21 | AE78: 343.15 | AF78: 343.1 | AG78: 343.04 | AH78: 342.99 | AI78: 342.93 | AJ78: 342.88 | AK78: 342.83 | AL78: 342.77 | AM78: 342.72 | AN78: 342.66 | AO78: 342.61 | AP78: 342.55 | AQ78: 342.5 | AR78: 342.44
B79: VBA | C79: Net Cost of Pole Removals | D79: n/a - is a calculation
B80: VBA | C80: Operating costs of SAPS (annual) | D80: 4.116730609 | E80: 4.116730609 | F80: 4.116730609 | G80: 4.116730609 | H80: 4.116730609 | I80: 4.116730609 | J80: 4.116730609 | K80: 4.116730609 | L80: 4.116730609 | M80: 4.116730609 | N80: 4.116730609 | O80: 4.116730609 | P80: 4.116730609 | Q80: 4.116730609 | R80: 4.116730609 | S80: 4.116730609 | T80: 4.116730609 | U80: 4.116730609 | V80: 4.116730609 | W80: 4.116730609 | Y80: 342.99 | Z80: 342.99 | AA80: 342.99 | AB80: 342.99 | AC80: 342.99 | AD80: 342.99 | AE80: 342.99 | AF80: 342.99 | AG80: 342.99 | AH80: 342.99 | AI80: 342.99 | AJ80: 342.99 | AK80: 342.99 | AL80: 342.99 | AM80: 342.99 | AN80: 342.99 | AO80: 342.99 | AP80: 342.99 | AQ80: 342.99 | AR80: 342.99
B81: VBA | C81: Total SAPS cost (including pole removal costs) | D81: n/a - is a calculation
C83: SAPS OPEX and CAPEX
B84: VBA | C84: Avoided CAPEX ($FY20) | D84: 3.976163527 | E84: 3.991306241 | F84: 4.006564734 | G84: 4.021940339 | H84: 4.03743441 | I84: 4.053048321 | J84: 4.068783468 | K84: 4.084641268 | L84: 4.10062316 | M84: 4.116730609 | N84: 4.132965097 | O84: 4.149328136 | P84: 4.165821257 | Q84: 4.182446018 | R84: 4.199204001 | S84: 4.216096814 | T84: 4.233126092 | U84: 4.250293493 | V84: 4.267600706 | W84: 4.285049445 | Y84: 339.1 | Z84: 339.53 | AA84: 339.96 | AB84: 340.4 | AC84: 340.83 | AD84: 341.26 | AE84: 341.69 | AF84: 342.12 | AG84: 342.56 | AH84: 342.99 | AI84: 343.42 | AJ84: 343.85 | AK84: 344.29 | AL84: 344.72 | AM84: 345.15 | AN84: 345.58 | AO84: 346.02 | AP84: 346.45 | AQ84: 346.88 | AR84: 347.31
B85: VBA | C85: Avoided OPEX ($FY20) | D85: 4.054364336 | E85: 4.06120045 | F85: 4.068059655 | G85: 4.074942069 | H85: 4.08184781 | I85: 4.088776997 | J85: 4.09572975 | K85: 4.102706188 | L85: 4.109706434 | M85: 4.116730609 | N85: 4.123778835 | O85: 4.130851238 | P85: 4.137947941 | Q85: 4.14506907 | R85: 4.152214751 | S85: 4.159385112 | T85: 4.16658028 | U85: 4.173800384 | V85: 4.181045555 | W85: 4.188315923 | Y85: 341.3 | Z85: 341.48 | AA85: 341.67 | AB85: 341.86 | AC85: 342.05 | AD85: 342.24 | AE85: 342.43 | AF85: 342.61 | AG85: 342.8 | AH85: 342.99 | AI85: 343.18 | AJ85: 343.37 | AK85: 343.55 | AL85: 343.74 | AM85: 343.93 | AN85: 344.12 | AO85: 344.31 | AP85: 344.49 | AQ85: 344.68 | AR85: 344.87
B86: VBA | C86: Total avoided expenditure ($FY20) | D86: n/a - is a calculation
B87: VBA | C87: Sites | D87: 8.356289132 | E87: 5.31526172 | F87: 4.740237989 | G87: 4.49698799 | H87: 4.36266336 | I87: 4.277484638 | J87: 4.218651096 | K87: 4.175577184 | L87: 4.142678579 | M87: 4.116730609 | N87: 4.095740994 | O87: 4.078412456 | P87: 4.063863966 | Q87: 4.051476192 | R87: 4.040801049 | S87: 4.03150634 | T87: 4.023340564 | U87: 4.016109817 | V87: 4.009662197 | W87: 4.003877013 | Y87: 398.82 | Z87: 367.8 | AA87: 357.46 | AB87: 352.29 | AC87: 349.19 | AD87: 347.13 | AE87: 345.65 | AF87: 344.54 | AG87: 343.68 | AH87: 342.99 | AI87: 342.43 | AJ87: 341.96 | AK87: 341.56 | AL87: 341.22 | AM87: 340.92 | AN87: 340.66 | AO87: 340.43 | AP87: 340.23 | AQ87: 340.05 | AR87: 339.89
B88: VBA | C88: Average remaining Distribution lines and cables CAPEX (avoided CAPEX period) | D88: 4.116730609 | E88: 4.116730609 | F88: 4.116730609 | G88: 4.116730609 | H88: 4.116730609 | I88: 4.116730609 | J88: 4.116730609 | K88: 4.116730609 | L88: 4.116730609 | M88: 4.116730609 | N88: 4.116730609 | O88: 4.116730609 | P88: 4.116730609 | Q88: 4.116730609 | R88: 4.116730609 | S88: 4.116730609 | T88: 4.116730609 | U88: 4.116730609 | V88: 4.116730609 | W88: 4.116730609 | Y88: 342.99 | Z88: 342.99 | AA88: 342.99 | AB88: 342.99 | AC88: 342.99 | AD88: 342.99 | AE88: 342.99 | AF88: 342.99 | AG88: 342.99 | AH88: 342.99 | AI88: 342.99 | AJ88: 342.99 | AK88: 342.99 | AL88: 342.99 | AM88: 342.99 | AN88: 342.99 | AO88: 342.99 | AP88: 342.99 | AQ88: 342.99 | AR88: 342.99
B89: VBA | C89: Annualised avoided CAPEX / site | D89: n/a - is a calculation
B90: VBA | C90: SAPS life | D90: 8.356289132 | E90: 5.31526172 | F90: 4.740237989 | G90: 4.49698799 | H90: 4.36266336 | I90: 4.277484638 | J90: 4.218651096 | K90: 4.175577184 | L90: 4.142678579 | M90: 4.116730609 | N90: 4.095740994 | O90: 4.078412456 | P90: 4.063863966 | Q90: 4.051476192 | R90: 4.040801049 | S90: 4.03150634 | T90: 4.023340564 | U90: 4.016109817 | V90: 4.009662197 | W90: 4.003877013 | Y90: 398.82 | Z90: 367.8 | AA90: 357.46 | AB90: 352.29 | AC90: 349.19 | AD90: 347.13 | AE90: 345.65 | AF90: 344.54 | AG90: 343.68 | AH90: 342.99 | AI90: 342.43 | AJ90: 341.96 | AK90: 341.56 | AL90: 341.22 | AM90: 340.92 | AN90: 340.66 | AO90: 340.43 | AP90: 340.23 | AQ90: 340.05 | AR90: 339.89
B91: VBA | C91: Avoided OPEX / year | D91: n/a - is a calculation
B92: VBA | C92: Avoided OPEX / year / site | D92: n/a - is a calculation
C94: SAPS component replacement costs
B95: VBA | C95: Batteries / Converters | D95: 4.12266522 | E95: 4.122004974 | F95: 4.121344939 | G95: 4.120685116 | H95: 4.120025504 | I95: 4.119366103 | J95: 4.118706913 | K95: 4.118047934 | L95: 4.117389166 | M95: 4.116730609 | N95: 4.116072262 | O95: 4.115414126 | P95: 4.1147562 | Q95: 4.114098485 | R95: 4.113440979 | S95: 4.112783684 | T95: 4.112126599 | U95: 4.111469724 | V95: 4.110813059 | W95: 4.110156603 | Y95: 343.15 | Z95: 343.13 | AA95: 343.11 | AB95: 343.09 | AC95: 343.08 | AD95: 343.06 | AE95: 343.04 | AF95: 343.02 | AG95: 343.01 | AH95: 342.99 | AI95: 342.97 | AJ95: 342.95 | AK95: 342.94 | AL95: 342.92 | AM95: 342.9 | AN95: 342.88 | AO95: 342.87 | AP95: 342.85 | AQ95: 342.83 | AR95: 342.81
B96: VBA | C96: Solar Panels | D96: 4.116730609 | E96: 4.116730609 | F96: 4.116730609 | G96: 4.116730609 | H96: 4.116730609 | I96: 4.116730609 | J96: 4.116730609 | K96: 4.116730609 | L96: 4.116730609 | M96: 4.116730609 | N96: 4.116730609 | O96: 4.116730609 | P96: 4.116730609 | Q96: 4.116730609 | R96: 4.116730609 | S96: 4.116730609 | T96: 4.116730609 | U96: 4.116730609 | V96: 4.116730609 | W96: 4.116730609 | Y96: 342.99 | Z96: 342.99 | AA96: 342.99 | AB96: 342.99 | AC96: 342.99 | AD96: 342.99 | AE96: 342.99 | AF96: 342.99 | AG96: 342.99 | AH96: 342.99 | AI96: 342.99 | AJ96: 342.99 | AK96: 342.99 | AL96: 342.99 | AM96: 342.99 | AN96: 342.99 | AO96: 342.99 | AP96: 342.99 | AQ96: 342.99 | AR96: 342.99
B97: VBA | C97: Generators | D97: 4.117837483 | E97: 4.117714468 | F97: 4.11759146 | G97: 4.117468459 | H97: 4.117345466 | I97: 4.117222479 | J97: 4.117099501 | K97: 4.116976529 | L97: 4.116853565 | M97: 4.116730609 | N97: 4.116607659 | O97: 4.116484717 | P97: 4.116361783 | Q97: 4.116238855 | R97: 4.116115935 | S97: 4.115993023 | T97: 4.115870117 | U97: 4.115747219 | V97: 4.115624329 | W97: 4.115501445 | Y97: 343.02 | Z97: 343.02 | AA97: 343.01 | AB97: 343.01 | AC97: 343.01 | AD97: 343 | AE97: 343 | AF97: 343 | AG97: 342.99 | AH97: 342.99 | AI97: 342.99 | AJ97: 342.98 | AK97: 342.98 | AL97: 342.98 | AM97: 342.97 | AN97: 342.97 | AO97: 342.97 | AP97: 342.96 | AQ97: 342.96 | AR97: 342.96
C99: Vegetation cost savings from SAPS
B100: VBA | C100: Potential network for removal following SAPS installation | D100: 3.856075042 | E100: 3.884870376 | F100: 3.9137071 | G100: 3.942585303 | H100: 3.971505074 | I100: 4.000466503 | J100: 4.029469681 | K100: 4.058514697 | L100: 4.087601643 | M100: 4.116730609 | N100: 4.145901685 | O100: 4.175114965 | P100: 4.204370539 | Q100: 4.233668498 | R100: 4.263008937 | S100: 4.292391946 | T100: 4.321817618 | U100: 4.351286047 | V100: 4.380797326 | W100: 4.410351548 | Y100: 316.35 | Z100: 319.31 | AA100: 322.27 | AB100: 325.23 | AC100: 328.19 | AD100: 331.15 | AE100: 334.11 | AF100: 337.07 | AG100: 340.03 | AH100: 342.99 | AI100: 345.95 | AJ100: 348.91 | AK100: 351.87 | AL100: 354.83 | AM100: 357.79 | AN100: 360.75 | AO100: 363.71 | AP100: 366.67 | AQ100: 369.63 | AR100: 372.59
B101: VBA | C101: Potential SAPS investment sites | D101: 4.251035726 | E101: 4.177032938 | F101: 4.17926045 | G101: 4.200799044 | H101: 4.137130221 | I101: 4.172016707 | J101: 4.124407679 | K101: 4.129043609 | L101: 4.14914552 | M101: 4.116730609 | N101: 4.125489794 | O101: 4.130325293 | P101: 4.10578779 | Q101: 4.110605368 | R101: 4.090153947 | S101: 4.098971714 | T101: 4.095849771 | U101: 4.08370739 | V101: 4.085042671 | W101: 4.08121164 | Y101: 353.29 | Z101: 346.33 | AA101: 346.98 | AB101: 349.66 | AC101: 343.37 | AD101: 347.46 | AE101: 342.65 | AF101: 343.69 | AG101: 346.28 | AH101: 342.99 | AI101: 344.5 | AJ101: 345.49 | AK101: 342.99 | AL101: 344.09 | AM101: 342.01 | AN101: 343.44 | AO101: 343.69 | AP101: 342.49 | AQ101: 343.11 | AR101: 343.29
B102: VBA | C102: Potetial substations to remove | D102: 4.116730609 | E102: 4.116730609 | F102: 4.116730609 | G102: 4.116730609 | H102: 4.116730609 | I102: 4.116730609 | J102: 4.116730609 | K102: 4.116730609 | L102: 4.116730609 | M102: 4.116730609 | N102: 4.116730609 | O102: 4.116730609 | P102: 4.116730609 | Q102: 4.116730609 | R102: 4.116730609 | S102: 4.116730609 | T102: 4.116730609 | U102: 4.116730609 | V102: 4.116730609 | W102: 4.116730609 | Y102: 342.99 | Z102: 342.99 | AA102: 342.99 | AB102: 342.99 | AC102: 342.99 | AD102: 342.99 | AE102: 342.99 | AF102: 342.99 | AG102: 342.99 | AH102: 342.99 | AI102: 342.99 | AJ102: 342.99 | AK102: 342.99 | AL102: 342.99 | AM102: 342.99 | AN102: 342.99 | AO102: 342.99 | AP102: 342.99 | AQ102: 342.99 | AR102: 342.99
B103: VBA | C103: Customers who agree to SAPS | D103: 3.902010738 | E103: 3.923789803 | F103: 3.951952042 | G103: 3.989176971 | H103: 3.991790729 | I103: 4.038993562 | J103: 4.038993562 | K103: 4.06962219 | L103: 4.116730609 | M103: 4.116730609 | N103: 4.156334794 | O103: 4.194262695 | P103: 4.194262695 | Q103: 4.233752071 | R103: 4.233752071 | S103: 4.280673502 | T103: 4.310965665 | U103: 4.320045049 | V103: 4.357793667 | W103: 4.387976376 | Y103: 318.32 | Z103: 320.75 | AA103: 324.03 | AB103: 328.28 | AC103: 328.67 | AD103: 333.99 | AE103: 333.99 | AF103: 337.67 | AG103: 342.99 | AH103: 342.99 | AI103: 347.63 | AJ103: 351.99 | AK103: 351.99 | AL103: 356.63 | AM103: 356.63 | AN103: 361.95 | AO103: 365.62 | AP103: 366.59 | AQ103: 370.94 | AR103: 374.62
C104: Potential network for removal with SAPS factoring in customer acceptance | D104: n/a - is a calculation
C105: Potential network for removal with SAPS factoring in customer acceptance per SAP | D105: n/a - is a calculation
C106: New P1 network (total bay length) | D106: n/a - is a calculation
C107: Total clear to sky cost and outage cost | D107: n/a - is a calculation
C108: Total clear to sky maintenance cost increase | D108: n/a - is a calculation
C109: Average cost of veg CTS treatment (cut and outage) per km of new P1 network (bay length) | D109: n/a - is a calculation
C110: Average veg maintenance cost increase per km of new P1 network (bay length) | D110: n/a - is a calculation
C111: Total CAPEX saving of avoided veg treatment and outages from SAPS in new P1 areas | D111: n/a - is a calculation
C112: Avoided ongoing vegetation maintenance cost increase due to SAPS installation | D112: n/a - is a calculation
C113: SAPS sites | D113: n/a - is a calculation
C114: CAPEX saving of avoided veg treatment and outages from SAPS installation in new P1 areas per site | D114: n/a - is a calculation
C115: OPEX saving of avoided annual veg maintenance cost increase from SAPS installation in new P1 areas per site | D115: n/a - is a calculation
C116: Avoided CAPEX and OPEX from SAPS | D116: n/a - is a calculation
C117: Total Cost savings from SAPS
C119: Inspection and data acquisition costs
B120: VBA | C120: Aerial and ground based inspection | D120: 4.168068651 | E120: 4.162301281 | F120: 4.156549849 | G120: 4.150814289 | H120: 4.145094537 | I120: 4.139390526 | J120: 4.133702192 | K120: 4.128029471 | L120: 4.122372298 | M120: 4.116730609 | N120: 4.11110434 | O120: 4.10549343 | P120: 4.099897814 | Q120: 4.094317431 | R120: 4.088752218 | S120: 4.083202114 | T120: 4.077667056 | U120: 4.072146985 | V120: 4.066641839 | W120: 4.061151557 | Y120: 344.34 | Z120: 344.19 | AA120: 344.04 | AB120: 343.89 | AC120: 343.74 | AD120: 343.59 | AE120: 343.44 | AF120: 343.29 | AG120: 343.14 | AH120: 342.99 | AI120: 342.84 | AJ120: 342.69 | AK120: 342.54 | AL120: 342.39 | AM120: 342.24 | AN120: 342.09 | AO120: 341.94 | AP120: 341.78 | AQ120: 341.63 | AR120: 341.48
B121: VBA | C121: Additional digital data acquisition assurance | D121: 4.150057311 | E121: 4.146327722 | F121: 4.14260483 | G121: 4.138888617 | H121: 4.135179066 | I121: 4.131476159 | J121: 4.127779877 | K121: 4.124090203 | L121: 4.12040712 | M121: 4.116730609 | N121: 4.113060653 | O121: 4.109397234 | P121: 4.105740336 | Q121: 4.10208994 | R121: 4.09844603 | S121: 4.094808587 | T121: 4.091177596 | U121: 4.087553038 | V121: 4.083934897 | W121: 4.080323156 | Y121: 343.87 | Z121: 343.77 | AA121: 343.68 | AB121: 343.58 | AC121: 343.48 | AD121: 343.38 | AE121: 343.28 | AF121: 343.19 | AG121: 343.09 | AH121: 342.99 | AI121: 342.89 | AJ121: 342.79 | AK121: 342.69 | AL121: 342.6 | AM121: 342.5 | AN121: 342.4 | AO121: 342.3 | AP121: 342.2 | AQ121: 342.11 | AR121: 342.01
B122: VBA | C122: Project Management staff | D122: 4.340148022 | E122: 4.314133513 | F122: 4.288429003 | G122: 4.263028984 | H122: 4.237928079 | I122: 4.213121034 | J122: 4.188602718 | K122: 4.164368121 | L122: 4.140412346 | M122: 4.116730609 | N122: 4.093318233 | O122: 4.07017065 | P122: 4.047283393 | Q122: 4.024652094 | R122: 4.002272484 | S122: 3.980140387 | T122: 3.95825172 | U122: 3.936602488 | V122: 3.915188784 | W122: 3.894006785 | Y122: 348.65 | Z122: 348.02 | AA122: 347.4 | AB122: 346.77 | AC122: 346.14 | AD122: 345.51 | AE122: 344.88 | AF122: 344.25 | AG122: 343.62 | AH122: 342.99 | AI122: 342.36 | AJ122: 341.73 | AK122: 341.1 | AL122: 340.47 | AM122: 339.84 | AN122: 339.21 | AO122: 338.58 | AP122: 337.95 | AQ122: 337.32 | AR122: 336.69
C124: Assumptions - Vegetation Model Analysis
B125: Manual | C125: Veg fault to ignition | D125: 0.7161070828 | E125: 1.093954141 | F125: 1.4718012 | G125: 1.849648258 | H125: 2.227495317 | I125: 2.605342375 | J125: 2.983189433 | K125: 3.361036492 | L125: 3.73888355 | M125: 4.116730609 | N125: 4.494577667 | O125: 4.872424725 | P125: 5.250271784 | Q125: 5.628118842 | R125: 6.005965901 | S125: 6.383812959 | T125: 6.761660018 | U125: 7.139507076 | V125: 7.517354134 | W125: 7.895201193 | Y125: -31.24 | Z125: 10.34 | AA125: 51.92 | AB125: 93.5 | AC125: 135.08 | AD125: 176.66 | AE125: 218.25 | AF125: 259.83 | AG125: 301.41 | AH125: 342.99 | AI125: 384.57 | AJ125: 426.15 | AK125: 467.73 | AL125: 509.31 | AM125: 550.9 | AN125: 592.48 | AO125: 634.06 | AP125: 675.64 | AQ125: 717.22 | AR125: 758.8
B126: Manual | C126: Network annual average vegetation contacts | D126: 0.4116730609 | E126: 0.8233461217 | F126: 1.235019183 | G126: 1.646692243 | H126: 2.058365304 | I126: 2.470038365 | J126: 2.881711426 | K126: 3.293384487 | L126: 3.705057548 | M126: 4.116730609 | N126: 4.528403669 | O126: 4.94007673 | P126: 5.351749791 | Q126: 5.763422852 | R126: 6.175095913 | S126: 6.586768974 | T126: 6.998442035 | U126: 7.410115095 | V126: 7.821788156 | W126: 8.233461217 | Y126: -64.74 | Z126: -19.44 | AA126: 25.86 | AB126: 71.17 | AC126: 116.47 | AD126: 161.77 | AE126: 207.08 | AF126: 252.38 | AG126: 297.69 | AH126: 342.99 | AI126: 388.29 | AJ126: 433.6 | AK126: 478.9 | AL126: 524.2 | AM126: 569.51 | AN126: 614.81 | AO126: 660.12 | AP126: 705.42 | AQ126: 750.72 | AR126: 796.03
B127: Manual | C127: Vegetation outage duration (minutes) | D127: 3.812296587 | E127: 3.846122589 | F127: 3.879948592 | G127: 3.913774594 | H127: 3.947600596 | I127: 3.981426599 | J127: 4.015252601 | K127: 4.049078604 | L127: 4.082904606 | M127: 4.116730609 | N127: 4.150556611 | O127: 4.184382613 | P127: 4.218208616 | Q127: 4.252034618 | R127: 4.285860621 | S127: 4.319686623 | T127: 4.353512626 | U127: 4.387338628 | V127: 4.421164631 | W127: 4.454990633 | Y127: 309.49 | Z127: 313.21 | AA127: 316.93 | AB127: 320.65 | AC127: 324.38 | AD127: 328.1 | AE127: 331.82 | AF127: 335.54 | AG127: 339.27 | AH127: 342.99 | AI127: 346.71 | AJ127: 350.43 | AK127: 354.16 | AL127: 357.88 | AM127: 361.6 | AN127: 365.32 | AO127: 369.05 | AP127: 372.77 | AQ127: 376.49 | AR127: 380.21
B128: Manual | C128: Incremental vegetation maintenance cost increase | D128: 5.781796725 | E128: 5.53313563 | F128: 5.304981218 | G128: 5.094897215 | H128: 4.900818567 | I128: 4.720983327 | J128: 4.553879013 | K128: 4.398199966 | L128: 4.252813165 | M128: 4.116730609 | N128: 3.989086832 | O128: 3.869120481 | P128: 3.756159114 | Q128: 3.64960659 | R128: 3.548932548 | S128: 3.453663576 | T128: 3.363375764 | U128: 3.277688404 | V128: 3.19625862 | W128: 3.118776783 | Y128: 374.68 | Z128: 371.16 | AA128: 367.64 | AB128: 364.12 | AC128: 360.6 | AD128: 357.07 | AE128: 353.55 | AF128: 350.03 | AG128: 346.51 | AH128: 342.99 | AI128: 339.47 | AJ128: 335.95 | AK128: 332.43 | AL128: 328.9 | AM128: 325.38 | AN128: 321.86 | AO128: 318.34 | AP128: 314.82 | AQ128: 311.3 | AR128: 307.78
B130: Manual | C130: UoM Consequence
C133: Total ($) | D133: Benefit Cost Ratio (2024-25 $) | Y133: Net Benefit (Net Present Value, 2024-25 $)
D134: % of Central Estimate | Y134: % of Central Estimate
C135: Parameter | D135: 0.1 | E135: 0.2 | F135: 0.3 | G135: 0.4 | H135: 0.5 | I135: 0.6 | J135: 0.7 | K135: 0.8 | L135: 0.9 | M135: 1 | N135: 1.1 | O135: 1.2 | P135: 1.3 | Q135: 1.4 | R135: 1.5 | S135: 1.6 | T135: 1.7 | U135: 1.8 | V135: 1.9 | W135: 2 | Y135: 0.1 | Z135: 0.2 | AA135: 0.3 | AB135: 0.4 | AC135: 0.5 | AD135: 0.6 | AE135: 0.7 | AF135: 0.8 | AG135: 0.9 | AH135: 1 | AI135: 1.1 | AJ135: 1.2 | AK135: 1.3 | AL135: 1.4 | AM135: 1.5 | AN135: 1.6 | AO135: 1.7 | AP135: 1.8 | AQ135: 1.9 | AR135: 2
C136: SAPS Related Parameters
C137: SAPS (excluding pole removal costs) | D137: 5.301862706 | E137: 5.270913852 | F137: 5.240324219 | G137: 5.21009134 | H137: 5.180201596 | I137: 5.150652845 | J137: 5.121439285 | K137: 5.092555243 | L137: 5.063995176 | M137: 5.035753664 | N137: 5.007825406 | O137: 4.98020522 | P137: 4.952888035 | Q137: 4.925868893 | R137: 4.899142944 | S137: 4.872705439 | T137: 4.846551736 | U137: 4.820680498 | V137: 4.795080822 | W137: 4.769751598 | Y137: 587.37 | Z137: 586.57 | AA137: 585.76 | AB137: 584.96 | AC137: 584.16 | AD137: 583.36 | AE137: 582.56 | AF137: 581.76 | AG137: 580.95 | AH137: 580.15 | AI137: 579.35 | AJ137: 578.55 | AK137: 577.75 | AL137: 576.95 | AM137: 576.14 | AN137: 575.34 | AO137: 574.54 | AP137: 573.74 | AQ137: 572.94 | AR137: 572.14
C138: Pole removal costs / pole | D138: 5.056379731 | E138: 5.054081566 | F138: 5.051781963 | G138: 5.049487975 | H138: 5.04719255 | I138: 5.044899211 | J138: 5.042611467 | K138: 5.040322289 | L138: 5.038038694 | M138: 5.035753664 | N138: 5.033470706 | O138: 5.031193313 | P138: 5.028914488 | Q138: 5.026641215 | R138: 5.02436651 | S138: 5.022093863 | T138: 5.019826752 | U138: 5.017558209 | V138: 5.015295189 | W138: 5.013030739 | Y138: 580.74 | Z138: 580.67 | AA138: 580.61 | AB138: 580.54 | AC138: 580.48 | AD138: 580.41 | AE138: 580.35 | AF138: 580.28 | AG138: 580.22 | AH138: 580.15 | AI138: 580.09 | AJ138: 580.02 | AK138: 579.96 | AL138: 579.89 | AM138: 579.83 | AN138: 579.76 | AO138: 579.7 | AP138: 579.63 | AQ138: 579.57 | AR138: 579.5
C139: Median number of poles | D139: 5.056379731 | E139: 5.054081566 | F139: 5.051781963 | G139: 5.049487975 | H139: 5.04719255 | I139: 5.044899211 | J139: 5.042611467 | K139: 5.040322289 | L139: 5.038038694 | M139: 5.035753664 | N139: 5.033470706 | O139: 5.031193313 | P139: 5.028914488 | Q139: 5.026641215 | R139: 5.02436651 | S139: 5.022093863 | T139: 5.019826752 | U139: 5.017558209 | V139: 5.015295189 | W139: 5.013030739 | Y139: 580.74 | Z139: 580.67 | AA139: 580.61 | AB139: 580.54 | AC139: 580.48 | AD139: 580.41 | AE139: 580.35 | AF139: 580.28 | AG139: 580.22 | AH139: 580.15 | AI139: 580.09 | AJ139: 580.02 | AK139: 579.96 | AL139: 579.89 | AM139: 579.83 | AN139: 579.76 | AO139: 579.7 | AP139: 579.63 | AQ139: 579.57 | AR139: 579.5
C140: Net Cost of Pole Removals | D140: n/a - is a calculation
C141: Operating costs of SAPS (annual) | D141: 5.035753664 | E141: 5.035753664 | F141: 5.035753664 | G141: 5.035753664 | H141: 5.035753664 | I141: 5.035753664 | J141: 5.035753664 | K141: 5.035753664 | L141: 5.035753664 | M141: 5.035753664 | N141: 5.035753664 | O141: 5.035753664 | P141: 5.035753664 | Q141: 5.035753664 | R141: 5.035753664 | S141: 5.035753664 | T141: 5.035753664 | U141: 5.035753664 | V141: 5.035753664 | W141: 5.035753664 | Y141: 580.15 | Z141: 580.15 | AA141: 580.15 | AB141: 580.15 | AC141: 580.15 | AD141: 580.15 | AE141: 580.15 | AF141: 580.15 | AG141: 580.15 | AH141: 580.15 | AI141: 580.15 | AJ141: 580.15 | AK141: 580.15 | AL141: 580.15 | AM141: 580.15 | AN141: 580.15 | AO141: 580.15 | AP141: 580.15 | AQ141: 580.15 | AR141: 580.15
C142: Total SAPS cost (including pole removal costs) | D142: n/a - is a calculation
C144: SAPS OPEX and CAPEX
C145: Avoided CAPEX ($FY20) | D145: 4.827360582 | E145: 4.849658972 | F145: 4.872164318 | G145: 4.894882825 | H145: 4.917810853 | I145: 4.940954685 | J145: 4.964317382 | K145: 4.987905501 | L145: 5.01171538 | M145: 5.035753664 | N145: 5.060023654 | O145: 5.084528717 | P145: 5.109275891 | Q145: 5.134261499 | R145: 5.159492678 | S145: 5.184973069 | T145: 5.210710131 | U145: 5.236700186 | V145: 5.262950808 | W145: 5.289465935 | Y145: 573.95 | Z145: 574.64 | AA145: 575.33 | AB145: 576.02 | AC145: 576.7 | AD145: 577.39 | AE145: 578.08 | AF145: 578.77 | AG145: 579.46 | AH145: 580.15 | AI145: 580.84 | AJ145: 581.53 | AK145: 582.22 | AL145: 582.91 | AM145: 583.6 | AN145: 584.29 | AO145: 584.98 | AP145: 585.67 | AQ145: 586.36 | AR145: 587.05
C146: Avoided OPEX ($FY20) | D146: 4.941254847 | E146: 4.951576949 | F146: 4.961945666 | G146: 4.9723579 | H146: 4.982813924 | I146: 4.993310571 | J146: 5.003854994 | K146: 5.014444044 | L146: 5.025074518 | M146: 5.035753664 | N146: 5.046478296 | O146: 5.057248706 | P146: 5.06806164 | Q146: 5.078924474 | R146: 5.089833975 | S146: 5.10078685 | T146: 5.111790576 | U146: 5.122841879 | V146: 5.133941071 | W146: 5.145084806 | Y146: 577.4 | Z146: 577.71 | AA146: 578.01 | AB146: 578.32 | AC146: 578.62 | AD146: 578.93 | AE146: 579.24 | AF146: 579.54 | AG146: 579.85 | AH146: 580.15 | AI146: 580.46 | AJ146: 580.76 | AK146: 581.07 | AL146: 581.37 | AM146: 581.68 | AN146: 581.98 | AO146: 582.29 | AP146: 582.6 | AQ146: 582.9 | AR146: 583.21
C147: Total avoided expenditure ($FY20)
C148: Sites | D148: 13.35529743 | E148: 6.963747218 | F148: 6.005692881 | G148: 5.619151707 | H148: 5.410223373 | I148: 5.27936301 | J148: 5.189701252 | K148: 5.124426612 | L148: 5.074780087 | M148: 5.035753664 | N148: 5.004266627 | O148: 4.978324946 | P148: 4.956584493 | Q148: 4.938096537 | R148: 4.922191315 | S148: 4.908354313 | T148: 4.896210419 | U148: 4.885468014 | V148: 4.875889006 | W148: 4.867309451 | Y148: 669.7 | Z148: 619.95 | AA148: 603.37 | AB148: 595.08 | AC148: 590.1 | AD148: 586.79 | AE148: 584.42 | AF148: 582.64 | AG148: 581.26 | AH148: 580.15 | AI148: 579.25 | AJ148: 578.49 | AK148: 577.86 | AL148: 577.31 | AM148: 576.84 | AN148: 576.42 | AO148: 576.06 | AP148: 575.73 | AQ148: 575.44 | AR148: 575.18
C149: Average remaining Distribution lines and cables CAPEX (avoided CAPEX period) | D149: 5.035753664 | E149: 5.035753664 | F149: 5.035753664 | G149: 5.035753664 | H149: 5.035753664 | I149: 5.035753664 | J149: 5.035753664 | K149: 5.035753664 | L149: 5.035753664 | M149: 5.035753664 | N149: 5.035753664 | O149: 5.035753664 | P149: 5.035753664 | Q149: 5.035753664 | R149: 5.035753664 | S149: 5.035753664 | T149: 5.035753664 | U149: 5.035753664 | V149: 5.035753664 | W149: 5.035753664 | Y149: 580.15 | Z149: 580.15 | AA149: 580.15 | AB149: 580.15 | AC149: 580.15 | AD149: 580.15 | AE149: 580.15 | AF149: 580.15 | AG149: 580.15 | AH149: 580.15 | AI149: 580.15 | AJ149: 580.15 | AK149: 580.15 | AL149: 580.15 | AM149: 580.15 | AN149: 580.15 | AO149: 580.15 | AP149: 580.15 | AQ149: 580.15 | AR149: 580.15
C150: Annualised avoided CAPEX / site | D150: n/a - is a calculation
C151: SAPS life | D151: 13.35529743 | E151: 6.963747218 | F151: 6.005692881 | G151: 5.619151707 | H151: 5.410223373 | I151: 5.27936301 | J151: 5.189701252 | K151: 5.124426612 | L151: 5.074780087 | M151: 5.035753664 | N151: 5.004266627 | O151: 4.978324946 | P151: 4.956584493 | Q151: 4.938096537 | R151: 4.922191315 | S151: 4.908354313 | T151: 4.896210419 | U151: 4.885468014 | V151: 4.875889006 | W151: 4.867309451 | Y151: 669.7 | Z151: 619.95 | AA151: 603.37 | AB151: 595.08 | AC151: 590.1 | AD151: 586.79 | AE151: 584.42 | AF151: 582.64 | AG151: 581.26 | AH151: 580.15 | AI151: 579.25 | AJ151: 578.49 | AK151: 577.86 | AL151: 577.31 | AM151: 576.84 | AN151: 576.42 | AO151: 576.06 | AP151: 575.73 | AQ151: 575.44 | AR151: 575.18
C152: Avoided OPEX / year | D152: n/a - is a calculation
C153: Avoided OPEX / year / site | D153: n/a - is a calculation
C155: SAPS component replacement costs
C156: Batteries / Converters | D156: 5.046868823 | E156: 5.045630602 | F156: 5.044396502 | G156: 5.043159493 | H156: 5.041923091 | I156: 5.040687294 | J156: 5.039452104 | K156: 5.038221025 | L156: 5.036987042 | M156: 5.035753664 | N156: 5.034520889 | O156: 5.033288718 | P156: 5.032060648 | Q156: 5.030829681 | R156: 5.029599316 | S156: 5.028369553 | T156: 5.027140391 | U156: 5.025915319 | V156: 5.024687356 | W156: 5.023459993 | Y156: 580.47 | Z156: 580.43 | AA156: 580.4 | AB156: 580.36 | AC156: 580.33 | AD156: 580.29 | AE156: 580.26 | AF156: 580.22 | AG156: 580.19 | AH156: 580.15 | AI156: 580.12 | AJ156: 580.08 | AK156: 580.05 | AL156: 580.01 | AM156: 579.98 | AN156: 579.94 | AO156: 579.91 | AP156: 579.87 | AQ156: 579.84 | AR156: 579.8
C157: Solar Panels | D157: 5.035753664 | E157: 5.035753664 | F157: 5.035753664 | G157: 5.035753664 | H157: 5.035753664 | I157: 5.035753664 | J157: 5.035753664 | K157: 5.035753664 | L157: 5.035753664 | M157: 5.035753664 | N157: 5.035753664 | O157: 5.035753664 | P157: 5.035753664 | Q157: 5.035753664 | R157: 5.035753664 | S157: 5.035753664 | T157: 5.035753664 | U157: 5.035753664 | V157: 5.035753664 | W157: 5.035753664 | Y157: 580.15 | Z157: 580.15 | AA157: 580.15 | AB157: 580.15 | AC157: 580.15 | AD157: 580.15 | AE157: 580.15 | AF157: 580.15 | AG157: 580.15 | AH157: 580.15 | AI157: 580.15 | AJ157: 580.15 | AK157: 580.15 | AL157: 580.15 | AM157: 580.15 | AN157: 580.15 | AO157: 580.15 | AP157: 580.15 | AQ157: 580.15 | AR157: 580.15
C158: Generators | D158: 5.037961558 | E158: 5.03771614 | F158: 5.037470747 | G158: 5.037225378 | H158: 5.036980032 | I158: 5.036734711 | J158: 5.036489413 | K158: 5.03624414 | L158: 5.03599889 | M158: 5.035753664 | N158: 5.035508462 | O158: 5.035263283 | P158: 5.035018129 | Q158: 5.034772999 | R158: 5.034527892 | S158: 5.034282809 | T158: 5.03403775 | U158: 5.033792715 | V158: 5.033547704 | W158: 5.033302717 | Y158: 580.22 | Z158: 580.21 | AA158: 580.2 | AB158: 580.19 | AC158: 580.19 | AD158: 580.18 | AE158: 580.17 | AF158: 580.17 | AG158: 580.16 | AH158: 580.15 | AI158: 580.15 | AJ158: 580.14 | AK158: 580.13 | AL158: 580.12 | AM158: 580.12 | AN158: 580.11 | AO158: 580.1 | AP158: 580.1 | AQ158: 580.09 | AR158: 580.08
C160: Vegetation cost savings from SAPS
C161: Potential network for removal following SAPS installation | D161: 4.684745219 | E161: 4.723516781 | F161: 4.762341828 | G161: 4.801228432 | H161: 4.840169411 | I161: 4.879171571 | J161: 4.918228303 | K161: 4.957346534 | L161: 4.996518843 | M161: 5.035753664 | N161: 5.075043457 | O161: 5.114395391 | P161: 5.153802499 | Q161: 5.193272069 | R161: 5.232797018 | S161: 5.272384055 | T161: 5.312027373 | U161: 5.351733805 | V161: 5.391496025 | W161: 5.431321689 | Y161: 533.24 | Z161: 538.46 | AA161: 543.67 | AB161: 548.88 | AC161: 554.09 | AD161: 559.3 | AE161: 564.52 | AF161: 569.73 | AG161: 574.94 | AH161: 580.15 | AI161: 585.36 | AJ161: 590.58 | AK161: 595.79 | AL161: 601 | AM161: 606.21 | AN161: 611.42 | AO161: 616.64 | AP161: 621.85 | AQ161: 627.06 | AR161: 632.27
C162: Potential SAPS investment sites | D162: 5.139905515 | E162: 5.042899311 | F162: 5.058216169 | G162: 5.100746642 | H162: 5.017934841 | I162: 5.080174674 | J162: 5.016439009 | K162: 5.036317439 | L162: 5.079416378 | M162: 5.035753664 | N162: 5.063535163 | O162: 5.08389515 | P162: 5.050641761 | Q162: 5.073108635 | R162: 5.045293287 | S162: 5.073703755 | T162: 5.082757333 | U162: 5.068759458 | V162: 5.084477822 | W162: 5.09247553 | Y162: 596.42 | Z162: 583.61 | AA162: 585.28 | AB162: 590.42 | AC162: 579.45 | AD162: 587.05 | AE162: 578.58 | AF162: 580.94 | AG162: 585.94 | AH162: 580.15 | AI162: 583.35 | AJ162: 585.53 | AK162: 581.12 | AL162: 583.62 | AM162: 579.94 | AN162: 582.95 | AO162: 583.88 | AP162: 581.81 | AQ162: 583.35 | AR162: 584.15
C163: Potetial substations to remove | D163: 5.035753664 | E163: 5.035753664 | F163: 5.035753664 | G163: 5.035753664 | H163: 5.035753664 | I163: 5.035753664 | J163: 5.035753664 | K163: 5.035753664 | L163: 5.035753664 | M163: 5.035753664 | N163: 5.035753664 | O163: 5.035753664 | P163: 5.035753664 | Q163: 5.035753664 | R163: 5.035753664 | S163: 5.035753664 | T163: 5.035753664 | U163: 5.035753664 | V163: 5.035753664 | W163: 5.035753664 | Y163: 580.15 | Z163: 580.15 | AA163: 580.15 | AB163: 580.15 | AC163: 580.15 | AD163: 580.15 | AE163: 580.15 | AF163: 580.15 | AG163: 580.15 | AH163: 580.15 | AI163: 580.15 | AJ163: 580.15 | AK163: 580.15 | AL163: 580.15 | AM163: 580.15 | AN163: 580.15 | AO163: 580.15 | AP163: 580.15 | AQ163: 580.15 | AR163: 580.15
C164: Customers who agree to SAPS | D164: 4.672007892 | E164: 4.706898842 | F164: 4.755206366 | G164: 4.818101749 | H164: 4.823465291 | I164: 4.902105744 | J164: 4.902105744 | K164: 4.956407848 | L164: 5.035753664 | M164: 5.035753664 | N164: 5.105240776 | O164: 5.170548669 | P164: 5.170548669 | Q164: 5.240625777 | R164: 5.240625777 | S164: 5.32149883 | T164: 5.377179598 | U164: 5.392247117 | V164: 5.458780144 | W164: 5.514917442 | Y164: 534.15 | Z164: 538.58 | AA164: 544.78 | AB164: 552.71 | AC164: 553.5 | AD164: 563.34 | AE164: 563.34 | AF164: 570.32 | AG164: 580.15 | AH164: 580.15 | AI164: 588.87 | AJ164: 596.97 | AK164: 596.97 | AL164: 605.69 | AM164: 605.69 | AN164: 615.53 | AO164: 622.51 | AP164: 624.25 | AQ164: 632.34 | AR164: 639.32
C165: Potential network for removal with SAPS factoring in customer acceptance | D165: n/a - is a calculation
C166: Potential network for removal with SAPS factoring in customer acceptance per SAP | D166: n/a - is a calculation
C167: New P1 network (total bay length) | D167: n/a - is a calculation
C168: Total clear to sky cost and outage cost | D168: n/a - is a calculation
C169: Total clear to sky maintenance cost increase | D169: n/a - is a calculation
C170: Average cost of veg CTS treatment (cut and outage) per km of new P1 network (bay length) | D170: n/a - is a calculation
C171: Average veg maintenance cost increase per km of new P1 network (bay length) | D171: n/a - is a calculation
C172: Total CAPEX saving of avoided veg treatment and outages from SAPS in new P1 areas | D172: n/a - is a calculation
C173: Avoided ongoing vegetation maintenance cost increase due to SAPS installation | D173: n/a - is a calculation
C174: SAPS sites | D174: n/a - is a calculation
C175: CAPEX saving of avoided veg treatment and outages from SAPS installation in new P1 areas per site | D175: n/a - is a calculation
C176: OPEX saving of avoided annual veg maintenance cost increase from SAPS installation in new P1 areas per site | D176: n/a - is a calculation
C177: Avoided CAPEX and OPEX from SAPS | D177: n/a - is a calculation
C178: Total Cost savings from SAPS
C180: Inspection and data acquisition costs
C181: Aerial and ground based inspection | D181: 5.093053263 | E181: 5.086622329 | F181: 5.080207614 | G181: 5.073809058 | H181: 5.0674266 | I181: 5.061060179 | J181: 5.054709735 | K181: 5.048375208 | L181: 5.042056537 | M181: 5.035753664 | N181: 5.029466529 | O181: 5.023195073 | P181: 5.016939239 | Q181: 5.010698966 | R181: 5.004474199 | S181: 4.998264878 | T181: 4.992070946 | U181: 4.985892347 | V181: 4.979729023 | W181: 4.973580918 | Y181: 581.77 | Z181: 581.59 | AA181: 581.41 | AB181: 581.23 | AC181: 581.05 | AD181: 580.87 | AE181: 580.69 | AF181: 580.51 | AG181: 580.33 | AH181: 580.15 | AI181: 579.97 | AJ181: 579.79 | AK181: 579.61 | AL181: 579.43 | AM181: 579.25 | AN181: 579.07 | AO181: 578.89 | AP181: 578.71 | AQ181: 578.53 | AR181: 578.36
C182: Additional digital data acquisition assurance | D182: 5.072173732 | E182: 5.06810067 | F182: 5.064037686 | G182: 5.059977674 | H182: 5.055924168 | I182: 5.051877151 | J182: 5.047836607 | K182: 5.043802522 | L182: 5.039774879 | M182: 5.035753664 | N182: 5.03173886 | O182: 5.027730453 | P182: 5.023728428 | Q182: 5.019732768 | R182: 5.01574346 | S182: 5.011760487 | T182: 5.007783835 | U182: 5.003816947 | V182: 4.999852886 | W182: 4.9958951 | Y182: 581.18 | Z182: 581.07 | AA182: 580.96 | AB182: 580.84 | AC182: 580.73 | AD182: 580.61 | AE182: 580.5 | AF182: 580.38 | AG182: 580.27 | AH182: 580.15 | AI182: 580.04 | AJ182: 579.92 | AK182: 579.81 | AL182: 579.69 | AM182: 579.58 | AN182: 579.46 | AO182: 579.35 | AP182: 579.23 | AQ182: 579.12 | AR182: 579.01
